Workbook

Sheet Menu
Z1: 2
Z4: 2
A6: West Central Extension District - 7
D8: Budgets
D11: Forage Crops
D13: =+AlfalfaEstablish!A3 -> Alfalfa, Roundup Ready, Establishment, Center Pivot Irrigated
D14: =AlfalfaHayPivot!A3 -> Alfalfa, RoundUp Ready, Full Season, Baled - 6.5 ton, Center Pivot Irrigated
D15: =CoastalEstablishDryland!A3 -> Dryland Bermudagrass Establishment
D16: =CoastalHayDryland!A3 -> Dryland Bermudagrass Hay
D17: =OatsDryland!A3 -> Dryland Forage Oats, Follow Small Grains
B18: Comparative Returns | D18: =SorghumHaygrazer!A3 -> Non-Irrigated Sorghum Haygrazer, 3 ton yield
B20: Links | D20: Field Crops
D22: =CottonDripRF!A3 -> Drip Irrigated Cotton, RF
D23: =CottonDripXF!A3 -> Drip Irrigated Cotton, Auxin Technology
D24: =CottonDrylandRF!A3 -> Dryland Cotton, B2RF, Follow Wheat
D25: =CottonDrylandXF!A3 -> Dryland Cotton, Auxin Technology, Follow Wheat
D26: =OatsGrainDryland!A3 -> Dryland Oats, Follow Small Grains
D27: =SesameDryland!A3 -> Dryland Sesame
D28: =SorghumDryland!A3 -> No-Till Dryland Sorghum, Follow Cotton
D29: =ConTillWheat!A3 -> Con-Till Wheat, Dryland, Follow Wheat
D30: =WheatDryland!A3 -> No-Till Wheat, Dryland, Follow Cotton
D32: Livestock
D34: =+CowCalf!A3 -> Cow-Calf Native Pasture
D35: =CommercialHairSheep!A3 -> Commercial Hair Sheep, Lamb Production, 6 Head per AU
D36: =CommercialSheep!A3 -> Commercial Sheep, Wool/Lamb Production, 5 Head per AU
D37: =MeatGoats!A3 -> Commercial Meat Goats, 6 Head per AU
D38: =SmallAcreageGoat!A3 -> Small Acreage Meat Goats
D39: =SmallAcreageHairSheep!A3 -> Small Acreage Hair Sheep
D40: =+NativePastureStockers!A3 -> Stocker Calf Budget - Native Pasture - Summer
D41: =WheatStockersMar15!A3 -> Stocker Calf Budget - Pull off Wheat March 15
D43: Other Budgets
D45: ='Livestock Budget'!A3 -> Livestock Budget
D46: ='Crop Budget'!A3 -> Crop Enterprise
A65: Developed by Bill Thompson, Assistant Professor and Extension Economist, Texas A&M AgriLife Extension Service, 325-653-4576.

Sheet Links
B2: Texas Crop and Livestock Budgets
B3: A Program of the Texas A&M AgriLife Extension Service
B4: Agricultural Economics Department, The Texas A&M University System
B6: Developed by Texas A&M AgriLife Extension Service Economists and Other Specialists
B8: Contact Us | G8: Clickable Logos
B10: Resources
B12: Decision Aids (includes Machinery Cost Estimator)
B14: Custom Rate Survey
B16: Basis Data
B18: Master Marketer
B20: Extension Ag Economics
B22: Department of Agricultural Economics
B24: Menu Page
B26: Links last checked 4/17/2020

Sheet OatsGrainDryland
A1: Projections for Planning Purposes Only -- Not to be Used without Updating
A2: 2021 Estimated Costs and Returns per Acre
A3: Dryland Oats, Follow Small Grains
A4: Enter your name for this budget in the cell above.
A5: Enter Your Values in the cells highlighed in MAROON.
E6: Your Acres | R6: Your
C7: Crop Acres | D7: 100 | L7: Your | Q7: Enterprise | R7: Enterprise
E8: Your | H8: Your | I8: Cash | J8: Your | K8: Landlord | L8: Landlord | N8: Your | P8: Your | Q8: Total | R8: Total
A9: REVENUE | D9: Quantity | E9: Quantity | F9: Units | G9: $/Unit | H9: $/Unit | I9: Total | J9: Total | K9: Share | L9: Share | M9: Landlord | N9: Landlord | O9: Tenant | P9: Tenant | Q9: (100 acres) | R9: ="(" & E7 & " acres)" -> ( acres)
B10: Winter Oats | D10: 35 | F10: Bushel | G10: 2.1 | I10: 73.5 | J10: =E10*H10 -> 0 | K10: 0 | M10: 0 | N10: =J10*L10 -> 0 | O10: 73.5 | P10: =+J10-N10 -> 0 | Q10: 7350 | R10: =+J10*E$7 -> 0
D11: 0 | G11: 0 | I11: 0 | J11: 0 | K11: 0 | M11: 0 | N11: 0 | O11: 0 | P11: =+J11-N11 -> 0 | Q11: 0 | R11: 0
D12: 0 | G12: 0 | I12: 0 | J12: 0 | K12: 0 | M12: 0 | N12: 0 | O12: 0 | P12: 0 | Q12: 0 | R12: 0
A13: Total Revenue | I13: 73.5 | J13: =SUM(J10:J12) -> 0 | M13: 0 | N13: =SUM(N10:N12) -> 0 | O13: 73.5 | P13: =SUM(P10:P12) -> 0 | Q13: 7350 | R13: =SUM(R10:R12) -> 0
Q14: Enterprise | R14: Enterprise
A15: VARIABLE COSTS | D15: Quantity | E15: Quantity | F15: Units | G15: $/Unit | H15: $/Unit | I15: Total | J15: Total | K15: Share | L15: Share | M15: Landlord | N15: Landlord | O15: Tenant | P15: Tenant | Q15: Total | R15: Total
A16: Production Costs
B17: Fertilizer
C18: Nitrogen Dry-Urea | D18: 5 | F18: Pounds | G18: 0.4022 | I18: 2.011 | J18: =E18*H18 -> 0 | K18: 0 | M18: 0 | N18: =J18*L18 -> 0 | O18: 2.011 | P18: =+J18-N18 -> 0 | Q18: 201.1 | R18: =+J18*E$7 -> 0
C19: Phos (11-52-0 DRY MAT) | D19: 18 | F19: Pounds | G19: 0.4519 | I19: 8.1342 | J19: 0 | K19: 0 | M19: 0 | N19: 0 | O19: 8.1342 | P19: 0 | Q19: 813.42 | R19: 0
C20: Nitrogen N32 | D20: 35 | F20: Pounds | G20: 0.4022 | I20: 14.077 | J20: 0 | K20: 0 | M20: 0 | N20: 0 | O20: 14.077 | P20: 0 | Q20: 1407.7 | R20: 0
B21: Herbicide
C22: 2-4D Amine 4 | D22: 1 | F22: Pint | G22: 1.6125 | I22: 1.6125 | J22: 0 | K22: 0 | M22: 0 | N22: 0 | O22: 1.6125 | P22: 0 | Q22: 161.25 | R22: 0
C23: MSM (Ally) | D23: 0.14 | F23: Ounce | G23: 4.5 | I23: 0.63 | J23: 0 | K23: 0 | M23: 0 | N23: 0 | O23: 0.63 | P23: 0 | Q23: 63 | R23: 0
B24: Custom
C25: Soil Test-Dryland | D25: 1 | F25: Each | G25: 0.25 | I25: 0.25 | J25: 0 | K25: 0 | M25: 0 | N25: 0 | O25: 0.25 | P25: 0 | Q25: 25 | R25: 0
C26: Custom Harvest small grains | D26: 1 | F26: Acre | G26: 23 | I26: 23 | J26: 0 | K26: 0 | M26: 0 | N26: 0 | O26: 23 | P26: 0 | Q26: 2300 | R26: 0
C27: Custom Haul small grains | D27: 25 | F27: Bushels | G27: 0.25 | I27: 6.25 | J27: 0 | K27: 0 | M27: 0 | N27: 0 | O27: 6.25 | P27: 0 | Q27: 625 | R27: 0
B28: Seed
C29: Oat Seed | D29: 45 | F29: Pound | G29: 0.33 | I29: 14.85 | J29: 0 | K29: 0 | M29: 0 | N29: 0 | O29: 14.85 | P29: 0 | Q29: 1485 | R29: 0
B30: Miscellaneous
C31: Oats Crop Insurance | D31: 1 | F31: Acre | G31: 13 | I31: 13 | J31: 0 | K31: 0 | M31: 0 | N31: 0 | O31: 13 | P31: 0 | Q31: 1300 | R31: 0
D32: 0 | G32: 0 | I32: 0 | J32: 0 | K32: 0 | M32: 0 | N32: 0 | O32: 0 | P32: 0 | Q32: 0 | R32: 0
D33: 0 | G33: 0 | I33: 0 | J33: 0 | K33: 0 | M33: 0 | N33: 0 | O33: 0 | P33: 0 | Q33: 0 | R33: 0
D34: 0 | G34: 0 | I34: 0 | J34: =E34*H34 -> 0 | K34: 0 | M34: 0 | N34: =J34*L34 -> 0 | O34: 0 | P34: =+J34-N34 -> 0 | Q34: 0 | R34: =+J34*E$7 -> 0
B35: Machinery Labor
C36: Tractors/Self-Propelled | D36: 0.4 | F36: Hour | G36: 15 | I36: 6 | J36: =E36*H36 -> 0 | K36: 0 | M36: 0 | N36: =J36*L36 -> 0 | O36: 6 | P36: =+J36-N36 -> 0 | Q36: 600 | R36: =+J36*E$7 -> 0
C37: Other Labor | D37: 0 | F37: Hour | G37: 15 | I37: 0 | J37: =E37*H37 -> 0 | K37: 0 | M37: 0 | N37: =J37*L37 -> 0 | O37: 0 | P37: =+J37-N37 -> 0 | Q37: 0 | R37: =+J37*E$7 -> 0
B39: Diesel Fuel
C40: Pickup/General Use Equipment | D40: 1 | F40: Acre | G40: 0 | I40: 0 | J40: =E40*H40 -> 0 | K40: 0 | M40: 0 | N40: =J40*L40 -> 0 | O40: 0 | P40: =+J40-N40 -> 0 | Q40: 0 | R40: =+J40*E$7 -> 0
C41: Tractors/Self-Propelled | D41: 3.36 | F41: Gallon | G41: 1.5 | I41: 5.04 | J41: =E41*H41 -> 0 | K41: 0 | M41: 0 | N41: =J41*L41 -> 0 | O41: 5.04 | P41: =+J41-N41 -> 0 | Q41: 504 | R41: =+J41*E$7 -> 0
B43: Gasoline
C44: Pickup/General Use Equipment | D44: 1 | F44: Acre | G44: 1.5792 | I44: 1.5792 | J44: =E44*H44 -> 0 | K44: 0 | M44: 0 | N44: =J44*L44 -> 0 | O44: 1.5792 | P44: =+J44-N44 -> 0 | Q44: 157.92 | R44: =+J44*E$7 -> 0
C45: Tractors/Self-Propelled | D45: 0 | F45: Gallon | G45: 1.8 | I45: 0 | J45: =E45*H45 -> 0 | K45: 0 | M45: 0 | N45: =J45*L45 -> 0 | O45: 0 | P45: =+J45-N45 -> 0 | Q45: 0 | R45: =+J45*E$7 -> 0
B47: Repairs & Maintenance
C48: Pickup/General Use Equipment | D48: 1 | F48: Acre | G48: 1.37 | I48: 1.37 | J48: =E48*H48 -> 0 | K48: 0 | M48: 0 | N48: =J48*L48 -> 0 | O48: 1.37 | P48: =+J48-N48 -> 0 | Q48: 137 | R48: =+J48*E$7 -> 0
C49: Irrigation Equipment | D49: 1 | F49: Acre | G49: 0 | I49: 0 | J49: 0 | K49: 0 | M49: 0 | N49: 0 | O49: 0 | P49: 0 | Q49: 0 | R49: 0
C50: Tractors/Self-Propelled | D50: 1 | F50: Acre | G50: 8.660355262 | I50: 8.660355262 | J50: 0 | K50: 0 | M50: 0 | N50: 0 | O50: 8.660355262 | P50: 0 | Q50: 866.0355262 | R50: 0
C51: Implements | D51: 1 | F51: Acre | G51: 12.01347273 | I51: 12.01347273 | J51: 0 | K51: 0 | M51: 0 | N51: 0 | O51: 12.01347273 | P51: 0 | Q51: 1201.347273 | R51: 0
I52: 0 | J52: 0 | K52: 0 | M52: 0 | N52: 0 | O52: 0 | P52: 0 | Q52: 0 | R52: 0
I53: 0 | J53: 0 | K53: 0 | M53: 0 | N53: 0 | O53: 0 | P53: 0 | Q53: 0 | R53: 0
B54: Interest on Credit Line | G54: 0.0455 | I54: 1.66822323 | J54: =+SUM(J17:J53)/2*H54 -> 0 | M54: 0 | N54: =+SUM(N17:N53)/2*L54 -> 0 | O54: 1.66822323 | P54: =+SUM(P17:P53)/2*L54 -> 0 | Q54: 166.822323 | R54: =+J54*E$7 -> 0
A55: Total Variable Costs | I55: 120.1459512 | J55: =SUM(J18:J54) -> 0 | M55: 0 | N55: =SUM(N18:N54) -> 0 | O55: 120.1459512 | P55: =SUM(P18:P54) -> 0 | Q55: 12014.59512 | R55: =SUM(R18:R54) -> 0
A56: Planned Returns Above Variable Costs: | I56: -46.64595123 | J56: =+J13-J55 -> 0 | M56: 0 | N56: =+N13-N55 -> 0 | O56: -46.64595123 | P56: =+P13-P55 -> 0 | Q56: -4664.595123 | R56: =+R13-R55 -> 0
B57: Breakeven Price to Cover Variable Costs | G57: 3.432741464 | H57: =IF(E10=0,"n/a",(YVarExp-(YTotExp+YTotRet-J10))/E10) -> n/a | I57: Bushel
Q58: Enterprise | R58: Enterprise
A59: FIXED COSTS | D59: Quantity | E59: Quantity | F59: Units | G59: $/Unit | H59: $/Unit | I59: Total | J59: Total | K59: Share | L59: Share | M59: Landlord | N59: Landlord | O59: Tenant | P59: Tenant | Q59: Total | R59: Total
B60: Machinery Depreciation
C61: Pickup/General Use Equipment | D61: 1 | F61: Acre | G61: 2.988 | I61: 2.988 | J61: =E61*H61 -> 0 | K61: 0 | M61: 0 | N61: =J61*L61 -> 0 | O61: 2.988 | P61: =+J61-N61 -> 0 | Q61: 298.8 | R61: =+J61*E$7 -> 0
C62: Tractors/Self-Propelled | D62: 1 | F62: Acre | G62: 10.03473747 | I62: 10.03473747 | J62: 0 | K62: 0 | M62: 0 | N62: =J62*L62 -> 0 | O62: 10.03473747 | P62: 0 | Q62: 1003.473747 | R62: 0
C63: Implements | D63: 1 | F63: Acre | G63: 15.58380193 | I63: 15.58380193 | J63: 0 | K63: 0 | M63: 0 | N63: =J63*L63 -> 0 | O63: 15.58380193 | P63: 0 | Q63: 1558.380193 | R63: 0
B64: Equipment Investment
C65: Pickup/General Use Equipment | D65: 12.98 | F65: Dollars | G65: 0.055 | I65: 0.7139 | J65: =E65*H65 -> 0 | K65: 0 | M65: 0 | N65: =J65*L65 -> 0 | O65: 0.7139 | P65: =+J65-N65 -> 0 | Q65: 71.39 | R65: =+J65*E$7 -> 0
C66: Tractors/Self-Propelled | D66: 77.66938652 | F66: Dollars | G66: 0.055 | I66: 4.271816259 | J66: 0 | K66: 0 | M66: 0 | N66: =J66*L66 -> 0 | O66: 4.271816259 | P66: 0 | Q66: 427.1816259 | R66: 0
C67: Implements | D67: 66.66404157 | F67: Dollars | G67: 0.055 | I67: 3.666522286 | J67: 0 | K67: 0 | M67: 0 | N67: =J67*L67 -> 0 | O67: 3.666522286 | P67: 0 | Q67: 366.6522286 | R67: 0
B68: Salaried Labor | D68: 1 | F68: Acre | G68: 0 | I68: 0 | J68: 0 | K68: 0 | M68: 0 | N68: =J68*L68 -> 0 | O68: 0 | P68: =+J68-N68 -> 0 | Q68: 0 | R68: =+J68*E$7 -> 0
B69: Management Fee, Owner/Operator Labor | D69: 1 | F69: Acre | G69: 0 | I69: 0 | J69: 0 | K69: 0 | M69: 0 | N69: 0 | O69: 0 | P69: 0 | Q69: 0 | R69: 0
B70: Allocated Establishment Cost | D70: 1 | F70: Acre | G70: 0 | I70: 0 | J70: 0 | K70: 0 | M70: 0 | N70: 0 | O70: 0 | P70: 0 | Q70: 0 | R70: 0
B71: Rent-Dryland Crop | D71: 1 | F71: Acre | G71: 35 | I71: 35 | J71: 0 | K71: 0 | M71: 0 | N71: 0 | O71: 35 | P71: 0 | Q71: 3500 | R71: 0
B72: Property Taxes | D72: 1 | F72: Acre | G72: 0 | I72: 0 | J72: 0 | K72: 0 | M72: 0 | N72: 0 | O72: 0 | P72: 0 | Q72: 0 | R72: 0
B73: Whole Farm Insurance | D73: 1 | F73: Acre | G73: 0 | I73: 0 | J73: 0 | K73: 0 | M73: 0 | N73: 0 | O73: 0 | P73: 0 | Q73: 0 | R73: 0
D74: 1 | G74: 0 | I74: 0 | J74: 0 | K74: 0 | M74: 0 | N74: 0 | O74: 0 | P74: 0 | Q74: 0 | R74: 0
D75: 1 | G75: 0 | I75: 0 | J75: =E75*H75 -> 0 | K75: 0 | M75: 0 | N75: 0 | O75: 0 | P75: 0 | Q75: 0 | R75: 0
A76: Total Fixed Costs | I76: 72.25877794 | J76: =+SUM(J61:J75) -> 0 | M76: 0 | N76: =+SUM(N61:N75) -> 0 | O76: 72.25877794 | P76: =+SUM(P61:P75) -> 0 | Q76: 7225.877794 | R76: =+SUM(R61:R75) -> 0
A77: Total Specified Costs | I77: 192.4047292 | J77: =+J55+J76 -> 0 | M77: 0 | N77: =+N55+N76 -> 0 | O77: 192.4047292 | P77: =+P55+P76 -> 0 | Q77: 19240.47292 | R77: =+R55+R76 -> 0
A79: Returns Above Specified Costs | I79: -118.9047292 | J79: =+J13-J77 -> 0 | M79: 0 | N79: =+N13-N77 -> 0 | O79: -118.9047292 | P79: =+P13-P77 -> 0 | Q79: -11890.47292 | R79: =+R13-R77 -> 0
A81: Breakeven Price to Cover Total Costs | G81: 5.497277976 | H81: =IF(E10=0,"n/a",(YTotExp-(YTotExp+YTotRet-J10))/E10) -> n/a | I81: Bushel
D83: Example Breakeven Prices
B84: Example | C84: Example | D84: To Cover | G84: To Cover
B85: Yield | C85: Yield | D85: Variable | G85: Total
B86: Percent | C86: Bushel | D86: Costs | G86: Costs
B87: 0.75 | C87: 26.25 | D87: 4.576988618 | G87: 7.329703968
B88: 0.9 | C88: 31.5 | D88: 3.814157182 | G88: 6.10808664
B89: 1 | C89: 35 | D89: 3.432741464 | G89: 5.497277976
B90: 1.1 | C90: 38.5 | D90: 3.120674058 | G90: 4.997525433
B91: 1.25 | C91: 43.75 | D91: 2.746193171 | G91: 4.397822381
D93: Your Breakeven Prices
B94: Your | C94: Your | E94: To Cover | H94: To Cover
B95: Yield | C95: Yield | E95: Variable | H95: Total
B96: Percent | C96: Bushel | E96: Costs | H96: Costs
B97: 0.75 | C97: =E10*YPER1 -> 0 | E97: =IF($E$10=0,0,(YVarExp-(YTotExp+YTotRet-J10))/($E$10*YPER1)) -> 0 | H97: =IF($E$10=0,0,(YTotExp-(YTotExp+YTotRet-J10))/($E$10*YPER1)) -> 0
B98: 0.9 | C98: =E10*YPER2 -> 0 | E98: =IF($E$10=0,0,(YVarExp-(YTotExp+YTotRet-J10))/($E$10*YPER2)) -> 0 | H98: =IF($E$10=0,0,(YTotExp-(YTotExp+YTotRet-J10))/($E$10*YPER2)) -> 0
B99: 1 | C99: =+E10 -> 0 | E99: =IF($E$10=0,0,(YVarExp-(YTotExp+YTotRet-J10))/($E$10*YPER3)) -> 0 | H99: =IF($E$10=0,0,(YTotExp-(YTotExp+YTotRet-J10))/($E$10*YPER3)) -> 0
B100: 1.1 | C100: =E10*YPER4 -> 0 | E100: =IF($E$10=0,0,(YVarExp-(YTotExp+YTotRet-J10))/($E$10*YPER4)) -> 0 | H100: =IF($E$10=0,0,(YTotExp-(YTotExp+YTotRet-J10))/($E$10*YPER4)) -> 0
B101: 1.25 | C101: =E10*YPER5 -> 0 | E101: =IF($E$10=0,0,(YVarExp-(YTotExp+YTotRet-J10))/($E$10*YPER5)) -> 0 | H101: =IF($E$10=0,0,(YTotExp-(YTotExp+YTotRet-J10))/($E$10*YPER5)) -> 0
A103: Developed by Bill Thompson, Assistant Professor and Extension Economist, Texas A&M AgriLife Extension Service, 325-653-4576.
A105: Information presented is prepared solely as a general guide and not intended to recognize or predict the costs and returns from any one operation. Brand names are mentioned only as examples and imply no endorsement.

Sheet SorghumHaygrazer
A1: Projections for Planning Purposes Only -- Not to be Used without Updating
A2: 2021 Estimated Costs and Returns per Acre
A3: Non-Irrigated Sorghum Haygrazer, 3 ton yield
A4: Enter your name for this budget in the cell above.
A5: Enter Your Values in the cells highlighed in MAROON.
E6: Your Acres | R6: Your
C7: Crop Acres | D7: 50 | L7: Your | Q7: Enterprise | R7: Enterprise
E8: Your | H8: Your | I8: Cash | J8: Your | K8: Landlord | L8: Landlord | N8: Your | P8: Your | Q8: Total | R8: Total
A9: REVENUE | D9: Quantity | E9: Quantity | F9: Units | G9: $/Unit | H9: $/Unit | I9: Total | J9: Total | K9: Share | L9: Share | M9: Landlord | N9: Landlord | O9: Tenant | P9: Tenant | Q9: (50 acres) | R9: ="(" & E7 & " acres)" -> ( acres)
B10: Hay, 1200# BRB | D10: 3 | F10: Ton | G10: 145 | I10: 435 | J10: =E10*H10 -> 0 | K10: 0 | M10: 0 | N10: =J10*L10 -> 0 | O10: 435 | P10: =+J10-N10 -> 0 | Q10: 21750 | R10: =+J10*E$7 -> 0
D11: 0 | G11: 0 | I11: 0 | J11: 0 | K11: 0 | M11: 0 | N11: 0 | O11: 0 | P11: =+J11-N11 -> 0 | Q11: 0 | R11: 0
D12: 0 | G12: 0 | I12: 0 | J12: 0 | K12: 0 | M12: 0 | N12: 0 | O12: 0 | P12: 0 | Q12: 0 | R12: 0
A13: Total Revenue | I13: 435 | J13: =SUM(J10:J12) -> 0 | M13: 0 | N13: =SUM(N10:N12) -> 0 | O13: 435 | P13: =SUM(P10:P12) -> 0 | Q13: 21750 | R13: =SUM(R10:R12) -> 0
Q14: Enterprise | R14: Enterprise
A15: VARIABLE COSTS | D15: Quantity | E15: Quantity | F15: Units | G15: $/Unit | H15: $/Unit | I15: Total | J15: Total | K15: Share | L15: Share | M15: Landlord | N15: Landlord | O15: Tenant | P15: Tenant | Q15: Total | R15: Total
A16: Production Costs
B17: Fertilizer
C18: Nitrogen Dry-Urea | D18: 40 | F18: Pounds | G18: 0.4022 | I18: 16.088 | J18: =E18*H18 -> 0 | K18: 0 | M18: 0 | N18: =J18*L18 -> 0 | O18: 16.088 | P18: =+J18-N18 -> 0 | Q18: 804.4 | R18: =+J18*E$7 -> 0
B19: Herbicide
C20: Husky | D20: 12 | F20: Ounce | G20: 0.886719 | I20: 10.640628 | J20: 0 | K20: 0 | M20: 0 | N20: 0 | O20: 10.640628 | P20: 0 | Q20: 532.0314 | R20: 0
B21: Custom
C22: Soil Test-Dryland | D22: 1 | F22: Each | G22: 0.25 | I22: 0.25 | J22: 0 | K22: 0 | M22: 0 | N22: 0 | O22: 0.25 | P22: 0 | Q22: 12.5 | R22: 0
C23: Swath, Rake and Bale | D23: 5 | F23: Bale | G23: 29.58 | I23: 147.9 | J23: 0 | K23: 0 | M23: 0 | N23: 0 | O23: 147.9 | P23: 0 | Q23: 7395 | R23: 0
B24: Seed
C25: Forage Sorghum | D25: 15 | F25: Pound | G25: 1.79 | I25: 26.85 | J25: 0 | K25: 0 | M25: 0 | N25: 0 | O25: 26.85 | P25: 0 | Q25: 1342.5 | R25: 0
B26: Insecticide
C27: Transform | D27: 1 | F27: Ounce | G27: 7.78125 | I27: 7.78125 | J27: 0 | K27: 0 | M27: 0 | N27: 0 | O27: 7.78125 | P27: 0 | Q27: 389.0625 | R27: 0
D28: 0 | G28: 0 | I28: 0 | J28: 0 | K28: 0 | M28: 0 | N28: 0 | O28: 0 | P28: 0 | Q28: 0 | R28: 0
D29: 0 | G29: 0 | I29: 0 | J29: 0 | K29: 0 | M29: 0 | N29: 0 | O29: 0 | P29: 0 | Q29: 0 | R29: 0
D30: 0 | G30: 0 | I30: 0 | J30: =E30*H30 -> 0 | K30: 0 | M30: 0 | N30: =J30*L30 -> 0 | O30: 0 | P30: =+J30-N30 -> 0 | Q30: 0 | R30: =+J30*E$7 -> 0
B31: Machinery Labor
C32: Tractors/Self-Propelled | D32: 0.93 | F32: Hour | G32: 15 | I32: 13.95 | J32: =E32*H32 -> 0 | K32: 0 | M32: 0 | N32: =J32*L32 -> 0 | O32: 13.95 | P32: =+J32-N32 -> 0 | Q32: 697.5 | R32: =+J32*E$7 -> 0
C33: Other Labor | D33: 0 | F33: Hour | G33: 15 | I33: 0 | J33: =E33*H33 -> 0 | K33: 0 | M33: 0 | N33: =J33*L33 -> 0 | O33: 0 | P33: =+J33-N33 -> 0 | Q33: 0 | R33: =+J33*E$7 -> 0
B35: Diesel Fuel
C36: Pickup/General Use Equipment | D36: 1 | F36: Acre | G36: 0 | I36: 0 | J36: =E36*H36 -> 0 | K36: 0 | M36: 0 | N36: =J36*L36 -> 0 | O36: 0 | P36: =+J36-N36 -> 0 | Q36: 0 | R36: =+J36*E$7 -> 0
C37: Tractors/Self-Propelled | D37: 7.53 | F37: Gallon | G37: 1.5 | I37: 11.295 | J37: =E37*H37 -> 0 | K37: 0 | M37: 0 | N37: =J37*L37 -> 0 | O37: 11.295 | P37: =+J37-N37 -> 0 | Q37: 564.75 | R37: =+J37*E$7 -> 0
B39: Gasoline
C40: Pickup/General Use Equipment | D40: 1 | F40: Acre | G40: 4.0896 | I40: 4.0896 | J40: =E40*H40 -> 0 | K40: 0 | M40: 0 | N40: =J40*L40 -> 0 | O40: 4.0896 | P40: =+J40-N40 -> 0 | Q40: 204.48 | R40: =+J40*E$7 -> 0
C41: Tractors/Self-Propelled | D41: 0 | F41: Gallon | G41: 1.8 | I41: 0 | J41: =E41*H41 -> 0 | K41: 0 | M41: 0 | N41: =J41*L41 -> 0 | O41: 0 | P41: =+J41-N41 -> 0 | Q41: 0 | R41: =+J41*E$7 -> 0
B43: Repairs & Maintenance
C44: Pickup/General Use Equipment | D44: 1 | F44: Acre | G44: 2.19 | I44: 2.19 | J44: =E44*H44 -> 0 | K44: 0 | M44: 0 | N44: =J44*L44 -> 0 | O44: 2.19 | P44: =+J44-N44 -> 0 | Q44: 109.5 | R44: =+J44*E$7 -> 0
C45: Irrigation Equipment | D45: 1 | F45: Acre | G45: 0 | I45: 0 | J45: 0 | K45: 0 | M45: 0 | N45: 0 | O45: 0 | P45: 0 | Q45: 0 | R45: 0
C46: Tractors/Self-Propelled | D46: 1 | F46: Acre | G46: 19.51800492 | I46: 19.51800492 | J46: 0 | K46: 0 | M46: 0 | N46: 0 | O46: 19.51800492 | P46: 0 | Q46: 975.900246 | R46: 0
C47: Implements | D47: 1 | F47: Acre | G47: 12.10967149 | I47: 12.10967149 | J47: 0 | K47: 0 | M47: 0 | N47: 0 | O47: 12.10967149 | P47: 0 | Q47: 605.4835745 | R47: 0
I48: 0 | J48: 0 | K48: 0 | M48: 0 | N48: 0 | O48: 0 | P48: 0 | Q48: 0 | R48: 0
I49: 0 | J49: 0 | K49: 0 | M49: 0 | N49: 0 | O49: 0 | P49: 0 | Q49: 0 | R49: 0
B50: Interest on Credit Line | G50: 0.0455 | I50: 2.098449764 | J50: =+SUM(J17:J49)/2*H50 -> 0 | M50: 0 | N50: =+SUM(N17:N49)/2*L50 -> 0 | O50: 2.098449764 | P50: =+SUM(P17:P49)/2*L50 -> 0 | Q50: 104.9224882 | R50: =+J50*E$7 -> 0
A51: Total Variable Costs | I51: 274.7606042 | J51: =SUM(J18:J50) -> 0 | M51: 0 | N51: =SUM(N18:N50) -> 0 | O51: 274.7606042 | P51: =SUM(P18:P50) -> 0 | Q51: 13738.03021 | R51: =SUM(R18:R50) -> 0
A52: Planned Returns Above Variable Costs: | I52: 160.2393958 | J52: =+J13-J51 -> 0 | M52: 0 | N52: =+N13-N51 -> 0 | O52: 160.2393958 | P52: =+P13-P51 -> 0 | Q52: 8011.969791 | R52: =+R13-R51 -> 0
B53: Breakeven Price to Cover Variable Costs | G53: 91.58686806 | H53: =IF(E10=0,"n/a",(YVarExp-(YTotExp+YTotRet-J10))/E10) -> n/a | I53: Ton
Q54: Enterprise | R54: Enterprise
A55: FIXED COSTS | D55: Quantity | E55: Quantity | F55: Units | G55: $/Unit | H55: $/Unit | I55: Total | J55: Total | K55: Share | L55: Share | M55: Landlord | N55: Landlord | O55: Tenant | P55: Tenant | Q55: Total | R55: Total
B56: Machinery Depreciation
C57: Pickup/General Use Equipment | D57: 1 | F57: Acre | G57: 4.644 | I57: 4.644 | J57: =E57*H57 -> 0 | K57: 0 | M57: 0 | N57: =J57*L57 -> 0 | O57: 4.644 | P57: =+J57-N57 -> 0 | Q57: 232.2 | R57: =+J57*E$7 -> 0
C58: Tractors/Self-Propelled | D58: 1 | F58: Acre | G58: 21.17497729 | I58: 21.17497729 | J58: 0 | K58: 0 | M58: 0 | N58: =J58*L58 -> 0 | O58: 21.17497729 | P58: 0 | Q58: 1058.748864 | R58: 0
C59: Implements | D59: 1 | F59: Acre | G59: 15.77947342 | I59: 15.77947342 | J59: 0 | K59: 0 | M59: 0 | N59: =J59*L59 -> 0 | O59: 15.77947342 | P59: 0 | Q59: 788.9736708 | R59: 0
B60: Equipment Investment
C61: Pickup/General Use Equipment | D61: 25.74 | F61: Dollars | G61: 0.055 | I61: 1.4157 | J61: =E61*H61 -> 0 | K61: 0 | M61: 0 | N61: =J61*L61 -> 0 | O61: 1.4157 | P61: =+J61-N61 -> 0 | Q61: 70.785 | R61: =+J61*E$7 -> 0
C62: Tractors/Self-Propelled | D62: 164.4554483 | F62: Dollars | G62: 0.055 | I62: 9.045049656 | J62: 0 | K62: 0 | M62: 0 | N62: =J62*L62 -> 0 | O62: 9.045049656 | P62: 0 | Q62: 452.2524828 | R62: 0
C63: Implements | D63: 67.90717922 | F63: Dollars | G63: 0.055 | I63: 3.734894857 | J63: 0 | K63: 0 | M63: 0 | N63: =J63*L63 -> 0 | O63: 3.734894857 | P63: 0 | Q63: 186.7447429 | R63: 0
B64: Salaried Labor | D64: 1 | F64: Acre | G64: 0 | I64: 0 | J64: 0 | K64: 0 | M64: 0 | N64: =J64*L64 -> 0 | O64: 0 | P64: =+J64-N64 -> 0 | Q64: 0 | R64: =+J64*E$7 -> 0
B65: Management Fee, Owner/Operator Labor | D65: 1 | F65: Acre | G65: 0 | I65: 0 | J65: 0 | K65: 0 | M65: 0 | N65: 0 | O65: 0 | P65: 0 | Q65: 0 | R65: 0
B66: Allocated Establishment Cost | D66: 1 | F66: Acre | G66: 0 | I66: 0 | J66: 0 | K66: 0 | M66: 0 | N66: 0 | O66: 0 | P66: 0 | Q66: 0 | R66: 0
B67: Rent-Dryland Crop | D67: 1 | F67: Acre | G67: 35 | I67: 35 | J67: 0 | K67: 0 | M67: 0 | N67: 0 | O67: 35 | P67: 0 | Q67: 1750 | R67: 0
B68: Property Taxes | D68: 1 | F68: Acre | G68: 0 | I68: 0 | J68: 0 | K68: 0 | M68: 0 | N68: 0 | O68: 0 | P68: 0 | Q68: 0 | R68: 0
B69: Whole Farm Insurance | D69: 1 | F69: Acre | G69: 0 | I69: 0 | J69: 0 | K69: 0 | M69: 0 | N69: 0 | O69: 0 | P69: 0 | Q69: 0 | R69: 0
D70: 1 | G70: 0 | I70: 0 | J70: 0 | K70: 0 | M70: 0 | N70: 0 | O70: 0 | P70: 0 | Q70: 0 | R70: 0
D71: 1 | G71: 0 | I71: 0 | J71: =E71*H71 -> 0 | K71: 0 | M71: 0 | N71: 0 | O71: 0 | P71: 0 | Q71: 0 | R71: 0
A72: Total Fixed Costs | I72: 90.79409522 | J72: =+SUM(J57:J71) -> 0 | M72: 0 | N72: =+SUM(N57:N71) -> 0 | O72: 90.79409522 | P72: =+SUM(P57:P71) -> 0 | Q72: 4539.704761 | R72: =+SUM(R57:R71) -> 0
A73: Total Specified Costs | I73: 365.5546994 | J73: =+J51+J72 -> 0 | M73: 0 | N73: =+N51+N72 -> 0 | O73: 365.5546994 | P73: =+P51+P72 -> 0 | Q73: 18277.73497 | R73: =+R51+R72 -> 0
A75: Returns Above Specified Costs | I75: 69.44530061 | J75: =+J13-J73 -> 0 | M75: 0 | N75: =+N13-N73 -> 0 | O75: 69.44530061 | P75: =+P13-P73 -> 0 | Q75: 3472.26503 | R75: =+R13-R73 -> 0
A77: Breakeven Price to Cover Total Costs | G77: 121.8515665 | H77: =IF(E10=0,"n/a",(YTotExp-(YTotExp+YTotRet-J10))/E10) -> n/a | I77: Ton
D79: Example Breakeven Prices
B80: Example | C80: Example | D80: To Cover | G80: To Cover
B81: Yield | C81: Yield | D81: Variable | G81: Total
B82: Percent | C82: Ton | D82: Costs | G82: Costs
B83: 0.75 | C83: 2.25 | D83: 122.1158241 | G83: 162.4687553
B84: 0.9 | C84: 2.7 | D84: 101.7631867 | G84: 135.3906294
B85: 1 | C85: 3 | D85: 91.58686806 | G85: 121.8515665
B86: 1.1 | C86: 3.3 | D86: 83.26078914 | G86: 110.7741513
B87: 1.25 | C87: 3.75 | D87: 73.26949445 | G87: 97.48125317
D89: Your Breakeven Prices
B90: Your | C90: Your | E90: To Cover | H90: To Cover
B91: Yield | C91: Yield | E91: Variable | H91: Total
B92: Percent | C92: Ton | E92: Costs | H92: Costs
B93: 0.75 | C93: =E10*YPER1 -> 0 | E93: =IF($E$10=0,0,(YVarExp-(YTotExp+YTotRet-J10))/($E$10*YPER1)) -> 0 | H93: =IF($E$10=0,0,(YTotExp-(YTotExp+YTotRet-J10))/($E$10*YPER1)) -> 0
B94: 0.9 | C94: =E10*YPER2 -> 0 | E94: =IF($E$10=0,0,(YVarExp-(YTotExp+YTotRet-J10))/($E$10*YPER2)) -> 0 | H94: =IF($E$10=0,0,(YTotExp-(YTotExp+YTotRet-J10))/($E$10*YPER2)) -> 0
B95: 1 | C95: =+E10 -> 0 | E95: =IF($E$10=0,0,(YVarExp-(YTotExp+YTotRet-J10))/($E$10*YPER3)) -> 0 | H95: =IF($E$10=0,0,(YTotExp-(YTotExp+YTotRet-J10))/($E$10*YPER3)) -> 0
B96: 1.1 | C96: =E10*YPER4 -> 0 | E96: =IF($E$10=0,0,(YVarExp-(YTotExp+YTotRet-J10))/($E$10*YPER4)) -> 0 | H96: =IF($E$10=0,0,(YTotExp-(YTotExp+YTotRet-J10))/($E$10*YPER4)) -> 0
B97: 1.25 | C97: =E10*YPER5 -> 0 | E97: =IF($E$10=0,0,(YVarExp-(YTotExp+YTotRet-J10))/($E$10*YPER5)) -> 0 | H97: =IF($E$10=0,0,(YTotExp-(YTotExp+YTotRet-J10))/($E$10*YPER5)) -> 0
A99: Developed by Bill Thompson, Assistant Professor and Extension Economist, Texas A&M AgriLife Extension Service, 325-653-4576.
A101: Information presented is prepared solely as a general guide and not intended to recognize or predict the costs and returns from any one operation. Brand names are mentioned only as examples and imply no endorsement.

Sheet AlfalfaEstablish
A1: Projections for Planning Purposes Only -- Not to be Used without Updating
A2: 2021 Estimated Costs and Returns per Acre
A3: Alfalfa, Roundup Ready, Establishment, Center Pivot Irrigated
A4: Enter your name for this budget in the cell above.
A5: Enter Your Values in the cells highlighed in MAROON.
E6: Your Acres | R6: Your
C7: Crop Acres | D7: 122 | L7: Your | Q7: Enterprise | R7: Enterprise
E8: Your | H8: Your | I8: Cash | J8: Your | K8: Landlord | L8: Landlord | N8: Your | P8: Your | Q8: Total | R8: Total
A9: REVENUE | D9: Quantity | E9: Quantity | F9: Units | G9: $/Unit | H9: $/Unit | I9: Total | J9: Total | K9: Share | L9: Share | M9: Landlord | N9: Landlord | O9: Tenant | P9: Tenant | Q9: (122 acres) | R9: ="(" & E7 & " acres)" -> ( acres)
B10: 0 | D10: 0 | G10: 0 | I10: 0 | J10: =E10*H10 -> 0 | K10: 0 | M10: 0 | N10: =J10*L10 -> 0 | O10: 0 | P10: =+J10-N10 -> 0 | Q10: 0 | R10: =+J10*E$7 -> 0
D11: 0 | G11: 0 | I11: 0 | J11: 0 | K11: 0 | M11: 0 | N11: 0 | O11: 0 | P11: 0 | Q11: 0 | R11: 0
D12: 0 | G12: 0 | I12: 0 | J12: 0 | K12: 0 | M12: 0 | N12: 0 | O12: 0 | P12: 0 | Q12: 0 | R12: 0
A13: Total Revenue | I13: 0 | J13: =SUM(J10:J12) -> 0 | M13: 0 | N13: =SUM(N10:N12) -> 0 | O13: 0 | P13: =SUM(P10:P12) -> 0 | Q13: 0 | R13: =SUM(R10:R12) -> 0
Q14: Enterprise | R14: Enterprise
A15: VARIABLE COSTS | D15: Quantity | E15: Quantity | F15: Units | G15: $/Unit | H15: $/Unit | I15: Total | J15: Total | K15: Share | L15: Share | M15: Landlord | N15: Landlord | O15: Tenant | P15: Tenant | Q15: Total | R15: Total
A16: Production Costs
B17: Custom
C18: Soil Test-Irrigated | D18: 1 | F18: Each | G18: 0.5 | I18: 0.5 | J18: =E18*H18 -> 0 | K18: 0 | M18: 0 | N18: =J18*L18 -> 0 | O18: 0.5 | P18: =+J18-N18 -> 0 | Q18: 61 | R18: =+J18*E$7 -> 0
C19: Apply Dry Fertilizer | D19: 1 | F19: Acre | G19: 6 | I19: 6 | J19: 0 | K19: 0 | M19: 0 | N19: 0 | O19: 6 | P19: 0 | Q19: 732 | R19: 0
B20: Fertilizer
C21: Phos (11-52-0 DRY MAT) | D21: 150 | F21: Pounds | G21: 0.4519 | I21: 67.785 | J21: 0 | K21: 0 | M21: 0 | N21: 0 | O21: 67.785 | P21: 0 | Q21: 8269.77 | R21: 0
B22: Herbicide
C23: Glyphosate | D23: 22 | F23: Ounce | G23: 0.1328125 | I23: 2.921875 | J23: 0 | K23: 0 | M23: 0 | N23: 0 | O23: 2.921875 | P23: 0 | Q23: 356.46875 | R23: 0
B24: Seed
C25: R.R. Alfalfa | D25: 25 | F25: pounds | G25: 8.5 | I25: 212.5 | J25: 0 | K25: 0 | M25: 0 | N25: 0 | O25: 212.5 | P25: 0 | Q25: 25925 | R25: 0
D26: 0 | G26: 0 | I26: 0 | J26: 0 | K26: 0 | M26: 0 | N26: 0 | O26: 0 | P26: 0 | Q26: 0 | R26: 0
D27: 0 | G27: 0 | I27: 0 | J27: 0 | K27: 0 | M27: 0 | N27: 0 | O27: 0 | P27: 0 | Q27: 0 | R27: 0
D28: 0 | G28: 0 | I28: 0 | J28: =E28*H28 -> 0 | K28: 0 | M28: 0 | N28: =J28*L28 -> 0 | O28: 0 | P28: =+J28-N28 -> 0 | Q28: 0 | R28: =+J28*E$7 -> 0
B29: Irrigation
C30: Energy Cost | D30: 4 | F30: AcreInch | G30: 5.982451237 | I30: 23.92980495 | J30: =E30*H30 -> 0 | K30: 0 | M30: 0 | N30: =J30*L30 -> 0 | O30: 23.92980495 | P30: =+J30-N30 -> 0 | Q30: 2919.436204 | R30: =+J30*E$7 -> 0
C31: Irrigation Labor | D31: 0.3 | F31: Hour | G31: 15 | I31: 4.5 | J31: 0 | K31: 0 | M31: 0 | N31: 0 | O31: 4.5 | P31: 0 | Q31: 549 | R31: 0
B32: Machinery Labor
C33: Tractors/Self-Propelled | D33: 0.45 | F33: Hour | G33: 15 | I33: 6.75 | J33: =E33*H33 -> 0 | K33: 0 | M33: 0 | N33: =J33*L33 -> 0 | O33: 6.75 | P33: =+J33-N33 -> 0 | Q33: 823.5 | R33: =+J33*E$7 -> 0
C34: Other Labor | D34: 0 | F34: Hour | G34: 15 | I34: 0 | J34: =E34*H34 -> 0 | K34: 0 | M34: 0 | N34: =J34*L34 -> 0 | O34: 0 | P34: =+J34-N34 -> 0 | Q34: 0 | R34: =+J34*E$7 -> 0
B36: Diesel Fuel
C37: Pickup/General Use Equipment | D37: 1 | F37: Acre | G37: 0 | I37: 0 | J37: =E37*H37 -> 0 | K37: 0 | M37: 0 | N37: =J37*L37 -> 0 | O37: 0 | P37: =+J37-N37 -> 0 | Q37: 0 | R37: =+J37*E$7 -> 0
C38: Tractors/Self-Propelled | D38: 3.91 | F38: Gallon | G38: 1.5 | I38: 5.865 | J38: =E38*H38 -> 0 | K38: 0 | M38: 0 | N38: =J38*L38 -> 0 | O38: 5.865 | P38: =+J38-N38 -> 0 | Q38: 715.53 | R38: =+J38*E$7 -> 0
B40: Gasoline
C41: Pickup/General Use Equipment | D41: 1 | F41: Acre | G41: 1.62295082 | I41: 1.62295082 | J41: =E41*H41 -> 0 | K41: 0 | M41: 0 | N41: =J41*L41 -> 0 | O41: 1.62295082 | P41: =+J41-N41 -> 0 | Q41: 198 | R41: =+J41*E$7 -> 0
C42: Tractors/Self-Propelled | D42: 0 | F42: Gallon | G42: 1.8 | I42: 0 | J42: =E42*H42 -> 0 | K42: 0 | M42: 0 | N42: =J42*L42 -> 0 | O42: 0 | P42: =+J42-N42 -> 0 | Q42: 0 | R42: =+J42*E$7 -> 0
B44: Repairs & Maintenance
C45: Pickup/General Use Equipment | D45: 1 | F45: Acre | G45: 0.7401639344 | I45: 0.7401639344 | J45: =E45*H45 -> 0 | K45: 0 | M45: 0 | N45: =J45*L45 -> 0 | O45: 0.7401639344 | P45: =+J45-N45 -> 0 | Q45: 90.3 | R45: =+J45*E$7 -> 0
C46: Irrigation Equipment | D46: 1 | F46: Acre | G46: 10.5412 | I46: 10.5412 | J46: 0 | K46: 0 | M46: 0 | N46: 0 | O46: 10.5412 | P46: 0 | Q46: 1286.0264 | R46: 0
C47: Tractors/Self-Propelled | D47: 1 | F47: Acre | G47: 10.54089208 | I47: 10.54089208 | J47: 0 | K47: 0 | M47: 0 | N47: 0 | O47: 10.54089208 | P47: 0 | Q47: 1285.988833 | R47: 0
C48: Implements | D48: 1 | F48: Acre | G48: 12.90501088 | I48: 12.90501088 | J48: 0 | K48: 0 | M48: 0 | N48: 0 | O48: 12.90501088 | P48: 0 | Q48: 1574.411327 | R48: 0
I49: 0 | J49: 0 | K49: 0 | M49: 0 | N49: 0 | O49: 0 | P49: 0 | Q49: 0 | R49: =+J49*E$7 -> 0
I50: 0 | J50: 0 | K50: 0 | M50: 0 | N50: 0 | O50: 0 | P50: 0 | Q50: 0 | R50: 0
B51: Interest on Credit Line | G51: 0.0455 | I51: 3.327418086 | J51: =+SUM(J17:J50)/2*H51 -> 0 | M51: 0 | N51: =+SUM(N17:N50)/2*L51 -> 0 | O51: 3.327418086 | P51: =+SUM(P17:P50)/2*L51 -> 0 | Q51: 405.9450065 | R51: =+J51*E$7 -> 0
A52: Total Variable Costs | I52: 370.4293157 | J52: =SUM(J18:J51) -> 0 | M52: 0 | N52: =SUM(N18:N51) -> 0 | O52: 370.4293157 | P52: =SUM(P18:P51) -> 0 | Q52: 45192.37652 | R52: =SUM(R18:R51) -> 0
A53: Planned Returns Above Variable Costs: | I53: -370.4293157 | J53: =+J13-J52 -> 0 | M53: 0 | N53: =+N13-N52 -> 0 | O53: -370.4293157 | P53: =+P13-P52 -> 0 | Q53: -45192.37652 | R53: =+R13-R52 -> 0
B54: Breakeven Price to Cover Variable Costs | G54: n/a | H54: =IF(E10=0,"n/a",(YVarExp-(YTotExp+YTotRet-J10))/E10) -> n/a
Q55: Enterprise | R55: Enterprise
A56: FIXED COSTS | D56: Quantity | E56: Quantity | F56: Units | G56: $/Unit | H56: $/Unit | J56: Total | K56: Share | L56: Share | M56: Landlord | N56: Landlord | O56: Tenant | P56: Tenant | Q56: Total | R56: Total
B57: Machinery Depreciation
C58: Pickup/General Use Equipment | D58: 1 | F58: Acre | G58: 1.549180328 | I58: 1.549180328 | J58: =E58*H58 -> 0 | K58: 0 | M58: 0 | N58: =J58*L58 -> 0 | O58: 1.549180328 | P58: =+J58-N58 -> 0 | Q58: 189 | R58: =+J58*E$7 -> 0
C59: Irrigation Equipment | D59: 1 | F59: Acre | G59: 15.0273224 | I59: 15.0273224 | J59: 0 | K59: 0 | M59: 0 | N59: =J59*L59 -> 0 | O59: 15.0273224 | P59: 0 | Q59: 1833.333333 | R59: 0
C60: Tractors/Self-Propelled | D60: 1 | F60: Acre | G60: 11.97795885 | I60: 11.97795885 | J60: 0 | K60: 0 | M60: 0 | N60: =J60*L60 -> 0 | O60: 11.97795885 | P60: 0 | Q60: 1461.310979 | R60: 0
C61: Implements | D61: 1 | F61: Acre | G61: 16.36324503 | I61: 16.36324503 | J61: 0 | K61: 0 | M61: 0 | N61: =J61*L61 -> 0 | O61: 16.36324503 | P61: 0 | Q61: 1996.315894 | R61: 0
B62: Equipment Investment
C63: Pickup/General Use Equipment | D63: 9.467213115 | F63: Dollars | G63: 0.055 | I63: 0.5206967213 | J63: =E63*H63 -> 0 | K63: 0 | M63: 0 | N63: =J63*L63 -> 0 | O63: 0.5206967213 | P63: =+J63-N63 -> 0 | Q63: 63.525 | R63: =+J63*E$7 -> 0
C64: Irrigation Equipment | D64: 112.704918 | F64: Dollars | G64: 0.055 | I64: 6.198770492 | J64: 0 | K64: 0 | M64: 0 | N64: =J64*L64 -> 0 | O64: 6.198770492 | P64: 0 | Q64: 756.25 | R64: 0
C65: Tractors/Self-Propelled | D65: 92.80770787 | F65: Dollars | G65: 0.055 | I65: 5.104423933 | J65: 0 | K65: 0 | M65: 0 | N65: =J65*L65 -> 0 | O65: 5.104423933 | P65: 0 | Q65: 622.7397198 | R65: 0
C66: Implements | D66: 69.99832596 | F66: Dollars | G66: 0.055 | I66: 3.849907928 | J66: 0 | K66: 0 | M66: 0 | N66: =J66*L66 -> 0 | O66: 3.849907928 | P66: 0 | Q66: 469.6887672 | R66: 0
B67: Salaried Labor | D67: 1 | F67: Acre | G67: 0 | I67: 0 | J67: 0 | K67: 0 | M67: 0 | N67: =J67*L67 -> 0 | O67: 0 | P67: =+J67-N67 -> 0 | Q67: 0 | R67: =+J67*E$7 -> 0
B68: Management Fee, Owner/Operator Labor | D68: 1 | F68: Acre | G68: 0 | I68: 0 | J68: 0 | K68: 0 | M68: 0 | N68: 0 | O68: 0 | P68: 0 | Q68: 0 | R68: 0
B69: Allocated Establishment Cost | D69: 1 | F69: Acre | G69: 0 | I69: 0 | J69: 0 | K69: 0 | M69: 0 | N69: 0 | O69: 0 | P69: 0 | Q69: 0 | R69: 0
B70: Rent-Irrigated Crop | D70: 1 | F70: Acre | G70: 70 | I70: 70 | J70: 0 | K70: 0 | M70: 0 | N70: 0 | O70: 70 | P70: 0 | Q70: 8540 | R70: 0
B71: Property Taxes | D71: 1 | F71: Acre | G71: 0 | I71: 0 | J71: =E71*H71 -> 0 | K71: 0 | M71: 0 | N71: 0 | O71: 0 | P71: 0 | Q71: 0 | R71: =+J71*E$7 -> 0
B72: Whole Farm Insurance | D72: 1 | F72: Acre | G72: 0 | I72: 0 | J72: 0 | K72: 0 | M72: 0 | N72: 0 | O72: 0 | P72: 0 | Q72: 0 | R72: 0
D73: 1 | G73: 0 | I73: 0 | J73: 0 | K73: 0 | M73: 0 | N73: 0 | O73: 0 | P73: 0 | Q73: 0 | R73: 0
D74: 1 | G74: 0 | I74: 0 | J74: 0 | K74: 0 | M74: 0 | N74: 0 | O74: 0 | P74: 0 | Q74: 0 | R74: 0
A75: Total Fixed Costs | I75: 130.5915057 | J75: =+SUM(J58:J74) -> 0 | M75: 0 | N75: =+SUM(N58:N74) -> 0 | O75: 130.5915057 | P75: =+SUM(P58:P74) -> 0 | Q75: 15932.16369 | R75: =+SUM(R58:R74) -> 0
A76: Total Specified Costs | I76: 501.0208214 | J76: =+J52+J75 -> 0 | M76: 0 | N76: =+N52+N75 -> 0 | O76: 501.0208214 | P76: =+P52+P75 -> 0 | Q76: 61124.54021 | R76: =+R52+R75 -> 0
A78: Returns Above Specified Costs | I78: -501.0208214 | J78: =+J13-J76 -> 0 | M78: 0 | N78: =+N13-N76 -> 0 | O78: -501.0208214 | P78: =+P13-P76 -> 0 | Q78: -61124.54021 | R78: =+R13-R76 -> 0
A80: Breakeven Price to Cover Total Costs | G80: n/a | H80: =IF(E10=0,"n/a",(YTotExp-(YTotExp+YTotRet-J10))/E10) -> n/a
D82: Example Breakeven Prices
B83: Example | C83: Example | D83: To Cover | G83: To Cover
B84: Yield | C84: Yield | D84: Variable | G84: Total
B85: Percent | D85: Costs | G85: Costs
B86: 0.75 | C86: 0 | D86: 0 | G86: 0
B87: 0.9 | C87: 0 | D87: 0 | G87: 0
B88: 1 | C88: 0 | D88: 0 | G88: 0
B89: 1.1 | C89: 0 | D89: 0 | G89: 0
B90: 1.25 | C90: 0 | D90: 0 | G90: 0
D92: Your Breakeven Prices
B93: Your | C93: Your | E93: To Cover | H93: To Cover
B94: Yield | C94: Yield | E94: Variable | H94: Total
B95: Percent | E95: Costs | H95: Costs
B96: 0.75 | C96: =E10*YPER1 -> 0 | E96: =IF($E$10=0,0,(YVarExp-(YTotExp+YTotRet-J10))/($E$10*YPER1)) -> 0 | H96: =IF($E$10=0,0,(YTotExp-(YTotExp+YTotRet-J10))/($E$10*YPER1)) -> 0
B97: 0.9 | C97: =E10*YPER2 -> 0 | E97: =IF($E$10=0,0,(YVarExp-(YTotExp+YTotRet-J10))/($E$10*YPER2)) -> 0 | H97: =IF($E$10=0,0,(YTotExp-(YTotExp+YTotRet-J10))/($E$10*YPER2)) -> 0
B98: 1 | C98: =+E10 -> 0 | E98: =IF($E$10=0,0,(YVarExp-(YTotExp+YTotRet-J10))/($E$10*YPER3)) -> 0 | H98: =IF($E$10=0,0,(YTotExp-(YTotExp+YTotRet-J10))/($E$10*YPER3)) -> 0
B99: 1.1 | C99: =E10*YPER4 -> 0 | E99: =IF($E$10=0,0,(YVarExp-(YTotExp+YTotRet-J10))/($E$10*YPER4)) -> 0 | H99: =IF($E$10=0,0,(YTotExp-(YTotExp+YTotRet-J10))/($E$10*YPER4)) -> 0
B100: 1.25 | C100: =E10*YPER5 -> 0 | E100: =IF($E$10=0,0,(YVarExp-(YTotExp+YTotRet-J10))/($E$10*YPER5)) -> 0 | H100: =IF($E$10=0,0,(YTotExp-(YTotExp+YTotRet-J10))/($E$10*YPER5)) -> 0
A102: Developed by Bill Thompson, Assistant Professor and Extension Economist, Texas A&M AgriLife Extension Service, 325-653-4576.
A104: Information presented is prepared solely as a general guide and not intended to recognize or predict the costs and returns from any one operation. Brand names are mentioned only as examples and imply no endorsement.

Sheet AlfalfaHayPivot
A1: Projections for Planning Purposes Only -- Not to be Used without Updating
A2: 2021 Estimated Costs and Returns per Acre
A3: Alfalfa, RoundUp Ready, Full Season, Baled - 6.5 ton, Center Pivot Irrigated
A4: Enter your name for this budget in the cell above.
A5: Enter Your Values in the cells highlighed in MAROON.
E6: Your Acres | R6: Your
C7: Crop Acres | D7: 122 | L7: Your | Q7: Enterprise | R7: Enterprise
E8: Your | H8: Your | I8: Cash | J8: Your | K8: Landlord | L8: Landlord | N8: Your | P8: Your | Q8: Total | R8: Total
A9: REVENUE | D9: Quantity | E9: Quantity | F9: Units | G9: $/Unit | H9: $/Unit | I9: Total | J9: Total | K9: Share | L9: Share | M9: Landlord | N9: Landlord | O9: Tenant | P9: Tenant | Q9: (122 acres) | R9: ="(" & E7 & " acres)" -> ( acres)
B10: Alfalfa Hay - Baled 3X4 | D10: 6.5 | F10: Ton | G10: 235 | I10: 1527.5 | J10: =E10*H10 -> 0 | K10: 0 | M10: 0 | N10: =J10*L10 -> 0 | O10: 1527.5 | P10: =+J10-N10 -> 0 | Q10: 186355 | R10: =+J10*E$7 -> 0
D11: 0 | G11: 0 | I11: 0 | J11: 0 | K11: 0 | M11: 0 | N11: 0 | O11: 0 | P11: =+J11-N11 -> 0 | Q11: 0 | R11: 0
D12: 0 | G12: 0 | I12: 0 | J12: 0 | K12: 0 | M12: 0 | N12: 0 | O12: 0 | P12: 0 | Q12: 0 | R12: 0
A13: Total Revenue | I13: 1527.5 | J13: =SUM(J10:J12) -> 0 | M13: 0 | N13: =SUM(N10:N12) -> 0 | O13: 1527.5 | P13: =SUM(P10:P12) -> 0 | Q13: 186355 | R13: =SUM(R10:R12) -> 0
Q14: Enterprise | R14: Enterprise
A15: VARIABLE COSTS | D15: Quantity | E15: Quantity | F15: Units | G15: $/Unit | H15: $/Unit | I15: Total | J15: Total | K15: Share | L15: Share | M15: Landlord | N15: Landlord | O15: Tenant | P15: Tenant | Q15: Total | R15: Total
A16: Production Costs
B17: Custom
C18: Soil Test-Irrigated | D18: 1 | F18: Each | G18: 0.5 | I18: 0.5 | J18: =E18*H18 -> 0 | K18: 0 | M18: 0 | N18: =J18*L18 -> 0 | O18: 0.5 | P18: =+J18-N18 -> 0 | Q18: 61 | R18: =+J18*E$7 -> 0
C19: Apply Dry Fertilizer | D19: 1 | F19: Acre | G19: 6 | I19: 6 | J19: 0 | K19: 0 | M19: 0 | N19: 0 | O19: 6 | P19: 0 | Q19: 732 | R19: 0
C20: Swath, Rake and Bale | D20: 9.24 | F20: Bale | G20: 29.58 | I20: 273.3192 | J20: 0 | K20: 0 | M20: 0 | N20: 0 | O20: 273.3192 | P20: 0 | Q20: 33344.9424 | R20: 0
B21: Fertilizer
C22: Phos (11-52-0 DRY MAT) | D22: 73 | F22: Pounds | G22: 0.4519 | I22: 32.9887 | J22: 0 | K22: 0 | M22: 0 | N22: 0 | O22: 32.9887 | P22: 0 | Q22: 4024.6214 | R22: 0
B23: Herbicide
C24: Trifluralin | D24: 2 | F24: Pint | G24: 2.75 | I24: 5.5 | J24: 0 | K24: 0 | M24: 0 | N24: 0 | O24: 5.5 | P24: 0 | Q24: 671 | R24: 0
C25: Glyphosate | D25: 110 | F25: Ounce | G25: 0.1328125 | I25: 14.609375 | J25: 0 | K25: 0 | M25: 0 | N25: 0 | O25: 14.609375 | P25: 0 | Q25: 1782.34375 | R25: 0
B26: Insecticide
C27: Intrepid | D27: 2.3 | F27: Ounce | G27: 2.03906 | I27: 4.689838 | J27: 0 | K27: 0 | M27: 0 | N27: 0 | O27: 4.689838 | P27: 0 | Q27: 572.160236 | R27: 0
C28: Mustang Max(Warrior Z) | D28: 7.04 | F28: Ounce | G28: 1.25 | I28: 8.8 | J28: 0 | K28: 0 | M28: 0 | N28: 0 | O28: 8.8 | P28: 0 | Q28: 1073.6 | R28: 0
D29: 0 | G29: 0 | I29: 0 | J29: 0 | K29: 0 | M29: 0 | N29: 0 | O29: 0 | P29: 0 | Q29: 0 | R29: 0
D30: 0 | G30: 0 | I30: 0 | J30: 0 | K30: 0 | M30: 0 | N30: 0 | O30: 0 | P30: 0 | Q30: 0 | R30: 0
D31: 0 | G31: 0 | I31: 0 | J31: =E31*H31 -> 0 | K31: 0 | M31: 0 | N31: =J31*L31 -> 0 | O31: 0 | P31: =+J31-N31 -> 0 | Q31: 0 | R31: =+J31*E$7 -> 0
B32: Irrigation
C33: Energy Cost | D33: 36 | F33: AcreInch | G33: 5.982451237 | I33: 215.3682445 | J33: =E33*H33 -> 0 | K33: 0 | M33: 0 | N33: =J33*L33 -> 0 | O33: 215.3682445 | P33: =+J33-N33 -> 0 | Q33: 26274.92583 | R33: =+J33*E$7 -> 0
C34: Irrigation Labor | D34: 0.8 | F34: Hour | G34: 15 | I34: 12 | J34: 0 | K34: 0 | M34: 0 | N34: 0 | O34: 12 | P34: 0 | Q34: 1464 | R34: 0
B35: Machinery Labor
C36: Tractors/Self-Propelled | D36: 2.88 | F36: Hour | G36: 15 | I36: 43.2 | J36: =E36*H36 -> 0 | K36: 0 | M36: 0 | N36: =J36*L36 -> 0 | O36: 43.2 | P36: =+J36-N36 -> 0 | Q36: 5270.4 | R36: =+J36*E$7 -> 0
C37: Other Labor | D37: 0.07 | F37: Hour | G37: 15 | I37: 1.05 | J37: =E37*H37 -> 0 | K37: 0 | M37: 0 | N37: =J37*L37 -> 0 | O37: 1.05 | P37: =+J37-N37 -> 0 | Q37: 128.1 | R37: =+J37*E$7 -> 0
B39: Diesel Fuel
C40: Pickup/General Use Equipment | D40: 1 | F40: Acre | G40: 0 | I40: 0 | J40: =E40*H40 -> 0 | K40: 0 | M40: 0 | N40: =J40*L40 -> 0 | O40: 0 | P40: =+J40-N40 -> 0 | Q40: 0 | R40: =+J40*E$7 -> 0
C41: Tractors/Self-Propelled | D41: 22.93 | F41: Gallon | G41: 1.5 | I41: 34.395 | J41: =E41*H41 -> 0 | K41: 0 | M41: 0 | N41: =J41*L41 -> 0 | O41: 34.395 | P41: =+J41-N41 -> 0 | Q41: 4196.19 | R41: =+J41*E$7 -> 0
B43: Gasoline
C44: Pickup/General Use Equipment | D44: 1 | F44: Acre | G44: 5.028196721 | I44: 5.028196721 | J44: =E44*H44 -> 0 | K44: 0 | M44: 0 | N44: =J44*L44 -> 0 | O44: 5.028196721 | P44: =+J44-N44 -> 0 | Q44: 613.44 | R44: =+J44*E$7 -> 0
C45: Tractors/Self-Propelled | D45: 0 | F45: Gallon | G45: 1.8 | I45: 0 | J45: =E45*H45 -> 0 | K45: 0 | M45: 0 | N45: =J45*L45 -> 0 | O45: 0 | P45: =+J45-N45 -> 0 | Q45: 0 | R45: =+J45*E$7 -> 0
B47: Repairs & Maintenance
C48: Pickup/General Use Equipment | D48: 1 | F48: Acre | G48: 2.692622951 | I48: 2.692622951 | J48: =E48*H48 -> 0 | K48: 0 | M48: 0 | N48: =J48*L48 -> 0 | O48: 2.692622951 | P48: =+J48-N48 -> 0 | Q48: 328.5 | R48: =+J48*E$7 -> 0
C49: Irrigation Equipment | D49: 1 | F49: Acre | G49: 94.8708 | I49: 94.8708 | J49: 0 | K49: 0 | M49: 0 | N49: 0 | O49: 94.8708 | P49: 0 | Q49: 11574.2376 | R49: 0
C50: Tractors/Self-Propelled | D50: 1 | F50: Acre | G50: 52.87198866 | I50: 52.87198866 | J50: 0 | K50: 0 | M50: 0 | N50: 0 | O50: 52.87198866 | P50: 0 | Q50: 6450.382616 | R50: 0
C51: Implements | D51: 1 | F51: Acre | G51: 0.4930104361 | I51: 0.4930104361 | J51: 0 | K51: 0 | M51: 0 | N51: 0 | O51: 0.4930104361 | P51: 0 | Q51: 60.14727321 | R51: 0
I52: 0 | J52: 0 | K52: 0 | M52: 0 | N52: 0 | O52: 0 | P52: 0 | Q52: 0 | R52: 0
I53: 0 | J53: 0 | K53: 0 | M53: 0 | N53: 0 | O53: 0 | P53: 0 | Q53: 0 | R53: 0
B54: Interest on Credit Line | G54: 0.0455 | I54: 10.14403119 | J54: =+SUM(J17:J53)/2*H54 -> 0 | M54: 0 | N54: =+SUM(N17:N53)/2*L54 -> 0 | O54: 10.14403119 | P54: =+SUM(P17:P53)/2*L54 -> 0 | Q54: 1237.571805 | R54: =+J54*E$7 -> 0
A55: Total Variable Costs | I55: 818.5210075 | J55: =SUM(J18:J54) -> 0 | M55: 0 | N55: =SUM(N18:N54) -> 0 | O55: 818.5210075 | P55: =SUM(P18:P54) -> 0 | Q55: 99859.56291 | R55: =SUM(R18:R54) -> 0
A56: Planned Returns Above Variable Costs: | I56: 708.9789925 | J56: =+J13-J55 -> 0 | M56: 0 | N56: =+N13-N55 -> 0 | O56: 708.9789925 | P56: =+P13-P55 -> 0 | Q56: 86495.43709 | R56: =+R13-R55 -> 0
B57: Breakeven Price to Cover Variable Costs | G57: 125.9263088 | H57: =IF(E10=0,"n/a",(YVarExp-(YTotExp+YTotRet-J10))/E10) -> n/a | I57: Ton
Q58: Enterprise | R58: Enterprise
A59: FIXED COSTS | D59: Quantity | E59: Quantity | F59: Units | G59: $/Unit | H59: $/Unit | I59: Total | J59: Total | K59: Share | L59: Share | M59: Landlord | N59: Landlord | O59: Tenant | P59: Tenant | Q59: Total | R59: Total
B60: Machinery Depreciation
C61: Pickup/General Use Equipment | D61: 1 | F61: Acre | G61: 5.709836066 | I61: 5.709836066 | J61: =E61*H61 -> 0 | K61: 0 | M61: 0 | N61: =J61*L61 -> 0 | O61: 5.709836066 | P61: =+J61-N61 -> 0 | Q61: 696.6 | R61: =+J61*E$7 -> 0
C62: Irrigation Equipment | D62: 1 | F62: Acre | G62: 60.10928962 | I62: 60.10928962 | J62: 0 | K62: 0 | M62: 0 | N62: =J62*L62 -> 0 | O62: 60.10928962 | P62: 0 | Q62: 7333.333333 | R62: 0
C63: Tractors/Self-Propelled | D63: 1 | F63: Acre | G63: 63.67830012 | I63: 63.67830012 | J63: 0 | K63: 0 | M63: 0 | N63: =J63*L63 -> 0 | O63: 63.67830012 | P63: 0 | Q63: 7768.752614 | R63: 0
C64: Implements | D64: 1 | F64: Acre | G64: 1.109273481 | I64: 1.109273481 | J64: 0 | K64: 0 | M64: 0 | N64: =J64*L64 -> 0 | O64: 1.109273481 | P64: 0 | Q64: 135.3313647 | R64: 0
B65: Equipment Investment
C66: Pickup/General Use Equipment | D66: 31.64754098 | F66: Dollars | G66: 0.055 | I66: 1.740614754 | J66: =E66*H66 -> 0 | K66: 0 | M66: 0 | N66: =J66*L66 -> 0 | O66: 1.740614754 | P66: =+J66-N66 -> 0 | Q66: 212.355 | R66: =+J66*E$7 -> 0
C67: Irrigation Equipment | D67: 450.8196721 | F67: Dollars | G67: 0.055 | I67: 24.79508197 | J67: 0 | K67: 0 | M67: 0 | N67: =J67*L67 -> 0 | O67: 24.79508197 | P67: 0 | Q67: 3025 | R67: 0
C68: Tractors/Self-Propelled | D68: 491.8723858 | F68: Dollars | G68: 0.055 | I68: 27.05298122 | J68: 0 | K68: 0 | M68: 0 | N68: =J68*L68 -> 0 | O68: 27.05298122 | P68: 0 | Q68: 3300.463709 | R68: 0
C69: Implements | D69: 6.778893497 | F69: Dollars | G69: 0.055 | I69: 0.3728391423 | J69: 0 | K69: 0 | M69: 0 | N69: =J69*L69 -> 0 | O69: 0.3728391423 | P69: 0 | Q69: 45.48637536 | R69: 0
B70: Salaried Labor | D70: 1 | F70: Acre | G70: 0 | I70: 0 | J70: 0 | K70: 0 | M70: 0 | N70: =J70*L70 -> 0 | O70: 0 | P70: =+J70-N70 -> 0 | Q70: 0 | R70: =+J70*E$7 -> 0
B71: Management Fee, Owner/Operator Labor | D71: 1 | F71: Acre | G71: 0 | I71: 0 | J71: 0 | K71: 0 | M71: 0 | N71: 0 | O71: 0 | P71: 0 | Q71: 0 | R71: 0
B72: Allocated Establishment Cost | D72: 1 | F72: Acre | G72: 100.204 | I72: 100.204 | J72: 0 | K72: 0 | M72: 0 | N72: 0 | O72: 100.204 | P72: 0 | Q72: 12224.888 | R72: 0
B73: Rent-Irrigated Crop | D73: 1 | F73: Acre | G73: 70 | I73: 70 | J73: 0 | K73: 0 | M73: 0 | N73: 0 | O73: 70 | P73: 0 | Q73: 8540 | R73: 0
B74: Property Taxes | D74: 1 | F74: Acre | G74: 0 | I74: 0 | J74: 0 | K74: 0 | M74: 0 | N74: 0 | O74: 0 | P74: 0 | Q74: 0 | R74: 0
B75: Whole Farm Insurance | D75: 1 | F75: Acre | G75: 0 | I75: 0 | J75: 0 | K75: 0 | M75: 0 | N75: 0 | O75: 0 | P75: 0 | Q75: 0 | R75: 0
D76: 1 | G76: 0 | I76: 0 | J76: 0 | K76: 0 | M76: 0 | N76: 0 | O76: 0 | P76: 0 | Q76: 0 | R76: 0
D77: 1 | G77: 0 | I77: 0 | J77: =E77*H77 -> 0 | K77: 0 | M77: 0 | N77: 0 | O77: 0 | P77: 0 | Q77: 0 | R77: 0
A78: Total Fixed Costs | I78: 354.7722164 | J78: =+SUM(J61:J77) -> 0 | M78: 0 | N78: =+SUM(N61:N77) -> 0 | O78: 354.7722164 | P78: =+SUM(P61:P77) -> 0 | Q78: 43282.2104 | R78: =+SUM(R61:R77) -> 0
A79: Total Specified Costs | I79: 1173.293224 | J79: =+J55+J78 -> 0 | M79: 0 | N79: =+N55+N78 -> 0 | O79: 1173.293224 | P79: =+P55+P78 -> 0 | Q79: 143141.7733 | R79: =+R55+R78 -> 0
A81: Returns Above Specified Costs | I81: 354.2067761 | J81: =+J13-J79 -> 0 | M81: 0 | N81: =+N13-N79 -> 0 | O81: 354.2067761 | P81: =+P13-P79 -> 0 | Q81: 43213.22669 | R81: =+R13-R79 -> 0
A83: Breakeven Price to Cover Total Costs | G83: 180.5066498 | H83: =IF(E10=0,"n/a",(YTotExp-(YTotExp+YTotRet-J10))/E10) -> n/a | I83: Ton
D85: Example Breakeven Prices
B86: Example | C86: Example | D86: To Cover | G86: To Cover
B87: Yield | C87: Yield | D87: Variable | G87: Total
B88: Percent | C88: Ton | D88: Costs | G88: Costs
B89: 0.75 | C89: 4.875 | D89: 167.9017451 | G89: 240.6755331
B90: 0.9 | C90: 5.85 | D90: 139.9181209 | G90: 200.5629442
B91: 1 | C91: 6.5 | D91: 125.9263088 | G91: 180.5066498
B92: 1.1 | C92: 7.15 | D92: 114.4784626 | G92: 164.0969544
B93: 1.25 | C93: 8.125 | D93: 100.7410471 | G93: 144.4053199
D95: Your Breakeven Prices
B96: Your | C96: Your | E96: To Cover | H96: To Cover
B97: Yield | C97: Yield | E97: Variable | H97: Total
B98: Percent | C98: Ton | E98: Costs | H98: Costs
B99: 0.75 | C99: =E10*YPER1 -> 0 | E99: =IF($E$10=0,0,(YVarExp-(YTotExp+YTotRet-J10))/($E$10*YPER1)) -> 0 | H99: =IF($E$10=0,0,(YTotExp-(YTotExp+YTotRet-J10))/($E$10*YPER1)) -> 0
B100: 0.9 | C100: =E10*YPER2 -> 0 | E100: =IF($E$10=0,0,(YVarExp-(YTotExp+YTotRet-J10))/($E$10*YPER2)) -> 0 | H100: =IF($E$10=0,0,(YTotExp-(YTotExp+YTotRet-J10))/($E$10*YPER2)) -> 0
B101: 1 | C101: =+E10 -> 0 | E101: =IF($E$10=0,0,(YVarExp-(YTotExp+YTotRet-J10))/($E$10*YPER3)) -> 0 | H101: =IF($E$10=0,0,(YTotExp-(YTotExp+YTotRet-J10))/($E$10*YPER3)) -> 0
B102: 1.1 | C102: =E10*YPER4 -> 0 | E102: =IF($E$10=0,0,(YVarExp-(YTotExp+YTotRet-J10))/($E$10*YPER4)) -> 0 | H102: =IF($E$10=0,0,(YTotExp-(YTotExp+YTotRet-J10))/($E$10*YPER4)) -> 0
B103: 1.25 | C103: =E10*YPER5 -> 0 | E103: =IF($E$10=0,0,(YVarExp-(YTotExp+YTotRet-J10))/($E$10*YPER5)) -> 0 | H103: =IF($E$10=0,0,(YTotExp-(YTotExp+YTotRet-J10))/($E$10*YPER5)) -> 0
A105: Developed by Bill Thompson, Assistant Professor and Extension Economist, Texas A&M AgriLife Extension Service, 325-653-4576.
A107: Information presented is prepared solely as a general guide and not intended to recognize or predict the costs and returns from any one operation. Brand names are mentioned only as examples and imply no endorsement.

Sheet ConTillWheat
A1: Projections for Planning Purposes Only -- Not to be Used without Updating
A2: 2021 Estimated Costs and Returns per Acre
A3: Con-Till Wheat, Dryland, Follow Wheat
A4: Enter your name for this budget in the cell above.
A5: Enter Your Values in the cells highlighed in MAROON.
E6: Your Acres | R6: Your
C7: Crop Acres | D7: 1000 | L7: Your | Q7: Enterprise | R7: Enterprise
E8: Your | H8: Your | I8: Cash | J8: Your | K8: Landlord | L8: Landlord | N8: Your | P8: Your | Q8: Total | R8: Total
A9: REVENUE | D9: Quantity | E9: Quantity | F9: Units | G9: $/Unit | H9: $/Unit | I9: Total | J9: Total | K9: Share | L9: Share | M9: Landlord | N9: Landlord | O9: Tenant | P9: Tenant | Q9: (1000 acres) | R9: ="(" & E7 & " acres)" -> ( acres)
B10: Winter Wheat | D10: 25 | F10: Bushel | G10: 4.6 | I10: 115 | J10: =E10*H10 -> 0 | K10: 0 | M10: 0 | N10: =J10*L10 -> 0 | O10: 115 | P10: =+J10-N10 -> 0 | Q10: 115000 | R10: =+J10*E$7 -> 0
B11: Small Grains Pasture | D11: 16 | F11: Pound of Gain | G11: 0.45 | I11: 7.2 | J11: 0 | K11: 0 | M11: 0 | N11: 0 | O11: 7.2 | P11: =+J11-N11 -> 0 | Q11: 7200 | R11: 0
B12: Small Grains Pasture | D12: 16 | F12: Pound of Gain | G12: 0.45 | I12: 7.2 | J12: 0 | K12: 0 | M12: 0 | N12: 0 | O12: 7.2 | P12: 0 | Q12: 7200 | R12: 0
B13: Small Grains Pasture | D13: 16 | F13: Pound of Gain | G13: 0.45 | I13: 7.2 | J13: 0 | K13: 0 | M13: 0 | N13: 0 | O13: 7.2 | P13: 0 | Q13: 7200 | R13: 0
D14: 0 | G14: 0 | I14: 0 | J14: 0 | K14: 0 | M14: 0 | N14: 0 | O14: 0 | P14: 0 | Q14: 0 | R14: 0
D15: 0 | G15: 0 | I15: 0 | J15: 0 | K15: 0 | M15: 0 | N15: 0 | O15: 0 | P15: 0 | Q15: 0 | R15: 0
A16: Total Revenue | I16: 136.6 | J16: =SUM(J10:J15) -> 0 | M16: 0 | N16: =SUM(N10:N15) -> 0 | O16: 136.6 | P16: 0 | Q16: 136600 | R16: 0
Q17: Enterprise | R17: Enterprise
A18: VARIABLE COSTS | D18: Quantity | E18: Quantity | F18: Units | G18: $/Unit | H18: $/Unit | I18: Total | J18: Total | K18: Share | L18: Share | M18: Landlord | N18: Landlord | O18: Tenant | P18: Tenant | Q18: Total | R18: Total
A19: Production Costs
B20: Custom
C21: Soil Test-Dryland | D21: 1 | F21: Each | G21: 0.25 | I21: 0.25 | J21: =E21*H21 -> 0 | K21: 0 | M21: 0 | N21: =J21*L21 -> 0 | O21: 0.25 | P21: =+J21-N21 -> 0 | Q21: 250 | R21: =+J21*E$7 -> 0
C22: Custom Harvest Wheat | D22: 1 | F22: Acre | G22: 25 | I22: 25 | J22: 0 | K22: 0 | M22: 0 | N22: 0 | O22: 25 | P22: 0 | Q22: 25000 | R22: 0
C23: Custom Haul Wheat | D23: 25 | F23: Bushels | G23: 0.27 | I23: 6.75 | J23: 0 | K23: 0 | M23: 0 | N23: 0 | O23: 6.75 | P23: 0 | Q23: 6750 | R23: 0
C24: Custom Harvest Overage Wheat | D24: 1 | F24: Bushels | G24: 0.23 | I24: 0.23 | J24: 0 | K24: 0 | M24: 0 | N24: 0 | O24: 0.23 | P24: 0 | Q24: 230 | R24: 0
B25: Fertilizer
C26: Nitrogen Dry-Urea | D26: 3.8 | F26: Pounds | G26: 0.4022 | I26: 1.52836 | J26: 0 | K26: 0 | M26: 0 | N26: 0 | O26: 1.52836 | P26: 0 | Q26: 1528.36 | R26: 0
C27: Phos (11-52-0 DRY MAT) | D27: 18.2 | F27: Pounds | G27: 0.4519 | I27: 8.22458 | J27: 0 | K27: 0 | M27: 0 | N27: 0 | O27: 8.22458 | P27: 0 | Q27: 8224.58 | R27: 0
C28: Nitrogen N32-liq | D28: 35.2 | F28: Pounds | G28: 0.3828 | I28: 13.47456 | J28: 0 | K28: 0 | M28: 0 | N28: 0 | O28: 13.47456 | P28: 0 | Q28: 13474.56 | R28: 0
B29: Herbicide
C30: MCPA | D30: 1 | F30: pint | G30: 3.1 | I30: 3.1 | J30: 0 | K30: 0 | M30: 0 | N30: 0 | O30: 3.1 | P30: 0 | Q30: 3100 | R30: 0
C31: MSM (Ally) | D31: 0.1 | F31: Ounce | G31: 4.5 | I31: 0.45 | J31: 0 | K31: 0 | M31: 0 | N31: 0 | O31: 0.45 | P31: 0 | Q31: 450 | R31: 0
B32: Seed
C33: Wheat Seed | D33: 80 | F33: Pounds | G33: 0.2667 | I33: 21.336 | J33: 0 | K33: 0 | M33: 0 | N33: 0 | O33: 21.336 | P33: 0 | Q33: 21336 | R33: 0
B34: Miscellaneous
C35: Wht RP 70%, Ent, | D35: 1 | F35: Acre | G35: 3.09 | I35: 3.09 | J35: 0 | K35: 0 | M35: 0 | N35: 0 | O35: 3.09 | P35: 0 | Q35: 3090 | R35: 0
B36: Fungicides
C37: Wheat Fungicide | D37: 8 | F37: Ounce | G37: 0.5 | I37: 4 | J37: 0 | K37: 0 | M37: 0 | N37: 0 | O37: 4 | P37: 0 | Q37: 4000 | R37: 0
D38: 0 | G38: 0 | I38: 0 | J38: 0 | K38: 0 | M38: 0 | N38: 0 | O38: 0 | P38: 0 | Q38: 0 | R38: 0
D39: 0 | G39: 0 | I39: 0 | J39: 0 | K39: 0 | M39: 0 | N39: 0 | O39: 0 | P39: 0 | Q39: 0 | R39: 0
D40: 0 | G40: 0 | I40: 0 | J40: =E40*H40 -> 0 | K40: 0 | M40: 0 | N40: =J40*L40 -> 0 | O40: 0 | P40: =+J40-N40 -> 0 | Q40: 0 | R40: =+J40*E$7 -> 0
B41: Machinery Labor
C42: Tractors/Self-Propelled | D42: 0.32 | F42: Hour | G42: 15 | I42: 4.8 | J42: =E42*H42 -> 0 | K42: 0 | M42: 0 | N42: =J42*L42 -> 0 | O42: 4.8 | P42: =+J42-N42 -> 0 | Q42: 4800 | R42: =+J42*E$7 -> 0
C43: Other Labor | D43: 0.1 | F43: Hour | G43: 15 | I43: 1.5 | J43: =E43*H43 -> 0 | K43: 0 | M43: 0 | N43: =J43*L43 -> 0 | O43: 1.5 | P43: =+J43-N43 -> 0 | Q43: 1500 | R43: =+J43*E$7 -> 0
B45: Diesel Fuel
C46: Pickup/General Use Equipment | D46: 1 | F46: Acre | G46: 0 | I46: 0 | J46: =E46*H46 -> 0 | K46: 0 | M46: 0 | N46: =J46*L46 -> 0 | O46: 0 | P46: =+J46-N46 -> 0 | Q46: 0 | R46: =+J46*E$7 -> 0
C47: Tractors/Self-Propelled | D47: 3.99 | F47: Gallon | G47: 1.5 | I47: 5.985 | J47: =E47*H47 -> 0 | K47: 0 | M47: 0 | N47: =J47*L47 -> 0 | O47: 5.985 | P47: =+J47-N47 -> 0 | Q47: 5985 | R47: =+J47*E$7 -> 0
B49: Gasoline
C50: Pickup/General Use Equipment | D50: 1 | F50: Acre | G50: 2.0448 | I50: 2.0448 | J50: =E50*H50 -> 0 | K50: 0 | M50: 0 | N50: =J50*L50 -> 0 | O50: 2.0448 | P50: =+J50-N50 -> 0 | Q50: 2044.8 | R50: =+J50*E$7 -> 0
C51: Tractors/Self-Propelled | D51: 0 | F51: Gallon | G51: 1.8 | I51: 0 | J51: =E51*H51 -> 0 | K51: 0 | M51: 0 | N51: =J51*L51 -> 0 | O51: 0 | P51: =+J51-N51 -> 0 | Q51: 0 | R51: =+J51*E$7 -> 0
B53: Repairs & Maintenance
C54: Pickup/General Use Equipment | D54: 1 | F54: Acre | G54: 1.095 | I54: 1.095 | J54: =E54*H54 -> 0 | K54: 0 | M54: 0 | N54: =J54*L54 -> 0 | O54: 1.095 | P54: =+J54-N54 -> 0 | Q54: 1095 | R54: =+J54*E$7 -> 0
C55: Irrigation Equipment | D55: 1 | F55: Acre | G55: 0 | I55: 0 | J55: 0 | K55: 0 | M55: 0 | N55: 0 | O55: 0 | P55: 0 | Q55: 0 | R55: 0
C56: Tractors/Self-Propelled | D56: 1 | F56: Acre | G56: 10.38608757 | I56: 10.38608757 | J56: 0 | K56: 0 | M56: 0 | N56: 0 | O56: 10.38608757 | P56: 0 | Q56: 10386.08757 | R56: 0
C57: Implements | D57: 1 | F57: Acre | G57: 12.00996425 | I57: 12.00996425 | J57: 0 | K57: 0 | M57: 0 | N57: 0 | O57: 12.00996425 | P57: 0 | Q57: 12009.96425 | R57: 0
I58: 0 | J58: 0 | K58: 0 | M58: 0 | N58: 0 | O58: 0 | P58: 0 | Q58: 0 | R58: 0
I59: 0 | J59: 0 | K59: 0 | M59: 0 | N59: 0 | O59: 0 | P59: 0 | Q59: 0 | R59: 0
B60: Interest on Credit Line | G60: 0.0455 | I60: 2.414822419 | J60: =+SUM(J20:J59)/2*H60 -> 0 | M60: 0 | N60: =+SUM(N20:N59)/2*L60 -> 0 | O60: 2.414822419 | P60: =+SUM(P20:P59)/2*L60 -> 0 | Q60: 2414.822419 | R60: =+J60*E$7 -> 0
A61: Total Variable Costs | I61: 127.6691742 | J61: =SUM(J21:J60) -> 0 | M61: 0 | N61: =SUM(N21:N60) -> 0 | O61: 127.6691742 | P61: =SUM(P21:P60) -> 0 | Q61: 127669.1742 | R61: =SUM(R21:R60) -> 0
A62: Planned Returns Above Variable Costs: | I62: 8.930825757 | J62: =+J16-J61 -> 0 | M62: 0 | N62: =+N16-N61 -> 0 | O62: 8.930825757 | P62: =+P16-P61 -> 0 | Q62: 8930.825757 | R62: =+R16-R61 -> 0
B63: Breakeven Price to Cover Variable Costs | G63: 4.24276697 | H63: =IF(E10=0,"n/a",(YVarExp-(YTotExp+YTotRet-J10))/E10) -> n/a | I63: Bushel
Q64: Enterprise | R64: Enterprise
A65: FIXED COSTS | D65: Quantity | E65: Quantity | F65: Units | G65: $/Unit | H65: $/Unit | I65: Total | J65: Total | K65: Share | L65: Share | M65: Landlord | N65: Landlord | O65: Tenant | P65: Tenant | Q65: Total | R65: Total
B66: Machinery Depreciation
C67: Pickup/General Use Equipment | D67: 1 | F67: Acre | G67: 2.322 | I67: 2.322 | J67: =E67*H67 -> 0 | K67: 0 | M67: 0 | N67: =J67*L67 -> 0 | O67: 2.322 | P67: =+J67-N67 -> 0 | Q67: 2322 | R67: =+J67*E$7 -> 0
C68: Tractors/Self-Propelled | D68: 1 | F68: Acre | G68: 13.98940159 | I68: 13.98940159 | J68: 0 | K68: 0 | M68: 0 | N68: =J68*L68 -> 0 | O68: 13.98940159 | P68: 0 | Q68: 13989.40159 | R68: 0
C69: Implements | D69: 1 | F69: Acre | G69: 15.44138261 | I69: 15.44138261 | J69: 0 | K69: 0 | M69: 0 | N69: =J69*L69 -> 0 | O69: 15.44138261 | P69: 0 | Q69: 15441.38261 | R69: 0
B70: Equipment Investment
C71: Pickup/General Use Equipment | D71: 12.87 | F71: Dollars | G71: 0.055 | I71: 0.70785 | J71: =E71*H71 -> 0 | K71: 0 | M71: 0 | N71: =J71*L71 -> 0 | O71: 0.70785 | P71: =+J71-N71 -> 0 | Q71: 707.85 | R71: =+J71*E$7 -> 0
C72: Tractors/Self-Propelled | D72: 107.4685849 | F72: Dollars | G72: 0.055 | I72: 5.910772171 | J72: 0 | K72: 0 | M72: 0 | N72: =J72*L72 -> 0 | O72: 5.910772171 | P72: 0 | Q72: 5910.772171 | R72: 0
C73: Implements | D73: 66.05480339 | F73: Dollars | G73: 0.055 | I73: 3.633014187 | J73: 0 | K73: 0 | M73: 0 | N73: =J73*L73 -> 0 | O73: 3.633014187 | P73: 0 | Q73: 3633.014187 | R73: 0
B74: Salaried Labor | D74: 1 | F74: Acre | G74: 0 | I74: 0 | J74: 0 | K74: 0 | M74: 0 | N74: =J74*L74 -> 0 | O74: 0 | P74: =+J74-N74 -> 0 | Q74: 0 | R74: =+J74*E$7 -> 0
B75: Management Fee, Owner/Operator Labor | D75: 1 | F75: Acre | G75: 10 | I75: 10 | J75: 0 | K75: 0 | M75: 0 | N75: 0 | O75: 10 | P75: 0 | Q75: 10000 | R75: 0
B76: Allocated Establishment Cost | D76: 1 | F76: Acre | G76: 0 | I76: 0 | J76: 0 | K76: 0 | M76: 0 | N76: 0 | O76: 0 | P76: 0 | Q76: 0 | R76: 0
B77: Rent-Dryland Crop | D77: 1 | F77: Acre | G77: 35 | I77: 35 | J77: 0 | K77: 0 | M77: 0 | N77: 0 | O77: 35 | P77: 0 | Q77: 35000 | R77: 0
B78: Property Taxes | D78: 1 | F78: Acre | G78: 0 | I78: 0 | J78: 0 | K78: 0 | M78: 0 | N78: 0 | O78: 0 | P78: 0 | Q78: 0 | R78: 0
B79: Whole Farm Insurance | D79: 1 | F79: Acre | G79: 0 | I79: 0 | J79: 0 | K79: 0 | M79: 0 | N79: 0 | O79: 0 | P79: 0 | Q79: 0 | R79: 0
D80: 1 | G80: 0 | I80: 0 | J80: 0 | K80: 0 | M80: 0 | N80: 0 | O80: 0 | P80: 0 | Q80: 0 | R80: 0
D81: 1 | G81: 0 | I81: 0 | J81: =E81*H81 -> 0 | K81: 0 | M81: 0 | N81: 0 | O81: 0 | P81: 0 | Q81: 0 | R81: 0
A82: Total Fixed Costs | I82: 87.00442056 | J82: =+SUM(J67:J81) -> 0 | M82: 0 | N82: =+SUM(N67:N81) -> 0 | O82: 87.00442056 | P82: =+SUM(P67:P81) -> 0 | Q82: 87004.42056 | R82: =+SUM(R67:R81) -> 0
A83: Total Specified Costs | I83: 214.6735948 | J83: =+J61+J82 -> 0 | M83: 0 | N83: =+N61+N82 -> 0 | O83: 214.6735948 | P83: =+P61+P82 -> 0 | Q83: 214673.5948 | R83: =+R61+R82 -> 0
A85: Returns Above Specified Costs | I85: -78.07359481 | J85: =+J16-J83 -> 0 | M85: 0 | N85: =+N16-N83 -> 0 | O85: -78.07359481 | P85: =+P16-P83 -> 0 | Q85: -78073.59481 | R85: =+R16-R83 -> 0
A87: Breakeven Price to Cover Total Costs | G87: 7.722943792 | H87: =IF(E10=0,"n/a",(YTotExp-(YTotExp+YTotRet-J10))/E10) -> n/a | I87: Bushel
D89: Example Breakeven Prices
B90: Example | C90: Example | D90: To Cover | G90: To Cover
B91: Yield | C91: Yield | D91: Variable | G91: Total
B92: Percent | C92: Bushel | D92: Costs | G92: Costs
B93: 0.75 | C93: 18.75 | D93: 5.657022626 | G93: 10.29725839
B94: 0.9 | C94: 22.5 | D94: 4.714185522 | G94: 8.581048658
B95: 1 | C95: 25 | D95: 4.24276697 | G95: 7.722943792
B96: 1.1 | C96: 27.5 | D96: 3.857060882 | G96: 7.020857993
B97: 1.25 | C97: 31.25 | D97: 3.394213576 | G97: 6.178355034
D99: Your Breakeven Prices
B100: Your | C100: Your | E100: To Cover | H100: To Cover
B101: Yield | C101: Yield | E101: Variable | H101: Total
B102: Percent | C102: Bushel | E102: Costs | H102: Costs
B103: 0.75 | C103: =E10*YPER1 -> 0 | E103: =IF($E$10=0,0,(YVarExp-(YTotExp+YTotRet-J10))/($E$10*YPER1)) -> 0 | H103: =IF($E$10=0,0,(YTotExp-(YTotExp+YTotRet-J10))/($E$10*YPER1)) -> 0
B104: 0.9 | C104: =E10*YPER2 -> 0 | E104: =IF($E$10=0,0,(YVarExp-(YTotExp+YTotRet-J10))/($E$10*YPER2)) -> 0 | H104: =IF($E$10=0,0,(YTotExp-(YTotExp+YTotRet-J10))/($E$10*YPER2)) -> 0
B105: 1 | C105: =+E10 -> 0 | E105: =IF($E$10=0,0,(YVarExp-(YTotExp+YTotRet-J10))/($E$10*YPER3)) -> 0 | H105: =IF($E$10=0,0,(YTotExp-(YTotExp+YTotRet-J10))/($E$10*YPER3)) -> 0
B106: 1.1 | C106: =E10*YPER4 -> 0 | E106: =IF($E$10=0,0,(YVarExp-(YTotExp+YTotRet-J10))/($E$10*YPER4)) -> 0 | H106: =IF($E$10=0,0,(YTotExp-(YTotExp+YTotRet-J10))/($E$10*YPER4)) -> 0
B107: 1.25 | C107: =E10*YPER5 -> 0 | E107: =IF($E$10=0,0,(YVarExp-(YTotExp+YTotRet-J10))/($E$10*YPER5)) -> 0 | H107: =IF($E$10=0,0,(YTotExp-(YTotExp+YTotRet-J10))/($E$10*YPER5)) -> 0
A109: Developed by Bill Thompson, Assistant Professor and Extension Economist, Texas A&M AgriLife Extension Service, 325-653-4576.
A111: Information presented is prepared solely as a general guide and not intended to recognize or predict the costs and returns from any one operation. Brand names are mentioned only as examples and imply no endorsement.

Sheet SesameDryland
A1: Projections for Planning Purposes Only -- Not to be Used without Updating
A2: 2021 Estimated Costs and Returns per Acre
A3: Dryland Sesame
A4: Enter your name for this budget in the cell above.
A5: Enter Your Values in the cells highlighed in MAROON.
E6: Your Acres | R6: Your
C7: Crop Acres | D7: 125 | L7: Your | Q7: Enterprise | R7: Enterprise
E8: Your | H8: Your | I8: Cash | J8: Your | K8: Landlord | L8: Landlord | N8: Your | P8: Your | Q8: Total | R8: Total
A9: REVENUE | D9: Quantity | E9: Quantity | F9: Units | G9: $/Unit | H9: $/Unit | I9: Total | J9: Total | K9: Share | L9: Share | M9: Landlord | N9: Landlord | O9: Tenant | P9: Tenant | Q9: (125 acres) | R9: ="(" & E7 & " acres)" -> ( acres)
B10: Sesame Seed | D10: 500 | F10: Pound | G10: 0.35 | I10: 175 | J10: =E10*H10 -> 0 | K10: 0 | M10: 0 | N10: =J10*L10 -> 0 | O10: 175 | P10: =+J10-N10 -> 0 | Q10: 21875 | R10: =+J10*E$7 -> 0
D11: 0 | G11: 0 | I11: 0 | J11: 0 | K11: 0 | M11: 0 | N11: 0 | O11: 0 | P11: =+J11-N11 -> 0 | Q11: 0 | R11: 0
D12: 0 | G12: 0 | I12: 0 | J12: 0 | K12: 0 | M12: 0 | N12: 0 | O12: 0 | P12: 0 | Q12: 0 | R12: 0
A13: Total Revenue | I13: 175 | J13: =SUM(J10:J12) -> 0 | M13: 0 | N13: =SUM(N10:N12) -> 0 | O13: 175 | P13: =SUM(P10:P12) -> 0 | Q13: 21875 | R13: =SUM(R10:R12) -> 0
Q14: Enterprise | R14: Enterprise
A15: VARIABLE COSTS | D15: Quantity | E15: Quantity | F15: Units | G15: $/Unit | H15: $/Unit | I15: Total | J15: Total | K15: Share | L15: Share | M15: Landlord | N15: Landlord | O15: Tenant | P15: Tenant | Q15: Total | R15: Total
A16: Production Costs
B17: Herbicide
C18: Glyphosate | D18: 11 | F18: Ounce | G18: 0.1328125 | I18: 1.4609375 | J18: =E18*H18 -> 0 | K18: 0 | M18: 0 | N18: =J18*L18 -> 0 | O18: 1.4609375 | P18: =+J18-N18 -> 0 | Q18: 182.6171875 | R18: =+J18*E$7 -> 0
C19: Medal | D19: 1.3 | F19: Pint | G19: 7 | I19: 9.1 | J19: 0 | K19: 0 | M19: 0 | N19: 0 | O19: 9.1 | P19: 0 | Q19: 1137.5 | R19: 0
B20: Custom
C21: Soil Test-Dryland | D21: 1 | F21: Each | G21: 0.25 | I21: 0.25 | J21: 0 | K21: 0 | M21: 0 | N21: 0 | O21: 0.25 | P21: 0 | Q21: 31.25 | R21: 0
C22: Custom Harvest Sesame | D22: 1 | F22: Acre | G22: 25 | I22: 25 | J22: 0 | K22: 0 | M22: 0 | N22: 0 | O22: 25 | P22: 0 | Q22: 3125 | R22: 0
C23: Custom Haul Sesame | D23: 14.28571 | F23: Bushels | G23: 0.27 | I23: 3.8571417 | J23: 0 | K23: 0 | M23: 0 | N23: 0 | O23: 3.8571417 | P23: 0 | Q23: 482.1427125 | R23: 0
B24: Fertilizer
C25: Nitrogen Dry-Urea | D25: 30 | F25: Pounds | G25: 0.4022 | I25: 12.066 | J25: 0 | K25: 0 | M25: 0 | N25: 0 | O25: 12.066 | P25: 0 | Q25: 1508.25 | R25: 0
B26: Miscellaneous
C27: Crop Insurance Sesame | D27: 1 | F27: Acre | G27: 15 | I27: 15 | J27: 0 | K27: 0 | M27: 0 | N27: 0 | O27: 15 | P27: 0 | Q27: 1875 | R27: 0
C28: Duct Tape | D28: 0.28125 | F28: Roll | G28: 4 | I28: 1.125 | J28: 0 | K28: 0 | M28: 0 | N28: 0 | O28: 1.125 | P28: 0 | Q28: 140.625 | R28: 0
B29: Seed
C30: Seed Sesame | D30: 4 | F30: Pounds | G30: 6 | I30: 24 | J30: 0 | K30: 0 | M30: 0 | N30: 0 | O30: 24 | P30: 0 | Q30: 3000 | R30: 0
D31: 0 | G31: 0 | I31: 0 | J31: 0 | K31: 0 | M31: 0 | N31: 0 | O31: 0 | P31: 0 | Q31: 0 | R31: 0
D32: 0 | G32: 0 | I32: 0 | J32: 0 | K32: 0 | M32: 0 | N32: 0 | O32: 0 | P32: 0 | Q32: 0 | R32: 0
D33: 0 | G33: 0 | I33: 0 | J33: =E33*H33 -> 0 | K33: 0 | M33: 0 | N33: =J33*L33 -> 0 | O33: 0 | P33: =+J33-N33 -> 0 | Q33: 0 | R33: =+J33*E$7 -> 0
B34: Machinery Labor
C35: Tractors/Self-Propelled | D35: 0.55 | F35: Hour | G35: 15 | I35: 8.25 | J35: =E35*H35 -> 0 | K35: 0 | M35: 0 | N35: =J35*L35 -> 0 | O35: 8.25 | P35: =+J35-N35 -> 0 | Q35: 1031.25 | R35: =+J35*E$7 -> 0
C36: Other Labor | D36: 0 | F36: Hour | G36: 15 | I36: 0 | J36: =E36*H36 -> 0 | K36: 0 | M36: 0 | N36: =J36*L36 -> 0 | O36: 0 | P36: =+J36-N36 -> 0 | Q36: 0 | R36: =+J36*E$7 -> 0
B38: Diesel Fuel
C39: Pickup/General Use Equipment | D39: 1 | F39: Acre | G39: 0 | I39: 0 | J39: =E39*H39 -> 0 | K39: 0 | M39: 0 | N39: =J39*L39 -> 0 | O39: 0 | P39: =+J39-N39 -> 0 | Q39: 0 | R39: =+J39*E$7 -> 0
C40: Tractors/Self-Propelled | D40: 4.36 | F40: Gallon | G40: 1.5 | I40: 6.54 | J40: =E40*H40 -> 0 | K40: 0 | M40: 0 | N40: =J40*L40 -> 0 | O40: 6.54 | P40: =+J40-N40 -> 0 | Q40: 817.5 | R40: =+J40*E$7 -> 0
B42: Gasoline
C43: Pickup/General Use Equipment | D43: 1 | F43: Acre | G43: 1.09056 | I43: 1.09056 | J43: =E43*H43 -> 0 | K43: 0 | M43: 0 | N43: =J43*L43 -> 0 | O43: 1.09056 | P43: =+J43-N43 -> 0 | Q43: 136.32 | R43: =+J43*E$7 -> 0
C44: Tractors/Self-Propelled | D44: 0 | F44: Gallon | G44: 1.8 | I44: 0 | J44: =E44*H44 -> 0 | K44: 0 | M44: 0 | N44: =J44*L44 -> 0 | O44: 0 | P44: =+J44-N44 -> 0 | Q44: 0 | R44: =+J44*E$7 -> 0
B46: Repairs & Maintenance
C47: Pickup/General Use Equipment | D47: 1 | F47: Acre | G47: 0.584 | I47: 0.584 | J47: =E47*H47 -> 0 | K47: 0 | M47: 0 | N47: =J47*L47 -> 0 | O47: 0.584 | P47: =+J47-N47 -> 0 | Q47: 73 | R47: =+J47*E$7 -> 0
C48: Irrigation Equipment | D48: 1 | F48: Acre | G48: 0 | I48: 0 | J48: 0 | K48: 0 | M48: 0 | N48: 0 | O48: 0 | P48: 0 | Q48: 0 | R48: 0
C49: Tractors/Self-Propelled | D49: 1 | F49: Acre | G49: 11.2235717 | I49: 11.2235717 | J49: 0 | K49: 0 | M49: 0 | N49: 0 | O49: 11.2235717 | P49: 0 | Q49: 1402.946463 | R49: 0
C50: Implements | D50: 1 | F50: Acre | G50: 12.91904123 | I50: 12.91904123 | J50: 0 | K50: 0 | M50: 0 | N50: 0 | O50: 12.91904123 | P50: 0 | Q50: 1614.880153 | R50: 0
I51: 0 | J51: 0 | K51: 0 | M51: 0 | N51: 0 | O51: 0 | P51: 0 | Q51: 0 | R51: 0
I52: 0 | J52: 0 | K52: 0 | M52: 0 | N52: 0 | O52: 0 | P52: 0 | Q52: 0 | R52: 0
B53: Interest on Credit Line | G53: 0.0455 | I53: 2.577781139 | J53: =+SUM(J17:J52)/2*H53 -> 0 | M53: 0 | N53: =+SUM(N17:N52)/2*L53 -> 0 | O53: 2.577781139 | P53: =+SUM(P17:P52)/2*L53 -> 0 | Q53: 322.2226424 | R53: =+J53*E$7 -> 0
A54: Total Variable Costs | I54: 135.0440333 | J54: =SUM(J18:J53) -> 0 | M54: 0 | N54: =SUM(N18:N53) -> 0 | O54: 135.0440333 | P54: =SUM(P18:P53) -> 0 | Q54: 16880.50416 | R54: =SUM(R18:R53) -> 0
A55: Planned Returns Above Variable Costs: | I55: 39.95596673 | J55: =+J13-J54 -> 0 | M55: 0 | N55: =+N13-N54 -> 0 | O55: 39.95596673 | P55: =+P13-P54 -> 0 | Q55: 4994.495841 | R55: =+R13-R54 -> 0
B56: Breakeven Price to Cover Variable Costs | G56: 0.2700880665 | H56: =IF(E10=0,"n/a",(YVarExp-(YTotExp+YTotRet-J10))/E10) -> n/a | I56: Pound
Q57: Enterprise | R57: Enterprise
A58: FIXED COSTS | D58: Quantity | E58: Quantity | F58: Units | G58: $/Unit | H58: $/Unit | I58: Total | J58: Total | K58: Share | L58: Share | M58: Landlord | N58: Landlord | O58: Tenant | P58: Tenant | Q58: Total | R58: Total
B59: Machinery Depreciation
C60: Pickup/General Use Equipment | D60: 1 | F60: Acre | G60: 1.2384 | I60: 1.2384 | J60: =E60*H60 -> 0 | K60: 0 | M60: 0 | N60: =J60*L60 -> 0 | O60: 1.2384 | P60: =+J60-N60 -> 0 | Q60: 154.8 | R60: =+J60*E$7 -> 0
C61: Tractors/Self-Propelled | D61: 1 | F61: Acre | G61: 13.68976666 | I61: 13.68976666 | J61: 0 | K61: 0 | M61: 0 | N61: =J61*L61 -> 0 | O61: 13.68976666 | P61: 0 | Q61: 1711.220833 | R61: 0
C62: Implements | D62: 1 | F62: Acre | G62: 16.37403761 | I62: 16.37403761 | J62: 0 | K62: 0 | M62: 0 | N62: =J62*L62 -> 0 | O62: 16.37403761 | P62: 0 | Q62: 2046.754701 | R62: 0
B63: Equipment Investment
C64: Pickup/General Use Equipment | D64: 6.864 | F64: Dollars | G64: 0.055 | I64: 0.37752 | J64: =E64*H64 -> 0 | K64: 0 | M64: 0 | N64: =J64*L64 -> 0 | O64: 0.37752 | P64: =+J64-N64 -> 0 | Q64: 47.19 | R64: =+J64*E$7 -> 0
C65: Tractors/Self-Propelled | D65: 105.6387876 | F65: Dollars | G65: 0.055 | I65: 5.810133316 | J65: 0 | K65: 0 | M65: 0 | N65: =J65*L65 -> 0 | O65: 5.810133316 | P65: 0 | Q65: 726.2666645 | R65: 0
C66: Implements | D66: 70.11164803 | F66: Dollars | G66: 0.055 | I66: 3.856140641 | J66: 0 | K66: 0 | M66: 0 | N66: =J66*L66 -> 0 | O66: 3.856140641 | P66: 0 | Q66: 482.0175802 | R66: 0
B67: Salaried Labor | D67: 1 | F67: Acre | G67: 0 | I67: 0 | J67: 0 | K67: 0 | M67: 0 | N67: =J67*L67 -> 0 | O67: 0 | P67: =+J67-N67 -> 0 | Q67: 0 | R67: =+J67*E$7 -> 0
B68: Management Fee, Owner/Operator Labor | D68: 1 | F68: Acre | G68: 10 | I68: 10 | J68: 0 | K68: 0 | M68: 0 | N68: 0 | O68: 10 | P68: 0 | Q68: 1250 | R68: 0
B69: Allocated Establishment Cost | D69: 1 | F69: Acre | G69: 0 | I69: 0 | J69: 0 | K69: 0 | M69: 0 | N69: 0 | O69: 0 | P69: 0 | Q69: 0 | R69: 0
B70: Rent-Dryland Crop | D70: 1 | F70: Acre | G70: 35 | I70: 35 | J70: 0 | K70: 0 | M70: 0 | N70: 0 | O70: 35 | P70: 0 | Q70: 4375 | R70: 0
B71: Property Taxes | D71: 1 | F71: Acre | G71: 0 | I71: 0 | J71: 0 | K71: 0 | M71: 0 | N71: 0 | O71: 0 | P71: 0 | Q71: 0 | R71: 0
B72: Whole Farm Insurance | D72: 1 | F72: Acre | G72: 0 | I72: 0 | J72: 0 | K72: 0 | M72: 0 | N72: 0 | O72: 0 | P72: 0 | Q72: 0 | R72: 0
D73: 1 | G73: 0 | I73: 0 | J73: 0 | K73: 0 | M73: 0 | N73: 0 | O73: 0 | P73: 0 | Q73: 0 | R73: 0
D74: 1 | G74: 0 | I74: 0 | J74: =E74*H74 -> 0 | K74: 0 | M74: 0 | N74: 0 | O74: 0 | P74: 0 | Q74: 0 | R74: 0
A75: Total Fixed Costs | I75: 86.34599823 | J75: =+SUM(J60:J74) -> 0 | M75: 0 | N75: =+SUM(N60:N74) -> 0 | O75: 86.34599823 | P75: =+SUM(P60:P74) -> 0 | Q75: 10793.24978 | R75: =+SUM(R60:R74) -> 0
A76: Total Specified Costs | I76: 221.3900315 | J76: =+J54+J75 -> 0 | M76: 0 | N76: =+N54+N75 -> 0 | O76: 221.3900315 | P76: =+P54+P75 -> 0 | Q76: 27673.75394 | R76: =+R54+R75 -> 0
A78: Returns Above Specified Costs | I78: -46.3900315 | J78: =+J13-J76 -> 0 | M78: 0 | N78: =+N13-N76 -> 0 | O78: -46.3900315 | P78: =+P13-P76 -> 0 | Q78: -5798.753937 | R78: =+R13-R76 -> 0
A80: Breakeven Price to Cover Total Costs | G80: 0.442780063 | H80: =IF(E10=0,"n/a",(YTotExp-(YTotExp+YTotRet-J10))/E10) -> n/a | I80: Pound
D82: Example Breakeven Prices
B83: Example | C83: Example | D83: To Cover | G83: To Cover
B84: Yield | C84: Yield | D84: Variable | G84: Total
B85: Percent | C85: Pound | D85: Costs | G85: Costs
B86: 0.75 | C86: 375 | D86: 0.3601174221 | G86: 0.5903734173
B87: 0.9 | C87: 450 | D87: 0.3000978517 | G87: 0.4919778478
B88: 1 | C88: 500 | D88: 0.2700880665 | G88: 0.442780063
B89: 1.1 | C89: 550 | D89: 0.2455346059 | G89: 0.40252733
B90: 1.25 | C90: 625 | D90: 0.2160704532 | G90: 0.3542240504
D92: Your Breakeven Prices
B93: Your | C93: Your | E93: To Cover | H93: To Cover
B94: Yield | C94: Yield | E94: Variable | H94: Total
B95: Percent | C95: Pound | E95: Costs | H95: Costs
B96: 0.75 | C96: =E10*YPER1 -> 0 | E96: =IF($E$10=0,0,(YVarExp-(YTotExp+YTotRet-J10))/($E$10*YPER1)) -> 0 | H96: =IF($E$10=0,0,(YTotExp-(YTotExp+YTotRet-J10))/($E$10*YPER1)) -> 0
B97: 0.9 | C97: =E10*YPER2 -> 0 | E97: =IF($E$10=0,0,(YVarExp-(YTotExp+YTotRet-J10))/($E$10*YPER2)) -> 0 | H97: =IF($E$10=0,0,(YTotExp-(YTotExp+YTotRet-J10))/($E$10*YPER2)) -> 0
B98: 1 | C98: =+E10 -> 0 | E98: =IF($E$10=0,0,(YVarExp-(YTotExp+YTotRet-J10))/($E$10*YPER3)) -> 0 | H98: =IF($E$10=0,0,(YTotExp-(YTotExp+YTotRet-J10))/($E$10*YPER3)) -> 0
B99: 1.1 | C99: =E10*YPER4 -> 0 | E99: =IF($E$10=0,0,(YVarExp-(YTotExp+YTotRet-J10))/($E$10*YPER4)) -> 0 | H99: =IF($E$10=0,0,(YTotExp-(YTotExp+YTotRet-J10))/($E$10*YPER4)) -> 0
B100: 1.25 | C100: =E10*YPER5 -> 0 | E100: =IF($E$10=0,0,(YVarExp-(YTotExp+YTotRet-J10))/($E$10*YPER5)) -> 0 | H100: =IF($E$10=0,0,(YTotExp-(YTotExp+YTotRet-J10))/($E$10*YPER5)) -> 0
A102: Developed by Bill Thompson, Assistant Professor and Extension Economist, Texas A&M AgriLife Extension Service, 325-653-4576.
A104: Information presented is prepared solely as a general guide and not intended to recognize or predict the costs and returns from any one operation. Brand names are mentioned only as examples and imply no endorsement.

Sheet SorghumDryland
A1: Projections for Planning Purposes Only -- Not to be Used without Updating
A2: 2021 Estimated Costs and Returns per Acre
A3: No-Till Dryland Sorghum, Follow Cotton
A4: Enter your name for this budget in the cell above.
A5: Enter Your Values in the cells highlighed in MAROON.
E6: Your Acres | R6: Your
C7: Crop Acres | D7: 400 | L7: Your | Q7: Enterprise | R7: Enterprise
E8: Your | H8: Your | I8: Cash | J8: Your | K8: Landlord | L8: Landlord | N8: Your | P8: Your | Q8: Total | R8: Total
A9: REVENUE | D9: Quantity | E9: Quantity | F9: Units | G9: $/Unit | H9: $/Unit | I9: Total | J9: Total | K9: Share | L9: Share | M9: Landlord | N9: Landlord | O9: Tenant | P9: Tenant | Q9: (400 acres) | R9: ="(" & E7 & " acres)" -> ( acres)
B10: Sorghum | D10: 22 | F10: CWT | G10: 4.85 | I10: 106.7 | J10: =E10*H10 -> 0 | K10: 0 | M10: 0 | N10: =J10*L10 -> 0 | O10: 106.7 | P10: =+J10-N10 -> 0 | Q10: 42680 | R10: =+J10*E$7 -> 0
D11: 0 | G11: 0 | I11: 0 | J11: 0 | K11: 0 | M11: 0 | N11: 0 | O11: 0 | P11: =+J11-N11 -> 0 | Q11: 0 | R11: 0
D12: 0 | G12: 0 | I12: 0 | J12: 0 | K12: 0 | M12: 0 | N12: 0 | O12: 0 | P12: 0 | Q12: 0 | R12: 0
A13: Total Revenue | I13: 106.7 | J13: =SUM(J10:J12) -> 0 | M13: 0 | N13: =SUM(N10:N12) -> 0 | O13: 106.7 | P13: =SUM(P10:P12) -> 0 | Q13: 42680 | R13: =SUM(R10:R12) -> 0
Q14: Enterprise | R14: Enterprise
A15: VARIABLE COSTS | D15: Quantity | E15: Quantity | F15: Units | G15: $/Unit | H15: $/Unit | I15: Total | J15: Total | K15: Share | L15: Share | M15: Landlord | N15: Landlord | O15: Tenant | P15: Tenant | Q15: Total | R15: Total
A16: Production Costs
B17: Herbicide
C18: Husky | D18: 14.5 | F18: Ounce | G18: 0.886719 | I18: 12.8574255 | J18: =E18*H18 -> 0 | K18: 0 | M18: 0 | N18: =J18*L18 -> 0 | O18: 12.8574255 | P18: =+J18-N18 -> 0 | Q18: 5142.9702 | R18: =+J18*E$7 -> 0
C19: Glyphosate | D19: 32 | F19: Ounce | G19: 0.1328125 | I19: 4.25 | J19: 0 | K19: 0 | M19: 0 | N19: 0 | O19: 4.25 | P19: 0 | Q19: 1700 | R19: 0
C20: Atrazine | D20: 1 | F20: Quart | G20: 3.425 | I20: 3.425 | J20: 0 | K20: 0 | M20: 0 | N20: 0 | O20: 3.425 | P20: 0 | Q20: 1370 | R20: 0
B21: Fertilizer
C22: Nitrogen Dry-Urea | D22: 30 | F22: Pounds | G22: 0.4022 | I22: 12.066 | J22: 0 | K22: 0 | M22: 0 | N22: 0 | O22: 12.066 | P22: 0 | Q22: 4826.4 | R22: 0
C23: Phos (11-52-0 DRY MAT) | D23: 20 | F23: Pounds | G23: 0.4519 | I23: 9.038 | J23: 0 | K23: 0 | M23: 0 | N23: 0 | O23: 9.038 | P23: 0 | Q23: 3615.2 | R23: 0
B24: Custom
C25: Soil Test-Dryland | D25: 1 | F25: Each | G25: 0.25 | I25: 0.25 | J25: 0 | K25: 0 | M25: 0 | N25: 0 | O25: 0.25 | P25: 0 | Q25: 100 | R25: 0
C26: Custom Harvest Sorghum | D26: 1 | F26: Acre | G26: 23.33 | I26: 23.33 | J26: 0 | K26: 0 | M26: 0 | N26: 0 | O26: 23.33 | P26: 0 | Q26: 9332 | R26: 0
C27: Custom Haul Sorghum | D27: 39.3 | F27: Bushels | G27: 0.24 | I27: 9.432 | J27: 0 | K27: 0 | M27: 0 | N27: 0 | O27: 9.432 | P27: 0 | Q27: 3772.8 | R27: 0
B28: Insecticide
C29: Sivanto | D29: 5.5 | F29: Ounce | G29: 2.66796875 | I29: 14.67382812 | J29: 0 | K29: 0 | M29: 0 | N29: 0 | O29: 14.67382812 | P29: 0 | Q29: 5869.53125 | R29: 0
B30: Miscellaneous
C31: GS RP 70%, Ent | D31: 1 | F31: Acre | G31: 3.75 | I31: 3.75 | J31: 0 | K31: 0 | M31: 0 | N31: 0 | O31: 3.75 | P31: 0 | Q31: 1500 | R31: 0
B32: Seed
C33: Grain Sorghum - Treated | D33: 5 | F33: Pounds | G33: 3.98 | I33: 19.9 | J33: 0 | K33: 0 | M33: 0 | N33: 0 | O33: 19.9 | P33: 0 | Q33: 7960 | R33: 0
D34: 0 | G34: 0 | I34: 0 | J34: 0 | K34: 0 | M34: 0 | N34: 0 | O34: 0 | P34: 0 | Q34: 0 | R34: 0
D35: 0 | G35: 0 | I35: 0 | J35: 0 | K35: 0 | M35: 0 | N35: 0 | O35: 0 | P35: 0 | Q35: 0 | R35: 0
D36: 0 | G36: 0 | I36: 0 | J36: =E36*H36 -> 0 | K36: 0 | M36: 0 | N36: =J36*L36 -> 0 | O36: 0 | P36: =+J36-N36 -> 0 | Q36: 0 | R36: =+J36*E$7 -> 0
B37: Machinery Labor
C38: Tractors/Self-Propelled | D38: 0.5 | F38: Hour | G38: 15 | I38: 7.5 | J38: =E38*H38 -> 0 | K38: 0 | M38: 0 | N38: =J38*L38 -> 0 | O38: 7.5 | P38: =+J38-N38 -> 0 | Q38: 3000 | R38: =+J38*E$7 -> 0
C39: Other Labor | D39: 0 | F39: Hour | G39: 15 | I39: 0 | J39: =E39*H39 -> 0 | K39: 0 | M39: 0 | N39: =J39*L39 -> 0 | O39: 0 | P39: =+J39-N39 -> 0 | Q39: 0 | R39: =+J39*E$7 -> 0
B41: Diesel Fuel
C42: Pickup/General Use Equipment | D42: 1 | F42: Acre | G42: 0 | I42: 0 | J42: =E42*H42 -> 0 | K42: 0 | M42: 0 | N42: =J42*L42 -> 0 | O42: 0 | P42: =+J42-N42 -> 0 | Q42: 0 | R42: =+J42*E$7 -> 0
C43: Tractors/Self-Propelled | D43: 3.03 | F43: Gallon | G43: 1.5 | I43: 4.545 | J43: =E43*H43 -> 0 | K43: 0 | M43: 0 | N43: =J43*L43 -> 0 | O43: 4.545 | P43: =+J43-N43 -> 0 | Q43: 1818 | R43: =+J43*E$7 -> 0
B45: Gasoline
C46: Pickup/General Use Equipment | D46: 1 | F46: Acre | G46: 1.5336 | I46: 1.5336 | J46: =E46*H46 -> 0 | K46: 0 | M46: 0 | N46: =J46*L46 -> 0 | O46: 1.5336 | P46: =+J46-N46 -> 0 | Q46: 613.44 | R46: =+J46*E$7 -> 0
C47: Tractors/Self-Propelled | D47: 0 | F47: Gallon | G47: 1.8 | I47: 0 | J47: =E47*H47 -> 0 | K47: 0 | M47: 0 | N47: =J47*L47 -> 0 | O47: 0 | P47: =+J47-N47 -> 0 | Q47: 0 | R47: =+J47*E$7 -> 0
B49: Repairs & Maintenance
C50: Pickup/General Use Equipment | D50: 1 | F50: Acre | G50: 0.82125 | I50: 0.82125 | J50: =E50*H50 -> 0 | K50: 0 | M50: 0 | N50: =J50*L50 -> 0 | O50: 0.82125 | P50: =+J50-N50 -> 0 | Q50: 328.5 | R50: =+J50*E$7 -> 0
C51: Irrigation Equipment | D51: 1 | F51: Acre | G51: 0 | I51: 0 | J51: 0 | K51: 0 | M51: 0 | N51: 0 | O51: 0 | P51: 0 | Q51: 0 | R51: 0
C52: Tractors/Self-Propelled | D52: 1 | F52: Acre | G52: 7.138790116 | I52: 7.138790116 | J52: 0 | K52: 0 | M52: 0 | N52: 0 | O52: 7.138790116 | P52: 0 | Q52: 2855.516046 | R52: 0
C53: Implements | D53: 1 | F53: Acre | G53: 6.913979998 | I53: 6.913979998 | J53: 0 | K53: 0 | M53: 0 | N53: 0 | O53: 6.913979998 | P53: 0 | Q53: 2765.591999 | R53: 0
I54: 0 | J54: 0 | K54: 0 | M54: 0 | N54: 0 | O54: 0 | P54: 0 | Q54: 0 | R54: 0
I55: 0 | J55: 0 | K55: 0 | M55: 0 | N55: 0 | O55: 0 | P55: 0 | Q55: 0 | R55: 0
B56: Interest on Credit Line | G56: 0.0455 | I56: 2.368187381 | J56: =+SUM(J17:J55)/2*H56 -> 0 | M56: 0 | N56: =+SUM(N17:N55)/2*L56 -> 0 | O56: 2.368187381 | P56: =+SUM(P17:P55)/2*L56 -> 0 | Q56: 947.2749524 | R56: =+J56*E$7 -> 0
A57: Total Variable Costs | I57: 143.7930611 | J57: =SUM(J18:J56) -> 0 | M57: 0 | N57: =SUM(N18:N56) -> 0 | O57: 143.7930611 | P57: =SUM(P18:P56) -> 0 | Q57: 57517.22445 | R57: =SUM(R18:R56) -> 0
A58: Planned Returns Above Variable Costs: | I58: -37.09306112 | J58: =+J13-J57 -> 0 | M58: 0 | N58: =+N13-N57 -> 0 | O58: -37.09306112 | P58: =+P13-P57 -> 0 | Q58: -14837.22445 | R58: =+R13-R57 -> 0
B59: Breakeven Price to Cover Variable Costs | G59: 6.536048233 | H59: =IF(E10=0,"n/a",(YVarExp-(YTotExp+YTotRet-J10))/E10) -> n/a | I59: CWT
Q60: Enterprise | R60: Enterprise
A61: FIXED COSTS | D61: Quantity | E61: Quantity | F61: Units | G61: $/Unit | H61: $/Unit | I61: Total | J61: Total | K61: Share | L61: Share | M61: Landlord | N61: Landlord | O61: Tenant | P61: Tenant | Q61: Total | R61: Total
B62: Machinery Depreciation
C63: Pickup/General Use Equipment | D63: 1 | F63: Acre | G63: 1.7415 | I63: 1.7415 | J63: =E63*H63 -> 0 | K63: 0 | M63: 0 | N63: =J63*L63 -> 0 | O63: 1.7415 | P63: =+J63-N63 -> 0 | Q63: 696.6 | R63: =+J63*E$7 -> 0
C64: Tractors/Self-Propelled | D64: 1 | F64: Acre | G64: 9.398537982 | I64: 9.398537982 | J64: 0 | K64: 0 | M64: 0 | N64: =J64*L64 -> 0 | O64: 9.398537982 | P64: 0 | Q64: 3759.415193 | R64: 0
C65: Implements | D65: 1 | F65: Acre | G65: 9.513847148 | I65: 9.513847148 | J65: 0 | K65: 0 | M65: 0 | N65: =J65*L65 -> 0 | O65: 9.513847148 | P65: 0 | Q65: 3805.538859 | R65: 0
B66: Equipment Investment
C67: Pickup/General Use Equipment | D67: 9.6525 | F67: Dollars | G67: 0.055 | I67: 0.5308875 | J67: =E67*H67 -> 0 | K67: 0 | M67: 0 | N67: =J67*L67 -> 0 | O67: 0.5308875 | P67: =+J67-N67 -> 0 | Q67: 212.355 | R67: =+J67*E$7 -> 0
C68: Tractors/Self-Propelled | D68: 72.20873185 | F68: Dollars | G68: 0.055 | I68: 3.971480252 | J68: 0 | K68: 0 | M68: 0 | N68: =J68*L68 -> 0 | O68: 3.971480252 | P68: 0 | Q68: 1588.592101 | R68: 0
C69: Implements | D69: 40.69812391 | F69: Dollars | G69: 0.055 | I69: 2.238396815 | J69: 0 | K69: 0 | M69: 0 | N69: =J69*L69 -> 0 | O69: 2.238396815 | P69: 0 | Q69: 895.3587261 | R69: 0
B70: Salaried Labor | D70: 1 | F70: Acre | G70: 0 | I70: 0 | J70: 0 | K70: 0 | M70: 0 | N70: =J70*L70 -> 0 | O70: 0 | P70: =+J70-N70 -> 0 | Q70: 0 | R70: =+J70*E$7 -> 0
B71: Management Fee, Owner/Operator Labor | D71: 1 | F71: Acre | G71: 10 | I71: 10 | J71: 0 | K71: 0 | M71: 0 | N71: 0 | O71: 10 | P71: 0 | Q71: 4000 | R71: 0
B72: Allocated Establishment Cost | D72: 1 | F72: Acre | G72: 0 | I72: 0 | J72: 0 | K72: 0 | M72: 0 | N72: 0 | O72: 0 | P72: 0 | Q72: 0 | R72: 0
B73: Rent-Dryland Crop | D73: 1 | F73: Acre | G73: 35 | I73: 35 | J73: 0 | K73: 0 | M73: 0 | N73: 0 | O73: 35 | P73: 0 | Q73: 14000 | R73: 0
B74: Property Taxes | D74: 1 | F74: Acre | G74: 0 | I74: 0 | J74: 0 | K74: 0 | M74: 0 | N74: 0 | O74: 0 | P74: 0 | Q74: 0 | R74: 0
B75: Whole Farm Insurance | D75: 1 | F75: Acre | G75: 0 | I75: 0 | J75: 0 | K75: 0 | M75: 0 | N75: 0 | O75: 0 | P75: 0 | Q75: 0 | R75: 0
D76: 1 | G76: 0 | I76: 0 | J76: 0 | K76: 0 | M76: 0 | N76: 0 | O76: 0 | P76: 0 | Q76: 0 | R76: 0
D77: 1 | G77: 0 | I77: 0 | J77: =E77*H77 -> 0 | K77: 0 | M77: 0 | N77: 0 | O77: 0 | P77: 0 | Q77: 0 | R77: 0
A78: Total Fixed Costs | I78: 72.3946497 | J78: =+SUM(J63:J77) -> 0 | M78: 0 | N78: =+SUM(N63:N77) -> 0 | O78: 72.3946497 | P78: =+SUM(P63:P77) -> 0 | Q78: 28957.85988 | R78: =+SUM(R63:R77) -> 0
A79: Total Specified Costs | I79: 216.1877108 | J79: =+J57+J78 -> 0 | M79: 0 | N79: =+N57+N78 -> 0 | O79: 216.1877108 | P79: =+P57+P78 -> 0 | Q79: 86475.08433 | R79: =+R57+R78 -> 0
A81: Returns Above Specified Costs | I81: -109.4877108 | J81: =+J13-J79 -> 0 | M81: 0 | N81: =+N13-N79 -> 0 | O81: -109.4877108 | P81: =+P13-P79 -> 0 | Q81: -43795.08433 | R81: =+R13-R79 -> 0
A83: Breakeven Price to Cover Total Costs | G83: 9.826714128 | H83: =IF(E10=0,"n/a",(YTotExp-(YTotExp+YTotRet-J10))/E10) -> n/a | I83: CWT
D85: Example Breakeven Prices
B86: Example | C86: Example | D86: To Cover | G86: To Cover
B87: Yield | C87: Yield | D87: Variable | G87: Total
B88: Percent | C88: CWT | D88: Costs | G88: Costs
B89: 0.75 | C89: 16.5 | D89: 8.714730977 | G89: 13.1022855
B90: 0.9 | C90: 19.8 | D90: 7.262275814 | G90: 10.91857125
B91: 1 | C91: 22 | D91: 6.536048233 | G91: 9.826714128
B92: 1.1 | C92: 24.2 | D92: 5.94186203 | G92: 8.93337648
B93: 1.25 | C93: 27.5 | D93: 5.228838586 | G93: 7.861371302
D95: Your Breakeven Prices
B96: Your | C96: Your | E96: To Cover | H96: To Cover
B97: Yield | C97: Yield | E97: Variable | H97: Total
B98: Percent | C98: CWT | E98: Costs | H98: Costs
B99: 0.75 | C99: =E10*YPER1 -> 0 | E99: =IF($E$10=0,0,(YVarExp-(YTotExp+YTotRet-J10))/($E$10*YPER1)) -> 0 | H99: =IF($E$10=0,0,(YTotExp-(YTotExp+YTotRet-J10))/($E$10*YPER1)) -> 0
B100: 0.9 | C100: =E10*YPER2 -> 0 | E100: =IF($E$10=0,0,(YVarExp-(YTotExp+YTotRet-J10))/($E$10*YPER2)) -> 0 | H100: =IF($E$10=0,0,(YTotExp-(YTotExp+YTotRet-J10))/($E$10*YPER2)) -> 0
B101: 1 | C101: =+E10 -> 0 | E101: =IF($E$10=0,0,(YVarExp-(YTotExp+YTotRet-J10))/($E$10*YPER3)) -> 0 | H101: =IF($E$10=0,0,(YTotExp-(YTotExp+YTotRet-J10))/($E$10*YPER3)) -> 0
B102: 1.1 | C102: =E10*YPER4 -> 0 | E102: =IF($E$10=0,0,(YVarExp-(YTotExp+YTotRet-J10))/($E$10*YPER4)) -> 0 | H102: =IF($E$10=0,0,(YTotExp-(YTotExp+YTotRet-J10))/($E$10*YPER4)) -> 0
B103: 1.25 | C103: =E10*YPER5 -> 0 | E103: =IF($E$10=0,0,(YVarExp-(YTotExp+YTotRet-J10))/($E$10*YPER5)) -> 0 | H103: =IF($E$10=0,0,(YTotExp-(YTotExp+YTotRet-J10))/($E$10*YPER5)) -> 0
A105: Developed by Bill Thompson, Assistant Professor and Extension Economist, Texas A&M AgriLife Extension Service, 325-653-4576.
A107: Information presented is prepared solely as a general guide and not intended to recognize or predict the costs and returns from any one operation. Brand names are mentioned only as examples and imply no endorsement.

Sheet CottonDripXF
A1: Projections for Planning Purposes Only -- Not to be Used without Updating
A2: 2021 Estimated Costs and Returns per Acre
A3: Drip Irrigated Cotton, Auxin Technology
A4: Enter your name for this budget in the cell above.
A5: Enter Your Values in the cells highlighed in MAROON.
E6: Your Acres | R6: Your
C7: Crop Acres | D7: 400 | L7: Your | Q7: Enterprise | R7: Enterprise
E8: Your | H8: Your | I8: Cash | J8: Your | K8: Landlord | L8: Landlord | N8: Your | P8: Your | Q8: Total | R8: Total
A9: REVENUE | D9: Quantity | E9: Quantity | F9: Units | G9: $/Unit | H9: $/Unit | I9: Total | J9: Total | K9: Share | L9: Share | M9: Landlord | N9: Landlord | O9: Tenant | P9: Tenant | Q9: (400 acres) | R9: ="(" & E7 & " acres)" -> ( acres)
B10: Cotton Lint | D10: 1326 | F10: Pound | G10: 0.63 | I10: 835.38 | J10: =E10*H10 -> 0 | K10: 0 | M10: 0 | N10: =J10*L10 -> 0 | O10: 835.38 | P10: =+J10-N10 -> 0 | Q10: 334152 | R10: =+J10*E$7 -> 0
B11: Cotton Seed | D11: 0.96 | F11: Ton | G11: 225 | I11: 216 | J11: 0 | K11: 0 | M11: 0 | N11: 0 | O11: 216 | P11: =+J11-N11 -> 0 | Q11: 86400 | R11: 0
D12: 0 | G12: 0 | I12: 0 | J12: 0 | K12: 0 | M12: 0 | N12: 0 | O12: 0 | P12: 0 | Q12: 0 | R12: 0
D13: 0 | G13: 0 | I13: 0 | J13: 0 | K13: 0 | M13: 0 | N13: 0 | O13: 0 | P13: 0 | Q13: 0 | R13: 0
A14: Total Revenue | I14: 1051.38 | J14: =SUM(J10:J13) -> 0 | M14: 0 | N14: =SUM(N10:N13) -> 0 | O14: 1051.38 | P14: =SUM(P10:P13) -> 0 | Q14: 420552 | R14: =SUM(R10:R13) -> 0
Q15: Enterprise | R15: Enterprise
A16: VARIABLE COSTS | D16: Quantity | E16: Quantity | F16: Units | G16: $/Unit | H16: $/Unit | I16: Total | J16: Total | K16: Share | L16: Share | M16: Landlord | N16: Landlord | O16: Tenant | P16: Tenant | Q16: Total | R16: Total
A17: Production Costs
B18: Herbicide
C19: Glyphosate | D19: 96 | F19: Ounce | G19: 0.1328125 | I19: 12.75 | J19: =E19*H19 -> 0 | K19: 0 | M19: 0 | N19: =J19*L19 -> 0 | O19: 12.75 | P19: =+J19-N19 -> 0 | Q19: 5100 | R19: =+J19*E$7 -> 0
C20: 2-4D Amine 4 | D20: 1.25 | F20: Pint | G20: 1.6125 | I20: 2.015625 | J20: 0 | K20: 0 | M20: 0 | N20: 0 | O20: 2.015625 | P20: 0 | Q20: 806.25 | R20: 0
C21: Trifluralin | D21: 1.5 | F21: Pint | G21: 2.75 | I21: 4.125 | J21: 0 | K21: 0 | M21: 0 | N21: 0 | O21: 4.125 | P21: 0 | Q21: 1650 | R21: 0
C22: Caparol | D22: 24 | F22: Ounce | G22: 0.2625 | I22: 6.3 | J22: 0 | K22: 0 | M22: 0 | N22: 0 | O22: 6.3 | P22: 0 | Q22: 2520 | R22: 0
C23: Mepiquat Chloride | D23: 28 | F23: Ounce | G23: 0.0625 | I23: 1.75 | J23: 0 | K23: 0 | M23: 0 | N23: 0 | O23: 1.75 | P23: 0 | Q23: 700 | R23: 0
C24: Outlook | D24: 15 | F24: Ounce | G24: 1.040625 | I24: 15.609375 | J24: 0 | K24: 0 | M24: 0 | N24: 0 | O24: 15.609375 | P24: 0 | Q24: 6243.75 | R24: 0
C25: Auxin based herbicide | D25: 44 | F25: Ounce | G25: 0.5 | I25: 22 | J25: 0 | K25: 0 | M25: 0 | N25: 0 | O25: 22 | P25: 0 | Q25: 8800 | R25: 0
B26: Seed
C27: Seed Cotton - B2 Auxin technology (irr) | D27: 38.5 | F27: Thousand | G27: 1.74 | I27: 66.99 | J27: 0 | K27: 0 | M27: 0 | N27: 0 | O27: 66.99 | P27: 0 | Q27: 26796 | R27: 0
B28: Fertilizer
C29: Nitrogen Dry-Urea | D29: 11 | F29: Pounds | G29: 0.4022 | I29: 4.4242 | J29: 0 | K29: 0 | M29: 0 | N29: 0 | O29: 4.4242 | P29: 0 | Q29: 1769.68 | R29: 0
C30: Phos (11-52-0 DRY MAT) | D30: 58 | F30: Pounds | G30: 0.4519 | I30: 26.2102 | J30: 0 | K30: 0 | M30: 0 | N30: 0 | O30: 26.2102 | P30: 0 | Q30: 10484.08 | R30: 0
C31: Nitrogen N32-liq | D31: 60 | F31: Pounds | G31: 0.3828 | I31: 22.968 | J31: 0 | K31: 0 | M31: 0 | N31: 0 | O31: 22.968 | P31: 0 | Q31: 9187.2 | R31: 0
B32: Custom
C33: Soil Test-Irrigated | D33: 1 | F33: Each | G33: 0.5 | I33: 0.5 | J33: 0 | K33: 0 | M33: 0 | N33: 0 | O33: 0.5 | P33: 0 | Q33: 200 | R33: 0
C34: Gin and Haul | D34: 47.36 | F34: CWT | G34: 2.5 | I34: 118.4 | J34: 0 | K34: 0 | M34: 0 | N34: 0 | O34: 118.4 | P34: 0 | Q34: 47360 | R34: 0
C35: Apply Harvest Aid | D35: 2 | F35: Acre | G35: 7 | I35: 14 | J35: 0 | K35: 0 | M35: 0 | N35: 0 | O35: 14 | P35: 0 | Q35: 5600 | R35: 0
C36: Custom Strip | D36: 1326 | F36: Pounds | G36: 0.11 | I36: 145.86 | J36: 0 | K36: 0 | M36: 0 | N36: 0 | O36: 145.86 | P36: 0 | Q36: 58344 | R36: 0
C37: Custom Bag/Tie | D37: 2.41 | F37: Bales | G37: 5 | I37: 12.05 | J37: 0 | K37: 0 | M37: 0 | N37: 0 | O37: 12.05 | P37: 0 | Q37: 4820 | R37: 0
B38: Miscellaneous
C39: Irr Cotton-RP 70% SE | D39: 1 | F39: Acre | G39: 7.67 | I39: 7.67 | J39: 0 | K39: 0 | M39: 0 | N39: 0 | O39: 7.67 | P39: 0 | Q39: 3068 | R39: 0
C40: Boll Weevil Eradication Program | D40: 2.652 | F40: Bale | G40: 1 | I40: 2.652 | J40: 0 | K40: 0 | M40: 0 | N40: 0 | O40: 2.652 | P40: 0 | Q40: 1060.8 | R40: 0
B41: Other Chemicals
C42: Ethephon 6 | D42: 1.5 | F42: Pint | G42: 3.8125 | I42: 5.71875 | J42: 0 | K42: 0 | M42: 0 | N42: 0 | O42: 5.71875 | P42: 0 | Q42: 2287.5 | R42: 0
C43: Cutout (Adios) | D43: 5 | F43: Ounce | G43: 0.9219 | I43: 4.6095 | J43: 0 | K43: 0 | M43: 0 | N43: 0 | O43: 4.6095 | P43: 0 | Q43: 1843.8 | R43: 0
C44: Paraquat, 3lb (Firestorm) | D44: 28 | F44: Ounce | G44: 0.1796 | I44: 5.0288 | J44: 0 | K44: 0 | M44: 0 | N44: 0 | O44: 5.0288 | P44: 0 | Q44: 2011.52 | R44: 0
B45: Fungicides
C46: Topguard-4lb | D46: 7 | F46: Ounce | G46: 4.6093 | I46: 32.2651 | J46: 0 | K46: 0 | M46: 0 | N46: 0 | O46: 32.2651 | P46: 0 | Q46: 12906.04 | R46: 0
B47: Insecticide
C48: flea hopper Treatment | D48: 1.75 | F48: Ounce | G48: 7.78125 | I48: 13.6171875 | J48: 0 | K48: 0 | M48: 0 | N48: 0 | O48: 13.6171875 | P48: 0 | Q48: 5446.875 | R48: 0
C49: Spider Mite treatment | D49: 3.5 | F49: Dose | G49: 0.34 | I49: 1.19 | J49: 0 | K49: 0 | M49: 0 | N49: 0 | O49: 1.19 | P49: 0 | Q49: 476 | R49: 0
D50: 0 | G50: 0 | I50: 0 | J50: 0 | K50: 0 | M50: 0 | N50: 0 | O50: 0 | P50: 0 | Q50: 0 | R50: 0
D51: 0 | G51: 0 | I51: 0 | J51: 0 | K51: 0 | M51: 0 | N51: 0 | O51: 0 | P51: 0 | Q51: 0 | R51: 0
D52: 0 | G52: 0 | I52: 0 | J52: =E52*H52 -> 0 | K52: 0 | M52: 0 | N52: =J52*L52 -> 0 | O52: 0 | P52: =+J52-N52 -> 0 | Q52: 0 | R52: =+J52*E$7 -> 0
B53: Irrigation
C54: Energy Cost | D54: 18 | F54: AcreInch | G54: 6.024400355 | I54: 108.4392064 | J54: =E54*H54 -> 0 | K54: 0 | M54: 0 | N54: =J54*L54 -> 0 | O54: 108.4392064 | P54: =+J54-N54 -> 0 | Q54: 43375.68256 | R54: =+J54*E$7 -> 0
C55: Irrigation Labor | D55: 0.8 | F55: Hour | G55: 15 | I55: 12 | J55: 0 | K55: 0 | M55: 0 | N55: 0 | O55: 12 | P55: 0 | Q55: 4800 | R55: 0
B56: Machinery Labor
C57: Tractors/Self-Propelled | D57: 0.71 | F57: Hour | G57: 15 | I57: 10.65 | J57: =E57*H57 -> 0 | K57: 0 | M57: 0 | N57: =J57*L57 -> 0 | O57: 10.65 | P57: =+J57-N57 -> 0 | Q57: 4260 | R57: =+J57*E$7 -> 0
C58: Other Labor | D58: 0.19 | F58: Hour | G58: 15 | I58: 2.85 | J58: =E58*H58 -> 0 | K58: 0 | M58: 0 | N58: =J58*L58 -> 0 | O58: 2.85 | P58: =+J58-N58 -> 0 | Q58: 1140 | R58: =+J58*E$7 -> 0
B60: Diesel Fuel
C61: Pickup/General Use Equipment | D61: 1 | F61: Acre | G61: 0 | I61: 0 | J61: =E61*H61 -> 0 | K61: 0 | M61: 0 | N61: =J61*L61 -> 0 | O61: 0 | P61: =+J61-N61 -> 0 | Q61: 0 | R61: =+J61*E$7 -> 0
C62: Tractors/Self-Propelled | D62: 6.85 | F62: Gallon | G62: 1.5 | I62: 10.275 | J62: =E62*H62 -> 0 | K62: 0 | M62: 0 | N62: =J62*L62 -> 0 | O62: 10.275 | P62: =+J62-N62 -> 0 | Q62: 4110 | R62: =+J62*E$7 -> 0
B64: Gasoline
C65: Pickup/General Use Equipment | D65: 1 | F65: Acre | G65: 1.5336 | I65: 1.5336 | J65: =E65*H65 -> 0 | K65: 0 | M65: 0 | N65: =J65*L65 -> 0 | O65: 1.5336 | P65: =+J65-N65 -> 0 | Q65: 613.44 | R65: =+J65*E$7 -> 0
C66: Tractors/Self-Propelled | D66: 0 | F66: Gallon | G66: 1.8 | I66: 0 | J66: =E66*H66 -> 0 | K66: 0 | M66: 0 | N66: =J66*L66 -> 0 | O66: 0 | P66: =+J66-N66 -> 0 | Q66: 0 | R66: =+J66*E$7 -> 0
B68: Repairs & Maintenance
C69: Pickup/General Use Equipment | D69: 1 | F69: Acre | G69: 0.82125 | I69: 0.82125 | J69: =E69*H69 -> 0 | K69: 0 | M69: 0 | N69: =J69*L69 -> 0 | O69: 0.82125 | P69: =+J69-N69 -> 0 | Q69: 328.5 | R69: =+J69*E$7 -> 0
C70: Irrigation Equipment | D70: 1 | F70: Acre | G70: 5.5008 | I70: 5.5008 | J70: 0 | K70: 0 | M70: 0 | N70: 0 | O70: 5.5008 | P70: 0 | Q70: 2200.32 | R70: 0
C71: Tractors/Self-Propelled | D71: 1 | F71: Acre | G71: 16.16948082 | I71: 16.16948082 | J71: 0 | K71: 0 | M71: 0 | N71: 0 | O71: 16.16948082 | P71: 0 | Q71: 6467.79233 | R71: 0
C72: Implements | D72: 1 | F72: Acre | G72: 10.0587616 | I72: 10.0587616 | J72: 0 | K72: 0 | M72: 0 | N72: 0 | O72: 10.0587616 | P72: 0 | Q72: 4023.504641 | R72: 0
I73: 0 | J73: 0 | K73: 0 | M73: 0 | N73: 0 | O73: 0 | P73: 0 | Q73: 0 | R73: 0
I74: 0 | J74: 0 | K74: 0 | M74: 0 | N74: 0 | O74: 0 | P74: 0 | Q74: 0 | R74: 0
B75: Interest on Credit Line | G75: 0.0455 | I75: 9.819495865 | J75: =+SUM(J18:J74)/2*H75 -> 0 | M75: 0 | N75: =+SUM(N18:N74)/2*L75 -> 0 | O75: 9.819495865 | P75: =+SUM(P18:P74)/2*L75 -> 0 | Q75: 3927.798346 | R75: =+J75*E$7 -> 0
A76: Total Variable Costs | I76: 736.8213322 | J76: =SUM(J19:J75) -> 0 | M76: 0 | N76: =SUM(N19:N75) -> 0 | O76: 736.8213322 | P76: =SUM(P19:P75) -> 0 | Q76: 294728.5329 | R76: =SUM(R19:R75) -> 0
A77: Planned Returns Above Variable Costs: | I77: 314.5586678 | J77: =+J14-J76 -> 0 | M77: 0 | N77: =+N14-N76 -> 0 | O77: 314.5586678 | P77: =+P14-P76 -> 0 | Q77: 125823.4671 | R77: =+R14-R76 -> 0
B78: Breakeven Price to Cover Variable Costs | G78: 0.3927762686 | H78: =IF(E10=0,"n/a",(YVarExp-(YTotExp+YTotRet-J10))/E10) -> n/a | I78: Pound
Q79: Enterprise | R79: Enterprise
A80: FIXED COSTS | D80: Quantity | E80: Quantity | F80: Units | G80: $/Unit | H80: $/Unit | I80: Total | J80: Total | K80: Share | L80: Share | M80: Landlord | N80: Landlord | O80: Tenant | P80: Tenant | Q80: Total | R80: Total
B81: Machinery Depreciation
C82: Pickup/General Use Equipment | D82: 1 | F82: Acre | G82: 1.7415 | I82: 1.7415 | J82: =E82*H82 -> 0 | K82: 0 | M82: 0 | N82: =J82*L82 -> 0 | O82: 1.7415 | P82: =+J82-N82 -> 0 | Q82: 696.6 | R82: =+J82*E$7 -> 0
C83: Irrigation Equipment | D83: 1 | F83: Acre | G83: 54.45 | I83: 54.45 | J83: 0 | K83: 0 | M83: 0 | N83: =J83*L83 -> 0 | O83: 54.45 | P83: 0 | Q83: 21780 | R83: 0
C84: Tractors/Self-Propelled | D84: 1 | F84: Acre | G84: 23.14335423 | I84: 23.14335423 | J84: 0 | K84: 0 | M84: 0 | N84: =J84*L84 -> 0 | O84: 23.14335423 | P84: 0 | Q84: 9257.341692 | R84: 0
C85: Implements | D85: 1 | F85: Acre | G85: 13.04991457 | I85: 13.04991457 | J85: 0 | K85: 0 | M85: 0 | N85: =J85*L85 -> 0 | O85: 13.04991457 | P85: 0 | Q85: 5219.96583 | R85: 0
B86: Equipment Investment
C87: Pickup/General Use Equipment | D87: 9.6525 | F87: Dollars | G87: 0.055 | I87: 0.5308875 | J87: =E87*H87 -> 0 | K87: 0 | M87: 0 | N87: =J87*L87 -> 0 | O87: 0.5308875 | P87: =+J87-N87 -> 0 | Q87: 212.355 | R87: =+J87*E$7 -> 0
C88: Irrigation Equipment | D88: 555.5 | F88: Dollars | G88: 0.055 | I88: 30.5525 | J88: 0 | K88: 0 | M88: 0 | N88: =J88*L88 -> 0 | O88: 30.5525 | P88: 0 | Q88: 12221 | R88: 0
C89: Tractors/Self-Propelled | D89: 177.2674626 | F89: Dollars | G89: 0.055 | I89: 9.749710444 | J89: 0 | K89: 0 | M89: 0 | N89: =J89*L89 -> 0 | O89: 9.749710444 | P89: 0 | Q89: 3899.884178 | R89: 0
C90: Implements | D90: 56.21173561 | F90: Dollars | G90: 0.055 | I90: 3.091645458 | J90: 0 | K90: 0 | M90: 0 | N90: =J90*L90 -> 0 | O90: 3.091645458 | P90: 0 | Q90: 1236.658183 | R90: 0
B91: Salaried Labor | D91: 1 | F91: Acre | G91: 0 | I91: 0 | J91: 0 | K91: 0 | M91: 0 | N91: =J91*L91 -> 0 | O91: 0 | P91: =+J91-N91 -> 0 | Q91: 0 | R91: =+J91*E$7 -> 0
B92: Management Fee, Owner/Operator Labor | D92: 1 | F92: Acre | G92: 0 | I92: 0 | J92: 0 | K92: 0 | M92: 0 | N92: 0 | O92: 0 | P92: 0 | Q92: 0 | R92: 0
B93: Allocated Establishment Cost | D93: 1 | F93: Acre | G93: 0 | I93: 0 | J93: 0 | K93: 0 | M93: 0 | N93: 0 | O93: 0 | P93: 0 | Q93: 0 | R93: 0
B94: Rent-Irrigated Crop | D94: 1 | F94: Acre | G94: 70 | I94: 70 | J94: 0 | K94: 0 | M94: 0 | N94: 0 | O94: 70 | P94: 0 | Q94: 28000 | R94: 0
B95: Property Taxes | D95: 1 | F95: Acre | G95: 0 | I95: 0 | J95: 0 | K95: 0 | M95: 0 | N95: 0 | O95: 0 | P95: 0 | Q95: 0 | R95: 0
B96: Whole Farm Insurance | D96: 1 | F96: Acre | G96: 0 | I96: 0 | J96: 0 | K96: 0 | M96: 0 | N96: 0 | O96: 0 | P96: 0 | Q96: 0 | R96: 0
D97: 1 | G97: 0 | I97: 0 | J97: 0 | K97: 0 | M97: 0 | N97: 0 | O97: 0 | P97: 0 | Q97: 0 | R97: 0
D98: 1 | G98: 0 | I98: 0 | J98: =E98*H98 -> 0 | K98: 0 | M98: 0 | N98: 0 | O98: 0 | P98: 0 | Q98: 0 | R98: 0
A99: Total Fixed Costs | I99: 206.3095122 | J99: =+SUM(J82:J98) -> 0 | M99: 0 | N99: =+SUM(N82:N98) -> 0 | O99: 206.3095122 | P99: =+SUM(P82:P98) -> 0 | Q99: 82523.80488 | R99: =+SUM(R82:R98) -> 0
A100: Total Specified Costs | I100: 943.1308444 | J100: =+J76+J99 -> 0 | M100: 0 | N100: =+N76+N99 -> 0 | O100: 943.1308444 | P100: =+P76+P99 -> 0 | Q100: 377252.3378 | R100: =+R76+R99 -> 0
A102: Returns Above Specified Costs | I102: 108.2491556 | J102: =+J14-J100 -> 0 | M102: 0 | N102: =+N14-N100 -> 0 | O102: 108.2491556 | P102: =+P14-P100 -> 0 | Q102: 43299.66224 | R102: =+R14-R100 -> 0
A104: Breakeven Price to Cover Total Costs | G104: 0.548364136 | H104: =IF(E10=0,"n/a",(YTotExp-(YTotExp+YTotRet-J10))/E10) -> n/a | I104: Pound
D106: Example Breakeven Prices
B107: Example | C107: Example | D107: To Cover | G107: To Cover
B108: Yield | C108: Yield | D108: Variable | G108: Total
B109: Percent | C109: Pound | D109: Costs | G109: Costs
B110: 0.75 | C110: 994.5 | D110: 0.5237016915 | G110: 0.7311521814
B111: 0.9 | C111: 1193.4 | D111: 0.4364180762 | G111: 0.6092934845
B112: 1 | C112: 1326 | D112: 0.3927762686 | G112: 0.548364136
B113: 1.1 | C113: 1458.6 | D113: 0.3570693351 | G113: 0.4985128509
B114: 1.25 | C114: 1657.5 | D114: 0.3142210149 | G114: 0.4386913088
D116: Your Breakeven Prices
B117: Your | C117: Your | E117: To Cover | H117: To Cover
B118: Yield | C118: Yield | E118: Variable | H118: Total
B119: Percent | C119: Pound | E119: Costs | H119: Costs
B120: 0.75 | C120: =E10*YPER1 -> 0 | E120: =IF($E$10=0,0,(YVarExp-(YTotExp+YTotRet-J10))/($E$10*YPER1)) -> 0 | H120: =IF($E$10=0,0,(YTotExp-(YTotExp+YTotRet-J10))/($E$10*YPER1)) -> 0
B121: 0.9 | C121: =E10*YPER2 -> 0 | E121: =IF($E$10=0,0,(YVarExp-(YTotExp+YTotRet-J10))/($E$10*YPER2)) -> 0 | H121: =IF($E$10=0,0,(YTotExp-(YTotExp+YTotRet-J10))/($E$10*YPER2)) -> 0
B122: 1 | C122: =+E10 -> 0 | E122: =IF($E$10=0,0,(YVarExp-(YTotExp+YTotRet-J10))/($E$10*YPER3)) -> 0 | H122: =IF($E$10=0,0,(YTotExp-(YTotExp+YTotRet-J10))/($E$10*YPER3)) -> 0
B123: 1.1 | C123: =E10*YPER4 -> 0 | E123: =IF($E$10=0,0,(YVarExp-(YTotExp+YTotRet-J10))/($E$10*YPER4)) -> 0 | H123: =IF($E$10=0,0,(YTotExp-(YTotExp+YTotRet-J10))/($E$10*YPER4)) -> 0
B124: 1.25 | C124: =E10*YPER5 -> 0 | E124: =IF($E$10=0,0,(YVarExp-(YTotExp+YTotRet-J10))/($E$10*YPER5)) -> 0 | H124: =IF($E$10=0,0,(YTotExp-(YTotExp+YTotRet-J10))/($E$10*YPER5)) -> 0
A126: Developed by Bill Thompson, Assistant Professor and Extension Economist, Texas A&M AgriLife Extension Service, 325-653-4576.
A128: Information presented is prepared solely as a general guide and not intended to recognize or predict the costs and returns from any one operation. Brand names are mentioned only as examples and imply no endorsement.

Sheet CottonDripRF
A1: Projections for Planning Purposes Only -- Not to be Used without Updating
A2: 2021 Estimated Costs and Returns per Acre
A3: Drip Irrigated Cotton, RF
A4: Enter your name for this budget in the cell above.
A5: Enter Your Values in the cells highlighed in MAROON.
E6: Your Acres | R6: Your
C7: Crop Acres | D7: 400 | L7: Your | Q7: Enterprise | R7: Enterprise
E8: Your | H8: Your | I8: Cash | J8: Your | K8: Landlord | L8: Landlord | N8: Your | P8: Your | Q8: Total | R8: Total
A9: REVENUE | D9: Quantity | E9: Quantity | F9: Units | G9: $/Unit | H9: $/Unit | I9: Total | J9: Total | K9: Share | L9: Share | M9: Landlord | N9: Landlord | O9: Tenant | P9: Tenant | Q9: (400 acres) | R9: ="(" & E7 & " acres)" -> ( acres)
B10: Cotton Lint | D10: 1326 | F10: Pound | G10: 0.63 | I10: 835.38 | J10: =E10*H10 -> 0 | K10: 0 | M10: 0 | N10: =J10*L10 -> 0 | O10: 835.38 | P10: =+J10-N10 -> 0 | Q10: 334152 | R10: =+J10*E$7 -> 0
B11: Cotton Seed | D11: 0.96 | F11: Ton | G11: 225 | I11: 216 | J11: 0 | K11: 0 | M11: 0 | N11: 0 | O11: 216 | P11: =+J11-N11 -> 0 | Q11: 86400 | R11: 0
D12: 0 | G12: 0 | I12: 0 | J12: 0 | K12: 0 | M12: 0 | N12: 0 | O12: 0 | P12: 0 | Q12: 0 | R12: 0
D13: 0 | G13: 0 | I13: 0 | J13: 0 | K13: 0 | M13: 0 | N13: 0 | O13: 0 | P13: 0 | Q13: 0 | R13: 0
A14: Total Revenue | I14: 1051.38 | J14: =SUM(J10:J13) -> 0 | M14: 0 | N14: =SUM(N10:N13) -> 0 | O14: 1051.38 | P14: =SUM(P10:P13) -> 0 | Q14: 420552 | R14: =SUM(R10:R13) -> 0
Q15: Enterprise | R15: Enterprise
A16: VARIABLE COSTS | D16: Quantity | E16: Quantity | F16: Units | G16: $/Unit | H16: $/Unit | I16: Total | J16: Total | K16: Share | L16: Share | M16: Landlord | N16: Landlord | O16: Tenant | P16: Tenant | Q16: Total | R16: Total
A17: Production Costs
B18: Herbicide
C19: Glyphosate | D19: 96 | F19: Ounce | G19: 0.1328125 | I19: 12.75 | J19: =E19*H19 -> 0 | K19: 0 | M19: 0 | N19: =J19*L19 -> 0 | O19: 12.75 | P19: =+J19-N19 -> 0 | Q19: 5100 | R19: =+J19*E$7 -> 0
C20: 2-4D Amine 4 | D20: 1.25 | F20: Pint | G20: 1.6125 | I20: 2.015625 | J20: 0 | K20: 0 | M20: 0 | N20: 0 | O20: 2.015625 | P20: 0 | Q20: 806.25 | R20: 0
C21: Trifluralin | D21: 1.5 | F21: Pint | G21: 2.75 | I21: 4.125 | J21: 0 | K21: 0 | M21: 0 | N21: 0 | O21: 4.125 | P21: 0 | Q21: 1650 | R21: 0
C22: Caparol | D22: 24 | F22: Ounce | G22: 0.2625 | I22: 6.3 | J22: 0 | K22: 0 | M22: 0 | N22: 0 | O22: 6.3 | P22: 0 | Q22: 2520 | R22: 0
C23: Mepiquat Chloride | D23: 28 | F23: Ounce | G23: 0.0625 | I23: 1.75 | J23: 0 | K23: 0 | M23: 0 | N23: 0 | O23: 1.75 | P23: 0 | Q23: 700 | R23: 0
C24: Outlook | D24: 15 | F24: Ounce | G24: 1.040625 | I24: 15.609375 | J24: 0 | K24: 0 | M24: 0 | N24: 0 | O24: 15.609375 | P24: 0 | Q24: 6243.75 | R24: 0
B25: Seed
C26: Seed Cotton - B2RF (Irrigated) | D26: 38.5 | F26: Thousand | G26: 1.65217 | I26: 63.608545 | J26: 0 | K26: 0 | M26: 0 | N26: 0 | O26: 63.608545 | P26: 0 | Q26: 25443.418 | R26: 0
B27: Fertilizer
C28: Nitrogen Dry-Urea | D28: 11 | F28: Pounds | G28: 0.4022 | I28: 4.4242 | J28: 0 | K28: 0 | M28: 0 | N28: 0 | O28: 4.4242 | P28: 0 | Q28: 1769.68 | R28: 0
C29: Phos (11-52-0 DRY MAT) | D29: 58 | F29: Pounds | G29: 0.4519 | I29: 26.2102 | J29: 0 | K29: 0 | M29: 0 | N29: 0 | O29: 26.2102 | P29: 0 | Q29: 10484.08 | R29: 0
C30: Nitrogen N32-liq | D30: 60 | F30: Pounds | G30: 0.3828 | I30: 22.968 | J30: 0 | K30: 0 | M30: 0 | N30: 0 | O30: 22.968 | P30: 0 | Q30: 9187.2 | R30: 0
B31: Custom
C32: Soil Test-Irrigated | D32: 1 | F32: Each | G32: 0.5 | I32: 0.5 | J32: 0 | K32: 0 | M32: 0 | N32: 0 | O32: 0.5 | P32: 0 | Q32: 200 | R32: 0
C33: Gin and Haul | D33: 47.36 | F33: CWT | G33: 2.5 | I33: 118.4 | J33: 0 | K33: 0 | M33: 0 | N33: 0 | O33: 118.4 | P33: 0 | Q33: 47360 | R33: 0
C34: Apply Harvest Aid | D34: 2 | F34: Acre | G34: 7 | I34: 14 | J34: 0 | K34: 0 | M34: 0 | N34: 0 | O34: 14 | P34: 0 | Q34: 5600 | R34: 0
C35: Custom Strip | D35: 1326 | F35: Pounds | G35: 0.11 | I35: 145.86 | J35: 0 | K35: 0 | M35: 0 | N35: 0 | O35: 145.86 | P35: 0 | Q35: 58344 | R35: 0
C36: Custom Bag/Tie | D36: 2.41 | F36: Bales | G36: 5 | I36: 12.05 | J36: 0 | K36: 0 | M36: 0 | N36: 0 | O36: 12.05 | P36: 0 | Q36: 4820 | R36: 0
B37: Miscellaneous
C38: Boll Weevil Eradication Program | D38: 2.652 | F38: Bale | G38: 1 | I38: 2.652 | J38: 0 | K38: 0 | M38: 0 | N38: 0 | O38: 2.652 | P38: 0 | Q38: 1060.8 | R38: 0
C39: Irr Cotton-RP 70% SE | D39: 1 | F39: Acre | G39: 7.67 | I39: 7.67 | J39: 0 | K39: 0 | M39: 0 | N39: 0 | O39: 7.67 | P39: 0 | Q39: 3068 | R39: 0
B40: Other Chemicals
C41: Ethephon 6 | D41: 1.5 | F41: Pint | G41: 3.8125 | I41: 5.71875 | J41: 0 | K41: 0 | M41: 0 | N41: 0 | O41: 5.71875 | P41: 0 | Q41: 2287.5 | R41: 0
C42: Cutout (Adios) | D42: 5 | F42: Ounce | G42: 0.9219 | I42: 4.6095 | J42: 0 | K42: 0 | M42: 0 | N42: 0 | O42: 4.6095 | P42: 0 | Q42: 1843.8 | R42: 0
C43: Paraquat, 3lb (Firestorm) | D43: 28 | F43: Ounce | G43: 0.1796 | I43: 5.0288 | J43: 0 | K43: 0 | M43: 0 | N43: 0 | O43: 5.0288 | P43: 0 | Q43: 2011.52 | R43: 0
B44: Fungicides
C45: Topguard Terra (4lb) | D45: 7 | F45: Ounce | G45: 4.6093 | I45: 32.2651 | J45: 0 | K45: 0 | M45: 0 | N45: 0 | O45: 32.2651 | P45: 0 | Q45: 12906.04 | R45: 0
B46: Insecticide
C47: flea hopper Treatment | D47: 1 | F47: Ounce | G47: 7.78125 | I47: 7.78125 | J47: 0 | K47: 0 | M47: 0 | N47: 0 | O47: 7.78125 | P47: 0 | Q47: 3112.5 | R47: 0
C48: Spider Mite treatment | D48: 1.5 | F48: Dose | G48: 0.34 | I48: 0.51 | J48: 0 | K48: 0 | M48: 0 | N48: 0 | O48: 0.51 | P48: 0 | Q48: 204 | R48: 0
D49: 0 | G49: 0 | I49: 0 | J49: 0 | K49: 0 | M49: 0 | N49: 0 | O49: 0 | P49: 0 | Q49: 0 | R49: 0
D50: 0 | G50: 0 | I50: 0 | J50: 0 | K50: 0 | M50: 0 | N50: 0 | O50: 0 | P50: 0 | Q50: 0 | R50: 0
D51: 0 | G51: 0 | I51: 0 | J51: =E51*H51 -> 0 | K51: 0 | M51: 0 | N51: =J51*L51 -> 0 | O51: 0 | P51: =+J51-N51 -> 0 | Q51: 0 | R51: =+J51*E$7 -> 0
B52: Irrigation
C53: Energy Cost | D53: 18 | F53: AcreInch | G53: 6.024400355 | I53: 108.4392064 | J53: =E53*H53 -> 0 | K53: 0 | M53: 0 | N53: =J53*L53 -> 0 | O53: 108.4392064 | P53: =+J53-N53 -> 0 | Q53: 43375.68256 | R53: =+J53*E$7 -> 0
C54: Irrigation Labor | D54: 0.8 | F54: Hour | G54: 15 | I54: 12 | J54: 0 | K54: 0 | M54: 0 | N54: 0 | O54: 12 | P54: 0 | Q54: 4800 | R54: 0
B55: Machinery Labor
C56: Tractors/Self-Propelled | D56: 0.71 | F56: Hour | G56: 15 | I56: 10.65 | J56: =E56*H56 -> 0 | K56: 0 | M56: 0 | N56: =J56*L56 -> 0 | O56: 10.65 | P56: =+J56-N56 -> 0 | Q56: 4260 | R56: =+J56*E$7 -> 0
C57: Other Labor | D57: 0.19 | F57: Hour | G57: 15 | I57: 2.85 | J57: =E57*H57 -> 0 | K57: 0 | M57: 0 | N57: =J57*L57 -> 0 | O57: 2.85 | P57: =+J57-N57 -> 0 | Q57: 1140 | R57: =+J57*E$7 -> 0
B59: Diesel Fuel
C60: Pickup/General Use Equipment | D60: 1 | F60: Acre | G60: 0 | I60: 0 | J60: =E60*H60 -> 0 | K60: 0 | M60: 0 | N60: =J60*L60 -> 0 | O60: 0 | P60: =+J60-N60 -> 0 | Q60: 0 | R60: =+J60*E$7 -> 0
C61: Tractors/Self-Propelled | D61: 6.85 | F61: Gallon | G61: 1.5 | I61: 10.275 | J61: =E61*H61 -> 0 | K61: 0 | M61: 0 | N61: =J61*L61 -> 0 | O61: 10.275 | P61: =+J61-N61 -> 0 | Q61: 4110 | R61: =+J61*E$7 -> 0
B63: Gasoline
C64: Pickup/General Use Equipment | D64: 1 | F64: Acre | G64: 1.5336 | I64: 1.5336 | J64: =E64*H64 -> 0 | K64: 0 | M64: 0 | N64: =J64*L64 -> 0 | O64: 1.5336 | P64: =+J64-N64 -> 0 | Q64: 613.44 | R64: =+J64*E$7 -> 0
C65: Tractors/Self-Propelled | D65: 0 | F65: Gallon | G65: 1.8 | I65: 0 | J65: =E65*H65 -> 0 | K65: 0 | M65: 0 | N65: =J65*L65 -> 0 | O65: 0 | P65: =+J65-N65 -> 0 | Q65: 0 | R65: =+J65*E$7 -> 0
B67: Repairs & Maintenance
C68: Pickup/General Use Equipment | D68: 1 | F68: Acre | G68: 0.82125 | I68: 0.82125 | J68: =E68*H68 -> 0 | K68: 0 | M68: 0 | N68: =J68*L68 -> 0 | O68: 0.82125 | P68: =+J68-N68 -> 0 | Q68: 328.5 | R68: =+J68*E$7 -> 0
C69: Irrigation Equipment | D69: 1 | F69: Acre | G69: 5.5008 | I69: 5.5008 | J69: 0 | K69: 0 | M69: 0 | N69: 0 | O69: 5.5008 | P69: 0 | Q69: 2200.32 | R69: 0
C70: Tractors/Self-Propelled | D70: 1 | F70: Acre | G70: 16.16948082 | I70: 16.16948082 | J70: 0 | K70: 0 | M70: 0 | N70: 0 | O70: 16.16948082 | P70: 0 | Q70: 6467.79233 | R70: 0
C71: Implements | D71: 1 | F71: Acre | G71: 10.0587616 | I71: 10.0587616 | J71: 0 | K71: 0 | M71: 0 | N71: 0 | O71: 10.0587616 | P71: 0 | Q71: 4023.504641 | R71: 0
I72: 0 | J72: 0 | K72: 0 | M72: 0 | N72: 0 | O72: 0 | P72: 0 | Q72: 0 | R72: 0
I73: 0 | J73: 0 | K73: 0 | M73: 0 | N73: 0 | O73: 0 | P73: 0 | Q73: 0 | R73: 0
B74: Interest on Credit Line | G74: 0.0455 | I74: 9.25527745 | J74: =+SUM(J18:J73)/2*H74 -> 0 | M74: 0 | N74: =+SUM(N18:N73)/2*L74 -> 0 | O74: 9.25527745 | P74: =+SUM(P18:P73)/2*L74 -> 0 | Q74: 3702.11098 | R74: =+J74*E$7 -> 0
A75: Total Variable Costs | I75: 704.3597213 | J75: =SUM(J19:J74) -> 0 | M75: 0 | N75: =SUM(N19:N74) -> 0 | O75: 704.3597213 | P75: =SUM(P19:P74) -> 0 | Q75: 281743.8885 | R75: =SUM(R19:R74) -> 0
A76: Planned Returns Above Variable Costs: | I76: 347.0202787 | J76: =+J14-J75 -> 0 | M76: 0 | N76: =+N14-N75 -> 0 | O76: 347.0202787 | P76: =+P14-P75 -> 0 | Q76: 138808.1115 | R76: =+R14-R75 -> 0
B77: Breakeven Price to Cover Variable Costs | G77: 0.3682954157 | H77: =IF(E10=0,"n/a",(YVarExp-(YTotExp+YTotRet-J10))/E10) -> n/a | I77: Pound
Q78: Enterprise | R78: Enterprise
A79: FIXED COSTS | D79: Quantity | E79: Quantity | F79: Units | G79: $/Unit | H79: $/Unit | I79: Total | J79: Total | K79: Share | L79: Share | M79: Landlord | N79: Landlord | O79: Tenant | P79: Tenant | Q79: Total | R79: Total
B80: Machinery Depreciation
C81: Pickup/General Use Equipment | D81: 1 | F81: Acre | G81: 1.7415 | I81: 1.7415 | J81: =E81*H81 -> 0 | K81: 0 | M81: 0 | N81: =J81*L81 -> 0 | O81: 1.7415 | P81: =+J81-N81 -> 0 | Q81: 696.6 | R81: =+J81*E$7 -> 0
C82: Irrigation Equipment | D82: 1 | F82: Acre | G82: 54.45 | I82: 54.45 | J82: 0 | K82: 0 | M82: 0 | N82: =J82*L82 -> 0 | O82: 54.45 | P82: 0 | Q82: 21780 | R82: 0
C83: Tractors/Self-Propelled | D83: 1 | F83: Acre | G83: 23.14335423 | I83: 23.14335423 | J83: 0 | K83: 0 | M83: 0 | N83: =J83*L83 -> 0 | O83: 23.14335423 | P83: 0 | Q83: 9257.341692 | R83: 0
C84: Implements | D84: 1 | F84: Acre | G84: 13.04991457 | I84: 13.04991457 | J84: 0 | K84: 0 | M84: 0 | N84: =J84*L84 -> 0 | O84: 13.04991457 | P84: 0 | Q84: 5219.96583 | R84: 0
B85: Equipment Investment
C86: Pickup/General Use Equipment | D86: 9.6525 | F86: Dollars | G86: 0.055 | I86: 0.5308875 | J86: =E86*H86 -> 0 | K86: 0 | M86: 0 | N86: =J86*L86 -> 0 | O86: 0.5308875 | P86: =+J86-N86 -> 0 | Q86: 212.355 | R86: =+J86*E$7 -> 0
C87: Irrigation Equipment | D87: 555.5 | F87: Dollars | G87: 0.055 | I87: 30.5525 | J87: 0 | K87: 0 | M87: 0 | N87: =J87*L87 -> 0 | O87: 30.5525 | P87: 0 | Q87: 12221 | R87: 0
C88: Tractors/Self-Propelled | D88: 177.2674626 | F88: Dollars | G88: 0.055 | I88: 9.749710444 | J88: 0 | K88: 0 | M88: 0 | N88: =J88*L88 -> 0 | O88: 9.749710444 | P88: 0 | Q88: 3899.884178 | R88: 0
C89: Implements | D89: 56.21173561 | F89: Dollars | G89: 0.055 | I89: 3.091645458 | J89: 0 | K89: 0 | M89: 0 | N89: =J89*L89 -> 0 | O89: 3.091645458 | P89: 0 | Q89: 1236.658183 | R89: 0
B90: Salaried Labor | D90: 1 | F90: Acre | G90: 0 | I90: 0 | J90: 0 | K90: 0 | M90: 0 | N90: =J90*L90 -> 0 | O90: 0 | P90: =+J90-N90 -> 0 | Q90: 0 | R90: =+J90*E$7 -> 0
B91: Management Fee, Owner/Operator Labor | D91: 1 | F91: Acre | G91: 0 | I91: 0 | J91: 0 | K91: 0 | M91: 0 | N91: 0 | O91: 0 | P91: 0 | Q91: 0 | R91: 0
B92: Allocated Establishment Cost | D92: 1 | F92: Acre | G92: 0 | I92: 0 | J92: 0 | K92: 0 | M92: 0 | N92: 0 | O92: 0 | P92: 0 | Q92: 0 | R92: 0
B93: Rent-Irrigated Crop | D93: 1 | F93: Acre | G93: 70 | I93: 70 | J93: 0 | K93: 0 | M93: 0 | N93: 0 | O93: 70 | P93: 0 | Q93: 28000 | R93: 0
B94: Property Taxes | D94: 1 | F94: Acre | G94: 0 | I94: 0 | J94: 0 | K94: 0 | M94: 0 | N94: 0 | O94: 0 | P94: 0 | Q94: 0 | R94: 0
B95: Whole Farm Insurance | D95: 1 | F95: Acre | G95: 0 | I95: 0 | J95: 0 | K95: 0 | M95: 0 | N95: 0 | O95: 0 | P95: 0 | Q95: 0 | R95: 0
D96: 1 | G96: 0 | I96: 0 | J96: 0 | K96: 0 | M96: 0 | N96: 0 | O96: 0 | P96: 0 | Q96: 0 | R96: 0
D97: 1 | G97: 0 | I97: 0 | J97: =E97*H97 -> 0 | K97: 0 | M97: 0 | N97: 0 | O97: 0 | P97: 0 | Q97: 0 | R97: 0
A98: Total Fixed Costs | I98: 206.3095122 | J98: =+SUM(J81:J97) -> 0 | M98: 0 | N98: =+SUM(N81:N97) -> 0 | O98: 206.3095122 | P98: =+SUM(P81:P97) -> 0 | Q98: 82523.80488 | R98: =+SUM(R81:R97) -> 0
A99: Total Specified Costs | I99: 910.6692335 | J99: =+J75+J98 -> 0 | M99: 0 | N99: =+N75+N98 -> 0 | O99: 910.6692335 | P99: =+P75+P98 -> 0 | Q99: 364267.6934 | R99: =+R75+R98 -> 0
A101: Returns Above Specified Costs | I101: 140.7107665 | J101: =+J14-J99 -> 0 | M101: 0 | N101: =+N14-N99 -> 0 | O101: 140.7107665 | P101: =+P14-P99 -> 0 | Q101: 56284.30661 | R101: =+R14-R99 -> 0
A103: Breakeven Price to Cover Total Costs | G103: 0.5238832832 | H103: =IF(E10=0,"n/a",(YTotExp-(YTotExp+YTotRet-J10))/E10) -> n/a | I103: Pound
D105: Example Breakeven Prices
B106: Example | C106: Example | D106: To Cover | G106: To Cover
B107: Yield | C107: Yield | D107: Variable | G107: Total
B108: Percent | C108: Pound | D108: Costs | G108: Costs
B109: 0.75 | C109: 994.5 | D109: 0.4910605543 | G109: 0.6985110442
B110: 0.9 | C110: 1193.4 | D110: 0.4092171286 | G110: 0.5820925368
B111: 1 | C111: 1326 | D111: 0.3682954157 | G111: 0.5238832832
B112: 1.1 | C112: 1458.6 | D112: 0.3348140143 | G112: 0.4762575301
B113: 1.25 | C113: 1657.5 | D113: 0.2946363326 | G113: 0.4191066265
D115: Your Breakeven Prices
B116: Your | C116: Your | E116: To Cover | H116: To Cover
B117: Yield | C117: Yield | E117: Variable | H117: Total
B118: Percent | C118: Pound | E118: Costs | H118: Costs
B119: 0.75 | C119: =E10*YPER1 -> 0 | E119: =IF($E$10=0,0,(YVarExp-(YTotExp+YTotRet-J10))/($E$10*YPER1)) -> 0 | H119: =IF($E$10=0,0,(YTotExp-(YTotExp+YTotRet-J10))/($E$10*YPER1)) -> 0
B120: 0.9 | C120: =E10*YPER2 -> 0 | E120: =IF($E$10=0,0,(YVarExp-(YTotExp+YTotRet-J10))/($E$10*YPER2)) -> 0 | H120: =IF($E$10=0,0,(YTotExp-(YTotExp+YTotRet-J10))/($E$10*YPER2)) -> 0
B121: 1 | C121: =+E10 -> 0 | E121: =IF($E$10=0,0,(YVarExp-(YTotExp+YTotRet-J10))/($E$10*YPER3)) -> 0 | H121: =IF($E$10=0,0,(YTotExp-(YTotExp+YTotRet-J10))/($E$10*YPER3)) -> 0
B122: 1.1 | C122: =E10*YPER4 -> 0 | E122: =IF($E$10=0,0,(YVarExp-(YTotExp+YTotRet-J10))/($E$10*YPER4)) -> 0 | H122: =IF($E$10=0,0,(YTotExp-(YTotExp+YTotRet-J10))/($E$10*YPER4)) -> 0
B123: 1.25 | C123: =E10*YPER5 -> 0 | E123: =IF($E$10=0,0,(YVarExp-(YTotExp+YTotRet-J10))/($E$10*YPER5)) -> 0 | H123: =IF($E$10=0,0,(YTotExp-(YTotExp+YTotRet-J10))/($E$10*YPER5)) -> 0
A125: Developed by Bill Thompson, Assistant Professor and Extension Economist, Texas A&M AgriLife Extension Service, 325-653-4576.
A127: Information presented is prepared solely as a general guide and not intended to recognize or predict the costs and returns from any one operation. Brand names are mentioned only as examples and imply no endorsement.

Sheet CottonDrylandRF
A1: Projections for Planning Purposes Only -- Not to be Used without Updating
A2: 2021 Estimated Costs and Returns per Acre
A3: Dryland Cotton, B2RF, Follow Wheat
A4: Enter your name for this budget in the cell above.
A5: Enter Your Values in the cells highlighed in MAROON.
E6: Your Acres | R6: Your
C7: Crop Acres | D7: 2700 | L7: Your | Q7: Enterprise | R7: Enterprise
E8: Your | H8: Your | I8: Cash | J8: Your | K8: Landlord | L8: Landlord | N8: Your | P8: Your | Q8: Total | R8: Total
A9: REVENUE | D9: Quantity | E9: Quantity | F9: Units | G9: $/Unit | H9: $/Unit | I9: Total | J9: Total | K9: Share | L9: Share | M9: Landlord | N9: Landlord | O9: Tenant | P9: Tenant | Q9: (2700 acres) | R9: ="(" & E7 & " acres)" -> ( acres)
B10: Cotton Lint | D10: 375 | F10: Pound | G10: 0.63 | I10: 236.25 | J10: =E10*H10 -> 0 | K10: 0 | M10: 0 | N10: =J10*L10 -> 0 | O10: 236.25 | P10: =+J10-N10 -> 0 | Q10: 637875 | R10: =+J10*E$7 -> 0
B11: Cotton Seed | D11: 0.2713 | F11: Ton | G11: 225 | I11: 61.0425 | J11: 0 | K11: 0 | M11: 0 | N11: 0 | O11: 61.0425 | P11: =+J11-N11 -> 0 | Q11: 164814.75 | R11: 0
D12: 0 | G12: 0 | I12: 0 | J12: 0 | K12: 0 | M12: 0 | N12: 0 | O12: 0 | P12: 0 | Q12: 0 | R12: 0
D13: 0 | G13: 0 | I13: 0 | J13: 0 | K13: 0 | M13: 0 | N13: 0 | O13: 0 | P13: 0 | Q13: 0 | R13: 0
A14: Total Revenue | I14: 297.2925 | J14: =SUM(J10:J13) -> 0 | M14: 0 | N14: =SUM(N10:N13) -> 0 | O14: 297.2925 | P14: =SUM(P10:P13) -> 0 | Q14: 802689.75 | R14: =SUM(R10:R13) -> 0
Q15: Enterprise | R15: Enterprise
A16: VARIABLE COSTS | D16: Quantity | E16: Quantity | F16: Units | G16: $/Unit | H16: $/Unit | I16: Total | J16: Total | K16: Share | L16: Share | M16: Landlord | N16: Landlord | O16: Tenant | P16: Tenant | Q16: Total | R16: Total
A17: Production Costs
B18: Seed
C19: Seed Cotton - B2RF (dryland) | D19: 29 | F19: Thousand | G19: 1.2975 | I19: 37.6275 | J19: =E19*H19 -> 0 | K19: 0 | M19: 0 | N19: =J19*L19 -> 0 | O19: 37.6275 | P19: =+J19-N19 -> 0 | Q19: 101594.25 | R19: =+J19*E$7 -> 0
B20: Fertilizer
C21: Phos (11-52-0 DRY MAT) | D21: 19 | F21: Pounds | G21: 0.4519 | I21: 8.5861 | J21: 0 | K21: 0 | M21: 0 | N21: 0 | O21: 8.5861 | P21: 0 | Q21: 23182.47 | R21: 0
C22: Nitrogen N32-liq | D22: 26 | F22: Pounds | G22: 0.3828 | I22: 9.9528 | J22: 0 | K22: 0 | M22: 0 | N22: 0 | O22: 9.9528 | P22: 0 | Q22: 26872.56 | R22: 0
B23: Custom
C24: Soil Test-Dryland | D24: 1 | F24: Each | G24: 0.25 | I24: 0.25 | J24: 0 | K24: 0 | M24: 0 | N24: 0 | O24: 0.25 | P24: 0 | Q24: 675 | R24: 0
C25: Gin and Haul | D25: 12.5 | F25: CWT | G25: 2.5 | I25: 31.25 | J25: 0 | K25: 0 | M25: 0 | N25: 0 | O25: 31.25 | P25: 0 | Q25: 84375 | R25: 0
C26: Custom Strip | D26: 375 | F26: Pounds | G26: 0.11 | I26: 41.25 | J26: 0 | K26: 0 | M26: 0 | N26: 0 | O26: 41.25 | P26: 0 | Q26: 111375 | R26: 0
C27: Custom Bag/Tie | D27: 0.75 | F27: Bales | G27: 5 | I27: 3.75 | J27: 0 | K27: 0 | M27: 0 | N27: 0 | O27: 3.75 | P27: 0 | Q27: 10125 | R27: 0
B28: Herbicide
C29: Glyphosate | D29: 160 | F29: Ounce | G29: 0.1328125 | I29: 21.25 | J29: 0 | K29: 0 | M29: 0 | N29: 0 | O29: 21.25 | P29: 0 | Q29: 57375 | R29: 0
C30: 2-4D Amine 4 | D30: 1.25 | F30: Pint | G30: 1.6125 | I30: 2.015625 | J30: 0 | K30: 0 | M30: 0 | N30: 0 | O30: 2.015625 | P30: 0 | Q30: 5442.1875 | R30: 0
C31: Trifluralin | D31: 1.5 | F31: Pint | G31: 2.75 | I31: 4.125 | J31: 0 | K31: 0 | M31: 0 | N31: 0 | O31: 4.125 | P31: 0 | Q31: 11137.5 | R31: 0
C32: Caparol | D32: 24 | F32: Ounce | G32: 0.2625 | I32: 6.3 | J32: 0 | K32: 0 | M32: 0 | N32: 0 | O32: 6.3 | P32: 0 | Q32: 17010 | R32: 0
C33: Outlook | D33: 2 | F33: Ounce | G33: 1.040625 | I33: 2.08125 | J33: 0 | K33: 0 | M33: 0 | N33: 0 | O33: 2.08125 | P33: 0 | Q33: 5619.375 | R33: 0
B34: Miscellaneous
C35: Boll Weevil Eradication Program | D35: 0.75 | F35: Bale | G35: 1 | I35: 0.75 | J35: 0 | K35: 0 | M35: 0 | N35: 0 | O35: 0.75 | P35: 0 | Q35: 2025 | R35: 0
C36: Dry Cotton RP 70% SE, Ent | D36: 1 | F36: Acre | G36: 6.21 | I36: 6.21 | J36: 0 | K36: 0 | M36: 0 | N36: 0 | O36: 6.21 | P36: 0 | Q36: 16767 | R36: 0
B37: Insecticide
C38: Macho 4F | D38: 1.5 | F38: Ounce | G38: 0.71484375 | I38: 1.072265625 | J38: 0 | K38: 0 | M38: 0 | N38: 0 | O38: 1.072265625 | P38: 0 | Q38: 2895.117188 | R38: 0
B39: Other Chemicals
C40: Paraquat, 3lb (Firestorm) | D40: 28 | F40: Ounce | G40: 0.1796 | I40: 5.0288 | J40: 0 | K40: 0 | M40: 0 | N40: 0 | O40: 5.0288 | P40: 0 | Q40: 13577.76 | R40: 0
C41: Cutout (Adios) | D41: 4 | F41: Ounce | G41: 0.9219 | I41: 3.6876 | J41: 0 | K41: 0 | M41: 0 | N41: 0 | O41: 3.6876 | P41: 0 | Q41: 9956.52 | R41: 0
C42: Ethephon 6 | D42: 1 | F42: Pint | G42: 3.8125 | I42: 3.8125 | J42: 0 | K42: 0 | M42: 0 | N42: 0 | O42: 3.8125 | P42: 0 | Q42: 10293.75 | R42: 0
D43: 0 | G43: 0 | I43: 0 | J43: 0 | K43: 0 | M43: 0 | N43: 0 | O43: 0 | P43: 0 | Q43: 0 | R43: 0
D44: 0 | G44: 0 | I44: 0 | J44: 0 | K44: 0 | M44: 0 | N44: 0 | O44: 0 | P44: 0 | Q44: 0 | R44: 0
D45: 0 | G45: 0 | I45: 0 | J45: =E45*H45 -> 0 | K45: 0 | M45: 0 | N45: =J45*L45 -> 0 | O45: 0 | P45: =+J45-N45 -> 0 | Q45: 0 | R45: =+J45*E$7 -> 0
B46: Machinery Labor
C47: Tractors/Self-Propelled | D47: 0.4 | F47: Hour | G47: 15 | I47: 6 | J47: =E47*H47 -> 0 | K47: 0 | M47: 0 | N47: =J47*L47 -> 0 | O47: 6 | P47: =+J47-N47 -> 0 | Q47: 16200 | R47: =+J47*E$7 -> 0
C48: Other Labor | D48: 0.3 | F48: Hour | G48: 15 | I48: 4.5 | J48: =E48*H48 -> 0 | K48: 0 | M48: 0 | N48: =J48*L48 -> 0 | O48: 4.5 | P48: =+J48-N48 -> 0 | Q48: 12150 | R48: =+J48*E$7 -> 0
B50: Diesel Fuel
C51: Pickup/General Use Equipment | D51: 1 | F51: Acre | G51: 0 | I51: 0 | J51: =E51*H51 -> 0 | K51: 0 | M51: 0 | N51: =J51*L51 -> 0 | O51: 0 | P51: =+J51-N51 -> 0 | Q51: 0 | R51: =+J51*E$7 -> 0
C52: Tractors/Self-Propelled | D52: 5.39 | F52: Gallon | G52: 1.5 | I52: 8.085 | J52: =E52*H52 -> 0 | K52: 0 | M52: 0 | N52: =J52*L52 -> 0 | O52: 8.085 | P52: =+J52-N52 -> 0 | Q52: 21829.5 | R52: =+J52*E$7 -> 0
B54: Gasoline
C55: Pickup/General Use Equipment | D55: 1 | F55: Acre | G55: 1.464177778 | I55: 1.464177778 | J55: =E55*H55 -> 0 | K55: 0 | M55: 0 | N55: =J55*L55 -> 0 | O55: 1.464177778 | P55: =+J55-N55 -> 0 | Q55: 3953.28 | R55: =+J55*E$7 -> 0
C56: Tractors/Self-Propelled | D56: 0 | F56: Gallon | G56: 1.8 | I56: 0 | J56: =E56*H56 -> 0 | K56: 0 | M56: 0 | N56: =J56*L56 -> 0 | O56: 0 | P56: =+J56-N56 -> 0 | Q56: 0 | R56: =+J56*E$7 -> 0
B58: Repairs & Maintenance
C59: Pickup/General Use Equipment | D59: 1 | F59: Acre | G59: 0.7840740741 | I59: 0.7840740741 | J59: =E59*H59 -> 0 | K59: 0 | M59: 0 | N59: =J59*L59 -> 0 | O59: 0.7840740741 | P59: =+J59-N59 -> 0 | Q59: 2117 | R59: =+J59*E$7 -> 0
C60: Irrigation Equipment | D60: 1 | F60: Acre | G60: 0 | I60: 0 | J60: 0 | K60: 0 | M60: 0 | N60: 0 | O60: 0 | P60: 0 | Q60: 0 | R60: 0
C61: Tractors/Self-Propelled | D61: 1 | F61: Acre | G61: 11.56589192 | I61: 11.56589192 | J61: 0 | K61: 0 | M61: 0 | N61: 0 | O61: 11.56589192 | P61: 0 | Q61: 31227.90818 | R61: 0
C62: Implements | D62: 1 | F62: Acre | G62: 6.929242498 | I62: 6.929242498 | J62: 0 | K62: 0 | M62: 0 | N62: 0 | O62: 6.929242498 | P62: 0 | Q62: 18708.95474 | R62: 0
I63: 0 | J63: 0 | K63: 0 | M63: 0 | N63: 0 | O63: 0 | P63: 0 | Q63: 0 | R63: 0
I64: 0 | J64: 0 | K64: 0 | M64: 0 | N64: 0 | O64: 0 | P64: 0 | Q64: 0 | R64: 0
B65: Interest on Credit Line | G65: 0.0455 | I65: 4.29424799 | J65: =+SUM(J18:J64)/2*H65 -> 0 | M65: 0 | N65: =+SUM(N18:N64)/2*L65 -> 0 | O65: 4.29424799 | P65: =+SUM(P18:P64)/2*L65 -> 0 | Q65: 11594.46957 | R65: =+J65*E$7 -> 0
A66: Total Variable Costs | I66: 232.6220749 | J66: =SUM(J19:J65) -> 0 | M66: 0 | N66: =SUM(N19:N65) -> 0 | O66: 232.6220749 | P66: =SUM(P19:P65) -> 0 | Q66: 628079.6022 | R66: =SUM(R19:R65) -> 0
A67: Planned Returns Above Variable Costs: | I67: 64.67042512 | J67: =+J14-J66 -> 0 | M67: 0 | N67: =+N14-N66 -> 0 | O67: 64.67042512 | P67: =+P14-P66 -> 0 | Q67: 174610.1478 | R67: =+R14-R66 -> 0
B68: Breakeven Price to Cover Variable Costs | G68: 0.457545533 | H68: =IF(E10=0,"n/a",(YVarExp-(YTotExp+YTotRet-J10))/E10) -> n/a | I68: Pound
Q69: Enterprise | R69: Enterprise
A70: FIXED COSTS | D70: Quantity | E70: Quantity | F70: Units | G70: $/Unit | H70: $/Unit | I70: Total | J70: Total | K70: Share | L70: Share | M70: Landlord | N70: Landlord | O70: Tenant | P70: Tenant | Q70: Total | R70: Total
B71: Machinery Depreciation
C72: Pickup/General Use Equipment | D72: 1 | F72: Acre | G72: 1.662666667 | I72: 1.662666667 | J72: =E72*H72 -> 0 | K72: 0 | M72: 0 | N72: =J72*L72 -> 0 | O72: 1.662666667 | P72: =+J72-N72 -> 0 | Q72: 4489.2 | R72: =+J72*E$7 -> 0
C73: Tractors/Self-Propelled | D73: 1 | F73: Acre | G73: 21.72275497 | I73: 21.72275497 | J73: 0 | K73: 0 | M73: 0 | N73: =J73*L73 -> 0 | O73: 21.72275497 | P73: 0 | Q73: 58651.43841 | R73: 0
C74: Implements | D74: 1 | F74: Acre | G74: 9.534197148 | I74: 9.534197148 | J74: 0 | K74: 0 | M74: 0 | N74: =J74*L74 -> 0 | O74: 9.534197148 | P74: 0 | Q74: 25742.3323 | R74: 0
B75: Equipment Investment
C76: Pickup/General Use Equipment | D76: 9.215555556 | F76: Dollars | G76: 0.055 | I76: 0.5068555556 | J76: =E76*H76 -> 0 | K76: 0 | M76: 0 | N76: =J76*L76 -> 0 | O76: 0.5068555556 | P76: =+J76-N76 -> 0 | Q76: 1368.51 | R76: =+J76*E$7 -> 0
C77: Tractors/Self-Propelled | D77: 164.6871699 | F77: Dollars | G77: 0.055 | I77: 9.057794344 | J77: 0 | K77: 0 | M77: 0 | N77: =J77*L77 -> 0 | O77: 9.057794344 | P77: 0 | Q77: 24456.04473 | R77: 0
C78: Implements | D78: 41.10512391 | F78: Dollars | G78: 0.055 | I78: 2.260781815 | J78: 0 | K78: 0 | M78: 0 | N78: =J78*L78 -> 0 | O78: 2.260781815 | P78: 0 | Q78: 6104.110901 | R78: 0
B79: Salaried Labor | D79: 1 | F79: Acre | G79: 0 | I79: 0 | J79: 0 | K79: 0 | M79: 0 | N79: =J79*L79 -> 0 | O79: 0 | P79: =+J79-N79 -> 0 | Q79: 0 | R79: =+J79*E$7 -> 0
B80: Management Fee, Owner/Operator Labor | D80: 1 | F80: Acre | G80: 10 | I80: 10 | J80: 0 | K80: 0 | M80: 0 | N80: 0 | O80: 10 | P80: 0 | Q80: 27000 | R80: 0
B81: Allocated Establishment Cost | D81: 1 | F81: Acre | G81: 0 | I81: 0 | J81: 0 | K81: 0 | M81: 0 | N81: 0 | O81: 0 | P81: 0 | Q81: 0 | R81: 0
B82: Rent-Dryland Crop | D82: 1 | F82: Acre | G82: 35 | I82: 35 | J82: 0 | K82: 0 | M82: 0 | N82: 0 | O82: 35 | P82: 0 | Q82: 94500 | R82: 0
B83: Property Taxes | D83: 1 | F83: Acre | G83: 0 | I83: 0 | J83: 0 | K83: 0 | M83: 0 | N83: 0 | O83: 0 | P83: 0 | Q83: 0 | R83: 0
B84: Whole Farm Insurance | D84: 1 | F84: Acre | G84: 1 | I84: 1 | J84: 0 | K84: 0 | M84: 0 | N84: 0 | O84: 1 | P84: 0 | Q84: 2700 | R84: 0
D85: 1 | G85: 0 | I85: 0 | J85: 0 | K85: 0 | M85: 0 | N85: 0 | O85: 0 | P85: 0 | Q85: 0 | R85: 0
D86: 1 | G86: 0 | I86: 0 | J86: =E86*H86 -> 0 | K86: 0 | M86: 0 | N86: 0 | O86: 0 | P86: 0 | Q86: 0 | R86: 0
A87: Total Fixed Costs | I87: 90.7450505 | J87: =+SUM(J72:J86) -> 0 | M87: 0 | N87: =+SUM(N72:N86) -> 0 | O87: 90.7450505 | P87: =+SUM(P72:P86) -> 0 | Q87: 245011.6363 | R87: =+SUM(R72:R86) -> 0
A88: Total Specified Costs | I88: 323.3671254 | J88: =+J66+J87 -> 0 | M88: 0 | N88: =+N66+N87 -> 0 | O88: 323.3671254 | P88: =+P66+P87 -> 0 | Q88: 873091.2385 | R88: =+R66+R87 -> 0
A90: Returns Above Specified Costs | I90: -26.07462538 | J90: =+J14-J88 -> 0 | M90: 0 | N90: =+N14-N88 -> 0 | O90: -26.07462538 | P90: =+P14-P88 -> 0 | Q90: -70401.48853 | R90: =+R14-R88 -> 0
A92: Breakeven Price to Cover Total Costs | G92: 0.6995323344 | H92: =IF(E10=0,"n/a",(YTotExp-(YTotExp+YTotRet-J10))/E10) -> n/a | I92: Pound
D94: Example Breakeven Prices
B95: Example | C95: Example | D95: To Cover | G95: To Cover
B96: Yield | C96: Yield | D96: Variable | G96: Total
B97: Percent | C97: Pound | D97: Costs | G97: Costs
B98: 0.75 | C98: 281.25 | D98: 0.6100607107 | G98: 0.9327097791
B99: 0.9 | C99: 337.5 | D99: 0.5083839256 | G99: 0.7772581493
B100: 1 | C100: 375 | D100: 0.457545533 | G100: 0.6995323344
B101: 1.1 | C101: 412.5 | D101: 0.4159504846 | G101: 0.6359384858
B102: 1.25 | C102: 468.75 | D102: 0.3660364264 | G102: 0.5596258675
D104: Your Breakeven Prices
B105: Your | C105: Your | E105: To Cover | H105: To Cover
B106: Yield | C106: Yield | E106: Variable | H106: Total
B107: Percent | C107: Pound | E107: Costs | H107: Costs
B108: 0.75 | C108: =E10*YPER1 -> 0 | E108: =IF($E$10=0,0,(YVarExp-(YTotExp+YTotRet-J10))/($E$10*YPER1)) -> 0 | H108: =IF($E$10=0,0,(YTotExp-(YTotExp+YTotRet-J10))/($E$10*YPER1)) -> 0
B109: 0.9 | C109: =E10*YPER2 -> 0 | E109: =IF($E$10=0,0,(YVarExp-(YTotExp+YTotRet-J10))/($E$10*YPER2)) -> 0 | H109: =IF($E$10=0,0,(YTotExp-(YTotExp+YTotRet-J10))/($E$10*YPER2)) -> 0
B110: 1 | C110: =+E10 -> 0 | E110: =IF($E$10=0,0,(YVarExp-(YTotExp+YTotRet-J10))/($E$10*YPER3)) -> 0 | H110: =IF($E$10=0,0,(YTotExp-(YTotExp+YTotRet-J10))/($E$10*YPER3)) -> 0
B111: 1.1 | C111: =E10*YPER4 -> 0 | E111: =IF($E$10=0,0,(YVarExp-(YTotExp+YTotRet-J10))/($E$10*YPER4)) -> 0 | H111: =IF($E$10=0,0,(YTotExp-(YTotExp+YTotRet-J10))/($E$10*YPER4)) -> 0
B112: 1.25 | C112: =E10*YPER5 -> 0 | E112: =IF($E$10=0,0,(YVarExp-(YTotExp+YTotRet-J10))/($E$10*YPER5)) -> 0 | H112: =IF($E$10=0,0,(YTotExp-(YTotExp+YTotRet-J10))/($E$10*YPER5)) -> 0
A114: Developed by Bill Thompson, Assistant Professor and Extension Economist, Texas A&M AgriLife Extension Service, 325-653-4576.
A116: Information presented is prepared solely as a general guide and not intended to recognize or predict the costs and returns from any one operation. Brand names are mentioned only as examples and imply no endorsement.

Sheet CottonDrylandXF
A1: Projections for Planning Purposes Only -- Not to be Used without Updating
A2: 2021 Estimated Costs and Returns per Acre
A3: Dryland Cotton, Auxin Technology, Follow Wheat
A4: Enter your name for this budget in the cell above.
A5: Enter Your Values in the cells highlighed in MAROON.
E6: Your Acres | R6: Your
C7: Crop Acres | D7: 2700 | L7: Your | Q7: Enterprise | R7: Enterprise
E8: Your | H8: Your | I8: Cash | J8: Your | K8: Landlord | L8: Landlord | N8: Your | P8: Your | Q8: Total | R8: Total
A9: REVENUE | D9: Quantity | E9: Quantity | F9: Units | G9: $/Unit | H9: $/Unit | I9: Total | J9: Total | K9: Share | L9: Share | M9: Landlord | N9: Landlord | O9: Tenant | P9: Tenant | Q9: (2700 acres) | R9: ="(" & E7 & " acres)" -> ( acres)
B10: Cotton Lint | D10: 375 | F10: Pound | G10: 0.63 | I10: 236.25 | J10: =E10*H10 -> 0 | K10: 0 | M10: 0 | N10: =J10*L10 -> 0 | O10: 236.25 | P10: =+J10-N10 -> 0 | Q10: 637875 | R10: =+J10*E$7 -> 0
B11: Cotton Seed | D11: 0.2713 | F11: Ton | G11: 225 | I11: 61.0425 | J11: 0 | K11: 0 | M11: 0 | N11: 0 | O11: 61.0425 | P11: =+J11-N11 -> 0 | Q11: 164814.75 | R11: 0
D12: 0 | G12: 0 | I12: 0 | J12: 0 | K12: 0 | M12: 0 | N12: 0 | O12: 0 | P12: 0 | Q12: 0 | R12: 0
D13: 0 | G13: 0 | I13: 0 | J13: 0 | K13: 0 | M13: 0 | N13: 0 | O13: 0 | P13: 0 | Q13: 0 | R13: 0
A14: Total Revenue | I14: 297.2925 | J14: =SUM(J10:J13) -> 0 | M14: 0 | N14: =SUM(N10:N13) -> 0 | O14: 297.2925 | P14: =SUM(P10:P13) -> 0 | Q14: 802689.75 | R14: =SUM(R10:R13) -> 0
Q15: Enterprise | R15: Enterprise
A16: VARIABLE COSTS | D16: Quantity | E16: Quantity | F16: Units | G16: $/Unit | H16: $/Unit | I16: Total | J16: Total | K16: Share | L16: Share | M16: Landlord | N16: Landlord | O16: Tenant | P16: Tenant | Q16: Total | R16: Total
A17: Production Costs
B18: Herbicide
C19: Glyphosate | D19: 160 | F19: Ounce | G19: 0.1328125 | I19: 21.25 | J19: =E19*H19 -> 0 | K19: 0 | M19: 0 | N19: =J19*L19 -> 0 | O19: 21.25 | P19: =+J19-N19 -> 0 | Q19: 57375 | R19: =+J19*E$7 -> 0
C20: 2-4D Amine 4 | D20: 1.25 | F20: Pint | G20: 1.6125 | I20: 2.015625 | J20: 0 | K20: 0 | M20: 0 | N20: 0 | O20: 2.015625 | P20: 0 | Q20: 5442.1875 | R20: 0
C21: Trifluralin | D21: 1.5 | F21: Pint | G21: 2.75 | I21: 4.125 | J21: 0 | K21: 0 | M21: 0 | N21: 0 | O21: 4.125 | P21: 0 | Q21: 11137.5 | R21: 0
C22: Caparol | D22: 24 | F22: Ounce | G22: 0.2625 | I22: 6.3 | J22: 0 | K22: 0 | M22: 0 | N22: 0 | O22: 6.3 | P22: 0 | Q22: 17010 | R22: 0
C23: Outlook | D23: 2 | F23: Ounce | G23: 1.040625 | I23: 2.08125 | J23: 0 | K23: 0 | M23: 0 | N23: 0 | O23: 2.08125 | P23: 0 | Q23: 5619.375 | R23: 0
C24: Auxin based herbicide | D24: 44 | F24: Ounce | G24: 0.5 | I24: 22 | J24: 0 | K24: 0 | M24: 0 | N24: 0 | O24: 22 | P24: 0 | Q24: 59400 | R24: 0
B25: Seed
C26: Seed Cotton - B2 Auxin technology (Dry) | D26: 29 | F26: Thousand | G26: 1.44 | I26: 41.76 | J26: 0 | K26: 0 | M26: 0 | N26: 0 | O26: 41.76 | P26: 0 | Q26: 112752 | R26: 0
B27: Fertilizer
C28: Phos (11-52-0 DRY MAT) | D28: 19 | F28: Pounds | G28: 0.4519 | I28: 8.5861 | J28: 0 | K28: 0 | M28: 0 | N28: 0 | O28: 8.5861 | P28: 0 | Q28: 23182.47 | R28: 0
C29: Nitrogen N32-liq | D29: 26 | F29: Pounds | G29: 0.3828 | I29: 9.9528 | J29: 0 | K29: 0 | M29: 0 | N29: 0 | O29: 9.9528 | P29: 0 | Q29: 26872.56 | R29: 0
B30: Custom
C31: Soil Test-Dryland | D31: 1 | F31: Each | G31: 0.25 | I31: 0.25 | J31: 0 | K31: 0 | M31: 0 | N31: 0 | O31: 0.25 | P31: 0 | Q31: 675 | R31: 0
C32: Gin and Haul | D32: 12.5 | F32: CWT | G32: 2.5 | I32: 31.25 | J32: 0 | K32: 0 | M32: 0 | N32: 0 | O32: 31.25 | P32: 0 | Q32: 84375 | R32: 0
C33: Custom Strip | D33: 375 | F33: Pounds | G33: 0.11 | I33: 41.25 | J33: 0 | K33: 0 | M33: 0 | N33: 0 | O33: 41.25 | P33: 0 | Q33: 111375 | R33: 0
C34: Custom Bag/Tie | D34: 0.75 | F34: Bales | G34: 5 | I34: 3.75 | J34: 0 | K34: 0 | M34: 0 | N34: 0 | O34: 3.75 | P34: 0 | Q34: 10125 | R34: 0
B35: Miscellaneous
C36: Boll Weevil Eradication Program | D36: 0.75 | F36: Bale | G36: 1 | I36: 0.75 | J36: 0 | K36: 0 | M36: 0 | N36: 0 | O36: 0.75 | P36: 0 | Q36: 2025 | R36: 0
C37: Dry Cotton RP 70% SE, Ent | D37: 1 | F37: Acre | G37: 6.21 | I37: 6.21 | J37: 0 | K37: 0 | M37: 0 | N37: 0 | O37: 6.21 | P37: 0 | Q37: 16767 | R37: 0
B38: Insecticide
C39: Macho 4F | D39: 1.5 | F39: Ounce | G39: 0.71484375 | I39: 1.072265625 | J39: 0 | K39: 0 | M39: 0 | N39: 0 | O39: 1.072265625 | P39: 0 | Q39: 2895.117188 | R39: 0
B40: Other Chemicals
C41: Paraquat, 3lb (Firestorm) | D41: 28 | F41: Ounce | G41: 0.1796 | I41: 5.0288 | J41: 0 | K41: 0 | M41: 0 | N41: 0 | O41: 5.0288 | P41: 0 | Q41: 13577.76 | R41: 0
C42: Cutout (Adios) | D42: 4 | F42: Ounce | G42: 0.9219 | I42: 3.6876 | J42: 0 | K42: 0 | M42: 0 | N42: 0 | O42: 3.6876 | P42: 0 | Q42: 9956.52 | R42: 0
C43: Ethephon 6 | D43: 1 | F43: Pint | G43: 3.8125 | I43: 3.8125 | J43: 0 | K43: 0 | M43: 0 | N43: 0 | O43: 3.8125 | P43: 0 | Q43: 10293.75 | R43: 0
D44: 0 | G44: 0 | I44: 0 | J44: 0 | K44: 0 | M44: 0 | N44: 0 | O44: 0 | P44: 0 | Q44: 0 | R44: 0
D45: 0 | G45: 0 | I45: 0 | J45: 0 | K45: 0 | M45: 0 | N45: 0 | O45: 0 | P45: 0 | Q45: 0 | R45: 0
D46: 0 | G46: 0 | I46: 0 | J46: =E46*H46 -> 0 | K46: 0 | M46: 0 | N46: =J46*L46 -> 0 | O46: 0 | P46: =+J46-N46 -> 0 | Q46: 0 | R46: =+J46*E$7 -> 0
B47: Machinery Labor
C48: Tractors/Self-Propelled | D48: 0.4 | F48: Hour | G48: 15 | I48: 6 | J48: =E48*H48 -> 0 | K48: 0 | M48: 0 | N48: =J48*L48 -> 0 | O48: 6 | P48: =+J48-N48 -> 0 | Q48: 16200 | R48: =+J48*E$7 -> 0
C49: Other Labor | D49: 0.3 | F49: Hour | G49: 15 | I49: 4.5 | J49: =E49*H49 -> 0 | K49: 0 | M49: 0 | N49: =J49*L49 -> 0 | O49: 4.5 | P49: =+J49-N49 -> 0 | Q49: 12150 | R49: =+J49*E$7 -> 0
B51: Diesel Fuel
C52: Pickup/General Use Equipment | D52: 1 | F52: Acre | G52: 0 | I52: 0 | J52: =E52*H52 -> 0 | K52: 0 | M52: 0 | N52: =J52*L52 -> 0 | O52: 0 | P52: =+J52-N52 -> 0 | Q52: 0 | R52: =+J52*E$7 -> 0
C53: Tractors/Self-Propelled | D53: 5.39 | F53: Gallon | G53: 1.5 | I53: 8.085 | J53: =E53*H53 -> 0 | K53: 0 | M53: 0 | N53: =J53*L53 -> 0 | O53: 8.085 | P53: =+J53-N53 -> 0 | Q53: 21829.5 | R53: =+J53*E$7 -> 0
B55: Gasoline
C56: Pickup/General Use Equipment | D56: 1 | F56: Acre | G56: 1.464177778 | I56: 1.464177778 | J56: =E56*H56 -> 0 | K56: 0 | M56: 0 | N56: =J56*L56 -> 0 | O56: 1.464177778 | P56: =+J56-N56 -> 0 | Q56: 3953.28 | R56: =+J56*E$7 -> 0
C57: Tractors/Self-Propelled | D57: 0 | F57: Gallon | G57: 1.8 | I57: 0 | J57: =E57*H57 -> 0 | K57: 0 | M57: 0 | N57: =J57*L57 -> 0 | O57: 0 | P57: =+J57-N57 -> 0 | Q57: 0 | R57: =+J57*E$7 -> 0
B59: Repairs & Maintenance
C60: Pickup/General Use Equipment | D60: 1 | F60: Acre | G60: 0.7840740741 | I60: 0.7840740741 | J60: =E60*H60 -> 0 | K60: 0 | M60: 0 | N60: =J60*L60 -> 0 | O60: 0.7840740741 | P60: =+J60-N60 -> 0 | Q60: 2117 | R60: =+J60*E$7 -> 0
C61: Irrigation Equipment | D61: 1 | F61: Acre | G61: 0 | I61: 0 | J61: 0 | K61: 0 | M61: 0 | N61: 0 | O61: 0 | P61: 0 | Q61: 0 | R61: 0
C62: Tractors/Self-Propelled | D62: 1 | F62: Acre | G62: 11.56589192 | I62: 11.56589192 | J62: 0 | K62: 0 | M62: 0 | N62: 0 | O62: 11.56589192 | P62: 0 | Q62: 31227.90818 | R62: 0
C63: Implements | D63: 1 | F63: Acre | G63: 6.929242498 | I63: 6.929242498 | J63: 0 | K63: 0 | M63: 0 | N63: 0 | O63: 6.929242498 | P63: 0 | Q63: 18708.95474 | R63: 0
I64: 0 | J64: 0 | K64: 0 | M64: 0 | N64: 0 | O64: 0 | P64: 0 | Q64: 0 | R64: 0
I65: 0 | J65: 0 | K65: 0 | M65: 0 | N65: 0 | O65: 0 | P65: 0 | Q65: 0 | R65: 0
B66: Interest on Credit Line | G66: 0.0455 | I66: 4.704464459 | J66: =+SUM(J18:J65)/2*H66 -> 0 | M66: 0 | N66: =+SUM(N18:N65)/2*L66 -> 0 | O66: 4.704464459 | P66: =+SUM(P18:P65)/2*L66 -> 0 | Q66: 12702.05404 | R66: =+J66*E$7 -> 0
A67: Total Variable Costs | I67: 259.1647914 | J67: =SUM(J19:J66) -> 0 | M67: 0 | N67: =SUM(N19:N66) -> 0 | O67: 259.1647914 | P67: =SUM(P19:P66) -> 0 | Q67: 699744.9367 | R67: =SUM(R19:R66) -> 0
A68: Planned Returns Above Variable Costs: | I68: 38.12770865 | J68: =+J14-J67 -> 0 | M68: 0 | N68: =+N14-N67 -> 0 | O68: 38.12770865 | P68: =+P14-P67 -> 0 | Q68: 102944.8133 | R68: =+R14-R67 -> 0
B69: Breakeven Price to Cover Variable Costs | G69: 0.5283261103 | H69: =IF(E10=0,"n/a",(YVarExp-(YTotExp+YTotRet-J10))/E10) -> n/a | I69: Pound
Q70: Enterprise | R70: Enterprise
A71: FIXED COSTS | D71: Quantity | E71: Quantity | F71: Units | G71: $/Unit | H71: $/Unit | I71: Total | J71: Total | K71: Share | L71: Share | M71: Landlord | N71: Landlord | O71: Tenant | P71: Tenant | Q71: Total | R71: Total
B72: Machinery Depreciation
C73: Pickup/General Use Equipment | D73: 1 | F73: Acre | G73: 1.662666667 | I73: 1.662666667 | J73: =E73*H73 -> 0 | K73: 0 | M73: 0 | N73: =J73*L73 -> 0 | O73: 1.662666667 | P73: =+J73-N73 -> 0 | Q73: 4489.2 | R73: =+J73*E$7 -> 0
C74: Tractors/Self-Propelled | D74: 1 | F74: Acre | G74: 21.72275497 | I74: 21.72275497 | J74: 0 | K74: 0 | M74: 0 | N74: =J74*L74 -> 0 | O74: 21.72275497 | P74: 0 | Q74: 58651.43841 | R74: 0
C75: Implements | D75: 1 | F75: Acre | G75: 9.534197148 | I75: 9.534197148 | J75: 0 | K75: 0 | M75: 0 | N75: =J75*L75 -> 0 | O75: 9.534197148 | P75: 0 | Q75: 25742.3323 | R75: 0
B76: Equipment Investment
C77: Pickup/General Use Equipment | D77: 9.215555556 | F77: Dollars | G77: 0.055 | I77: 0.5068555556 | J77: =E77*H77 -> 0 | K77: 0 | M77: 0 | N77: =J77*L77 -> 0 | O77: 0.5068555556 | P77: =+J77-N77 -> 0 | Q77: 1368.51 | R77: =+J77*E$7 -> 0
C78: Tractors/Self-Propelled | D78: 164.6871699 | F78: Dollars | G78: 0.055 | I78: 9.057794344 | J78: 0 | K78: 0 | M78: 0 | N78: =J78*L78 -> 0 | O78: 9.057794344 | P78: 0 | Q78: 24456.04473 | R78: 0
C79: Implements | D79: 41.10512391 | F79: Dollars | G79: 0.055 | I79: 2.260781815 | J79: 0 | K79: 0 | M79: 0 | N79: =J79*L79 -> 0 | O79: 2.260781815 | P79: 0 | Q79: 6104.110901 | R79: 0
B80: Salaried Labor | D80: 1 | F80: Acre | G80: 0 | I80: 0 | J80: 0 | K80: 0 | M80: 0 | N80: =J80*L80 -> 0 | O80: 0 | P80: =+J80-N80 -> 0 | Q80: 0 | R80: =+J80*E$7 -> 0
B81: Management Fee, Owner/Operator Labor | D81: 1 | F81: Acre | G81: 10 | I81: 10 | J81: 0 | K81: 0 | M81: 0 | N81: 0 | O81: 10 | P81: 0 | Q81: 27000 | R81: 0
B82: Allocated Establishment Cost | D82: 1 | F82: Acre | G82: 0 | I82: 0 | J82: 0 | K82: 0 | M82: 0 | N82: 0 | O82: 0 | P82: 0 | Q82: 0 | R82: 0
B83: Rent-Dryland Crop | D83: 1 | F83: Acre | G83: 35 | I83: 35 | J83: 0 | K83: 0 | M83: 0 | N83: 0 | O83: 35 | P83: 0 | Q83: 94500 | R83: 0
B84: Property Taxes | D84: 1 | F84: Acre | G84: 0 | I84: 0 | J84: 0 | K84: 0 | M84: 0 | N84: 0 | O84: 0 | P84: 0 | Q84: 0 | R84: 0
B85: Whole Farm Insurance | D85: 1 | F85: Acre | G85: 0 | I85: 0 | J85: 0 | K85: 0 | M85: 0 | N85: 0 | O85: 0 | P85: 0 | Q85: 0 | R85: 0
D86: 1 | G86: 0 | I86: 0 | J86: 0 | K86: 0 | M86: 0 | N86: 0 | O86: 0 | P86: 0 | Q86: 0 | R86: 0
D87: 1 | G87: 0 | I87: 0 | J87: =E87*H87 -> 0 | K87: 0 | M87: 0 | N87: 0 | O87: 0 | P87: 0 | Q87: 0 | R87: 0
A88: Total Fixed Costs | I88: 89.7450505 | J88: =+SUM(J73:J87) -> 0 | M88: 0 | N88: =+SUM(N73:N87) -> 0 | O88: 89.7450505 | P88: =+SUM(P73:P87) -> 0 | Q88: 242311.6363 | R88: =+SUM(R73:R87) -> 0
A89: Total Specified Costs | I89: 348.9098419 | J89: =+J67+J88 -> 0 | M89: 0 | N89: =+N67+N88 -> 0 | O89: 348.9098419 | P89: =+P67+P88 -> 0 | Q89: 942056.573 | R89: =+R67+R88 -> 0
A91: Returns Above Specified Costs | I91: -51.61734185 | J91: =+J14-J89 -> 0 | M91: 0 | N91: =+N14-N89 -> 0 | O91: -51.61734185 | P91: =+P14-P89 -> 0 | Q91: -139366.823 | R91: =+R14-R89 -> 0
A93: Breakeven Price to Cover Total Costs | G93: 0.7676462449 | H93: =IF(E10=0,"n/a",(YTotExp-(YTotExp+YTotRet-J10))/E10) -> n/a | I93: Pound
D95: Example Breakeven Prices
B96: Example | C96: Example | D96: To Cover | G96: To Cover
B97: Yield | C97: Yield | D97: Variable | G97: Total
B98: Percent | C98: Pound | D98: Costs | G98: Costs
B99: 0.75 | C99: 281.25 | D99: 0.7044348137 | G99: 1.023528327
B100: 0.9 | C100: 337.5 | D100: 0.5870290114 | G100: 0.8529402722
B101: 1 | C101: 375 | D101: 0.5283261103 | G101: 0.7676462449
B102: 1.1 | C102: 412.5 | D102: 0.4802964639 | G102: 0.6978602227
B103: 1.25 | C103: 468.75 | D103: 0.4226608882 | G103: 0.6141169959
D105: Your Breakeven Prices
B106: Your | C106: Your | E106: To Cover | H106: To Cover
B107: Yield | C107: Yield | E107: Variable | H107: Total
B108: Percent | C108: Pound | E108: Costs | H108: Costs
B109: 0.75 | C109: =E10*YPER1 -> 0 | E109: =IF($E$10=0,0,(YVarExp-(YTotExp+YTotRet-J10))/($E$10*YPER1)) -> 0 | H109: =IF($E$10=0,0,(YTotExp-(YTotExp+YTotRet-J10))/($E$10*YPER1)) -> 0
B110: 0.9 | C110: =E10*YPER2 -> 0 | E110: =IF($E$10=0,0,(YVarExp-(YTotExp+YTotRet-J10))/($E$10*YPER2)) -> 0 | H110: =IF($E$10=0,0,(YTotExp-(YTotExp+YTotRet-J10))/($E$10*YPER2)) -> 0
B111: 1 | C111: =+E10 -> 0 | E111: =IF($E$10=0,0,(YVarExp-(YTotExp+YTotRet-J10))/($E$10*YPER3)) -> 0 | H111: =IF($E$10=0,0,(YTotExp-(YTotExp+YTotRet-J10))/($E$10*YPER3)) -> 0
B112: 1.1 | C112: =E10*YPER4 -> 0 | E112: =IF($E$10=0,0,(YVarExp-(YTotExp+YTotRet-J10))/($E$10*YPER4)) -> 0 | H112: =IF($E$10=0,0,(YTotExp-(YTotExp+YTotRet-J10))/($E$10*YPER4)) -> 0
B113: 1.25 | C113: =E10*YPER5 -> 0 | E113: =IF($E$10=0,0,(YVarExp-(YTotExp+YTotRet-J10))/($E$10*YPER5)) -> 0 | H113: =IF($E$10=0,0,(YTotExp-(YTotExp+YTotRet-J10))/($E$10*YPER5)) -> 0
A115: Developed by Bill Thompson, Assistant Professor and Extension Economist, Texas A&M AgriLife Extension Service, 325-653-4576.
A117: Information presented is prepared solely as a general guide and not intended to recognize or predict the costs and returns from any one operation. Brand names are mentioned only as examples and imply no endorsement.

Sheet CoastalEstablishDryland
A1: Projections for Planning Purposes Only -- Not to be Used without Updating
A2: 2021 Estimated Costs and Returns per Acre
A3: Dryland Bermudagrass Establishment
A4: Enter your name for this budget in the cell above.
A5: Enter Your Values in the cells highlighed in MAROON.
E6: Your Acres | R6: Your
C7: Crop Acres | D7: 100 | L7: Your | Q7: Enterprise | R7: Enterprise
E8: Your | H8: Your | I8: Cash | J8: Your | K8: Landlord | L8: Landlord | N8: Your | P8: Your | Q8: Total | R8: Total
A9: REVENUE | D9: Quantity | E9: Quantity | F9: Units | G9: $/Unit | H9: $/Unit | I9: Total | J9: Total | K9: Share | L9: Share | M9: Landlord | N9: Landlord | O9: Tenant | P9: Tenant | Q9: (100 acres) | R9: ="(" & E7 & " acres)" -> ( acres)
B10: Grazing | D10: 50 | F10: Pound | G10: 0.45 | I10: 22.5 | J10: =E10*H10 -> 0 | K10: 0 | M10: 0 | N10: =J10*L10 -> 0 | O10: 22.5 | P10: =+J10-N10 -> 0 | Q10: 2250 | R10: =+J10*E$7 -> 0
D11: 0 | G11: 0 | I11: 0 | J11: 0 | K11: 0 | M11: 0 | N11: 0 | O11: 0 | P11: =+J11-N11 -> 0 | Q11: 0 | R11: 0
D12: 0 | G12: 0 | I12: 0 | J12: 0 | K12: 0 | M12: 0 | N12: 0 | O12: 0 | P12: 0 | Q12: 0 | R12: 0
A13: Total Revenue | I13: 22.5 | J13: =SUM(J10:J12) -> 0 | M13: 0 | N13: =SUM(N10:N12) -> 0 | O13: 22.5 | P13: =SUM(P10:P12) -> 0 | Q13: 2250 | R13: =SUM(R10:R12) -> 0
Q14: Enterprise | R14: Enterprise
A15: VARIABLE COSTS | D15: Quantity | E15: Quantity | F15: Units | G15: $/Unit | H15: $/Unit | I15: Total | J15: Total | K15: Share | L15: Share | M15: Landlord | N15: Landlord | O15: Tenant | P15: Tenant | Q15: Total | R15: Total
A16: Production Costs
B17: Herbicide
C18: Herbicide-Banvell/24D | D18: 1 | F18: Pint | G18: 2.4875 | I18: 2.4875 | J18: =E18*H18 -> 0 | K18: 0 | M18: 0 | N18: =J18*L18 -> 0 | O18: 2.4875 | P18: =+J18-N18 -> 0 | Q18: 248.75 | R18: =+J18*E$7 -> 0
B19: Seed
C20: Sprigs and Sprigging | D20: 1 | F20: Acre | G20: 125 | I20: 125 | J20: 0 | K20: 0 | M20: 0 | N20: 0 | O20: 125 | P20: 0 | Q20: 12500 | R20: 0
B21: Fertilizer
C22: Phos (11-52-0 DRY MAT) | D22: 75 | F22: Pounds | G22: 0.4519 | I22: 33.8925 | J22: 0 | K22: 0 | M22: 0 | N22: 0 | O22: 33.8925 | P22: 0 | Q22: 3389.25 | R22: 0
C23: Nitrogen N32-liq | D23: 40 | F23: Pounds | G23: 0.3828 | I23: 15.312 | J23: 0 | K23: 0 | M23: 0 | N23: 0 | O23: 15.312 | P23: 0 | Q23: 1531.2 | R23: 0
B24: Custom
C25: Soil Test-Dryland | D25: 1 | F25: Each | G25: 0.25 | I25: 0.25 | J25: 0 | K25: 0 | M25: 0 | N25: 0 | O25: 0.25 | P25: 0 | Q25: 25 | R25: 0
B26: Miscellaneous
C27: Rainfall Insurance | D27: 1 | F27: Acre | G27: 23.26 | I27: 23.26 | J27: 0 | K27: 0 | M27: 0 | N27: 0 | O27: 23.26 | P27: 0 | Q27: 2326 | R27: 0
D28: 0 | G28: 0 | I28: 0 | J28: 0 | K28: 0 | M28: 0 | N28: 0 | O28: 0 | P28: 0 | Q28: 0 | R28: 0
D29: 0 | G29: 0 | I29: 0 | J29: 0 | K29: 0 | M29: 0 | N29: 0 | O29: 0 | P29: 0 | Q29: 0 | R29: 0
D30: 0 | G30: 0 | I30: 0 | J30: =E30*H30 -> 0 | K30: 0 | M30: 0 | N30: =J30*L30 -> 0 | O30: 0 | P30: =+J30-N30 -> 0 | Q30: 0 | R30: =+J30*E$7 -> 0
B31: Machinery Labor
C32: Tractors/Self-Propelled | D32: 0.51 | F32: Hour | G32: 15 | I32: 7.65 | J32: =E32*H32 -> 0 | K32: 0 | M32: 0 | N32: =J32*L32 -> 0 | O32: 7.65 | P32: =+J32-N32 -> 0 | Q32: 765 | R32: =+J32*E$7 -> 0
C33: Other Labor | D33: 0.06 | F33: Hour | G33: 15 | I33: 0.9 | J33: =E33*H33 -> 0 | K33: 0 | M33: 0 | N33: =J33*L33 -> 0 | O33: 0.9 | P33: =+J33-N33 -> 0 | Q33: 90 | R33: =+J33*E$7 -> 0
B35: Diesel Fuel
C36: Pickup/General Use Equipment | D36: 1 | F36: Acre | G36: 0 | I36: 0 | J36: =E36*H36 -> 0 | K36: 0 | M36: 0 | N36: =J36*L36 -> 0 | O36: 0 | P36: =+J36-N36 -> 0 | Q36: 0 | R36: =+J36*E$7 -> 0
C37: Tractors/Self-Propelled | D37: 3.79 | F37: Gallon | G37: 1.5 | I37: 5.685 | J37: =E37*H37 -> 0 | K37: 0 | M37: 0 | N37: =J37*L37 -> 0 | O37: 5.685 | P37: =+J37-N37 -> 0 | Q37: 568.5 | R37: =+J37*E$7 -> 0
B39: Gasoline
C40: Pickup/General Use Equipment | D40: 1 | F40: Acre | G40: 3.408 | I40: 3.408 | J40: =E40*H40 -> 0 | K40: 0 | M40: 0 | N40: =J40*L40 -> 0 | O40: 3.408 | P40: =+J40-N40 -> 0 | Q40: 340.8 | R40: =+J40*E$7 -> 0
C41: Tractors/Self-Propelled | D41: 0 | F41: Gallon | G41: 1.8 | I41: 0 | J41: =E41*H41 -> 0 | K41: 0 | M41: 0 | N41: =J41*L41 -> 0 | O41: 0 | P41: =+J41-N41 -> 0 | Q41: 0 | R41: =+J41*E$7 -> 0
B43: Repairs & Maintenance
C44: Pickup/General Use Equipment | D44: 1 | F44: Acre | G44: 1.825 | I44: 1.825 | J44: =E44*H44 -> 0 | K44: 0 | M44: 0 | N44: =J44*L44 -> 0 | O44: 1.825 | P44: =+J44-N44 -> 0 | Q44: 182.5 | R44: =+J44*E$7 -> 0
C45: Irrigation Equipment | D45: 1 | F45: Acre | G45: 0 | I45: 0 | J45: 0 | K45: 0 | M45: 0 | N45: 0 | O45: 0 | P45: 0 | Q45: 0 | R45: 0
C46: Tractors/Self-Propelled | D46: 1 | F46: Acre | G46: 9.11143096 | I46: 9.11143096 | J46: 0 | K46: 0 | M46: 0 | N46: 0 | O46: 9.11143096 | P46: 0 | Q46: 911.143096 | R46: 0
C47: Implements | D47: 1 | F47: Acre | G47: 6.376917075 | I47: 6.376917075 | J47: 0 | K47: 0 | M47: 0 | N47: 0 | O47: 6.376917075 | P47: 0 | Q47: 637.6917075 | R47: 0
I48: 0 | J48: 0 | K48: 0 | M48: 0 | N48: 0 | O48: 0 | P48: 0 | Q48: 0 | R48: 0
I49: 0 | J49: 0 | K49: 0 | M49: 0 | N49: 0 | O49: 0 | P49: 0 | Q49: 0 | R49: 0
B50: Interest on Credit Line | G50: 0.0455 | I50: 4.654712225 | J50: =+SUM(J17:J49)/2*H50 -> 0 | M50: 0 | N50: =+SUM(N17:N49)/2*L50 -> 0 | O50: 4.654712225 | P50: =+SUM(P17:P49)/2*L50 -> 0 | Q50: 465.4712225 | R50: =+J50*E$7 -> 0
A51: Total Variable Costs | I51: 239.8130603 | J51: =SUM(J18:J50) -> 0 | M51: 0 | N51: =SUM(N18:N50) -> 0 | O51: 239.8130603 | P51: =SUM(P18:P50) -> 0 | Q51: 23981.30603 | R51: =SUM(R18:R50) -> 0
A52: Planned Returns Above Variable Costs: | I52: -217.3130603 | J52: =+J13-J51 -> 0 | M52: 0 | N52: =+N13-N51 -> 0 | O52: -217.3130603 | P52: =+P13-P51 -> 0 | Q52: -21731.30603 | R52: =+R13-R51 -> 0
B53: Breakeven Price to Cover Variable Costs | G53: 4.796261205 | H53: =IF(E10=0,"n/a",(YVarExp-(YTotExp+YTotRet-J10))/E10) -> n/a | I53: Pound
Q54: Enterprise | R54: Enterprise
A55: FIXED COSTS | D55: Quantity | E55: Quantity | F55: Units | G55: $/Unit | H55: $/Unit | I55: Total | J55: Total | K55: Share | L55: Share | M55: Landlord | N55: Landlord | O55: Tenant | P55: Tenant | Q55: Total | R55: Total
B56: Machinery Depreciation
C57: Pickup/General Use Equipment | D57: 1 | F57: Acre | G57: 3.87 | I57: 3.87 | J57: =E57*H57 -> 0 | K57: 0 | M57: 0 | N57: =J57*L57 -> 0 | O57: 3.87 | P57: =+J57-N57 -> 0 | Q57: 387 | R57: =+J57*E$7 -> 0
C58: Tractors/Self-Propelled | D58: 1 | F58: Acre | G58: 10.12227911 | I58: 10.12227911 | J58: 0 | K58: 0 | M58: 0 | N58: =J58*L58 -> 0 | O58: 10.12227911 | P58: 0 | Q58: 1012.227911 | R58: 0
C59: Implements | D59: 1 | F59: Acre | G59: 9.211623716 | I59: 9.211623716 | J59: 0 | K59: 0 | M59: 0 | N59: =J59*L59 -> 0 | O59: 9.211623716 | P59: 0 | Q59: 921.1623716 | R59: 0
B60: Equipment Investment
C61: Pickup/General Use Equipment | D61: 21.45 | F61: Dollars | G61: 0.055 | I61: 1.17975 | J61: =E61*H61 -> 0 | K61: 0 | M61: 0 | N61: =J61*L61 -> 0 | O61: 1.17975 | P61: =+J61-N61 -> 0 | Q61: 117.975 | R61: =+J61*E$7 -> 0
C62: Tractors/Self-Propelled | D62: 78.35136412 | F62: Dollars | G62: 0.055 | I62: 4.309325026 | J62: 0 | K62: 0 | M62: 0 | N62: =J62*L62 -> 0 | O62: 4.309325026 | P62: 0 | Q62: 430.9325026 | R62: 0
C63: Implements | D63: 39.47243305 | F63: Dollars | G63: 0.055 | I63: 2.170983818 | J63: 0 | K63: 0 | M63: 0 | N63: =J63*L63 -> 0 | O63: 2.170983818 | P63: 0 | Q63: 217.0983818 | R63: 0
B64: Salaried Labor | D64: 1 | F64: Acre | G64: 0 | I64: 0 | J64: 0 | K64: 0 | M64: 0 | N64: =J64*L64 -> 0 | O64: 0 | P64: =+J64-N64 -> 0 | Q64: 0 | R64: =+J64*E$7 -> 0
B65: Management Fee, Owner/Operator Labor | D65: 1 | F65: Acre | G65: 0 | I65: 0 | J65: 0 | K65: 0 | M65: 0 | N65: 0 | O65: 0 | P65: 0 | Q65: 0 | R65: 0
B66: Allocated Establishment Cost | D66: 1 | F66: Acre | G66: 0 | I66: 0 | J66: 0 | K66: 0 | M66: 0 | N66: 0 | O66: 0 | P66: 0 | Q66: 0 | R66: 0
B67: Rent-Dryland Crop | D67: 1 | F67: Acre | G67: 35 | I67: 35 | J67: 0 | K67: 0 | M67: 0 | N67: 0 | O67: 35 | P67: 0 | Q67: 3500 | R67: 0
B68: Property Taxes | D68: 1 | F68: Acre | G68: 0 | I68: 0 | J68: 0 | K68: 0 | M68: 0 | N68: 0 | O68: 0 | P68: 0 | Q68: 0 | R68: 0
B69: Whole Farm Insurance | D69: 1 | F69: Acre | G69: 0 | I69: 0 | J69: 0 | K69: 0 | M69: 0 | N69: 0 | O69: 0 | P69: 0 | Q69: 0 | R69: 0
D70: 1 | G70: 0 | I70: 0 | J70: 0 | K70: 0 | M70: 0 | N70: 0 | O70: 0 | P70: 0 | Q70: 0 | R70: 0
D71: 1 | G71: 0 | I71: 0 | J71: =E71*H71 -> 0 | K71: 0 | M71: 0 | N71: 0 | O71: 0 | P71: 0 | Q71: 0 | R71: 0
A72: Total Fixed Costs | I72: 65.86396167 | J72: =+SUM(J57:J71) -> 0 | M72: 0 | N72: =+SUM(N57:N71) -> 0 | O72: 65.86396167 | P72: =+SUM(P57:P71) -> 0 | Q72: 6586.396167 | R72: =+SUM(R57:R71) -> 0
A73: Total Specified Costs | I73: 305.6770219 | J73: =+J51+J72 -> 0 | M73: 0 | N73: =+N51+N72 -> 0 | O73: 305.6770219 | P73: =+P51+P72 -> 0 | Q73: 30567.70219 | R73: =+R51+R72 -> 0
A75: Returns Above Specified Costs | I75: -283.1770219 | J75: =+J13-J73 -> 0 | M75: 0 | N75: =+N13-N73 -> 0 | O75: -283.1770219 | P75: =+P13-P73 -> 0 | Q75: -28317.70219 | R75: =+R13-R73 -> 0
A77: Breakeven Price to Cover Total Costs | G77: 6.113540439 | H77: =IF(E10=0,"n/a",(YTotExp-(YTotExp+YTotRet-J10))/E10) -> n/a | I77: Pound
D79: Example Breakeven Prices
B80: Example | C80: Example | D80: To Cover | G80: To Cover
B81: Yield | C81: Yield | D81: Variable | G81: Total
B82: Percent | C82: Pound | D82: Costs | G82: Costs
B83: 0.75 | C83: 37.5 | D83: 6.39501494 | G83: 8.151387251
B84: 0.9 | C84: 45 | D84: 5.329179117 | G84: 6.79282271
B85: 1 | C85: 50 | D85: 4.796261205 | G85: 6.113540439
B86: 1.1 | C86: 55 | D86: 4.360237459 | G86: 5.557764035
B87: 1.25 | C87: 62.5 | D87: 3.837008964 | G87: 4.890832351
D89: Your Breakeven Prices
B90: Your | C90: Your | E90: To Cover | H90: To Cover
B91: Yield | C91: Yield | E91: Variable | H91: Total
B92: Percent | C92: Pound | E92: Costs | H92: Costs
B93: 0.75 | C93: =E10*YPER1 -> 0 | E93: =IF($E$10=0,0,(YVarExp-(YTotExp+YTotRet-J10))/($E$10*YPER1)) -> 0 | H93: =IF($E$10=0,0,(YTotExp-(YTotExp+YTotRet-J10))/($E$10*YPER1)) -> 0
B94: 0.9 | C94: =E10*YPER2 -> 0 | E94: =IF($E$10=0,0,(YVarExp-(YTotExp+YTotRet-J10))/($E$10*YPER2)) -> 0 | H94: =IF($E$10=0,0,(YTotExp-(YTotExp+YTotRet-J10))/($E$10*YPER2)) -> 0
B95: 1 | C95: =+E10 -> 0 | E95: =IF($E$10=0,0,(YVarExp-(YTotExp+YTotRet-J10))/($E$10*YPER3)) -> 0 | H95: =IF($E$10=0,0,(YTotExp-(YTotExp+YTotRet-J10))/($E$10*YPER3)) -> 0
B96: 1.1 | C96: =E10*YPER4 -> 0 | E96: =IF($E$10=0,0,(YVarExp-(YTotExp+YTotRet-J10))/($E$10*YPER4)) -> 0 | H96: =IF($E$10=0,0,(YTotExp-(YTotExp+YTotRet-J10))/($E$10*YPER4)) -> 0
B97: 1.25 | C97: =E10*YPER5 -> 0 | E97: =IF($E$10=0,0,(YVarExp-(YTotExp+YTotRet-J10))/($E$10*YPER5)) -> 0 | H97: =IF($E$10=0,0,(YTotExp-(YTotExp+YTotRet-J10))/($E$10*YPER5)) -> 0
A99: Developed by Bill Thompson, Assistant Professor and Extension Economist, Texas A&M AgriLife Extension Service, 325-653-4576.
A101: Information presented is prepared solely as a general guide and not intended to recognize or predict the costs and returns from any one operation. Brand names are mentioned only as examples and imply no endorsement.

Sheet CoastalHayDryland
A1: Projections for Planning Purposes Only -- Not to be Used without Updating
A2: 2021 Estimated Costs and Returns per Acre
A3: Dryland Bermudagrass Hay
A4: Enter your name for this budget in the cell above.
A5: Enter Your Values in the cells highlighed in MAROON.
E6: Your Acres | R6: Your
C7: Crop Acres | D7: 100 | L7: Your | Q7: Enterprise | R7: Enterprise
E8: Your | H8: Your | I8: Cash | J8: Your | K8: Landlord | L8: Landlord | N8: Your | P8: Your | Q8: Total | R8: Total
A9: REVENUE | D9: Quantity | E9: Quantity | F9: Units | G9: $/Unit | H9: $/Unit | I9: Total | J9: Total | K9: Share | L9: Share | M9: Landlord | N9: Landlord | O9: Tenant | P9: Tenant | Q9: (100 acres) | R9: ="(" & E7 & " acres)" -> ( acres)
B10: Hay, 1200# BRB | D10: 3.33 | F10: Ton | G10: 145 | I10: 482.85 | J10: =E10*H10 -> 0 | K10: 0 | M10: 0 | N10: =J10*L10 -> 0 | O10: 482.85 | P10: =+J10-N10 -> 0 | Q10: 48285 | R10: =+J10*E$7 -> 0
D11: 0 | G11: 0 | I11: 0 | J11: 0 | K11: 0 | M11: 0 | N11: 0 | O11: 0 | P11: =+J11-N11 -> 0 | Q11: 0 | R11: 0
D12: 0 | G12: 0 | I12: 0 | J12: 0 | K12: 0 | M12: 0 | N12: 0 | O12: 0 | P12: 0 | Q12: 0 | R12: 0
A13: Total Revenue | I13: 482.85 | J13: =SUM(J10:J12) -> 0 | M13: 0 | N13: =SUM(N10:N12) -> 0 | O13: 482.85 | P13: =SUM(P10:P12) -> 0 | Q13: 48285 | R13: =SUM(R10:R12) -> 0
Q14: Enterprise | R14: Enterprise
A15: VARIABLE COSTS | D15: Quantity | E15: Quantity | F15: Units | G15: $/Unit | H15: $/Unit | I15: Total | J15: Total | K15: Share | L15: Share | M15: Landlord | N15: Landlord | O15: Tenant | P15: Tenant | Q15: Total | R15: Total
A16: Production Costs
B17: Herbicide
C18: 2-4D Amine 4 | D18: 4 | F18: Pint | G18: 1.6125 | I18: 6.45 | J18: =E18*H18 -> 0 | K18: 0 | M18: 0 | N18: =J18*L18 -> 0 | O18: 6.45 | P18: =+J18-N18 -> 0 | Q18: 645 | R18: =+J18*E$7 -> 0
B19: Fertilizer
C20: Nitrogen Dry-Urea | D20: 51 | F20: Pounds | G20: 0.4022 | I20: 20.5122 | J20: 0 | K20: 0 | M20: 0 | N20: 0 | O20: 20.5122 | P20: 0 | Q20: 2051.22 | R20: 0
C21: Phos (11-52-0 DRY MAT) | D21: 12 | F21: Pounds | G21: 0.4519 | I21: 5.4228 | J21: 0 | K21: 0 | M21: 0 | N21: 0 | O21: 5.4228 | P21: 0 | Q21: 542.28 | R21: 0
C22: Potassium | D22: 27 | F22: Pounds | G22: 0.3 | I22: 8.1 | J22: 0 | K22: 0 | M22: 0 | N22: 0 | O22: 8.1 | P22: 0 | Q22: 810 | R22: 0
C23: Nitrogen N32-liq | D23: 64 | F23: Pounds | G23: 0.3828 | I23: 24.4992 | J23: 0 | K23: 0 | M23: 0 | N23: 0 | O23: 24.4992 | P23: 0 | Q23: 2449.92 | R23: 0
B24: Custom
C25: Soil Test-Dryland | D25: 1 | F25: Each | G25: 0.25 | I25: 0.25 | J25: 0 | K25: 0 | M25: 0 | N25: 0 | O25: 0.25 | P25: 0 | Q25: 25 | R25: 0
C26: Swath, Rake and Bale | D26: 3.3 | F26: Bale | G26: 29.58 | I26: 97.614 | J26: 0 | K26: 0 | M26: 0 | N26: 0 | O26: 97.614 | P26: 0 | Q26: 9761.4 | R26: 0
B27: Miscellaneous
C28: Rainfall Insurance | D28: 1 | F28: Acre | G28: 23.26 | I28: 23.26 | J28: 0 | K28: 0 | M28: 0 | N28: 0 | O28: 23.26 | P28: 0 | Q28: 2326 | R28: 0
B29: Insecticide
C30: Dimilin 2L | D30: 1.5 | F30: Ounce | G30: 2.078125 | I30: 3.1171875 | J30: 0 | K30: 0 | M30: 0 | N30: 0 | O30: 3.1171875 | P30: 0 | Q30: 311.71875 | R30: 0
D31: 0 | G31: 0 | I31: 0 | J31: 0 | K31: 0 | M31: 0 | N31: 0 | O31: 0 | P31: 0 | Q31: 0 | R31: 0
D32: 0 | G32: 0 | I32: 0 | J32: 0 | K32: 0 | M32: 0 | N32: 0 | O32: 0 | P32: 0 | Q32: 0 | R32: 0
D33: 0 | G33: 0 | I33: 0 | J33: =E33*H33 -> 0 | K33: 0 | M33: 0 | N33: =J33*L33 -> 0 | O33: 0 | P33: =+J33-N33 -> 0 | Q33: 0 | R33: =+J33*E$7 -> 0
B34: Machinery Labor
C35: Tractors/Self-Propelled | D35: 0.14 | F35: Hour | G35: 15 | I35: 2.1 | J35: =E35*H35 -> 0 | K35: 0 | M35: 0 | N35: =J35*L35 -> 0 | O35: 2.1 | P35: =+J35-N35 -> 0 | Q35: 210 | R35: =+J35*E$7 -> 0
C36: Other Labor | D36: 0 | F36: Hour | G36: 15 | I36: 0 | J36: =E36*H36 -> 0 | K36: 0 | M36: 0 | N36: =J36*L36 -> 0 | O36: 0 | P36: =+J36-N36 -> 0 | Q36: 0 | R36: =+J36*E$7 -> 0
B38: Diesel Fuel
C39: Pickup/General Use Equipment | D39: 1 | F39: Acre | G39: 0 | I39: 0 | J39: =E39*H39 -> 0 | K39: 0 | M39: 0 | N39: =J39*L39 -> 0 | O39: 0 | P39: =+J39-N39 -> 0 | Q39: 0 | R39: =+J39*E$7 -> 0
C40: Tractors/Self-Propelled | D40: 0.9 | F40: Gallon | G40: 1.5 | I40: 1.35 | J40: =E40*H40 -> 0 | K40: 0 | M40: 0 | N40: =J40*L40 -> 0 | O40: 1.35 | P40: =+J40-N40 -> 0 | Q40: 135 | R40: =+J40*E$7 -> 0
B42: Gasoline
C43: Pickup/General Use Equipment | D43: 1 | F43: Acre | G43: 1.8 | I43: 1.8 | J43: =E43*H43 -> 0 | K43: 0 | M43: 0 | N43: =J43*L43 -> 0 | O43: 1.8 | P43: =+J43-N43 -> 0 | Q43: 180 | R43: =+J43*E$7 -> 0
C44: Tractors/Self-Propelled | D44: 0 | F44: Gallon | G44: 1.8 | I44: 0 | J44: =E44*H44 -> 0 | K44: 0 | M44: 0 | N44: =J44*L44 -> 0 | O44: 0 | P44: =+J44-N44 -> 0 | Q44: 0 | R44: =+J44*E$7 -> 0
B46: Repairs & Maintenance
C47: Pickup/General Use Equipment | D47: 1 | F47: Acre | G47: 0.7525 | I47: 0.7525 | J47: =E47*H47 -> 0 | K47: 0 | M47: 0 | N47: =J47*L47 -> 0 | O47: 0.7525 | P47: =+J47-N47 -> 0 | Q47: 75.25 | R47: =+J47*E$7 -> 0
C48: Irrigation Equipment | D48: 1 | F48: Acre | G48: 0 | I48: 0 | J48: 0 | K48: 0 | M48: 0 | N48: 0 | O48: 0 | P48: 0 | Q48: 0 | R48: 0
C49: Tractors/Self-Propelled | D49: 1 | F49: Acre | G49: 1.280314693 | I49: 1.280314693 | J49: 0 | K49: 0 | M49: 0 | N49: 0 | O49: 1.280314693 | P49: 0 | Q49: 128.0314693 | R49: 0
C50: Implements | D50: 1 | F50: Acre | G50: 0.01403035104 | I50: 0.01403035104 | J50: 0 | K50: 0 | M50: 0 | N50: 0 | O50: 0.01403035104 | P50: 0 | Q50: 1.403035104 | R50: 0
I51: 0 | J51: 0 | K51: 0 | M51: 0 | N51: 0 | O51: 0 | P51: 0 | Q51: 0 | R51: 0
I52: 0 | J52: 0 | K52: 0 | M52: 0 | N52: 0 | O52: 0 | P52: 0 | Q52: 0 | R52: 0
B53: Interest on Credit Line | G53: 0.0455 | I53: 2.345208027 | J53: =+SUM(J17:J52)/2*H53 -> 0 | M53: 0 | N53: =+SUM(N17:N52)/2*L53 -> 0 | O53: 2.345208027 | P53: =+SUM(P17:P52)/2*L53 -> 0 | Q53: 234.5208027 | R53: =+J53*E$7 -> 0
A54: Total Variable Costs | I54: 198.8674406 | J54: =SUM(J18:J53) -> 0 | M54: 0 | N54: =SUM(N18:N53) -> 0 | O54: 198.8674406 | P54: =SUM(P18:P53) -> 0 | Q54: 19886.74406 | R54: =SUM(R18:R53) -> 0
A55: Planned Returns Above Variable Costs: | I55: 283.9825594 | J55: =+J13-J54 -> 0 | M55: 0 | N55: =+N13-N54 -> 0 | O55: 283.9825594 | P55: =+P13-P54 -> 0 | Q55: 28398.25594 | R55: =+R13-R54 -> 0
B56: Breakeven Price to Cover Variable Costs | G56: 59.71995212 | H56: =IF(E10=0,"n/a",(YVarExp-(YTotExp+YTotRet-J10))/E10) -> n/a | I56: Ton
Q57: Enterprise | R57: Enterprise
A58: FIXED COSTS | D58: Quantity | E58: Quantity | F58: Units | G58: $/Unit | H58: $/Unit | I58: Total | J58: Total | K58: Share | L58: Share | M58: Landlord | N58: Landlord | O58: Tenant | P58: Tenant | Q58: Total | R58: Total
B59: Machinery Depreciation
C60: Pickup/General Use Equipment | D60: 1 | F60: Acre | G60: 1.575 | I60: 1.575 | J60: =E60*H60 -> 0 | K60: 0 | M60: 0 | N60: =J60*L60 -> 0 | O60: 1.575 | P60: =+J60-N60 -> 0 | Q60: 157.5 | R60: =+J60*E$7 -> 0
C61: Tractors/Self-Propelled | D61: 1 | F61: Acre | G61: 4.500771455 | I61: 4.500771455 | J61: 0 | K61: 0 | M61: 0 | N61: =J61*L61 -> 0 | O61: 4.500771455 | P61: 0 | Q61: 450.0771455 | R61: 0
C62: Implements | D62: 1 | F62: Acre | G62: 0.01079257772 | I62: 0.01079257772 | J62: 0 | K62: 0 | M62: 0 | N62: =J62*L62 -> 0 | O62: 0.01079257772 | P62: 0 | Q62: 1.079257772 | R62: 0
B63: Equipment Investment
C64: Pickup/General Use Equipment | D64: 9.625 | F64: Dollars | G64: 0.055 | I64: 0.529375 | J64: =E64*H64 -> 0 | K64: 0 | M64: 0 | N64: =J64*L64 -> 0 | O64: 0.529375 | P64: =+J64-N64 -> 0 | Q64: 52.9375 | R64: =+J64*E$7 -> 0
C65: Tractors/Self-Propelled | D65: 33.54909528 | F65: Dollars | G65: 0.055 | I65: 1.845200241 | J65: 0 | K65: 0 | M65: 0 | N65: =J65*L65 -> 0 | O65: 1.845200241 | P65: 0 | Q65: 184.5200241 | R65: 0
C66: Implements | D66: 0.1133220661 | F66: Dollars | G66: 0.055 | I66: 0.006232713636 | J66: 0 | K66: 0 | M66: 0 | N66: =J66*L66 -> 0 | O66: 0.006232713636 | P66: 0 | Q66: 0.6232713636 | R66: 0
B67: Salaried Labor | D67: 1 | F67: Acre | G67: 0 | I67: 0 | J67: 0 | K67: 0 | M67: 0 | N67: =J67*L67 -> 0 | O67: 0 | P67: =+J67-N67 -> 0 | Q67: 0 | R67: =+J67*E$7 -> 0
B68: Management Fee, Owner/Operator Labor | D68: 1 | F68: Acre | G68: 0 | I68: 0 | J68: 0 | K68: 0 | M68: 0 | N68: 0 | O68: 0 | P68: 0 | Q68: 0 | R68: 0
B69: Allocated Establishment Cost | D69: 1 | F69: Acre | G69: 56.636 | I69: 56.636 | J69: 0 | K69: 0 | M69: 0 | N69: 0 | O69: 56.636 | P69: 0 | Q69: 5663.6 | R69: 0
B70: Rent-Dryland Crop | D70: 1 | F70: Acre | G70: 35 | I70: 35 | J70: 0 | K70: 0 | M70: 0 | N70: 0 | O70: 35 | P70: 0 | Q70: 3500 | R70: 0
B71: Property Taxes | D71: 1 | F71: Acre | G71: 0 | I71: 0 | J71: 0 | K71: 0 | M71: 0 | N71: 0 | O71: 0 | P71: 0 | Q71: 0 | R71: 0
B72: Whole Farm Insurance | D72: 1 | F72: Acre | G72: 0 | I72: 0 | J72: 0 | K72: 0 | M72: 0 | N72: 0 | O72: 0 | P72: 0 | Q72: 0 | R72: 0
D73: 1 | G73: 0 | I73: 0 | J73: 0 | K73: 0 | M73: 0 | N73: 0 | O73: 0 | P73: 0 | Q73: 0 | R73: 0
D74: 1 | G74: 0 | I74: 0 | J74: =E74*H74 -> 0 | K74: 0 | M74: 0 | N74: 0 | O74: 0 | P74: 0 | Q74: 0 | R74: 0
A75: Total Fixed Costs | I75: 100.103372 | J75: =+SUM(J60:J74) -> 0 | M75: 0 | N75: =+SUM(N60:N74) -> 0 | O75: 100.103372 | P75: =+SUM(P60:P74) -> 0 | Q75: 10010.3372 | R75: =+SUM(R60:R74) -> 0
A76: Total Specified Costs | I76: 298.9708126 | J76: =+J54+J75 -> 0 | M76: 0 | N76: =+N54+N75 -> 0 | O76: 298.9708126 | P76: =+P54+P75 -> 0 | Q76: 29897.08126 | R76: =+R54+R75 -> 0
A78: Returns Above Specified Costs | I78: 183.8791874 | J78: =+J13-J76 -> 0 | M78: 0 | N78: =+N13-N76 -> 0 | O78: 183.8791874 | P78: =+P13-P76 -> 0 | Q78: 18387.91874 | R78: =+R13-R76 -> 0
A80: Breakeven Price to Cover Total Costs | G80: 89.78102479 | H80: =IF(E10=0,"n/a",(YTotExp-(YTotExp+YTotRet-J10))/E10) -> n/a | I80: Ton
D82: Example Breakeven Prices
B83: Example | C83: Example | D83: To Cover | G83: To Cover
B84: Yield | C84: Yield | D84: Variable | G84: Total
B85: Percent | C85: Ton | D85: Costs | G85: Costs
B86: 0.75 | C86: 2.4975 | D86: 79.62660283 | G86: 119.7080331
B87: 0.9 | C87: 2.997 | D87: 66.35550236 | G87: 99.75669421
B88: 1 | C88: 3.33 | D88: 59.71995212 | G88: 89.78102479
B89: 1.1 | C89: 3.663 | D89: 54.29086557 | G89: 81.61911345
B90: 1.25 | C90: 4.1625 | D90: 47.7759617 | G90: 71.82481983
D92: Your Breakeven Prices
B93: Your | C93: Your | E93: To Cover | H93: To Cover
B94: Yield | C94: Yield | E94: Variable | H94: Total
B95: Percent | C95: Ton | E95: Costs | H95: Costs
B96: 0.75 | C96: =E10*YPER1 -> 0 | E96: =IF($E$10=0,0,(YVarExp-(YTotExp+YTotRet-J10))/($E$10*YPER1)) -> 0 | H96: =IF($E$10=0,0,(YTotExp-(YTotExp+YTotRet-J10))/($E$10*YPER1)) -> 0
B97: 0.9 | C97: =E10*YPER2 -> 0 | E97: =IF($E$10=0,0,(YVarExp-(YTotExp+YTotRet-J10))/($E$10*YPER2)) -> 0 | H97: =IF($E$10=0,0,(YTotExp-(YTotExp+YTotRet-J10))/($E$10*YPER2)) -> 0
B98: 1 | C98: =+E10 -> 0 | E98: =IF($E$10=0,0,(YVarExp-(YTotExp+YTotRet-J10))/($E$10*YPER3)) -> 0 | H98: =IF($E$10=0,0,(YTotExp-(YTotExp+YTotRet-J10))/($E$10*YPER3)) -> 0
B99: 1.1 | C99: =E10*YPER4 -> 0 | E99: =IF($E$10=0,0,(YVarExp-(YTotExp+YTotRet-J10))/($E$10*YPER4)) -> 0 | H99: =IF($E$10=0,0,(YTotExp-(YTotExp+YTotRet-J10))/($E$10*YPER4)) -> 0
B100: 1.25 | C100: =E10*YPER5 -> 0 | E100: =IF($E$10=0,0,(YVarExp-(YTotExp+YTotRet-J10))/($E$10*YPER5)) -> 0 | H100: =IF($E$10=0,0,(YTotExp-(YTotExp+YTotRet-J10))/($E$10*YPER5)) -> 0
A102: Developed by Bill Thompson, Assistant Professor and Extension Economist, Texas A&M AgriLife Extension Service, 325-653-4576.
A104: Information presented is prepared solely as a general guide and not intended to recognize or predict the costs and returns from any one operation. Brand names are mentioned only as examples and imply no endorsement.

Sheet OatsDryland
A1: Projections for Planning Purposes Only -- Not to be Used without Updating
A2: 2021 Estimated Costs and Returns per Acre
A3: Dryland Forage Oats, Follow Small Grains
A4: Enter your name for this budget in the cell above.
A5: Enter Your Values in the cells highlighed in MAROON.
E6: Your Acres | R6: Your
C7: Crop Acres | D7: 100 | L7: Your | Q7: Enterprise | R7: Enterprise
E8: Your | H8: Your | I8: Cash | J8: Your | K8: Landlord | L8: Landlord | N8: Your | P8: Your | Q8: Total | R8: Total
A9: REVENUE | D9: Quantity | E9: Quantity | F9: Units | G9: $/Unit | H9: $/Unit | I9: Total | J9: Total | K9: Share | L9: Share | M9: Landlord | N9: Landlord | O9: Tenant | P9: Tenant | Q9: (100 acres) | R9: ="(" & E7 & " acres)" -> ( acres)
B10: Oat Hay | D10: 0.9 | F10: Ton | G10: 170 | I10: 153 | J10: =E10*H10 -> 0 | K10: 0 | M10: 0 | N10: =J10*L10 -> 0 | O10: 153 | P10: =+J10-N10 -> 0 | Q10: 15300 | R10: =+J10*E$7 -> 0
B11: Small Grains Pasture | D11: 15 | F11: Pound of Gain | G11: 0.45 | I11: 6.75 | J11: 0 | K11: 0 | M11: 0 | N11: 0 | O11: 6.75 | P11: =+J11-N11 -> 0 | Q11: 675 | R11: 0
B12: Small Grains Pasture | D12: 15 | F12: Pound of Gain | G12: 0.45 | I12: 6.75 | J12: 0 | K12: 0 | M12: 0 | N12: 0 | O12: 6.75 | P12: 0 | Q12: 675 | R12: 0
B13: Small Grains Pasture | D13: 15 | F13: Pound of Gain | G13: 0.45 | I13: 6.75 | J13: 0 | K13: 0 | M13: 0 | N13: 0 | O13: 6.75 | P13: 0 | Q13: 675 | R13: 0
D14: 0 | G14: 0 | I14: 0 | J14: 0 | K14: 0 | M14: 0 | N14: 0 | O14: 0 | P14: 0 | Q14: 0 | R14: 0
D15: 0 | G15: 0 | I15: 0 | J15: 0 | K15: 0 | M15: 0 | N15: 0 | O15: 0 | P15: 0 | Q15: 0 | R15: 0
A16: Total Revenue | I16: 173.25 | J16: =SUM(J10:J15) -> 0 | M16: 0 | N16: =SUM(N10:N15) -> 0 | O16: 173.25 | P16: 0 | Q16: 17325 | R16: 0
Q17: Enterprise | R17: Enterprise
A18: VARIABLE COSTS | D18: Quantity | E18: Quantity | F18: Units | G18: $/Unit | H18: $/Unit | I18: Total | J18: Total | K18: Share | L18: Share | M18: Landlord | N18: Landlord | O18: Tenant | P18: Tenant | Q18: Total | R18: Total
A19: Production Costs
B20: Seed
C21: Oat Seed | D21: 60 | F21: Pound | G21: 0.33 | I21: 19.8 | J21: =E21*H21 -> 0 | K21: 0 | M21: 0 | N21: =J21*L21 -> 0 | O21: 19.8 | P21: =+J21-N21 -> 0 | Q21: 1980 | R21: =+J21*E$7 -> 0
B22: Fertilizer
C23: Nitrogen Dry-Urea | D23: 5 | F23: Pounds | G23: 0.4022 | I23: 2.011 | J23: 0 | K23: 0 | M23: 0 | N23: 0 | O23: 2.011 | P23: 0 | Q23: 201.1 | R23: 0
C24: Phos (11-52-0 DRY MAT) | D24: 18 | F24: Pounds | G24: 0.4519 | I24: 8.1342 | J24: 0 | K24: 0 | M24: 0 | N24: 0 | O24: 8.1342 | P24: 0 | Q24: 813.42 | R24: 0
B25: Custom
C26: Soil Test-Dryland | D26: 1 | F26: Each | G26: 0.25 | I26: 0.25 | J26: 0 | K26: 0 | M26: 0 | N26: 0 | O26: 0.25 | P26: 0 | Q26: 25 | R26: 0
C27: Swath, Rake and Bale Small | D27: 24 | F27: Bale | G27: 2.53 | I27: 60.72 | J27: 0 | K27: 0 | M27: 0 | N27: 0 | O27: 60.72 | P27: 0 | Q27: 6072 | R27: 0
C28: Custom Haul Small Bale | D28: 24 | F28: Bale | G28: 1.55 | I28: 37.2 | J28: 0 | K28: 0 | M28: 0 | N28: 0 | O28: 37.2 | P28: 0 | Q28: 3720 | R28: 0
B29: Miscellaneous
C30: NAP Insurance | D30: 1 | F30: Acre | G30: 2 | I30: 2 | J30: 0 | K30: 0 | M30: 0 | N30: 0 | O30: 2 | P30: 0 | Q30: 200 | R30: 0
D31: 0 | G31: 0 | I31: 0 | J31: 0 | K31: 0 | M31: 0 | N31: 0 | O31: 0 | P31: 0 | Q31: 0 | R31: 0
D32: 0 | G32: 0 | I32: 0 | J32: 0 | K32: 0 | M32: 0 | N32: 0 | O32: 0 | P32: 0 | Q32: 0 | R32: 0
D33: 0 | G33: 0 | I33: 0 | J33: =E33*H33 -> 0 | K33: 0 | M33: 0 | N33: =J33*L33 -> 0 | O33: 0 | P33: =+J33-N33 -> 0 | Q33: 0 | R33: =+J33*E$7 -> 0
B34: Machinery Labor
C35: Tractors/Self-Propelled | D35: 0.38 | F35: Hour | G35: 15 | I35: 5.7 | J35: =E35*H35 -> 0 | K35: 0 | M35: 0 | N35: =J35*L35 -> 0 | O35: 5.7 | P35: =+J35-N35 -> 0 | Q35: 570 | R35: =+J35*E$7 -> 0
C36: Other Labor | D36: 0 | F36: Hour | G36: 15 | I36: 0 | J36: =E36*H36 -> 0 | K36: 0 | M36: 0 | N36: =J36*L36 -> 0 | O36: 0 | P36: =+J36-N36 -> 0 | Q36: 0 | R36: =+J36*E$7 -> 0
B38: Diesel Fuel
C39: Pickup/General Use Equipment | D39: 1 | F39: Acre | G39: 0 | I39: 0 | J39: =E39*H39 -> 0 | K39: 0 | M39: 0 | N39: =J39*L39 -> 0 | O39: 0 | P39: =+J39-N39 -> 0 | Q39: 0 | R39: =+J39*E$7 -> 0
C40: Tractors/Self-Propelled | D40: 3.13 | F40: Gallon | G40: 1.5 | I40: 4.695 | J40: =E40*H40 -> 0 | K40: 0 | M40: 0 | N40: =J40*L40 -> 0 | O40: 4.695 | P40: =+J40-N40 -> 0 | Q40: 469.5 | R40: =+J40*E$7 -> 0
B42: Gasoline
C43: Pickup/General Use Equipment | D43: 1 | F43: Acre | G43: 1.5792 | I43: 1.5792 | J43: =E43*H43 -> 0 | K43: 0 | M43: 0 | N43: =J43*L43 -> 0 | O43: 1.5792 | P43: =+J43-N43 -> 0 | Q43: 157.92 | R43: =+J43*E$7 -> 0
C44: Tractors/Self-Propelled | D44: 0 | F44: Gallon | G44: 1.8 | I44: 0 | J44: =E44*H44 -> 0 | K44: 0 | M44: 0 | N44: =J44*L44 -> 0 | O44: 0 | P44: =+J44-N44 -> 0 | Q44: 0 | R44: =+J44*E$7 -> 0
B46: Repairs & Maintenance
C47: Pickup/General Use Equipment | D47: 1 | F47: Acre | G47: 1.37 | I47: 1.37 | J47: =E47*H47 -> 0 | K47: 0 | M47: 0 | N47: =J47*L47 -> 0 | O47: 1.37 | P47: =+J47-N47 -> 0 | Q47: 137 | R47: =+J47*E$7 -> 0
C48: Irrigation Equipment | D48: 1 | F48: Acre | G48: 0 | I48: 0 | J48: 0 | K48: 0 | M48: 0 | N48: 0 | O48: 0 | P48: 0 | Q48: 0 | R48: 0
C49: Tractors/Self-Propelled | D49: 1 | F49: Acre | G49: 8.36153773 | I49: 8.36153773 | J49: 0 | K49: 0 | M49: 0 | N49: 0 | O49: 8.36153773 | P49: 0 | Q49: 836.153773 | R49: 0
C50: Implements | D50: 1 | F50: Acre | G50: 12.01347273 | I50: 12.01347273 | J50: 0 | K50: 0 | M50: 0 | N50: 0 | O50: 12.01347273 | P50: 0 | Q50: 1201.347273 | R50: 0
I51: 0 | J51: 0 | K51: 0 | M51: 0 | N51: 0 | O51: 0 | P51: 0 | Q51: 0 | R51: 0
I52: 0 | J52: 0 | K52: 0 | M52: 0 | N52: 0 | O52: 0 | P52: 0 | Q52: 0 | R52: 0
B53: Interest on Credit Line | G53: 0.0455 | I53: 1.50738807 | J53: =+SUM(J20:J52)/2*H53 -> 0 | M53: 0 | N53: =+SUM(N20:N52)/2*L53 -> 0 | O53: 1.50738807 | P53: =+SUM(P20:P52)/2*L53 -> 0 | Q53: 150.738807 | R53: =+J53*E$7 -> 0
A54: Total Variable Costs | I54: 165.3417985 | J54: =SUM(J21:J53) -> 0 | M54: 0 | N54: =SUM(N21:N53) -> 0 | O54: 165.3417985 | P54: =SUM(P21:P53) -> 0 | Q54: 16534.17985 | R54: =SUM(R21:R53) -> 0
A55: Planned Returns Above Variable Costs: | I55: 7.908201468 | J55: =+J16-J54 -> 0 | M55: 0 | N55: =+N16-N54 -> 0 | O55: 7.908201468 | P55: =+P16-P54 -> 0 | Q55: 790.8201468 | R55: =+R16-R54 -> 0
B56: Breakeven Price to Cover Variable Costs | G56: 161.2131095 | H56: =IF(E10=0,"n/a",(YVarExp-(YTotExp+YTotRet-J10))/E10) -> n/a | I56: Ton
Q57: Enterprise | R57: Enterprise
A58: FIXED COSTS | D58: Quantity | E58: Quantity | F58: Units | G58: $/Unit | H58: $/Unit | I58: Total | J58: Total | K58: Share | L58: Share | M58: Landlord | N58: Landlord | O58: Tenant | P58: Tenant | Q58: Total | R58: Total
B59: Machinery Depreciation
C60: Pickup/General Use Equipment | D60: 1 | F60: Acre | G60: 2.988 | I60: 2.988 | J60: =E60*H60 -> 0 | K60: 0 | M60: 0 | N60: =J60*L60 -> 0 | O60: 2.988 | P60: =+J60-N60 -> 0 | Q60: 298.8 | R60: =+J60*E$7 -> 0
C61: Tractors/Self-Propelled | D61: 1 | F61: Acre | G61: 8.640255654 | I61: 8.640255654 | J61: 0 | K61: 0 | M61: 0 | N61: =J61*L61 -> 0 | O61: 8.640255654 | P61: 0 | Q61: 864.0255654 | R61: 0
C62: Implements | D62: 1 | F62: Acre | G62: 15.58380193 | I62: 15.58380193 | J62: 0 | K62: 0 | M62: 0 | N62: =J62*L62 -> 0 | O62: 15.58380193 | P62: 0 | Q62: 1558.380193 | R62: 0
B63: Equipment Investment
C64: Pickup/General Use Equipment | D64: 12.98 | F64: Dollars | G64: 0.055 | I64: 0.7139 | J64: =E64*H64 -> 0 | K64: 0 | M64: 0 | N64: =J64*L64 -> 0 | O64: 0.7139 | P64: =+J64-N64 -> 0 | Q64: 71.39 | R64: =+J64*E$7 -> 0
C65: Tractors/Self-Propelled | D65: 67.31037872 | F65: Dollars | G65: 0.055 | I65: 3.70207083 | J65: 0 | K65: 0 | M65: 0 | N65: =J65*L65 -> 0 | O65: 3.70207083 | P65: 0 | Q65: 370.207083 | R65: 0
C66: Implements | D66: 66.66404157 | F66: Dollars | G66: 0.055 | I66: 3.666522286 | J66: 0 | K66: 0 | M66: 0 | N66: =J66*L66 -> 0 | O66: 3.666522286 | P66: 0 | Q66: 366.6522286 | R66: 0
B67: Salaried Labor | D67: 1 | F67: Acre | G67: 0 | I67: 0 | J67: 0 | K67: 0 | M67: 0 | N67: =J67*L67 -> 0 | O67: 0 | P67: =+J67-N67 -> 0 | Q67: 0 | R67: =+J67*E$7 -> 0
B68: Management Fee, Owner/Operator Labor | D68: 1 | F68: Acre | G68: 0 | I68: 0 | J68: 0 | K68: 0 | M68: 0 | N68: 0 | O68: 0 | P68: 0 | Q68: 0 | R68: 0
B69: Allocated Establishment Cost | D69: 1 | F69: Acre | G69: 0 | I69: 0 | J69: 0 | K69: 0 | M69: 0 | N69: 0 | O69: 0 | P69: 0 | Q69: 0 | R69: 0
B70: Rent-Dryland Crop | D70: 1 | F70: Acre | G70: 35 | I70: 35 | J70: 0 | K70: 0 | M70: 0 | N70: 0 | O70: 35 | P70: 0 | Q70: 3500 | R70: 0
B71: Property Taxes | D71: 1 | F71: Acre | G71: 0 | I71: 0 | J71: 0 | K71: 0 | M71: 0 | N71: 0 | O71: 0 | P71: 0 | Q71: 0 | R71: 0
B72: Whole Farm Insurance | D72: 1 | F72: Acre | G72: 0 | I72: 0 | J72: 0 | K72: 0 | M72: 0 | N72: 0 | O72: 0 | P72: 0 | Q72: 0 | R72: 0
D73: 1 | G73: 0 | I73: 0 | J73: 0 | K73: 0 | M73: 0 | N73: 0 | O73: 0 | P73: 0 | Q73: 0 | R73: 0
D74: 1 | G74: 0 | I74: 0 | J74: =E74*H74 -> 0 | K74: 0 | M74: 0 | N74: 0 | O74: 0 | P74: 0 | Q74: 0 | R74: 0
A75: Total Fixed Costs | I75: 70.2945507 | J75: =+SUM(J60:J74) -> 0 | M75: 0 | N75: =+SUM(N60:N74) -> 0 | O75: 70.2945507 | P75: =+SUM(P60:P74) -> 0 | Q75: 7029.45507 | R75: =+SUM(R60:R74) -> 0
A76: Total Specified Costs | I76: 235.6363492 | J76: =+J54+J75 -> 0 | M76: 0 | N76: =+N54+N75 -> 0 | O76: 235.6363492 | P76: =+P54+P75 -> 0 | Q76: 23563.63492 | R76: =+R54+R75 -> 0
A78: Returns Above Specified Costs | I78: -62.38634923 | J78: =+J16-J76 -> 0 | M78: 0 | N78: =+N16-N76 -> 0 | O78: -62.38634923 | P78: =+P16-P76 -> 0 | Q78: -6238.634923 | R78: =+R16-R76 -> 0
A80: Breakeven Price to Cover Total Costs | G80: 239.3181658 | H80: =IF(E10=0,"n/a",(YTotExp-(YTotExp+YTotRet-J10))/E10) -> n/a | I80: Ton
D82: Example Breakeven Prices
B83: Example | C83: Example | D83: To Cover | G83: To Cover
B84: Yield | C84: Yield | D84: Variable | G84: Total
B85: Percent | C85: Ton | D85: Costs | G85: Costs
B86: 0.75 | C86: 0.675 | D86: 214.9508126 | G86: 319.0908877
B87: 0.9 | C87: 0.81 | D87: 179.1256772 | G87: 265.9090731
B88: 1 | C88: 0.9 | D88: 161.2131095 | G88: 239.3181658
B89: 1.1 | C89: 0.99 | D89: 146.5573723 | G89: 217.5619689
B90: 1.25 | C90: 1.125 | D90: 128.9704876 | G90: 191.4545326
D92: Your Breakeven Prices
B93: Your | C93: Your | E93: To Cover | H93: To Cover
B94: Yield | C94: Yield | E94: Variable | H94: Total
B95: Percent | C95: Ton | E95: Costs | H95: Costs
B96: 0.75 | C96: =E10*YPER1 -> 0 | E96: =IF($E$10=0,0,(YVarExp-(YTotExp+YTotRet-J10))/($E$10*YPER1)) -> 0 | H96: =IF($E$10=0,0,(YTotExp-(YTotExp+YTotRet-J10))/($E$10*YPER1)) -> 0
B97: 0.9 | C97: =E10*YPER2 -> 0 | E97: =IF($E$10=0,0,(YVarExp-(YTotExp+YTotRet-J10))/($E$10*YPER2)) -> 0 | H97: =IF($E$10=0,0,(YTotExp-(YTotExp+YTotRet-J10))/($E$10*YPER2)) -> 0
B98: 1 | C98: =+E10 -> 0 | E98: =IF($E$10=0,0,(YVarExp-(YTotExp+YTotRet-J10))/($E$10*YPER3)) -> 0 | H98: =IF($E$10=0,0,(YTotExp-(YTotExp+YTotRet-J10))/($E$10*YPER3)) -> 0
B99: 1.1 | C99: =E10*YPER4 -> 0 | E99: =IF($E$10=0,0,(YVarExp-(YTotExp+YTotRet-J10))/($E$10*YPER4)) -> 0 | H99: =IF($E$10=0,0,(YTotExp-(YTotExp+YTotRet-J10))/($E$10*YPER4)) -> 0
B100: 1.25 | C100: =E10*YPER5 -> 0 | E100: =IF($E$10=0,0,(YVarExp-(YTotExp+YTotRet-J10))/($E$10*YPER5)) -> 0 | H100: =IF($E$10=0,0,(YTotExp-(YTotExp+YTotRet-J10))/($E$10*YPER5)) -> 0
A102: Developed by Bill Thompson, Assistant Professor and Extension Economist, Texas A&M AgriLife Extension Service, 325-653-4576.
A104: Information presented is prepared solely as a general guide and not intended to recognize or predict the costs and returns from any one operation. Brand names are mentioned only as examples and imply no endorsement.

Sheet WheatDryland
A1: Projections for Planning Purposes Only -- Not to be Used without Updating
A2: 2021 Estimated Costs and Returns per Acre
A3: No-Till Wheat, Dryland, Follow Cotton
A4: Enter your name for this budget in the cell above.
A5: Enter Your Values in the cells highlighed in MAROON.
E6: Your Acres | R6: Your
C7: Crop Acres | D7: 1000 | L7: Your | Q7: Enterprise | R7: Enterprise
E8: Your | H8: Your | I8: Cash | J8: Your | K8: Landlord | L8: Landlord | N8: Your | P8: Your | Q8: Total | R8: Total
A9: REVENUE | D9: Quantity | E9: Quantity | F9: Units | G9: $/Unit | H9: $/Unit | I9: Total | J9: Total | K9: Share | L9: Share | M9: Landlord | N9: Landlord | O9: Tenant | P9: Tenant | Q9: (1000 acres) | R9: ="(" & E7 & " acres)" -> ( acres)
B10: Winter Wheat | D10: 30 | F10: Bushel | G10: 4.6 | I10: 138 | J10: =E10*H10 -> 0 | K10: 0 | M10: 0 | N10: =J10*L10 -> 0 | O10: 138 | P10: =+J10-N10 -> 0 | Q10: 138000 | R10: =+J10*E$7 -> 0
D11: 0 | G11: 0 | I11: 0 | J11: 0 | K11: 0 | M11: 0 | N11: 0 | O11: 0 | P11: =+J11-N11 -> 0 | Q11: 0 | R11: 0
D12: 0 | G12: 0 | I12: 0 | J12: 0 | K12: 0 | M12: 0 | N12: 0 | O12: 0 | P12: 0 | Q12: 0 | R12: 0
A13: Total Revenue | I13: 138 | J13: =SUM(J10:J12) -> 0 | M13: 0 | N13: =SUM(N10:N12) -> 0 | O13: 138 | P13: =SUM(P10:P12) -> 0 | Q13: 138000 | R13: =SUM(R10:R12) -> 0
Q14: Enterprise | R14: Enterprise
A15: VARIABLE COSTS | D15: Quantity | E15: Quantity | F15: Units | G15: $/Unit | H15: $/Unit | I15: Total | J15: Total | K15: Share | L15: Share | M15: Landlord | N15: Landlord | O15: Tenant | P15: Tenant | Q15: Total | R15: Total
A16: Production Costs
B17: Fertilizer
C18: Nitrogen Dry-Urea | D18: 3.8 | F18: Pounds | G18: 0.4022 | I18: 1.52836 | J18: =E18*H18 -> 0 | K18: 0 | M18: 0 | N18: =J18*L18 -> 0 | O18: 1.52836 | P18: =+J18-N18 -> 0 | Q18: 1528.36 | R18: =+J18*E$7 -> 0
C19: Phos (11-52-0 DRY MAT) | D19: 18.2 | F19: Pounds | G19: 0.4519 | I19: 8.22458 | J19: 0 | K19: 0 | M19: 0 | N19: 0 | O19: 8.22458 | P19: 0 | Q19: 8224.58 | R19: 0
C20: Nitrogen N32-liq | D20: 35.2 | F20: Pounds | G20: 0.3828 | I20: 13.47456 | J20: 0 | K20: 0 | M20: 0 | N20: 0 | O20: 13.47456 | P20: 0 | Q20: 13474.56 | R20: 0
B21: Custom
C22: Soil Test-Dryland | D22: 1 | F22: Each | G22: 0.25 | I22: 0.25 | J22: 0 | K22: 0 | M22: 0 | N22: 0 | O22: 0.25 | P22: 0 | Q22: 250 | R22: 0
C23: Custom Harvest small grains | D23: 1 | F23: Acre | G23: 23 | I23: 23 | J23: 0 | K23: 0 | M23: 0 | N23: 0 | O23: 23 | P23: 0 | Q23: 23000 | R23: 0
C24: Custom Haul small grains | D24: 30 | F24: Bushels | G24: 0.25 | I24: 7.5 | J24: 0 | K24: 0 | M24: 0 | N24: 0 | O24: 7.5 | P24: 0 | Q24: 7500 | R24: 0
C25: Custom Harvest Overage small grains | D25: 6 | F25: Bushels | G25: 0.23 | I25: 1.38 | J25: 0 | K25: 0 | M25: 0 | N25: 0 | O25: 1.38 | P25: 0 | Q25: 1380 | R25: 0
B26: Seed
C27: Wheat Seed | D27: 55 | F27: Pounds | G27: 0.2667 | I27: 14.6685 | J27: 0 | K27: 0 | M27: 0 | N27: 0 | O27: 14.6685 | P27: 0 | Q27: 14668.5 | R27: 0
B28: Herbicide
C29: MCPA | D29: 1 | F29: pint | G29: 3.1 | I29: 3.1 | J29: 0 | K29: 0 | M29: 0 | N29: 0 | O29: 3.1 | P29: 0 | Q29: 3100 | R29: 0
C30: MSM (Ally) | D30: 0.1 | F30: Ounce | G30: 4.5 | I30: 0.45 | J30: 0 | K30: 0 | M30: 0 | N30: 0 | O30: 0.45 | P30: 0 | Q30: 450 | R30: 0
B31: Miscellaneous
C32: Wht RP 70%, Ent, | D32: 1 | F32: Acre | G32: 3.09 | I32: 3.09 | J32: 0 | K32: 0 | M32: 0 | N32: 0 | O32: 3.09 | P32: 0 | Q32: 3090 | R32: 0
B33: Fungicides
C34: Wheat Fungicide | D34: 8 | F34: Ounce | G34: 0.5 | I34: 4 | J34: 0 | K34: 0 | M34: 0 | N34: 0 | O34: 4 | P34: 0 | Q34: 4000 | R34: 0
D35: 0 | G35: 0 | I35: 0 | J35: 0 | K35: 0 | M35: 0 | N35: 0 | O35: 0 | P35: 0 | Q35: 0 | R35: 0
D36: 0 | G36: 0 | I36: 0 | J36: 0 | K36: 0 | M36: 0 | N36: 0 | O36: 0 | P36: 0 | Q36: 0 | R36: 0
D37: 0 | G37: 0 | I37: 0 | J37: =E37*H37 -> 0 | K37: 0 | M37: 0 | N37: =J37*L37 -> 0 | O37: 0 | P37: =+J37-N37 -> 0 | Q37: 0 | R37: =+J37*E$7 -> 0
B38: Machinery Labor
C39: Tractors/Self-Propelled | D39: 0.28 | F39: Hour | G39: 15 | I39: 4.2 | J39: =E39*H39 -> 0 | K39: 0 | M39: 0 | N39: =J39*L39 -> 0 | O39: 4.2 | P39: =+J39-N39 -> 0 | Q39: 4200 | R39: =+J39*E$7 -> 0
C40: Other Labor | D40: 0.09 | F40: Hour | G40: 15 | I40: 1.35 | J40: =E40*H40 -> 0 | K40: 0 | M40: 0 | N40: =J40*L40 -> 0 | O40: 1.35 | P40: =+J40-N40 -> 0 | Q40: 1350 | R40: =+J40*E$7 -> 0
B42: Diesel Fuel
C43: Pickup/General Use Equipment | D43: 1 | F43: Acre | G43: 0 | I43: 0 | J43: =E43*H43 -> 0 | K43: 0 | M43: 0 | N43: =J43*L43 -> 0 | O43: 0 | P43: =+J43-N43 -> 0 | Q43: 0 | R43: =+J43*E$7 -> 0
C44: Tractors/Self-Propelled | D44: 3.37 | F44: Gallon | G44: 1.5 | I44: 5.055 | J44: =E44*H44 -> 0 | K44: 0 | M44: 0 | N44: =J44*L44 -> 0 | O44: 5.055 | P44: =+J44-N44 -> 0 | Q44: 5055 | R44: =+J44*E$7 -> 0
B46: Gasoline
C47: Pickup/General Use Equipment | D47: 1 | F47: Acre | G47: 1.49952 | I47: 1.49952 | J47: =E47*H47 -> 0 | K47: 0 | M47: 0 | N47: =J47*L47 -> 0 | O47: 1.49952 | P47: =+J47-N47 -> 0 | Q47: 1499.52 | R47: =+J47*E$7 -> 0
C48: Tractors/Self-Propelled | D48: 0 | F48: Gallon | G48: 1.8 | I48: 0 | J48: =E48*H48 -> 0 | K48: 0 | M48: 0 | N48: =J48*L48 -> 0 | O48: 0 | P48: =+J48-N48 -> 0 | Q48: 0 | R48: =+J48*E$7 -> 0
B50: Repairs & Maintenance
C51: Pickup/General Use Equipment | D51: 1 | F51: Acre | G51: 0.803 | I51: 0.803 | J51: =E51*H51 -> 0 | K51: 0 | M51: 0 | N51: =J51*L51 -> 0 | O51: 0.803 | P51: =+J51-N51 -> 0 | Q51: 803 | R51: =+J51*E$7 -> 0
C52: Irrigation Equipment | D52: 1 | F52: Acre | G52: 0 | I52: 0 | J52: 0 | K52: 0 | M52: 0 | N52: 0 | O52: 0 | P52: 0 | Q52: 0 | R52: 0
C53: Tractors/Self-Propelled | D53: 1 | F53: Acre | G53: 8.45880833 | I53: 8.45880833 | J53: 0 | K53: 0 | M53: 0 | N53: 0 | O53: 8.45880833 | P53: 0 | Q53: 8458.80833 | R53: 0
C54: Implements | D54: 1 | F54: Acre | G54: 9.875738528 | I54: 9.875738528 | J54: 0 | K54: 0 | M54: 0 | N54: 0 | O54: 9.875738528 | P54: 0 | Q54: 9875.738528 | R54: 0
I55: 0 | J55: 0 | K55: 0 | M55: 0 | N55: 0 | O55: 0 | P55: 0 | Q55: 0 | R55: 0
I56: 0 | J56: 0 | K56: 0 | M56: 0 | N56: 0 | O56: 0 | P56: 0 | Q56: 0 | R56: 0
B57: Interest on Credit Line | G57: 0.0455 | I57: 1.69946239 | J57: =+SUM(J17:J56)/2*H57 -> 0 | M57: 0 | N57: =+SUM(N17:N56)/2*L57 -> 0 | O57: 1.69946239 | P57: =+SUM(P17:P56)/2*L57 -> 0 | Q57: 1699.46239 | R57: =+J57*E$7 -> 0
A58: Total Variable Costs | I58: 113.6075292 | J58: =SUM(J18:J57) -> 0 | M58: 0 | N58: =SUM(N18:N57) -> 0 | O58: 113.6075292 | P58: =SUM(P18:P57) -> 0 | Q58: 113607.5292 | R58: =SUM(R18:R57) -> 0
A59: Planned Returns Above Variable Costs: | I59: 24.39247075 | J59: =+J13-J58 -> 0 | M59: 0 | N59: =+N13-N58 -> 0 | O59: 24.39247075 | P59: =+P13-P58 -> 0 | Q59: 24392.47075 | R59: =+R13-R58 -> 0
B60: Breakeven Price to Cover Variable Costs | G60: 3.786917642 | H60: =IF(E10=0,"n/a",(YVarExp-(YTotExp+YTotRet-J10))/E10) -> n/a | I60: Bushel
Q61: Enterprise | R61: Enterprise
A62: FIXED COSTS | D62: Quantity | E62: Quantity | F62: Units | G62: $/Unit | H62: $/Unit | I62: Total | J62: Total | K62: Share | L62: Share | M62: Landlord | N62: Landlord | O62: Tenant | P62: Tenant | Q62: Total | R62: Total
B63: Machinery Depreciation
C64: Pickup/General Use Equipment | D64: 1 | F64: Acre | G64: 1.7028 | I64: 1.7028 | J64: =E64*H64 -> 0 | K64: 0 | M64: 0 | N64: =J64*L64 -> 0 | O64: 1.7028 | P64: =+J64-N64 -> 0 | Q64: 1702.8 | R64: =+J64*E$7 -> 0
C65: Tractors/Self-Propelled | D65: 1 | F65: Acre | G65: 11.99787971 | I65: 11.99787971 | J65: 0 | K65: 0 | M65: 0 | N65: =J65*L65 -> 0 | O65: 11.99787971 | P65: 0 | Q65: 11997.87971 | R65: 0
C66: Implements | D66: 1 | F66: Acre | G66: 13.3218224 | I66: 13.3218224 | J66: 0 | K66: 0 | M66: 0 | N66: =J66*L66 -> 0 | O66: 13.3218224 | P66: 0 | Q66: 13321.8224 | R66: 0
B67: Equipment Investment
C68: Pickup/General Use Equipment | D68: 9.438 | F68: Dollars | G68: 0.055 | I68: 0.51909 | J68: =E68*H68 -> 0 | K68: 0 | M68: 0 | N68: =J68*L68 -> 0 | O68: 0.51909 | P68: =+J68-N68 -> 0 | Q68: 519.09 | R68: =+J68*E$7 -> 0
C69: Tractors/Self-Propelled | D69: 91.95398704 | F69: Dollars | G69: 0.055 | I69: 5.057469287 | J69: 0 | K69: 0 | M69: 0 | N69: =J69*L69 -> 0 | O69: 5.057469287 | P69: 0 | Q69: 5057.469287 | R69: 0
C70: Implements | D70: 56.98779583 | F70: Dollars | G70: 0.055 | I70: 3.134328771 | J70: 0 | K70: 0 | M70: 0 | N70: =J70*L70 -> 0 | O70: 3.134328771 | P70: 0 | Q70: 3134.328771 | R70: 0
B71: Salaried Labor | D71: 1 | F71: Acre | G71: 0 | I71: 0 | J71: 0 | K71: 0 | M71: 0 | N71: =J71*L71 -> 0 | O71: 0 | P71: =+J71-N71 -> 0 | Q71: 0 | R71: =+J71*E$7 -> 0
B72: Management Fee, Owner/Operator Labor | D72: 1 | F72: Acre | G72: 0 | I72: 0 | J72: 0 | K72: 0 | M72: 0 | N72: 0 | O72: 0 | P72: 0 | Q72: 0 | R72: 0
B73: Allocated Establishment Cost | D73: 1 | F73: Acre | G73: 0 | I73: 0 | J73: 0 | K73: 0 | M73: 0 | N73: 0 | O73: 0 | P73: 0 | Q73: 0 | R73: 0
B74: Rent-Dryland Crop | D74: 1 | F74: Acre | G74: 35 | I74: 35 | J74: 0 | K74: 0 | M74: 0 | N74: 0 | O74: 35 | P74: 0 | Q74: 35000 | R74: 0
B75: Property Taxes | D75: 1 | F75: Acre | G75: 0 | I75: 0 | J75: 0 | K75: 0 | M75: 0 | N75: 0 | O75: 0 | P75: 0 | Q75: 0 | R75: 0
B76: Whole Farm Insurance | D76: 1 | F76: Acre | G76: 0 | I76: 0 | J76: 0 | K76: 0 | M76: 0 | N76: 0 | O76: 0 | P76: 0 | Q76: 0 | R76: 0
D77: 1 | G77: 0 | I77: 0 | J77: 0 | K77: 0 | M77: 0 | N77: 0 | O77: 0 | P77: 0 | Q77: 0 | R77: 0
D78: 1 | G78: 0 | I78: 0 | J78: =E78*H78 -> 0 | K78: 0 | M78: 0 | N78: 0 | O78: 0 | P78: 0 | Q78: 0 | R78: 0
A79: Total Fixed Costs | I79: 70.73339017 | J79: =+SUM(J64:J78) -> 0 | M79: 0 | N79: =+SUM(N64:N78) -> 0 | O79: 70.73339017 | P79: =+SUM(P64:P78) -> 0 | Q79: 70733.39017 | R79: =+SUM(R64:R78) -> 0
A80: Total Specified Costs | I80: 184.3409194 | J80: =+J58+J79 -> 0 | M80: 0 | N80: =+N58+N79 -> 0 | O80: 184.3409194 | P80: =+P58+P79 -> 0 | Q80: 184340.9194 | R80: =+R58+R79 -> 0
A82: Returns Above Specified Costs | I82: -46.34091942 | J82: =+J13-J80 -> 0 | M82: 0 | N82: =+N13-N80 -> 0 | O82: -46.34091942 | P82: =+P13-P80 -> 0 | Q82: -46340.91942 | R82: =+R13-R80 -> 0
A84: Breakeven Price to Cover Total Costs | G84: 6.144697314 | H84: =IF(E10=0,"n/a",(YTotExp-(YTotExp+YTotRet-J10))/E10) -> n/a | I84: Bushel
D86: Example Breakeven Prices
B87: Example | C87: Example | D87: To Cover | G87: To Cover
B88: Yield | C88: Yield | D88: Variable | G88: Total
B89: Percent | C89: Bushel | D89: Costs | G89: Costs
B90: 0.75 | C90: 22.5 | D90: 5.049223522 | G90: 8.192929752
B91: 0.9 | C91: 27 | D91: 4.207686268 | G91: 6.82744146
B92: 1 | C92: 30 | D92: 3.786917642 | G92: 6.144697314
B93: 1.1 | C93: 33 | D93: 3.442652401 | G93: 5.586088467
B94: 1.25 | C94: 37.5 | D94: 3.029534113 | G94: 4.915757851
D96: Your Breakeven Prices
B97: Your | C97: Your | E97: To Cover | H97: To Cover
B98: Yield | C98: Yield | E98: Variable | H98: Total
B99: Percent | C99: Bushel | E99: Costs | H99: Costs
B100: 0.75 | C100: =E10*YPER1 -> 0 | E100: =IF($E$10=0,0,(YVarExp-(YTotExp+YTotRet-J10))/($E$10*YPER1)) -> 0 | H100: =IF($E$10=0,0,(YTotExp-(YTotExp+YTotRet-J10))/($E$10*YPER1)) -> 0
B101: 0.9 | C101: =E10*YPER2 -> 0 | E101: =IF($E$10=0,0,(YVarExp-(YTotExp+YTotRet-J10))/($E$10*YPER2)) -> 0 | H101: =IF($E$10=0,0,(YTotExp-(YTotExp+YTotRet-J10))/($E$10*YPER2)) -> 0
B102: 1 | C102: =+E10 -> 0 | E102: =IF($E$10=0,0,(YVarExp-(YTotExp+YTotRet-J10))/($E$10*YPER3)) -> 0 | H102: =IF($E$10=0,0,(YTotExp-(YTotExp+YTotRet-J10))/($E$10*YPER3)) -> 0
B103: 1.1 | C103: =E10*YPER4 -> 0 | E103: =IF($E$10=0,0,(YVarExp-(YTotExp+YTotRet-J10))/($E$10*YPER4)) -> 0 | H103: =IF($E$10=0,0,(YTotExp-(YTotExp+YTotRet-J10))/($E$10*YPER4)) -> 0
B104: 1.25 | C104: =E10*YPER5 -> 0 | E104: =IF($E$10=0,0,(YVarExp-(YTotExp+YTotRet-J10))/($E$10*YPER5)) -> 0 | H104: =IF($E$10=0,0,(YTotExp-(YTotExp+YTotRet-J10))/($E$10*YPER5)) -> 0
A106: Developed by Bill Thompson, Assistant Professor and Extension Economist, Texas A&M AgriLife Extension Service, 325-653-4576.
A108: Information presented is prepared solely as a general guide and not intended to recognize or predict the costs and returns from any one operation. Brand names are mentioned only as examples and imply no endorsement.

Sheet CowCalf
A1: Projections for Planning Purposes Only -- Not to be Used without Updating
A2: 2021 Estimated Costs and Returns per Animal Unit
A3: Cow-Calf Native Pasture
A4: Enter your name for this budget in the cell above.
A5: Enter Your Values in the cells highlighed in MAROON.
E6: Your Cows
B7: Animal Units (AU) | D7: 100 | F7: Animal Unit | N7: Your
B8: Breeding Females | D8: 100 | F8: Calf | G8: Your | M8: Enterprise | N8: Enterprise
E9: Your | F9: Quantity | G9: Quantity | J9: Your | L9: Your | M9: Total | N9: Total
A10: REVENUE | D10: Head | E10: Head | F10: Per Head | G10: Per Head | H10: Units | I10: $/Unit | J10: $/Unit | K10: Total | L10: Total | M10: ="(" & D7 & " AUs)" -> (100 AUs) | N10: ="(" & E7 & " AUs)" -> ( AUs)
B11: Weaned Steer Calf | D11: 0.42 | F11: 5.5 | H11: CWT | I11: 152.5 | K11: 352.275 | L11: =+E11*G11*J11 -> 0 | M11: 35227.5 | N11: =+L11*E$7 -> 0
B12: Weaned Heifer Calf | D12: 0.26 | F12: 5.25 | H12: CWT | I12: 141.5 | K12: 193.1475 | L12: =+E12*G12*J12 -> 0 | M12: 19314.75 | N12: =+L12*E$7 -> 0
B13: Cull Cow | D13: 0.15 | F13: 9 | H13: CWT | I13: 60 | K13: 81 | L13: 0 | M13: 8100 | N13: 0
B14: Cull Bull | D14: 0.01 | F14: 18 | H14: CWT | I14: 70 | K14: 12.6 | L14: 0 | M14: 1260 | N14: 0
B15: PRF Income | D15: 1 | F15: 30 | H15: Acre | I15: 1.96 | K15: 58.8 | L15: 0 | M15: 5880 | N15: 0
D16: 0 | F16: 0 | I16: 0 | K16: 0 | L16: 0 | M16: 0 | N16: 0
D17: 0 | F17: 0 | I17: 0 | K17: 0 | L17: 0 | M17: 0 | N17: 0
A18: Total Revenue | F18: 367.5 | K18: 697.8225 | L18: =+SUM(L11:L17) -> 0 | M18: 69782.25 | N18: =+SUM(N11:N17) -> 0
F19: 520.5
F20: 153 | M20: Enterprise | N20: Enterprise
A21: VARIABLE COSTS | F21: Quantity | G21: Quantity | H21: Units | I21: $/Unit | J21: $/Unit | K21: Total | L21: Total | M21: Total | N21: Total
A22: Production Costs
B23: Miscellaneous
C24: Supplies | F24: 1 | H24: AU | I24: 15 | K24: 15 | L24: =+J24*G24 -> 0 | M24: 1500 | N24: =+L24*E$7 -> 0
C25: Predator Control - Cattle | F25: 1 | H25: AU | I25: 3.85 | K25: 3.85 | L25: 0 | M25: 385 | N25: 0
C26: Brush Control | F26: 1 | H26: AU | I26: 30 | K26: 30 | L26: 0 | M26: 3000 | N26: 0
C27: PRF Rainfall Ins | F27: 1 | H27: AU | I27: 33.3 | K27: 33.3 | L27: 0 | M27: 3330 | N27: 0
F28: 1 | I28: 0 | K28: 0 | L28: 0 | M28: 0 | N28: 0
F29: 1 | I29: 0 | K29: 0 | L29: 0 | M29: 0 | N29: 0
B30: Marketing Expense | F30: 1 | H30: AU | I30: 21.008 | K30: 21.008 | L30: 0 | M30: 2100.8 | N30: 0
B31: Feed
C32: Range Mineral | F32: 49.2 | H32: pound | I32: 0.437 | K32: 21.5004 | L32: =+J32*G32 -> 0 | M32: 2150.04 | N32: =+L32*E$7 -> 0
C33: Hay | F33: 0.3 | H33: Ton | I33: 150 | K33: 45 | L33: 0 | M33: 4500 | N33: 0
C34: Range Cubes 20% | F34: 1.2 | H34: CWT | I34: 17.9 | K34: 21.48 | L34: 0 | M34: 2148 | N34: 0
F35: 0 | I35: 0 | K35: 0 | L35: 0 | M35: 0 | N35: 0
F36: 0 | I36: 0 | K36: 0 | L36: 0 | M36: 0 | N36: 0
F37: 0 | I37: 0 | K37: 0 | L37: 0 | M37: 0 | N37: 0
B38: Vet. Medicine
C39: Bull Exam | F39: 0.04 | H39: Head | I39: 50 | K39: 2 | L39: =+J39*G39 -> 0 | M39: 200 | N39: =+L39*E$7 -> 0
C40: IBR,BVD, PI3,BRSV-Bulls | F40: 0.04 | H40: Head | I40: 1.2772 | K40: 0.051088 | L40: 0 | M40: 5.1088 | N40: 0
C41: Vibro/lepto-Bulls | F41: 0.08 | H41: Dose | I41: 0.7798 | K41: 0.062384 | L41: 0 | M41: 6.2384 | N41: 0
C42: Deworm-Bulls | F42: 0.08 | H42: Head | I42: 0.33 | K42: 0.0264 | L42: 0 | M42: 2.64 | N42: 0
C43: Cylence-Fly and Lice-Bulls | F43: 0.48 | H43: ML | I43: 0.0385 | K43: 0.01848 | L43: 0 | M43: 1.848 | N43: 0
C44: IBR,BVD, PI3, BRVS-Cows | F44: 1 | H44: Head | I44: 1.2772 | K44: 1.2772 | L44: 0 | M44: 127.72 | N44: 0
C45: Vibrio/Lepto-Cows | F45: 2 | H45: Dose | I45: 0.7798 | K45: 1.5596 | L45: 0 | M45: 155.96 | N45: 0
C46: Deworm-Cows | F46: 2 | H46: Head | I46: 0.33 | K46: 0.66 | L46: 0 | M46: 66 | N46: 0
C47: Covexin 8-Cows | F47: 2 | H47: Head | I47: 0.939 | K47: 1.878 | L47: 0 | M47: 187.8 | N47: 0
C48: Cylence-Fly and Lice-Cows | F48: 12 | H48: ML | I48: 0.0385 | K48: 0.462 | L48: 0 | M48: 46.2 | N48: 0
C49: Covexin 8-Calves | F49: 1.96 | H49: Head | I49: 0.939 | K49: 1.84044 | L49: 0 | M49: 184.044 | N49: 0
C50: IBR,BVD,PI3,BRVS-Calves | F50: 1.96 | H50: Head | I50: 1.2772 | K50: 2.503312 | L50: 0 | M50: 250.3312 | N50: 0
C51: Implants-Calves | F51: 0.98 | H51: Head | I51: 1.58125 | K51: 1.549625 | L51: 0 | M51: 154.9625 | N51: 0
C52: Cylence-fly and lice-Calves | F52: 19.6 | H52: ML | I52: 0.0385 | K52: 0.7546 | L52: 0 | M52: 75.46 | N52: 0
F53: 0 | I53: 0 | K53: 0 | L53: 0 | M53: 0 | N53: 0
F54: 0 | I54: 0 | K54: 0 | L54: 0 | M54: 0 | N54: 0
F55: 0 | I55: 0 | K55: 0 | L55: 0 | M55: 0 | N55: 0
B56: Fuel | F56: 1 | H56: AU | I56: 37.8 | K56: 37.8 | L56: 0 | M56: 3780 | N56: 0
B57: Lube (As a % of fuel) | F57: 0.1 | H57: Percent | I57: 37.8 | K57: 3.78 | L57: 0 | M57: 378 | N57: 0
B58: Repairs | F58: 1 | H58: AU | I58: 66.92045714 | K58: 66.92045714 | L58: 0 | M58: 6692.045714 | N58: 0
B59: Labor | F59: 0.4 | H59: Hours | I59: 15 | K59: 6 | L59: 0 | M59: 600 | N59: 0
B60: Utilities | F60: 1 | H60: AU | I60: 24 | K60: 24 | L60: 0 | M60: 2400 | N60: 0
K61: 0 | L61: =+J61*G61 -> 0 | M61: 0 | N61: 0
B62: Purchase Breeding Female | F62: 1 | I62: 0 | K62: 0 | L62: 0 | M62: 0 | N62: 0
B63: Purchase Breeding Male | F63: 1 | I63: 0 | K63: 0 | L63: 0 | M63: 0 | N63: 0
B64: Purchase Older Repalcement Female | F64: 1 | I64: 0 | K64: 0 | L64: 0 | M64: 0 | N64: 0
B65: Purchase Younger Repalcement Female | F65: 1 | I65: 0 | K65: 0 | L65: 0 | M65: 0 | N65: 0
B66: Interest on Credit Line | I66: 0.0475 | K66: 14.09026719 | L66: =+SUM(L22:L65)/2*J66 -> 0 | M66: 1409.026719 | N66: 0
A67: Total Variable Costs | K67: 358.3722533 | L67: =+SUM(L24:L66) -> 0 | M67: 35837.22533 | N67: =+SUM(N24:N66) -> 0
A69: Planned Returns Above Variable Costs: | K69: 339.4502467 | L69: =+L18-L67 -> 0 | M69: 33945.02467 | N69: =+N18-N67 -> 0
B70: Average Calf Breakeven Price to Cover Variable Costs | I70: 56.04687165 | J70: =IF((E11*G11+E12*G12)=0,"n/a",(L67-SUM(L13:L17))/(E11*G11+E12*G12)) -> n/a | K70: CWT
M71: Enterprise | N71: Enterprise
A72: FIXED COSTS | F72: Quantity | G72: Quantity | H72: Units | I72: $/Unit | J72: $/Unit | K72: Total | L72: Total | M72: Total | N72: Total
B73: Depreciation - Equipment | F73: 1 | H73: AU | I73: 68.09669019 | K73: 68.09669019 | L73: =+G73*J73 -> 0 | M73: 6809.669019 | N73: =+L73*E$7 -> 0
B74: Depreciation - Livestock | F74: 1 | H74: AU | I74: 18.15 | K74: 18.15 | L74: 0 | M74: 1815 | N74: 0
B75: Equipment Investment | F75: 2090.27911 | H75: dollars | I75: 0.055 | K75: 114.965351 | L75: 0 | M75: 11496.5351 | N75: 0
B76: Insurance | F76: 1 | H76: AU | I76: 0 | K76: 0 | L76: 0 | M76: 0 | N76: 0
B77: Management Fee, Owner/Operator Labor | F77: 1 | H77: AU | I77: 0 | K77: 0 | L77: =+J77*G77 -> 0 | M77: 0 | N77: 0
B78: Salaried Labor | F78: 1 | H78: AU | I78: 0 | K78: 0 | L78: =+J78*G78 -> 0 | M78: 0 | N78: 0
B79: Pasture Cost | F79: 30 | H79: Acres | I79: 8 | K79: 240 | L79: 0 | M79: 24000 | N79: 0
K80: 0 | L80: =+G80*J80 -> 0 | M80: 0 | N80: 0
K81: 0 | L81: 0 | M81: 0 | N81: 0
A82: Total Fixed Costs | K82: 441.2120412 | L82: =+SUM(L73:L79) -> 0 | M82: 44121.20412 | N82: =+SUM(N73:N79) -> 0
A83: Total Costs | K83: 799.5842946 | L83: =+L67+L82 -> 0 | M83: 79958.42946 | N83: =+N67+N82 -> 0
A84: Planned Returns to Management, Risk, and Profit: | K84: -101.7617946 | L84: =+L18-L83 -> 0 | M84: -10176.17946 | N84: =+N18-N83 -> 0
B85: Average Calf Breakeven Price to Cover Total Costs | I85: 176.10457 | J85: =IF((E11*G11+E12*G12)=0,"n/a",(L83-SUM(L13:L17))/(E11*G11+E12*G12)) -> n/a | K85: CWT
C87: Sensitivity Analysis for Example
C88: Example Weaning Percent | D88: Example Gross Sales per Animal Unit | F88: Pounds Produced per Animal Unit | H88: Example Breakeven Calf Pay Weight to Cover Total Cost | K88: Example Average Breakeven Price to Cover Total Cost
C89: 0.89 | D89: 737.2506325 | F89: 547.0662651 | H89: 589.2784288 | K89: 164.2323518
C90: 0.86 | D90: 717.5365663 | F90: 533.7831325 | H90: 614.1775174 | K90: 169.9613873
C91: 0.83 | D91: 697.8225 | F91: 520.5 | H91: 641.2735843 | K91: 176.10457
C92: 0.8 | D92: 678.1084337 | F92: 507.2168675 | H92: 670.8708267 | K92: 182.7084913
C93: 0.77 | D93: 658.3943675 | F93: 493.9337349 | H93: 703.3323183 | K93: 189.827004
D95: ="Example Male "&F8&" Price" -> Example Male Calf Price | K95: =+I11 -> 152.5
D96: ="Example Female "&F8&" Price" -> Example Female Calf Price | K96: =+I12 -> 141.5
D97: ="Example Weighted Average "&F8&" Price ($/cwt)" -> Example Weighted Average Calf Price ($/cwt) | K97: =+(K11+K12)/(D11*F11+D12*F12) -> 148.4142857
C98: Sensitivity Analysis for Your Values
C99: Your Weaning Percent | D99: ="Your Gross Sales per "&F7 -> Your Gross Sales per Animal Unit | F99: ="Pounds Produced per "&F7 -> Pounds Produced per Animal Unit | H99: ="Your Breakeven "&F8&" Pay Weight to Cover Total Cost" -> Your Breakeven Calf Pay Weight to Cover Total Cost | K99: Your Average Breakeven Price to Cover Total Cost
C100: =+C101+C89-C90 -> 1.06 | D100: =+IF($C$102=0,0,$L$18-$L$11-$L$12+($L$11+$L$12)*C100/$C$102) -> 0 | F100: =IF($C$102=0,0,$M$106*C100/$C$102+$M$107) -> 0 | H100: =IF($D$102=0,0,(YTotExp-(YTotRet+YTotExp-$L$11-$L$12))/(YPrice/100)/(C100-$E$13*$E$7/$E$8)/($E$8/$E$7)) -> 0 | K100: =IF(F100-$M$107=0,0,(YTotExp-(YTotRet+YTotExp-$L$11-$L$12))/(F100-$M$107)*100) -> 0
C101: =+C102+C90-C91 -> 1.03 | D101: =+IF($C$102=0,0,$L$18-$L$11-$L$12+($L$11+$L$12)*C101/$C$102) -> 0 | F101: =IF($C$102=0,0,$M$106*C101/$C$102+$M$107) -> 0 | H101: =IF($D$102=0,0,(YTotExp-(YTotRet+YTotExp-$L$11-$L$12))/(YPrice/100)/(C101-$E$13*$E$7/$E$8)/($E$8/$E$7)) -> 0 | K101: =IF(F101-$M$107=0,0,(YTotExp-(YTotRet+YTotExp-$L$11-$L$12))/(F101-$M$107)*100) -> 0
C102: 1 | D102: =+L18 -> 0 | F102: =M106+M107 -> 0 | H102: =IF($D$102=0,0,(YTotExp-(YTotRet+YTotExp-$L$11-$L$12))/(YPrice/100)/(C102-$E$13*$E$7/$E$8)/($E$8/$E$7)) -> 0 | K102: =IF(F102-$M$107=0,0,(YTotExp-(YTotRet+YTotExp-$L$11-$L$12))/(F102-$M$107)*100) -> 0
C103: =+C102+C92-C91 -> 0.97 | D103: =+IF($C$102=0,0,$L$18-$L$11-$L$12+($L$11+$L$12)*C103/$C$102) -> 0 | F103: =IF($C$102=0,0,$M$106*C103/$C$102+$M$107) -> 0 | H103: =IF($D$102=0,0,(YTotExp-(YTotRet+YTotExp-$L$11-$L$12))/(YPrice/100)/(C103-$E$13*$E$7/$E$8)/($E$8/$E$7)) -> 0 | K103: =IF(F103-$M$107=0,0,(YTotExp-(YTotRet+YTotExp-$L$11-$L$12))/(F103-$M$107)*100) -> 0
C104: =+C103+C93-C92 -> 0.94 | D104: =+IF($C$102=0,0,$L$18-$L$11-$L$12+($L$11+$L$12)*C104/$C$102) -> 0 | F104: =IF($C$102=0,0,$M$106*C104/$C$102+$M$107) -> 0 | H104: =IF($D$102=0,0,(YTotExp-(YTotRet+YTotExp-$L$11-$L$12))/(YPrice/100)/(C104-$E$13*$E$7/$E$8)/($E$8/$E$7)) -> 0 | K104: =IF(F104-$M$107=0,0,(YTotExp-(YTotRet+YTotExp-$L$11-$L$12))/(F104-$M$107)*100) -> 0
D106: ="Your Male "&F8&" Price" -> Your Male Calf Price | K106: =+J11 -> 0 | M106: =(E11*G11+E12*G12)*100 -> 0
D107: ="Your Female "&F8&" Price" -> Your Female Calf Price | K107: =+J12 -> 0 | M107: =(E13*G13+E14*G14)*100 -> 0
D108: ="Your Weighted Average "&F8&" Price ($/cwt)" -> Your Weighted Average Calf Price ($/cwt) | K108: =+IF((E11*G11+E12*G12)=0,0,(L11+L12)/(E11*G11+E12*G12)) -> 0
A110: Developed by Bill Thompson, Assistant Professor and Extension Economist, Texas A&M AgriLife Extension Service, 325-653-4576.
A112: Information presented is prepared solely as a general guide and not intended to recognize or predict the costs and returns from any one operation. Brand names are mentioned only as examples and imply no endorsement.

Sheet CommercialHairSheep
A1: Projections for Planning Purposes Only -- Not to be Used without Updating
A2: 2021 Estimated Costs and Returns per Animal Unit
A3: Commercial Hair Sheep, Lamb Production, 6 Head per AU
A4: Enter your name for this budget in the cell above.
A5: Enter Your Values in the cells highlighed in MAROON.
E6: Your Ewes
B7: Animal Units (AU) | D7: 100 | F7: Animal Unit | N7: Your
B8: Breeding Females | D8: 600 | F8: Lamb | G8: Your | M8: Enterprise | N8: Enterprise
E9: Your | F9: Quantity | G9: Quantity | J9: Your | L9: Your | M9: Total | N9: Total
A10: REVENUE | D10: Head | E10: Head | F10: Per Head | G10: Per Head | H10: Units | I10: $/Unit | J10: $/Unit | K10: Total | L10: Total | M10: ="(" & D7 & " AUs)" -> (100 AUs) | N10: ="(" & E7 & " AUs)" -> ( AUs)
B11: Slaughter Lamb - ram (65 Lbs) | D11: 3.15 | F11: 0.65 | H11: CWT | I11: 197.13 | K11: 403.623675 | L11: =+E11*G11*J11 -> 0 | M11: 40362.3675 | N11: =+L11*E$7 -> 0
B12: Slaughter Lamb - ewe (65lbs) | D12: 1.95 | F12: 0.65 | H12: CWT | I12: 197.13 | K12: 249.862275 | L12: =+E12*G12*J12 -> 0 | M12: 24986.2275 | N12: =+L12*E$7 -> 0
B13: Cull Ewes | D13: 1.2 | F13: 1.25 | H13: CWT | I13: 86.8 | K13: 130.2 | L13: 0 | M13: 13020 | N13: 0
B14: Cull Rams | D14: 0.06 | F14: 1.55 | H14: CWT | I14: 91.8 | K14: 8.5374 | L14: 0 | M14: 853.74 | N14: 0
B15: PRF Income | D15: 6 | F15: 5 | H15: Acre | I15: 1.96 | K15: 58.8 | L15: 0 | M15: 5880 | N15: 0
D16: 0 | F16: 0 | I16: 0 | K16: 0 | L16: 0 | M16: 0 | N16: 0
D17: 0 | F17: 0 | I17: 0 | K17: 0 | L17: 0 | M17: 0 | N17: 0
A18: Total Revenue | F18: 331.5 | K18: 851.02335 | L18: =+SUM(L11:L17) -> 0 | M18: 85102.335 | N18: =+SUM(N11:N17) -> 0
F19: 490.8
F20: 159.3 | M20: Enterprise | N20: Enterprise
A21: VARIABLE COSTS | F21: Quantity | G21: Quantity | H21: Units | I21: $/Unit | J21: $/Unit | K21: Total | L21: Total | M21: Total | N21: Total
A22: Production Costs
B23: Miscellaneous
C24: Supplies | F24: 1 | H24: AU | I24: 15 | K24: 15 | L24: =+J24*G24 -> 0 | M24: 1500 | N24: =+L24*E$7 -> 0
C25: Predator Control - Sheep | F25: 1 | H25: AU | I25: 5.25 | K25: 5.25 | L25: 0 | M25: 525 | N25: 0
C26: Brush Control | F26: 1 | H26: AU | I26: 30 | K26: 30 | L26: 0 | M26: 3000 | N26: 0
C27: PRF Rainfall Ins | F27: 1 | H27: AU | I27: 33.3 | K27: 33.3 | L27: 0 | M27: 3330 | N27: 0
F28: 1 | I28: 0 | K28: 0 | L28: 0 | M28: 0 | N28: 0
F29: 1 | I29: 0 | K29: 0 | L29: 0 | M29: 0 | N29: 0
B30: Marketing Expense | F30: 1 | H30: AU | I30: 28.5576 | K30: 28.5576 | L30: 0 | M30: 2855.76 | N30: 0
B31: Feed
C32: Corn - Sheep and Goat | F32: 132 | H32: Pound | I32: 0.0714 | K32: 9.4248 | L32: =+J32*G32 -> 0 | M32: 942.48 | N32: =+L32*E$7 -> 0
C33: Range Cubes 20% | F33: 2.7 | H33: CWT | I33: 17.9 | K33: 48.33 | L33: 0 | M33: 4833 | N33: 0
C34: Salt - Sheep | F34: 15 | H34: Pound | I34: 0.131 | K34: 1.965 | L34: 0 | M34: 196.5 | N34: 0
C35: Mineral - Sheep | F35: 6 | H35: Pound | I35: 0.437 | K35: 2.622 | L35: 0 | M35: 262.2 | N35: 0
C36: Dog food | F36: 0.05 | H36: Dog | I36: 362.26 | K36: 18.113 | L36: 0 | M36: 1811.3 | N36: 0
F37: 0 | I37: 0 | K37: 0 | L37: 0 | M37: 0 | N37: 0
F38: 0 | I38: 0 | K38: 0 | L38: 0 | M38: 0 | N38: 0
F39: 0 | I39: 0 | K39: 0 | L39: 0 | M39: 0 | N39: 0
B40: Vet. Medicine
C41: Overeat/Tetnus | F41: 12.3 | H41: Dose | I41: 0.8404 | K41: 10.33692 | L41: 0 | M41: 1033.692 | N41: =+L41*E$7 -> 0
C42: Soremouth | F42: 12.3 | H42: Dose | I42: 0.34 | K42: 4.182 | L42: 0 | M42: 418.2 | N42: 0
C43: Guard/Working Dog Health | F43: 0.05 | H43: Head | I43: 250 | K43: 12.5 | L43: 0 | M43: 1250 | N43: 0
F44: 0 | I44: 0 | K44: 0 | L44: 0 | M44: 0 | N44: 0
F45: 0 | I45: 0 | K45: 0 | L45: 0 | M45: 0 | N45: 0
F46: 0 | I46: 0 | K46: 0 | L46: 0 | M46: 0 | N46: 0
B47: Fuel | F47: 1 | H47: AU | I47: 37.8 | K47: 37.8 | L47: 0 | M47: 3780 | N47: 0
B48: Lube (As a % of fuel) | F48: 0.1 | H48: Percent | I48: 37.8 | K48: 3.78 | L48: 0 | M48: 378 | N48: 0
B49: Repairs | F49: 1 | H49: AU | I49: 52.32493714 | K49: 52.32493714 | L49: 0 | M49: 5232.493714 | N49: 0
B50: Labor | F50: 0.6 | H50: Hours | I50: 15 | K50: 9 | L50: 0 | M50: 900 | N50: 0
B51: Utilities | F51: 1 | H51: AU | I51: 24 | K51: 24 | L51: 0 | M51: 2400 | N51: 0
K52: 0 | L52: =+J52*G52 -> 0 | M52: 0 | N52: 0
B53: Purchase Breeding Female | F53: 1 | I53: 0 | K53: 0 | L53: =+J53*G53 -> 0 | M53: 0 | N53: 0
B54: Purchase Breeding Male | F54: 1 | I54: 0 | K54: 0 | L54: 0 | M54: 0 | N54: 0
B55: Purchase Older Repalcement Female | F55: 1 | I55: 0 | K55: 0 | L55: 0 | M55: 0 | N55: 0
B56: Purchase Younger Repalcement Female | F56: 1 | I56: 0 | K56: 0 | L56: 0 | M56: 0 | N56: 0
B57: Interest on Credit Line | I57: 0.0475 | K57: 13.30815702 | L57: =+SUM(L22:L56)/2*J57 -> 0 | M57: 1330.815702 | N57: 0
A58: Total Variable Costs | K58: 359.7944142 | L58: =+SUM(L24:L57) -> 0 | M58: 35979.44142 | N58: =+SUM(N24:N57) -> 0
A60: Planned Returns Above Variable Costs: | K60: 491.2289358 | L60: =+L18-L58 -> 0 | M60: 49122.89358 | N60: =+N18-N58 -> 0
B61: Average Lamb Breakeven Price to Cover Variable Costs | I61: 48.94630895 | J61: =IF((E11*G11+E12*G12)=0,"n/a",(L58-SUM(L13:L17))/(E11*G11+E12*G12)) -> n/a | K61: CWT
M62: Enterprise | N62: Enterprise
A63: FIXED COSTS | F63: Quantity | G63: Quantity | H63: Units | I63: $/Unit | J63: $/Unit | K63: Total | L63: Total | M63: Total | N63: Total
B64: Depreciation - Equipment | F64: 1 | H64: AU | I64: 57.50178072 | K64: 57.50178072 | L64: =+G64*J64 -> 0 | M64: 5750.178072 | N64: =+L64*E$7 -> 0
B65: Depreciation - Livestock | F65: 1 | H65: AU | I65: 43.46666667 | K65: 43.46666667 | L65: 0 | M65: 4346.666667 | N65: 0
B66: Equipment Investment | F66: 1546.324538 | H66: dollars | I66: 0.055 | K66: 85.04784959 | L66: 0 | M66: 8504.784959 | N66: 0
B67: Insurance | F67: 1 | H67: AU | I67: 0 | K67: 0 | L67: 0 | M67: 0 | N67: 0
B68: Management Fee, Owner/Operator Labor | F68: 1 | H68: AU | I68: 0 | K68: 0 | L68: =+J68*G68 -> 0 | M68: 0 | N68: 0
B69: Salaried Labor | F69: 1 | H69: AU | I69: 0 | K69: 0 | L69: =+J69*G69 -> 0 | M69: 0 | N69: 0
B70: Pasture Cost | F70: 30 | H70: Acres | I70: 8 | K70: 240 | L70: 0 | M70: 24000 | N70: 0
K71: 0 | L71: 0 | M71: 0 | N71: 0
K72: 0 | L72: 0 | M72: 0 | N72: 0
A73: Total Fixed Costs | K73: 426.016297 | L73: =+SUM(L64:L70) -> 0 | M73: 42601.6297 | N73: =+SUM(N64:N70) -> 0
A74: Total Costs | K74: 785.8107111 | L74: =+L58+L73 -> 0 | M74: 78581.07111 | N74: =+N58+N73 -> 0
A75: Planned Returns to Management, Risk, and Profit: | K75: 65.21263886 | L75: =+L18-L74 -> 0 | M75: 6521.263886 | N75: =+N18-N74 -> 0
B76: Average Lamb Breakeven Price to Cover Total Costs | I76: 177.4580124 | J76: =IF((E11*G11+E12*G12)=0,"n/a",(L74-SUM(L13:L17))/(E11*G11+E12*G12)) -> n/a | K76: CWT
C78: Sensitivity Analysis for Example
C79: Example Weaning Percent | D79: Example Gross Sales per Animal Unit | F79: Pounds Produced per Animal Unit | H79: Example Breakeven Lamb Pay Weight to Cover Total Cost | K79: Example Average Breakeven Price to Cover Total Cost
C80: 1.25 | D80: 975.4968643 | F80: 553.9428571 | H80: 47.36809012 | K80: 149.0647304
C81: 1.15 | D81: 913.2601071 | F81: 522.3714286 | H81: 52.35420487 | K81: 162.0268809
C82: 1.05 | D82: 851.02335 | F82: 490.8 | H82: 58.51352309 | K82: 177.4580124
C83: 0.95 | D83: 788.7865929 | F83: 459.2285714 | H83: 66.31532617 | K83: 196.1378032
C84: 0.85 | D84: 726.5498357 | F84: 427.6571429 | H84: 76.51768404 | K84: 219.2128389
D86: ="Example Male "&F8&" Price" -> Example Male Lamb Price | K86: =+I11 -> 197.13
D87: ="Example Female "&F8&" Price" -> Example Female Lamb Price | K87: =+I12 -> 197.13
D88: ="Example Weighted Average "&F8&" Price ($/cwt)" -> Example Weighted Average Lamb Price ($/cwt) | K88: =+(K11+K12)/(D11*F11+D12*F12) -> 197.13
C89: Sensitivity Analysis for Your Values
C90: Your Weaning Percent | D90: ="Your Gross Sales per "&F7 -> Your Gross Sales per Animal Unit | F90: ="Pounds Produced per "&F7 -> Pounds Produced per Animal Unit | H90: ="Your Breakeven "&F8&" Pay Weight to Cover Total Cost" -> Your Breakeven Lamb Pay Weight to Cover Total Cost | K90: Your Average Breakeven Price to Cover Total Cost
C91: =+C92+C80-C81 -> 1.2 | D91: =+IF($C$93=0,0,$L$18-$L$11-$L$12+($L$11+$L$12)*C91/$C$93) -> 0 | F91: =IF($C$93=0,0,$M$97*C91/$C$93+$M$98) -> 0 | H91: =IF($D$93=0,0,(YTotExp-(YTotRet+YTotExp-$L$11-$L$12))/(YPrice/100)/(C91-$E$13*$E$7/$E$8)/($E$8/$E$7)) -> 0 | K91: =IF(F91-$M$98=0,0,(YTotExp-(YTotRet+YTotExp-$L$11-$L$12))/(F91-$M$98)*100) -> 0
C92: =+C93+C81-C82 -> 1.1 | D92: =+IF($C$93=0,0,$L$18-$L$11-$L$12+($L$11+$L$12)*C92/$C$93) -> 0 | F92: =IF($C$93=0,0,$M$97*C92/$C$93+$M$98) -> 0 | H92: =IF($D$93=0,0,(YTotExp-(YTotRet+YTotExp-$L$11-$L$12))/(YPrice/100)/(C92-$E$13*$E$7/$E$8)/($E$8/$E$7)) -> 0 | K92: =IF(F92-$M$98=0,0,(YTotExp-(YTotRet+YTotExp-$L$11-$L$12))/(F92-$M$98)*100) -> 0
C93: 1 | D93: =+L18 -> 0 | F93: =M97+M98 -> 0 | H93: =IF($D$93=0,0,(YTotExp-(YTotRet+YTotExp-$L$11-$L$12))/(YPrice/100)/(C93-$E$13*$E$7/$E$8)/($E$8/$E$7)) -> 0 | K93: =IF(F93-$M$98=0,0,(YTotExp-(YTotRet+YTotExp-$L$11-$L$12))/(F93-$M$98)*100) -> 0
C94: =+C93+C83-C82 -> 0.9 | D94: =+IF($C$93=0,0,$L$18-$L$11-$L$12+($L$11+$L$12)*C94/$C$93) -> 0 | F94: =IF($C$93=0,0,$M$97*C94/$C$93+$M$98) -> 0 | H94: =IF($D$93=0,0,(YTotExp-(YTotRet+YTotExp-$L$11-$L$12))/(YPrice/100)/(C94-$E$13*$E$7/$E$8)/($E$8/$E$7)) -> 0 | K94: =IF(F94-$M$98=0,0,(YTotExp-(YTotRet+YTotExp-$L$11-$L$12))/(F94-$M$98)*100) -> 0
C95: =+C94+C84-C83 -> 0.8 | D95: =+IF($C$93=0,0,$L$18-$L$11-$L$12+($L$11+$L$12)*C95/$C$93) -> 0 | F95: =IF($C$93=0,0,$M$97*C95/$C$93+$M$98) -> 0 | H95: =IF($D$93=0,0,(YTotExp-(YTotRet+YTotExp-$L$11-$L$12))/(YPrice/100)/(C95-$E$13*$E$7/$E$8)/($E$8/$E$7)) -> 0 | K95: =IF(F95-$M$98=0,0,(YTotExp-(YTotRet+YTotExp-$L$11-$L$12))/(F95-$M$98)*100) -> 0
D97: ="Your Male "&F8&" Price" -> Your Male Lamb Price | K97: =+J11 -> 0 | M97: =(E11*G11+E12*G12)*100 -> 0
D98: ="Your Female "&F8&" Price" -> Your Female Lamb Price | K98: =+J12 -> 0 | M98: =(E13*G13+E14*G14)*100 -> 0
D99: ="Your Weighted Average "&F8&" Price ($/cwt)" -> Your Weighted Average Lamb Price ($/cwt) | K99: =+IF((E11*G11+E12*G12)=0,0,(L11+L12)/(E11*G11+E12*G12)) -> 0
A101: Developed by Bill Thompson, Assistant Professor and Extension Economist, Texas A&M AgriLife Extension Service, 325-653-4576.
A103: Information presented is prepared solely as a general guide and not intended to recognize or predict the costs and returns from any one operation. Brand names are mentioned only as examples and imply no endorsement.

Sheet CommercialSheep
A1: Projections for Planning Purposes Only -- Not to be Used without Updating
A2: 2021 Estimated Costs and Returns per Animal Unit
A3: Commercial Sheep, Wool/Lamb Production, 5 Head per AU
A4: Enter your name for this budget in the cell above.
A5: Enter Your Values in the cells highlighed in MAROON.
E6: Your Ewes
B7: Animal Units (AU) | D7: 100 | F7: Animal Unit | N7: Your
B8: Breeding Females | D8: 500 | F8: Lamb | G8: Your | M8: Enterprise | N8: Enterprise
E9: Your | F9: Quantity | G9: Quantity | J9: Your | L9: Your | M9: Total | N9: Total
A10: REVENUE | D10: Head | E10: Head | F10: Per Head | G10: Per Head | H10: Units | I10: $/Unit | J10: $/Unit | K10: Total | L10: Total | M10: ="(" & D7 & " AUs)" -> (100 AUs) | N10: ="(" & E7 & " AUs)" -> ( AUs)
B11: Lambs - Wether | D11: 2.25 | F11: 0.75 | H11: CWT | I11: 197.13 | K11: 332.656875 | L11: =+E11*G11*J11 -> 0 | M11: 33265.6875 | N11: =+L11*E$7 -> 0
B12: Lambs - Ewe | D12: 1.25 | F12: 0.75 | H12: CWT | I12: 197.13 | K12: 184.809375 | L12: =+E12*G12*J12 -> 0 | M12: 18480.9375 | N12: =+L12*E$7 -> 0
B13: Cull Ewes | D13: 1 | F13: 1.35 | H13: CWT | I13: 86.8 | K13: 117.18 | L13: 0 | M13: 11718 | N13: 0
B14: Cull Rams | D14: 0.05 | F14: 2 | H14: CWT | I14: 91.8 | K14: 9.18 | L14: 0 | M14: 918 | N14: 0
B15: Wool, 20.6-22.0 Mic | D15: 5 | F15: 4 | H15: Pound | I15: 4 | K15: 80 | L15: 0 | M15: 8000 | N15: 0
D16: 5 | F16: 6 | I16: 1.96 | K16: 58.8 | L16: 0 | M16: 5880 | N16: 0
D17: 0 | F17: 0 | I17: 0 | K17: 0 | L17: 0 | M17: 0 | N17: 0
A18: Total Revenue | F18: 262.5 | K18: 782.62625 | L18: =+SUM(L11:L17) -> 0 | M18: 78262.625 | N18: =+SUM(N11:N17) -> 0
F19: 407.5
F20: 145 | M20: Enterprise | N20: Enterprise
A21: VARIABLE COSTS | F21: Quantity | G21: Quantity | H21: Units | I21: $/Unit | J21: $/Unit | K21: Total | L21: Total | M21: Total | N21: Total
A22: Production Costs
B23: Miscellaneous
C24: Supplies | F24: 1 | H24: AU | I24: 15 | K24: 15 | L24: =+J24*G24 -> 0 | M24: 1500 | N24: =+L24*E$7 -> 0
C25: Predator Control - Sheep | F25: 1 | H25: AU | I25: 5.25 | K25: 5.25 | L25: 0 | M25: 525 | N25: 0
C26: Brush Control | F26: 1 | H26: AU | I26: 30 | K26: 30 | L26: 0 | M26: 3000 | N26: 0
C27: PRF Rainfall Ins | F27: 1 | H27: AU | I27: 33.3 | K27: 33.3 | L27: 0 | M27: 3330 | N27: 0
F28: 1 | I28: 9.5 | K28: 9.5 | L28: 0 | M28: 950 | N28: 0
F29: 1 | I29: 16.25 | K29: 16.25 | L29: 0 | M29: 1625 | N29: 0
B30: Marketing Expense | F30: 1 | H30: AU | I30: 20.825 | K30: 20.825 | L30: 0 | M30: 2082.5 | N30: 0
B31: Feed
C32: Corn - Sheep and Goat | F32: 110 | H32: Pound | I32: 0.0714 | K32: 7.854 | L32: =+J32*G32 -> 0 | M32: 785.4 | N32: =+L32*E$7 -> 0
C33: Range Cubes 20% | F33: 2.25 | H33: CWT | I33: 17.9 | K33: 40.275 | L33: 0 | M33: 4027.5 | N33: 0
C34: Salt - Sheep | F34: 15 | H34: Pound | I34: 0.131 | K34: 1.965 | L34: 0 | M34: 196.5 | N34: 0
C35: Mineral - Sheep | F35: 6 | H35: Pound | I35: 0.437 | K35: 2.622 | L35: 0 | M35: 262.2 | N35: 0
C36: Dog food | F36: 0.05 | H36: Dog | I36: 362.26 | K36: 18.113 | L36: 0 | M36: 1811.3 | N36: 0
F37: 0 | I37: 0 | K37: 0 | L37: 0 | M37: 0 | N37: 0
F38: 0 | I38: 0 | K38: 0 | L38: 0 | M38: 0 | N38: 0
F39: 0 | I39: 0 | K39: 0 | L39: 0 | M39: 0 | N39: 0
B40: Vet. Medicine
C41: Overeat/Tetnus | F41: 4.5 | H41: Dose | I41: 0.8404 | K41: 3.7818 | L41: 0 | M41: 378.18 | N41: =+L41*E$7 -> 0
C42: Soremouth | F42: 4.5 | H42: Dose | I42: 0.34 | K42: 1.53 | L42: 0 | M42: 153 | N42: 0
C43: Guard/Working Dog Health | F43: 0.05 | H43: Head | I43: 250 | K43: 12.5 | L43: 0 | M43: 1250 | N43: 0
C44: S&G Deworm 1st | F44: 118.1 | H44: ML | I44: 0.058678 | K44: 6.9298718 | L44: 0 | M44: 692.98718 | N44: 0
C45: S&G Deworm 2nd | F45: 21.2 | H45: ML | I45: 0.069798 | K45: 1.4797176 | L45: 0 | M45: 147.97176 | N45: 0
F46: 0 | I46: 0 | K46: 0 | L46: 0 | M46: 0 | N46: 0
F47: 0 | I47: 0 | K47: 0 | L47: 0 | M47: 0 | N47: 0
F48: 0 | I48: 0 | K48: 0 | L48: 0 | M48: 0 | N48: 0
B49: Fuel | F49: 1 | H49: AU | I49: 37.8 | K49: 37.8 | L49: 0 | M49: 3780 | N49: 0
B50: Lube (As a % of fuel) | F50: 0.1 | H50: Percent | I50: 37.8 | K50: 3.78 | L50: 0 | M50: 378 | N50: 0
B51: Repairs | F51: 1 | H51: AU | I51: 52.32493714 | K51: 52.32493714 | L51: 0 | M51: 5232.493714 | N51: 0
B52: Labor | F52: 1 | H52: Hours | I52: 15 | K52: 15 | L52: 0 | M52: 1500 | N52: 0
B53: Utilities | F53: 1 | H53: AU | I53: 24 | K53: 24 | L53: 0 | M53: 2400 | N53: 0
K54: 0 | L54: =+J54*G54 -> 0 | M54: 0 | N54: 0
B55: Purchase Breeding Female | F55: 1 | I55: 0 | K55: 0 | L55: =+J55*G55 -> 0 | M55: 0 | N55: 0
B56: Purchase Breeding Male | F56: 1 | I56: 0 | K56: 0 | L56: 0 | M56: 0 | N56: 0
B57: Purchase Older Repalcement Female | F57: 1 | I57: 0 | K57: 0 | L57: 0 | M57: 0 | N57: 0
B58: Purchase Younger Repalcement Female | F58: 1 | I58: 0 | K58: 0 | L58: 0 | M58: 0 | N58: 0
B59: Interest on Credit Line | I59: 0.0475 | K59: 17.9581052 | L59: =+SUM(L22:L58)/2*J59 -> 0 | M59: 1795.81052 | N59: 0
A60: Total Variable Costs | K60: 378.0384317 | L60: =+SUM(L24:L59) -> 0 | M60: 37803.84317 | N60: =+SUM(N24:N59) -> 0
A62: Planned Returns Above Variable Costs: | K62: 404.5878183 | L62: =+L18-L60 -> 0 | M62: 40458.78183 | N62: =+N18-N60 -> 0
B63: Average Lamb Breakeven Price to Cover Variable Costs | I63: 43.00130733 | J63: =IF((E11*G11+E12*G12)=0,"n/a",(L60-SUM(L13:L17))/(E11*G11+E12*G12)) -> n/a | K63: CWT
M64: Enterprise | N64: Enterprise
A65: FIXED COSTS | F65: Quantity | G65: Quantity | H65: Units | I65: $/Unit | J65: $/Unit | K65: Total | L65: Total | M65: Total | N65: Total
B66: Depreciation - Equipment | F66: 1 | H66: AU | I66: 57.50178072 | K66: 57.50178072 | L66: =+G66*J66 -> 0 | M66: 5750.178072 | N66: =+L66*E$7 -> 0
B67: Depreciation - Livestock | F67: 1 | H67: AU | I67: 43.46666667 | K67: 43.46666667 | L67: 0 | M67: 4346.666667 | N67: 0
B68: Equipment Investment | F68: 1546.324538 | H68: dollars | I68: 0.055 | K68: 85.04784959 | L68: 0 | M68: 8504.784959 | N68: 0
B69: Insurance | F69: 1 | H69: AU | I69: 0 | K69: 0 | L69: 0 | M69: 0 | N69: 0
B70: Management Fee, Owner/Operator Labor | F70: 1 | H70: AU | I70: 0 | K70: 0 | L70: =+J70*G70 -> 0 | M70: 0 | N70: 0
B71: Salaried Labor | F71: 1 | H71: AU | I71: 0 | K71: 0 | L71: =+J71*G71 -> 0 | M71: 0 | N71: 0
B72: Pasture Cost | F72: 30 | H72: Acres | I72: 8 | K72: 240 | L72: 0 | M72: 24000 | N72: 0
K73: 0 | L73: 0 | M73: 0 | N73: 0
K74: 0 | L74: 0 | M74: 0 | N74: 0
A75: Total Fixed Costs | K75: 426.016297 | L75: =+SUM(L66:L72) -> 0 | M75: 42601.6297 | N75: =+SUM(N66:N72) -> 0
A76: Total Costs | K76: 804.0547287 | L76: =+L60+L75 -> 0 | M76: 80405.47287 | N76: =+N60+N75 -> 0
A77: Planned Returns to Management, Risk, and Profit: | K77: -21.42847872 | L77: =+L18-L76 -> 0 | M77: -2142.847872 | N77: =+N18-N76 -> 0
B78: Average Lamb Breakeven Price to Cover Total Costs | I78: 205.29323 | J78: =IF((E11*G11+E12*G12)=0,"n/a",(L76-SUM(L13:L17))/(E11*G11+E12*G12)) -> n/a | K78: CWT
C80: Sensitivity Analysis for Example
C81: Example Weaning Percent | D81: Example Gross Sales per Animal Unit | F81: Pounds Produced per Animal Unit | H81: Example Breakeven Lamb Pay Weight to Cover Total Cost | K81: Example Average Breakeven Price to Cover Total Cost
C82: 1.1 | D82: 897.61875 | F82: 465.8333333 | H82: 60.74893936 | K82: 167.9671882
C83: 1 | D83: 840.1225 | F83: 436.6666667 | H83: 68.34255678 | K83: 184.763907
C84: 0.9 | D84: 782.62625 | F84: 407.5 | H84: 78.10577918 | K84: 205.29323
C85: 0.8 | D85: 725.13 | F85: 378.3333333 | H85: 91.12340904 | K85: 230.9548837
C86: 0.7 | D86: 667.63375 | F86: 349.1666667 | H86: 109.3480908 | K86: 263.9484386
D88: ="Example Male "&F8&" Price" -> Example Male Lamb Price | K88: =+I11 -> 197.13
D89: ="Example Female "&F8&" Price" -> Example Female Lamb Price | K89: =+I12 -> 197.13
D90: ="Example Weighted Average "&F8&" Price ($/cwt)" -> Example Weighted Average Lamb Price ($/cwt) | K90: =+(K11+K12)/(D11*F11+D12*F12) -> 197.13
C91: Sensitivity Analysis for Your Values
C92: Your Weaning Percent | D92: ="Your Gross Sales per "&F7 -> Your Gross Sales per Animal Unit | F92: ="Pounds Produced per "&F7 -> Pounds Produced per Animal Unit | H92: ="Your Breakeven "&F8&" Pay Weight to Cover Total Cost" -> Your Breakeven Lamb Pay Weight to Cover Total Cost | K92: Your Average Breakeven Price to Cover Total Cost
C93: =+C94+C82-C83 -> 1.2 | D93: =+IF($C$95=0,0,$L$18-$L$11-$L$12+($L$11+$L$12)*C93/$C$95) -> 0 | F93: =IF($C$95=0,0,$M$99*C93/$C$95+$M$100) -> 0 | H93: =IF($D$95=0,0,(YTotExp-(YTotRet+YTotExp-$L$11-$L$12))/(YPrice/100)/(C93-$E$13*$E$7/$E$8)/($E$8/$E$7)) -> 0 | K93: =IF(F93-$M$100=0,0,(YTotExp-(YTotRet+YTotExp-$L$11-$L$12))/(F93-$M$100)*100) -> 0
C94: =+C95+C83-C84 -> 1.1 | D94: =+IF($C$95=0,0,$L$18-$L$11-$L$12+($L$11+$L$12)*C94/$C$95) -> 0 | F94: =IF($C$95=0,0,$M$99*C94/$C$95+$M$100) -> 0 | H94: =IF($D$95=0,0,(YTotExp-(YTotRet+YTotExp-$L$11-$L$12))/(YPrice/100)/(C94-$E$13*$E$7/$E$8)/($E$8/$E$7)) -> 0 | K94: =IF(F94-$M$100=0,0,(YTotExp-(YTotRet+YTotExp-$L$11-$L$12))/(F94-$M$100)*100) -> 0
C95: 1 | D95: =+L18 -> 0 | F95: =M99+M100 -> 0 | H95: =IF($D$95=0,0,(YTotExp-(YTotRet+YTotExp-$L$11-$L$12))/(YPrice/100)/(C95-$E$13*$E$7/$E$8)/($E$8/$E$7)) -> 0 | K95: =IF(F95-$M$100=0,0,(YTotExp-(YTotRet+YTotExp-$L$11-$L$12))/(F95-$M$100)*100) -> 0
C96: =+C95+C85-C84 -> 0.9 | D96: =+IF($C$95=0,0,$L$18-$L$11-$L$12+($L$11+$L$12)*C96/$C$95) -> 0 | F96: =IF($C$95=0,0,$M$99*C96/$C$95+$M$100) -> 0 | H96: =IF($D$95=0,0,(YTotExp-(YTotRet+YTotExp-$L$11-$L$12))/(YPrice/100)/(C96-$E$13*$E$7/$E$8)/($E$8/$E$7)) -> 0 | K96: =IF(F96-$M$100=0,0,(YTotExp-(YTotRet+YTotExp-$L$11-$L$12))/(F96-$M$100)*100) -> 0
C97: =+C96+C86-C85 -> 0.8 | D97: =+IF($C$95=0,0,$L$18-$L$11-$L$12+($L$11+$L$12)*C97/$C$95) -> 0 | F97: =IF($C$95=0,0,$M$99*C97/$C$95+$M$100) -> 0 | H97: =IF($D$95=0,0,(YTotExp-(YTotRet+YTotExp-$L$11-$L$12))/(YPrice/100)/(C97-$E$13*$E$7/$E$8)/($E$8/$E$7)) -> 0 | K97: =IF(F97-$M$100=0,0,(YTotExp-(YTotRet+YTotExp-$L$11-$L$12))/(F97-$M$100)*100) -> 0
D99: ="Your Male "&F8&" Price" -> Your Male Lamb Price | K99: =+J11 -> 0 | M99: =(E11*G11+E12*G12)*100 -> 0
D100: ="Your Female "&F8&" Price" -> Your Female Lamb Price | K100: =+J12 -> 0 | M100: =(E13*G13+E14*G14)*100 -> 0
D101: ="Your Weighted Average "&F8&" Price ($/cwt)" -> Your Weighted Average Lamb Price ($/cwt) | K101: =+IF((E11*G11+E12*G12)=0,0,(L11+L12)/(E11*G11+E12*G12)) -> 0
A103: Developed by Bill Thompson, Assistant Professor and Extension Economist, Texas A&M AgriLife Extension Service, 325-653-4576.
A105: Information presented is prepared solely as a general guide and not intended to recognize or predict the costs and returns from any one operation. Brand names are mentioned only as examples and imply no endorsement.

Sheet MeatGoats
A1: Projections for Planning Purposes Only -- Not to be Used without Updating
A2: 2021 Estimated Costs and Returns per Animal Unit
A3: Commercial Meat Goats, 6 Head per AU
A4: Enter your name for this budget in the cell above.
A5: Enter Your Values in the cells highlighed in MAROON.
E6: Your Does
B7: Animal Units (AU) | D7: 100 | F7: Animal Unit | N7: Your
B8: Breeding Females | D8: 600 | F8: Kid | G8: Your | M8: Enterprise | N8: Enterprise
E9: Your | F9: Quantity | G9: Quantity | J9: Your | L9: Your | M9: Total | N9: Total
A10: REVENUE | D10: Head | E10: Head | F10: Per Head | G10: Per Head | H10: Units | I10: $/Unit | J10: $/Unit | K10: Total | L10: Total | M10: ="(" & D7 & " AUs)" -> (100 AUs) | N10: ="(" & E7 & " AUs)" -> ( AUs)
B11: Meat Goat Kid - Buck | D11: 3.6 | F11: 0.57 | H11: CWT | I11: 290.9 | K11: 596.9268 | L11: =+E11*G11*J11 -> 0 | M11: 59692.68 | N11: =+L11*E$7 -> 0
B12: Meat Goat Kid - Doe | D12: 2.4 | F12: 0.57 | H12: CWT | I12: 290.9 | K12: 397.9512 | L12: =+E12*G12*J12 -> 0 | M12: 39795.12 | N12: =+L12*E$7 -> 0
B13: Cull Does | D13: 1.2 | F13: 1.1 | H13: CWT | I13: 154.8 | K13: 204.336 | L13: 0 | M13: 20433.6 | N13: 0
B14: Cull Billy | D14: 0.06 | F14: 1.7 | H14: CWT | I14: 161 | K14: 16.422 | L14: 0 | M14: 1642.2 | N14: 0
B15: PRF Income | D15: 6 | F15: 5 | H15: Acre | I15: 1.96 | K15: 58.8 | L15: 0 | M15: 5880 | N15: 0
D16: 0 | F16: 0 | I16: 0 | K16: 0 | L16: 0 | M16: 0 | N16: 0
D17: 0 | F17: 0 | I17: 0 | K17: 0 | L17: 0 | M17: 0 | N17: 0
A18: Total Revenue | F18: 342 | K18: 1274.436 | L18: =+SUM(L11:L17) -> 0 | M18: 127443.6 | N18: =+SUM(N11:N17) -> 0
F19: 484.2
F20: 142.2 | M20: Enterprise | N20: Enterprise
A21: VARIABLE COSTS | F21: Quantity | G21: Quantity | H21: Units | I21: $/Unit | J21: $/Unit | K21: Total | L21: Total | M21: Total | N21: Total
A22: Production Costs
B23: Miscellaneous
C24: Supplies | F24: 1 | H24: AU | I24: 18 | K24: 18 | L24: =+J24*G24 -> 0 | M24: 1800 | N24: =+L24*E$7 -> 0
C25: Predator Control - Goats | F25: 1 | H25: AU | I25: 10.5 | K25: 10.5 | L25: 0 | M25: 1050 | N25: 0
C26: Brush Control | F26: 1 | H26: AU | I26: 30 | K26: 30 | L26: 0 | M26: 3000 | N26: 0
C27: PRF Rainfall Ins | F27: 1 | H27: AU | I27: 33.3 | K27: 33.3 | L27: 0 | M27: 3330 | N27: 0
F28: 1 | I28: 0 | K28: 0 | L28: 0 | M28: 0 | N28: 0
F29: 1 | I29: 0 | K29: 0 | L29: 0 | M29: 0 | N29: 0
B30: Marketing Expense | F30: 1 | H30: AU | I30: 28.677 | K30: 28.677 | L30: 0 | M30: 2867.7 | N30: 0
B31: Feed
C32: Corn - Sheep and Goat | F32: 67.5 | H32: Pound | I32: 0.0714 | K32: 4.8195 | L32: =+J32*G32 -> 0 | M32: 481.95 | N32: =+L32*E$7 -> 0
C33: Range Cubes 20% | F33: 1.35 | H33: CWT | I33: 17.9 | K33: 24.165 | L33: 0 | M33: 2416.5 | N33: 0
C34: Salt - Sheep | F34: 15 | H34: Pound | I34: 0.131 | K34: 1.965 | L34: 0 | M34: 196.5 | N34: 0
C35: Mineral - Sheep | F35: 6 | H35: Pound | I35: 0.437 | K35: 2.622 | L35: 0 | M35: 262.2 | N35: 0
C36: Dog food | F36: 0.05 | H36: Dog | I36: 362.26 | K36: 18.113 | L36: 0 | M36: 1811.3 | N36: 0
F37: 0 | I37: 0 | K37: 0 | L37: 0 | M37: 0 | N37: 0
F38: 0 | I38: 0 | K38: 0 | L38: 0 | M38: 0 | N38: 0
F39: 0 | I39: 0 | K39: 0 | L39: 0 | M39: 0 | N39: 0
B40: Vet. Medicine
C41: S&G Deworm 1st | F41: 82.8 | H41: ML | I41: 0.058678 | K41: 4.8585384 | L41: 0 | M41: 485.85384 | N41: =+L41*E$7 -> 0
C42: Soremouth | F42: 7.2 | H42: Dose | I42: 0.34 | K42: 2.448 | L42: 0 | M42: 244.8 | N42: 0
C43: Guard/Working Dog Health | F43: 0.05 | H43: Head | I43: 250 | K43: 12.5 | L43: 0 | M43: 1250 | N43: 0
F44: 0 | I44: 0 | K44: 0 | L44: 0 | M44: 0 | N44: 0
F45: 0 | I45: 0 | K45: 0 | L45: 0 | M45: 0 | N45: 0
F46: 0 | I46: 0 | K46: 0 | L46: 0 | M46: 0 | N46: 0
B47: Fuel | F47: 1 | H47: AU | I47: 32.4 | K47: 32.4 | L47: 0 | M47: 3240 | N47: 0
B48: Lube (As a % of fuel) | F48: 0.1 | H48: Percent | I48: 32.4 | K48: 3.24 | L48: 0 | M48: 324 | N48: 0
B49: Repairs | F49: 1 | H49: AU | I49: 52.32493714 | K49: 52.32493714 | L49: 0 | M49: 5232.493714 | N49: 0
B50: Labor | F50: 0.3 | H50: Hours | I50: 15 | K50: 4.5 | L50: 0 | M50: 450 | N50: 0
B51: Utilities | F51: 1 | H51: AU | I51: 24 | K51: 24 | L51: 0 | M51: 2400 | N51: 0
K52: 0 | L52: =+J52*G52 -> 0 | M52: 0 | N52: 0
B53: Purchase Breeding Female | F53: 1 | I53: 0 | K53: 0 | L53: =+J53*G53 -> 0 | M53: 0 | N53: 0
B54: Purchase Breeding Male | F54: 1 | I54: 0 | K54: 0 | L54: 0 | M54: 0 | N54: 0
B55: Purchase Older Repalcement Female | F55: 1 | I55: 0 | K55: 0 | L55: 0 | M55: 0 | N55: 0
B56: Purchase Younger Repalcement Female | F56: 1 | I56: 0 | K56: 0 | L56: 0 | M56: 0 | N56: 0
B57: Interest on Credit Line | I57: 0.0475 | K57: 16.41166537 | L57: =+SUM(L22:L56)/2*J57 -> 0 | M57: 1641.166537 | N57: 0
A58: Total Variable Costs | K58: 324.8446409 | L58: =+SUM(L24:L57) -> 0 | M58: 32484.46409 | N58: =+SUM(N24:N57) -> 0
A60: Planned Returns Above Variable Costs: | K60: 949.5913591 | L60: =+L18-L58 -> 0 | M60: 94959.13591 | N60: =+N18-N58 -> 0
B61: Average Kid Breakeven Price to Cover Variable Costs | I61: 13.24170787 | J61: =IF((E11*G11+E12*G12)=0,"n/a",(L58-SUM(L13:L17))/(E11*G11+E12*G12)) -> n/a | K61: CWT
M62: Enterprise | N62: Enterprise
A63: FIXED COSTS | F63: Quantity | G63: Quantity | H63: Units | I63: $/Unit | J63: $/Unit | K63: Total | L63: Total | M63: Total | N63: Total
B64: Depreciation - Equipment | F64: 1 | H64: AU | I64: 58.28928072 | K64: 58.28928072 | L64: =+G64*J64 -> 0 | M64: 5828.928072 | N64: =+L64*E$7 -> 0
B65: Depreciation - Livestock | F65: 1 | H65: AU | I65: 39.64166667 | K65: 39.64166667 | L65: 0 | M65: 3964.166667 | N65: 0
B66: Equipment Investment | F66: 1564.699538 | H66: dollars | I66: 0.055 | K66: 86.05847459 | L66: 0 | M66: 8605.847459 | N66: 0
B67: Insurance | F67: 1 | H67: AU | I67: 0 | K67: 0 | L67: 0 | M67: 0 | N67: 0
B68: Management Fee, Owner/Operator Labor | F68: 1 | H68: AU | I68: 0 | K68: 0 | L68: =+J68*G68 -> 0 | M68: 0 | N68: 0
B69: Salaried Labor | F69: 1 | H69: AU | I69: 0 | K69: 0 | L69: =+J69*G69 -> 0 | M69: 0 | N69: 0
B70: Pasture Cost | F70: 30 | H70: Acres | I70: 8 | K70: 240 | L70: 0 | M70: 24000 | N70: 0
K71: 0 | L71: 0 | M71: 0 | N71: 0
K72: 0 | L72: 0 | M72: 0 | N72: 0
A73: Total Fixed Costs | K73: 423.989422 | L73: =+SUM(L64:L70) -> 0 | M73: 42398.9422 | N73: =+SUM(N64:N70) -> 0
A74: Total Costs | K74: 748.8340629 | L74: =+L58+L73 -> 0 | M74: 74883.40629 | N74: =+N58+N73 -> 0
A75: Planned Returns to Management, Risk, and Profit: | K75: 525.6019371 | L75: =+L18-L74 -> 0 | M75: 52560.19371 | N75: =+N18-N74 -> 0
B76: Average Kid Breakeven Price to Cover Total Costs | I76: 137.2152231 | J76: =IF((E11*G11+E12*G12)=0,"n/a",(L74-SUM(L13:L17))/(E11*G11+E12*G12)) -> n/a | K76: CWT
C78: Sensitivity Analysis for Example
C79: Example Weaning Percent | D79: Example Gross Sales per Animal Unit | F79: Pounds Produced per Animal Unit | H79: Example Breakeven Kid Pay Weight to Cover Total Cost | K79: Example Average Breakeven Price to Cover Total Cost
C80: 1.4 | D80: 1440.249 | F80: 541.2 | H80: 22.40537331 | K80: 117.6130483
C81: 1.3 | D81: 1357.3425 | F81: 512.7 | H81: 24.44222543 | K81: 126.6602059
C82: 1.2 | D82: 1274.436 | F82: 484.2 | H82: 26.88644797 | K82: 137.2152231
C83: 1.1 | D83: 1191.5295 | F83: 455.7 | H83: 29.87383108 | K83: 149.6893343
C84: 1 | D84: 1108.623 | F84: 427.2 | H84: 33.60805996 | K84: 164.6582677
D86: ="Example Male "&F8&" Price" -> Example Male Kid Price | K86: =+I11 -> 290.9
D87: ="Example Female "&F8&" Price" -> Example Female Kid Price | K87: =+I12 -> 290.9
D88: ="Example Weighted Average "&F8&" Price ($/cwt)" -> Example Weighted Average Kid Price ($/cwt) | K88: =+(K11+K12)/(D11*F11+D12*F12) -> 290.9
C89: Sensitivity Analysis for Your Values
C90: Your Weaning Percent | D90: ="Your Gross Sales per "&F7 -> Your Gross Sales per Animal Unit | F90: ="Pounds Produced per "&F7 -> Pounds Produced per Animal Unit | H90: ="Your Breakeven "&F8&" Pay Weight to Cover Total Cost" -> Your Breakeven Kid Pay Weight to Cover Total Cost | K90: Your Average Breakeven Price to Cover Total Cost
C91: =+C92+C80-C81 -> 1.2 | D91: =+IF($C$93=0,0,$L$18-$L$11-$L$12+($L$11+$L$12)*C91/$C$93) -> 0 | F91: =IF($C$93=0,0,$M$97*C91/$C$93+$M$98) -> 0 | H91: =IF($D$93=0,0,(YTotExp-(YTotRet+YTotExp-$L$11-$L$12))/(YPrice/100)/(C91-$E$13*$E$7/$E$8)/($E$8/$E$7)) -> 0 | K91: =IF(F91-$M$98=0,0,(YTotExp-(YTotRet+YTotExp-$L$11-$L$12))/(F91-$M$98)*100) -> 0
C92: =+C93+C81-C82 -> 1.1 | D92: =+IF($C$93=0,0,$L$18-$L$11-$L$12+($L$11+$L$12)*C92/$C$93) -> 0 | F92: =IF($C$93=0,0,$M$97*C92/$C$93+$M$98) -> 0 | H92: =IF($D$93=0,0,(YTotExp-(YTotRet+YTotExp-$L$11-$L$12))/(YPrice/100)/(C92-$E$13*$E$7/$E$8)/($E$8/$E$7)) -> 0 | K92: =IF(F92-$M$98=0,0,(YTotExp-(YTotRet+YTotExp-$L$11-$L$12))/(F92-$M$98)*100) -> 0
C93: 1 | D93: =+L18 -> 0 | F93: =M97+M98 -> 0 | H93: =IF($D$93=0,0,(YTotExp-(YTotRet+YTotExp-$L$11-$L$12))/(YPrice/100)/(C93-$E$13*$E$7/$E$8)/($E$8/$E$7)) -> 0 | K93: =IF(F93-$M$98=0,0,(YTotExp-(YTotRet+YTotExp-$L$11-$L$12))/(F93-$M$98)*100) -> 0
C94: =+C93+C83-C82 -> 0.9 | D94: =+IF($C$93=0,0,$L$18-$L$11-$L$12+($L$11+$L$12)*C94/$C$93) -> 0 | F94: =IF($C$93=0,0,$M$97*C94/$C$93+$M$98) -> 0 | H94: =IF($D$93=0,0,(YTotExp-(YTotRet+YTotExp-$L$11-$L$12))/(YPrice/100)/(C94-$E$13*$E$7/$E$8)/($E$8/$E$7)) -> 0 | K94: =IF(F94-$M$98=0,0,(YTotExp-(YTotRet+YTotExp-$L$11-$L$12))/(F94-$M$98)*100) -> 0
C95: =+C94+C84-C83 -> 0.8 | D95: =+IF($C$93=0,0,$L$18-$L$11-$L$12+($L$11+$L$12)*C95/$C$93) -> 0 | F95: =IF($C$93=0,0,$M$97*C95/$C$93+$M$98) -> 0 | H95: =IF($D$93=0,0,(YTotExp-(YTotRet+YTotExp-$L$11-$L$12))/(YPrice/100)/(C95-$E$13*$E$7/$E$8)/($E$8/$E$7)) -> 0 | K95: =IF(F95-$M$98=0,0,(YTotExp-(YTotRet+YTotExp-$L$11-$L$12))/(F95-$M$98)*100) -> 0
D97: ="Your Male "&F8&" Price" -> Your Male Kid Price | K97: =+J11 -> 0 | M97: =(E11*G11+E12*G12)*100 -> 0
D98: ="Your Female "&F8&" Price" -> Your Female Kid Price | K98: =+J12 -> 0 | M98: =(E13*G13+E14*G14)*100 -> 0
D99: ="Your Weighted Average "&F8&" Price ($/cwt)" -> Your Weighted Average Kid Price ($/cwt) | K99: =+IF((E11*G11+E12*G12)=0,0,(L11+L12)/(E11*G11+E12*G12)) -> 0
A101: Developed by Bill Thompson, Assistant Professor and Extension Economist, Texas A&M AgriLife Extension Service, 325-653-4576.
A103: Information presented is prepared solely as a general guide and not intended to recognize or predict the costs and returns from any one operation. Brand names are mentioned only as examples and imply no endorsement.

Sheet SmallAcreageGoat
A1: Projections for Planning Purposes Only -- Not to be Used without Updating
A2: 2021 Estimated Costs and Returns per Breeding Female
A3: Small Acreage Meat Goats
A4: Enter your name for this budget in the cell above.
A5: Enter Your Values in the cells highlighed in MAROON.
E6: Your Nannies
B7: Animal Units (AU) | D7: 12 | E7: =E8 -> 0 | F7: Breeding Female | N7: Your
B8: Breeding Females | D8: 12 | F8: Kid | G8: Your | M8: Enterprise | N8: Enterprise
E9: Your | F9: Quantity | G9: Quantity | J9: Your | L9: Your | M9: Total | N9: Total
A10: REVENUE | D10: Head | E10: Head | F10: Per Head | G10: Per Head | H10: Units | I10: $/Unit | J10: $/Unit | K10: Total | L10: Total | M10: ="(" & D8 & " Head)" -> (12 Head) | N10: ="(" & E7 & " AUs)" -> (0 AUs)
B11: Meat Goat Kid - Buck | D11: 0.6666666667 | F11: 0.55 | H11: CWT | I11: 290.9 | K11: 106.6633333 | L11: =+E11*G11*J11 -> 0 | M11: 1279.96 | N11: =+L11*E$7 -> 0
B12: Meat Goat Kid - Doe | D12: 0.4166666667 | F12: 0.55 | H12: CWT | I12: 290.9 | K12: 66.66458333 | L12: =+E12*G12*J12 -> 0 | M12: 799.975 | N12: =+L12*E$7 -> 0
B13: Cull Does | D13: 0.1666666667 | F13: 1.15 | H13: CWT | I13: 154.8 | K13: 29.67 | L13: 0 | M13: 356.04 | N13: 0
B14: Cull Billy | D14: 0.04166666667 | F14: 2 | H14: CWT | I14: 161 | K14: 13.41666667 | L14: 0 | M14: 161 | N14: 0
B15: PRF Income | D15: 1 | F15: 3.33 | H15: Acre | I15: 1.96 | K15: 6.5268 | L15: 0 | M15: 78.3216 | N15: 0
D16: 0 | F16: 0 | I16: 0 | K16: 0 | L16: 0 | M16: 0 | N16: 0
D17: 0 | F17: 0 | I17: 0 | K17: 0 | L17: 0 | M17: 0 | N17: 0
A18: Total Revenue | F18: 59.58333333 | K18: 222.9413833 | L18: =+SUM(L11:L17) -> 0 | M18: 2675.2966 | N18: =+SUM(N11:N17) -> 0
F19: 87.08333333
F20: 27.5 | M20: Enterprise | N20: Enterprise
A21: VARIABLE COSTS | F21: Quantity | G21: Quantity | H21: Units | I21: $/Unit | J21: $/Unit | K21: Total | L21: Total | M21: Total | N21: Total
A22: Production Costs
B23: Miscellaneous
C24: Supplies | F24: 1 | H24: Head | I24: 2 | K24: 2 | L24: =+J24*G24 -> 0 | M24: 24 | N24: =+L24*E$7 -> 0
C25: PRF Rainfall Ins | F25: 1 | H25: Head | I25: 3.7 | K25: 3.7 | L25: 0 | M25: 44.4 | N25: 0
F26: 1 | I26: 0 | K26: 0 | L26: 0 | M26: 0 | N26: 0
F27: 1 | I27: 0 | K27: 0 | L27: 0 | M27: 0 | N27: 0
B28: Marketing Expense | F28: 1 | H28: Head | I28: 5.102083333 | K28: 5.102083333 | L28: 0 | M28: 61.225 | N28: 0
B29: Feed
C30: Salt - Sheep | F30: 2.708333333 | H30: Pound | I30: 0.131 | K30: 0.3547916667 | L30: =+J30*G30 -> 0 | M30: 4.2575 | N30: =+L30*E$7 -> 0
C31: Mineral - Sheep | F31: 1.083333333 | H31: Pound | I31: 0.437 | K31: 0.4734166667 | L31: 0 | M31: 5.681 | N31: 0
C32: Range Cubes 20% | F32: 0.4875 | H32: CWT | I32: 17.9 | K32: 8.72625 | L32: 0 | M32: 104.715 | N32: 0
C33: Corn - Sheep and Goat | F33: 24.375 | H33: Pound | I33: 0.0714 | K33: 1.740375 | L33: 0 | M33: 20.8845 | N33: 0
F34: 0 | I34: 0 | K34: 0 | L34: 0 | M34: 0 | N34: 0
F35: 0 | I35: 0 | K35: 0 | L35: 0 | M35: 0 | N35: 0
F36: 0 | I36: 0 | K36: 0 | L36: 0 | M36: 0 | N36: 0
B37: Vet. Medicine
C38: Soremouth | F38: 1.25 | H38: Dose | I38: 0.34 | K38: 0.425 | L38: 0 | M38: 5.1 | N38: =+L38*E$7 -> 0
C39: S&G Deworm 1st | F39: 14.33333333 | H39: ML | I39: 0.058678 | K39: 0.8410513333 | L39: 0 | M39: 10.092616 | N39: 0
C40: S&G Deworm 2nd | F40: 3.725 | H40: ML | I40: 0.069798 | K40: 0.25999755 | L40: 0 | M40: 3.1199706 | N40: 0
F41: 0 | I41: 0 | K41: 0 | L41: 0 | M41: 0 | N41: 0
F42: 0 | I42: 0 | K42: 0 | L42: 0 | M42: 0 | N42: 0
F43: 0 | I43: 0 | K43: 0 | L43: 0 | M43: 0 | N43: 0
B44: Fuel | F44: 1 | H44: Head | I44: 2.8125 | K44: 2.8125 | L44: 0 | M44: 33.75 | N44: 0
B45: Lube (As a % of fuel) | F45: 0.1 | H45: Percent | I45: 2.8125 | K45: 0.28125 | L45: 0 | M45: 3.375 | N45: 0
B46: Repairs | F46: 1 | H46: Head | I46: 32.57745536 | K46: 32.57745536 | L46: 0 | M46: 390.9294643 | N46: 0
B47: Labor | F47: 0 | H47: Hours | I47: 0 | K47: 0 | L47: 0 | M47: 0 | N47: 0
B48: Utilities | F48: 1 | H48: Head | I48: 6 | K48: 6 | L48: 0 | M48: 72 | N48: 0
K49: 0 | L49: =+J49*G49 -> 0 | M49: 0 | N49: 0
B50: Purchase Breeding Female | F50: 1 | I50: 0 | K50: 0 | L50: =+J50*G50 -> 0 | M50: 0 | N50: 0
B51: Purchase Breeding Male | F51: 1 | I51: 0 | K51: 0 | L51: 0 | M51: 0 | N51: 0
B52: Purchase Older Repalcement Female | F52: 1 | I52: 0 | K52: 0 | L52: 0 | M52: 0 | N52: 0
B53: Purchase Younger Repalcement Female | F53: 1 | I53: 0 | K53: 0 | L53: 0 | M53: 0 | N53: 0
B54: Interest on Credit Line | I54: 0.0475 | K54: 2.160759321 | L54: =+SUM(L22:L53)/2*J54 -> 0 | M54: 25.92911186 | N54: 0
A55: Total Variable Costs | K55: 67.45493023 | L55: =+SUM(L24:L54) -> 0 | M55: 809.4591627 | N55: =+SUM(N24:N54) -> 0
A57: Planned Returns Above Variable Costs: | K57: 155.4864531 | L57: =+L18-L55 -> 0 | M57: 1865.837437 | N57: =+N18-N55 -> 0
B58: Average Kid Breakeven Price to Cover Variable Costs | I58: 29.94371507 | J58: =IF((E11*G11+E12*G12)=0,"n/a",(L55-SUM(L13:L17))/(E11*G11+E12*G12)) -> n/a | K58: CWT
M59: Enterprise | N59: Enterprise
A60: FIXED COSTS | F60: Quantity | G60: Quantity | H60: Units | I60: $/Unit | J60: $/Unit | K60: Total | L60: Total | M60: Total | N60: Total
B61: Depreciation - Equipment | F61: 1 | H61: Head | I61: 130.9328125 | K61: 130.9328125 | L61: =+G61*J61 -> 0 | M61: 1571.19375 | N61: =+L61*E$7 -> 0
B62: Depreciation - Livestock | F62: 1 | H62: Head | I62: 5.555555556 | K62: 5.555555556 | L62: 0 | M62: 66.66666667 | N62: 0
B63: Equipment Investment | F63: 0 | H63: dollars | I63: 0 | K63: 0 | L63: 0 | M63: 0 | N63: 0
B64: Insurance | F64: 1 | H64: Head | I64: 0 | K64: 0 | L64: 0 | M64: 0 | N64: 0
B65: Management Fee, Owner/Operator Labor | F65: 1 | H65: Head | I65: 0 | K65: 0 | L65: =+J65*G65 -> 0 | M65: 0 | N65: 0
B66: Salaried Labor | F66: 1 | H66: Head | I66: 0 | K66: 0 | L66: =+J66*G66 -> 0 | M66: 0 | N66: 0
B67: Pasture Cost | F67: 3.333333333 | H67: Acres | I67: 8 | K67: 26.66666667 | L67: 0 | M67: 320 | N67: 0
K68: 0 | L68: 0 | M68: 0 | N68: 0
K69: 0 | L69: 0 | M69: 0 | N69: 0
A70: Total Fixed Costs | K70: 163.1550347 | L70: =+SUM(L61:L67) -> 0 | M70: 1957.860417 | N70: =+SUM(N61:N67) -> 0
A71: Total Costs | K71: 230.609965 | L71: =+L55+L70 -> 0 | M71: 2767.319579 | N71: =+N55+N70 -> 0
A72: Planned Returns to Management, Risk, and Profit: | K72: -7.668581617 | L72: =+L18-L71 -> 0 | M72: -92.02297941 | N72: =+N18-N71 -> 0
B73: Average Kid Breakeven Price to Cover Total Costs | I73: 303.7703468 | J73: =IF((E11*G11+E12*G12)=0,"n/a",(L71-SUM(L13:L17))/(E11*G11+E12*G12)) -> n/a | K73: CWT
C75: Sensitivity Analysis for Example
C76: Example Weaning Percent | D76: Example Gross Sales per Breeding Female | F76: Pounds Produced per Breeding Female | H76: Example Breakeven Kid Pay Weight to Cover Total Cost | K76: Example Average Breakeven Price to Cover Total Cost
C77: 1.45 | D77: 250.67385 | F77: 96.61666667 | H77: 48.48271998 | K77: 261.8709886
C78: 1.35 | D78: 236.8076167 | F78: 91.85 | H78: 52.57985125 | K78: 281.2688396
C79: 1.25 | D79: 222.9413833 | F79: 87.08333333 | H79: 57.43337598 | K79: 303.7703468
C80: 1.15 | D80: 209.07515 | F80: 82.31666667 | H80: 63.27405828 | K80: 330.1851595
C81: 1.05 | D81: 195.2089167 | F81: 77.55 | H81: 70.43715922 | K81: 361.6313652
D83: ="Example Male "&F8&" Price" -> Example Male Kid Price | K83: =+I11 -> 290.9
D84: ="Example Female "&F8&" Price" -> Example Female Kid Price | K84: =+I12 -> 290.9
D85: ="Example Weighted Average "&F8&" Price ($/cwt)" -> Example Weighted Average Kid Price ($/cwt) | K85: =+(K11+K12)/(D11*F11+D12*F12) -> 290.9
C86: Sensitivity Analysis for Your Values
C87: Your Weaning Percent | D87: ="Your Gross Sales per "&F7 -> Your Gross Sales per Breeding Female | F87: ="Pounds Produced per "&F7 -> Pounds Produced per Breeding Female | H87: ="Your Breakeven "&F8&" Pay Weight to Cover Total Cost" -> Your Breakeven Kid Pay Weight to Cover Total Cost | K87: Your Average Breakeven Price to Cover Total Cost
C88: =+C89+C77-C78 -> 1.2 | D88: =+IF($C$90=0,0,$L$18-$L$11-$L$12+($L$11+$L$12)*C88/$C$90) -> 0 | F88: =IF($C$90=0,0,$M$94*C88/$C$90+$M$95) -> 0 | H88: =IF($D$90=0,0,(YTotExp-(YTotRet+YTotExp-$L$11-$L$12))/(YPrice/100)/(C88-$E$13*$E$7/$E$8)/($E$8/$E$7)) -> 0 | K88: =IF(F88-$M$95=0,0,(YTotExp-(YTotRet+YTotExp-$L$11-$L$12))/(F88-$M$95)*100) -> 0
C89: =+C90+C78-C79 -> 1.1 | D89: =+IF($C$90=0,0,$L$18-$L$11-$L$12+($L$11+$L$12)*C89/$C$90) -> 0 | F89: =IF($C$90=0,0,$M$94*C89/$C$90+$M$95) -> 0 | H89: =IF($D$90=0,0,(YTotExp-(YTotRet+YTotExp-$L$11-$L$12))/(YPrice/100)/(C89-$E$13*$E$7/$E$8)/($E$8/$E$7)) -> 0 | K89: =IF(F89-$M$95=0,0,(YTotExp-(YTotRet+YTotExp-$L$11-$L$12))/(F89-$M$95)*100) -> 0
C90: 1 | D90: =+L18 -> 0 | F90: =M94+M95 -> 0 | H90: =IF($D$90=0,0,(YTotExp-(YTotRet+YTotExp-$L$11-$L$12))/(YPrice/100)/(C90-$E$13*$E$7/$E$8)/($E$8/$E$7)) -> 0 | K90: =IF(F90-$M$95=0,0,(YTotExp-(YTotRet+YTotExp-$L$11-$L$12))/(F90-$M$95)*100) -> 0
C91: =+C90+C80-C79 -> 0.9 | D91: =+IF($C$90=0,0,$L$18-$L$11-$L$12+($L$11+$L$12)*C91/$C$90) -> 0 | F91: =IF($C$90=0,0,$M$94*C91/$C$90+$M$95) -> 0 | H91: =IF($D$90=0,0,(YTotExp-(YTotRet+YTotExp-$L$11-$L$12))/(YPrice/100)/(C91-$E$13*$E$7/$E$8)/($E$8/$E$7)) -> 0 | K91: =IF(F91-$M$95=0,0,(YTotExp-(YTotRet+YTotExp-$L$11-$L$12))/(F91-$M$95)*100) -> 0
C92: =+C91+C81-C80 -> 0.8 | D92: =+IF($C$90=0,0,$L$18-$L$11-$L$12+($L$11+$L$12)*C92/$C$90) -> 0 | F92: =IF($C$90=0,0,$M$94*C92/$C$90+$M$95) -> 0 | H92: =IF($D$90=0,0,(YTotExp-(YTotRet+YTotExp-$L$11-$L$12))/(YPrice/100)/(C92-$E$13*$E$7/$E$8)/($E$8/$E$7)) -> 0 | K92: =IF(F92-$M$95=0,0,(YTotExp-(YTotRet+YTotExp-$L$11-$L$12))/(F92-$M$95)*100) -> 0
D94: ="Your Male "&F8&" Price" -> Your Male Kid Price | K94: =+J11 -> 0 | M94: =(E11*G11+E12*G12)*100 -> 0
D95: ="Your Female "&F8&" Price" -> Your Female Kid Price | K95: =+J12 -> 0 | M95: =(E13*G13+E14*G14)*100 -> 0
D96: ="Your Weighted Average "&F8&" Price ($/cwt)" -> Your Weighted Average Kid Price ($/cwt) | K96: =+IF((E11*G11+E12*G12)=0,0,(L11+L12)/(E11*G11+E12*G12)) -> 0
A98: Developed by Bill Thompson, Assistant Professor and Extension Economist, Texas A&M AgriLife Extension Service, 325-653-4576.
A100: Information presented is prepared solely as a general guide and not intended to recognize or predict the costs and returns from any one operation. Brand names are mentioned only as examples and imply no endorsement.

Sheet SmallAcreageHairSheep
A1: Projections for Planning Purposes Only -- Not to be Used without Updating
A2: 2021 Estimated Costs and Returns per Breeding Female
A3: Small Acreage Hair Sheep
A4: Enter your name for this budget in the cell above.
A5: Enter Your Values in the cells highlighed in MAROON.
E6: Your Ewe
B7: Animal Units (AU) | D7: 12 | E7: =E8 -> 0 | F7: Breeding Female | N7: Your
B8: Breeding Females | D8: 12 | F8: Lamb | G8: Your | M8: Enterprise | N8: Enterprise
E9: Your | F9: Quantity | G9: Quantity | J9: Your | L9: Your | M9: Total | N9: Total
A10: REVENUE | D10: Head | E10: Head | F10: Per Head | G10: Per Head | H10: Units | I10: $/Unit | J10: $/Unit | K10: Total | L10: Total | M10: ="(" & D8 & " Head)" -> (12 Head) | N10: ="(" & E7 & " AUs)" -> (0 AUs)
B11: Slaughter Lamb - ewe (65lbs) | D11: 0.6666666667 | F11: 0.65 | H11: CWT | I11: 197.13 | K11: 85.423 | L11: =+E11*G11*J11 -> 0 | M11: 1025.076 | N11: =+L11*E$7 -> 0
B12: Slaughter Lamb - ram (65 Lbs) | D12: 0.4166666667 | F12: 0.65 | H12: CWT | I12: 197.13 | K12: 53.389375 | L12: =+E12*G12*J12 -> 0 | M12: 640.6725 | N12: =+L12*E$7 -> 0
B13: Cull Ewes | D13: 0.1666666667 | F13: 1.25 | H13: CWT | I13: 86.8 | K13: 18.08333333 | L13: 0 | M13: 217 | N13: 0
B14: Cull Rams | D14: 0.04166666667 | F14: 2 | H14: CWT | I14: 91.8 | K14: 7.65 | L14: 0 | M14: 91.8 | N14: 0
B15: PRF Income | D15: 1 | F15: 3.33 | H15: Acre | I15: 1.96 | K15: 6.5268 | L15: 0 | M15: 78.3216 | N15: 0
D16: 0 | F16: 0 | I16: 0 | K16: 0 | L16: 0 | M16: 0 | N16: 0
D17: 0 | F17: 0 | I17: 0 | K17: 0 | L17: 0 | M17: 0 | N17: 0
A18: Total Revenue | F18: 70.41666667 | K18: 171.0725083 | L18: =+SUM(L11:L17) -> 0 | M18: 2052.8701 | N18: =+SUM(N11:N17) -> 0
F19: 99.58333333
F20: 29.16666667 | M20: Enterprise | N20: Enterprise
A21: VARIABLE COSTS | F21: Quantity | G21: Quantity | H21: Units | I21: $/Unit | J21: $/Unit | K21: Total | L21: Total | M21: Total | N21: Total
A22: Production Costs
B23: Miscellaneous
C24: Supplies | F24: 1 | H24: Head | I24: 2 | K24: 2 | L24: =+J24*G24 -> 0 | M24: 24 | N24: =+L24*E$7 -> 0
C25: PRF Rainfall Ins | F25: 1 | H25: Head | I25: 3.7 | K25: 3.7 | L25: 0 | M25: 44.4 | N25: 0
F26: 1 | I26: 0 | K26: 0 | L26: 0 | M26: 0 | N26: 0
F27: 1 | I27: 0 | K27: 0 | L27: 0 | M27: 0 | N27: 0
B28: Marketing Expense | F28: 1 | H28: Head | I28: 5.102083333 | K28: 5.102083333 | L28: 0 | M28: 61.225 | N28: 0
B29: Feed
C30: Salt - Sheep | F30: 2.708333333 | H30: Pound | I30: 0.131 | K30: 0.3547916667 | L30: =+J30*G30 -> 0 | M30: 4.2575 | N30: =+L30*E$7 -> 0
C31: Mineral - Sheep | F31: 1.083333333 | H31: Pound | I31: 0.437 | K31: 0.4734166667 | L31: 0 | M31: 5.681 | N31: 0
C32: Range Cubes 20% | F32: 0.4875 | H32: CWT | I32: 17.9 | K32: 8.72625 | L32: 0 | M32: 104.715 | N32: 0
C33: Corn - Sheep and Goat | F33: 24.375 | H33: Pound | I33: 0.0714 | K33: 1.740375 | L33: 0 | M33: 20.8845 | N33: 0
F34: 0 | I34: 0 | K34: 0 | L34: 0 | M34: 0 | N34: 0
F35: 0 | I35: 0 | K35: 0 | L35: 0 | M35: 0 | N35: 0
F36: 0 | I36: 0 | K36: 0 | L36: 0 | M36: 0 | N36: 0
B37: Vet. Medicine
C38: Soremouth | F38: 1.25 | H38: Dose | I38: 0.34 | K38: 0.425 | L38: 0 | M38: 5.1 | N38: =+L38*E$7 -> 0
C39: Overeat/Tetnus | F39: 1.25 | H39: Dose | I39: 0.8404 | K39: 1.0505 | L39: 0 | M39: 12.606 | N39: 0
F40: 0 | I40: 0 | K40: 0 | L40: 0 | M40: 0 | N40: 0
F41: 0 | I41: 0 | K41: 0 | L41: 0 | M41: 0 | N41: 0
F42: 0 | I42: 0 | K42: 0 | L42: 0 | M42: 0 | N42: 0
B43: Fuel | F43: 1 | H43: Head | I43: 3.225 | K43: 3.225 | L43: 0 | M43: 38.7 | N43: 0
B44: Lube (As a % of fuel) | F44: 0.1 | H44: Percent | I44: 3.225 | K44: 0.3225 | L44: 0 | M44: 3.87 | N44: 0
B45: Repairs | F45: 1 | H45: Head | I45: 32.57745536 | K45: 32.57745536 | L45: 0 | M45: 390.9294643 | N45: 0
B46: Labor | F46: 0 | H46: Hours | I46: 0 | K46: 0 | L46: 0 | M46: 0 | N46: 0
B47: Utilities | F47: 1 | H47: Head | I47: 6 | K47: 6 | L47: 0 | M47: 72 | N47: 0
K48: 0 | L48: =+J48*G48 -> 0 | M48: 0 | N48: 0
B49: Purchase Breeding Female | F49: 1 | I49: 0 | K49: 0 | L49: =+J49*G49 -> 0 | M49: 0 | N49: 0
B50: Purchase Breeding Male | F50: 1 | I50: 0 | K50: 0 | L50: 0 | M50: 0 | N50: 0
B51: Purchase Older Repalcement Female | F51: 1 | I51: 0 | K51: 0 | L51: 0 | M51: 0 | N51: 0
B52: Purchase Younger Repalcement Female | F52: 1 | I52: 0 | K52: 0 | L52: 0 | M52: 0 | N52: 0
B53: Interest on Credit Line | I53: 0.0475 | K53: 2.188366842 | L53: =+SUM(L22:L52)/2*J53 -> 0 | M53: 26.2604021 | N53: 0
A54: Total Variable Costs | K54: 67.88573887 | L54: =+SUM(L24:L53) -> 0 | M54: 814.6288664 | N54: =+SUM(N24:N53) -> 0
A56: Planned Returns Above Variable Costs: | K56: 103.1867695 | L56: =+L18-L54 -> 0 | M56: 1238.241234 | N56: =+N18-N54 -> 0
B57: Average Lamb Breakeven Price to Cover Variable Costs | I57: 50.5925759 | J57: =IF((E11*G11+E12*G12)=0,"n/a",(L54-SUM(L13:L17))/(E11*G11+E12*G12)) -> n/a | K57: CWT
M58: Enterprise | N58: Enterprise
A59: FIXED COSTS | F59: Quantity | G59: Quantity | H59: Units | I59: $/Unit | J59: $/Unit | K59: Total | L59: Total | M59: Total | N59: Total
B60: Depreciation - Equipment | F60: 1 | H60: Head | I60: 130.9328125 | K60: 130.9328125 | L60: =+G60*J60 -> 0 | M60: 1571.19375 | N60: =+L60*E$7 -> 0
B61: Depreciation - Livestock | F61: 1 | H61: Head | I61: 5.555555556 | K61: 5.555555556 | L61: 0 | M61: 66.66666667 | N61: 0
B62: Equipment Investment | F62: 0 | H62: dollars | I62: 0 | K62: 0 | L62: 0 | M62: 0 | N62: 0
B63: Insurance | F63: 1 | H63: Head | I63: 0 | K63: 0 | L63: 0 | M63: 0 | N63: 0
B64: Management Fee, Owner/Operator Labor | F64: 1 | H64: Head | I64: 0 | K64: 0 | L64: =+J64*G64 -> 0 | M64: 0 | N64: 0
B65: Salaried Labor | F65: 1 | H65: Head | I65: 0 | K65: 0 | L65: =+J65*G65 -> 0 | M65: 0 | N65: 0
B66: Pasture Cost | F66: 3.333333333 | H66: Acres | I66: 8 | K66: 26.66666667 | L66: 0 | M66: 320 | N66: 0
K67: 0 | L67: 0 | M67: 0 | N67: 0
K68: 0 | L68: 0 | M68: 0 | N68: 0
A69: Total Fixed Costs | K69: 163.1550347 | L69: =+SUM(L60:L66) -> 0 | M69: 1957.860417 | N69: =+SUM(N60:N66) -> 0
A70: Total Costs | K70: 231.0407736 | L70: =+L54+L69 -> 0 | M70: 2772.489283 | N70: =+N54+N69 -> 0
A71: Planned Returns to Management, Risk, and Profit: | K71: -59.96826525 | L71: =+L18-L70 -> 0 | M71: -719.6191831 | N71: =+N18-N70 -> 0
B72: Average Lamb Breakeven Price to Cover Total Costs | I72: 282.2920335 | J72: =IF((E11*G11+E12*G12)=0,"n/a",(L70-SUM(L13:L17))/(E11*G11+E12*G12)) -> n/a | K72: CWT
C74: Sensitivity Analysis for Example
C75: Example Weaning Percent | D75: Example Gross Sales per Breeding Female | F75: Pounds Produced per Breeding Female | H75: Example Breakeven Lamb Pay Weight to Cover Total Cost | K75: Example Average Breakeven Price to Cover Total Cost
C76: 1.45 | D76: 193.2824883 | F76: 110.85 | H76: 78.57454745 | K76: 243.3552013
C77: 1.35 | D77: 182.1774983 | F77: 105.2166667 | H77: 85.21465005 | K77: 261.3815125
C78: 1.25 | D78: 171.0725083 | F78: 99.58333333 | H78: 93.08061775 | K78: 282.2920335
C79: 1.15 | D79: 159.9675183 | F79: 93.95 | H79: 102.5464433 | K79: 306.8391668
C80: 1.05 | D80: 148.8625283 | F80: 88.31666667 | H80: 114.1554746 | K80: 336.0619446
D82: ="Example Male "&F8&" Price" -> Example Male Lamb Price | K82: =+I11 -> 197.13
D83: ="Example Female "&F8&" Price" -> Example Female Lamb Price | K83: =+I12 -> 197.13
D84: ="Example Weighted Average "&F8&" Price ($/cwt)" -> Example Weighted Average Lamb Price ($/cwt) | K84: =+(K11+K12)/(D11*F11+D12*F12) -> 197.13
C85: Sensitivity Analysis for Your Values
C86: Your Weaning Percent | D86: ="Your Gross Sales per "&F7 -> Your Gross Sales per Breeding Female | F86: ="Pounds Produced per "&F7 -> Pounds Produced per Breeding Female | H86: ="Your Breakeven "&F8&" Pay Weight to Cover Total Cost" -> Your Breakeven Lamb Pay Weight to Cover Total Cost | K86: Your Average Breakeven Price to Cover Total Cost
C87: =+C88+C76-C77 -> 1.2 | D87: =+IF($C$89=0,0,$L$18-$L$11-$L$12+($L$11+$L$12)*C87/$C$89) -> 0 | F87: =IF($C$89=0,0,$M$93*C87/$C$89+$M$94) -> 0 | H87: =IF($D$89=0,0,(YTotExp-(YTotRet+YTotExp-$L$11-$L$12))/(YPrice/100)/(C87-$E$13*$E$7/$E$8)/($E$8/$E$7)) -> 0 | K87: =IF(F87-$M$94=0,0,(YTotExp-(YTotRet+YTotExp-$L$11-$L$12))/(F87-$M$94)*100) -> 0
C88: =+C89+C77-C78 -> 1.1 | D88: =+IF($C$89=0,0,$L$18-$L$11-$L$12+($L$11+$L$12)*C88/$C$89) -> 0 | F88: =IF($C$89=0,0,$M$93*C88/$C$89+$M$94) -> 0 | H88: =IF($D$89=0,0,(YTotExp-(YTotRet+YTotExp-$L$11-$L$12))/(YPrice/100)/(C88-$E$13*$E$7/$E$8)/($E$8/$E$7)) -> 0 | K88: =IF(F88-$M$94=0,0,(YTotExp-(YTotRet+YTotExp-$L$11-$L$12))/(F88-$M$94)*100) -> 0
C89: 1 | D89: =+L18 -> 0 | F89: =M93+M94 -> 0 | H89: =IF($D$89=0,0,(YTotExp-(YTotRet+YTotExp-$L$11-$L$12))/(YPrice/100)/(C89-$E$13*$E$7/$E$8)/($E$8/$E$7)) -> 0 | K89: =IF(F89-$M$94=0,0,(YTotExp-(YTotRet+YTotExp-$L$11-$L$12))/(F89-$M$94)*100) -> 0
C90: =+C89+C79-C78 -> 0.9 | D90: =+IF($C$89=0,0,$L$18-$L$11-$L$12+($L$11+$L$12)*C90/$C$89) -> 0 | F90: =IF($C$89=0,0,$M$93*C90/$C$89+$M$94) -> 0 | H90: =IF($D$89=0,0,(YTotExp-(YTotRet+YTotExp-$L$11-$L$12))/(YPrice/100)/(C90-$E$13*$E$7/$E$8)/($E$8/$E$7)) -> 0 | K90: =IF(F90-$M$94=0,0,(YTotExp-(YTotRet+YTotExp-$L$11-$L$12))/(F90-$M$94)*100) -> 0
C91: =+C90+C80-C79 -> 0.8 | D91: =+IF($C$89=0,0,$L$18-$L$11-$L$12+($L$11+$L$12)*C91/$C$89) -> 0 | F91: =IF($C$89=0,0,$M$93*C91/$C$89+$M$94) -> 0 | H91: =IF($D$89=0,0,(YTotExp-(YTotRet+YTotExp-$L$11-$L$12))/(YPrice/100)/(C91-$E$13*$E$7/$E$8)/($E$8/$E$7)) -> 0 | K91: =IF(F91-$M$94=0,0,(YTotExp-(YTotRet+YTotExp-$L$11-$L$12))/(F91-$M$94)*100) -> 0
D93: ="Your Male "&F8&" Price" -> Your Male Lamb Price | K93: =+J11 -> 0 | M93: =(E11*G11+E12*G12)*100 -> 0
D94: ="Your Female "&F8&" Price" -> Your Female Lamb Price | K94: =+J12 -> 0 | M94: =(E13*G13+E14*G14)*100 -> 0
D95: ="Your Weighted Average "&F8&" Price ($/cwt)" -> Your Weighted Average Lamb Price ($/cwt) | K95: =+IF((E11*G11+E12*G12)=0,0,(L11+L12)/(E11*G11+E12*G12)) -> 0
A97: Developed by Bill Thompson, Assistant Professor and Extension Economist, Texas A&M AgriLife Extension Service, 325-653-4576.
A99: Information presented is prepared solely as a general guide and not intended to recognize or predict the costs and returns from any one operation. Brand names are mentioned only as examples and imply no endorsement.

Sheet NativePastureStockers
A1: Projections for Planning Purposes Only -- Not to be Used without Updating
A2: 2021 Estimated Costs and Returns per Animal
A3: Stocker Calf Budget - Native Pasture - Summer
A4: Enter your name for this budget in the cell above.
A5: Enter Your Values in the cells highlighed in MAROON. | M5: Stocker
E6: Your Head | N6: Your
B7: Number of Head | D7: 200 | G7: Your | M7: Enterprise | N7: Enterprise
E8: Your | F8: Pay Weight | G8: Weight | J8: Your | L8: Your | M8: Total | N8: Total
A9: REVENUE | D9: Head | E9: Head | F9: or Amount | G9: or Amount | H9: Units | I9: $/Unit | J9: $/Unit | K9: Total | L9: Total | M9: ="(" & D7 & " Head)" -> (200 Head) | N9: ="(" & E7 & " Head)" -> ( Head)
B11: Stocker | D11: 0.985 | F11: 6.7522 | H11: CWT | I11: 150 | K11: 997.63755 | L11: =+J11*G11*E11 -> 0 | M11: 199527.51 | N11: =+L11*E$7 -> 0
D12: 0.985 | F12: 0 | I12: 0 | K12: 0 | L12: 0 | M12: 0 | N12: 0
D13: 0.985 | F13: 0 | I13: 0 | K13: 0 | L13: 0 | M13: 0 | N13: 0
A14: Total Revenue | K14: 997.63755 | L14: =+L11 -> 0 | M14: 199527.51 | N14: 0
M15: Enterprise | N15: Enterprise
A16: VARIABLE COSTS | F16: Quantity | G16: Quantity | H16: Units | I16: $/Unit | J16: $/Unit | K16: Total | L16: Total | M16: Total | N16: Total
A17: Production Costs
B18: Stocker Purchase | F18: 5.25 | H18: CWT | I18: 154 | K18: 808.5 | L18: =+J18*G18 -> 0 | M18: 161700 | N18: =+L18*E$7 -> 0
B19: Stocker Delivery | F19: 1 | H19: Head | I19: 5 | K19: 5 | L19: =+J19*G19 -> 0 | M19: 1000 | N19: =+L19*E$7 -> 0
B20: Grazing
C21: Acre Lease | F21: 0.005 | H21: Acre | I21: 0 | K21: 0 | L21: 0 | M21: 0 | N21: =+L21*E$7 -> 0
C22: Grazing by Month | F22: 3.0125 | H22: Month | I22: 20 | K22: 60.25 | L22: 0 | M22: 12050 | N22: 0
C23: Gain Contract | F23: 0 | H23: Pounds | I23: 0 | K23: 0 | L23: 0 | M23: 0 | N23: 0
C24: On Weight Per Month | F24: 0 | H24: Month | I24: 0 | K24: 0 | L24: =+G24*J24*G18 -> 0 | M24: 0 | N24: 0
B25: Health
C26: Vaccinate/process Stockers | F26: 1 | H26: Head | I26: 15 | K26: 15 | L26: =+J26*G26 -> 0 | M26: 3000 | N26: =+L26*E$7 -> 0
F27: 0 | I27: 0 | K27: 0 | L27: 0 | M27: 0 | N27: 0
F28: 0 | I28: 0 | K28: 0 | L28: 0 | M28: 0 | N28: 0
F29: 0 | I29: 0 | K29: 0 | L29: 0 | M29: 0 | N29: 0
B30: Feed
C31: Hay | F31: 0.05 | H31: Ton | I31: 150 | K31: 7.5 | L31: 0 | M31: 1500 | N31: 0
C32: Range Mineral | F32: 8.1 | H32: pound | I32: 0.437 | K32: 3.5397 | L32: 0 | M32: 707.94 | N32: 0
C33: Range Cubes 20% | F33: 0.25 | H33: CWT | I33: 17.9 | K33: 4.475 | L33: 0 | M33: 895 | N33: 0
F34: 0 | I34: 0 | K34: 0 | L34: 0 | M34: 0 | N34: 0
F35: 0 | I35: 0 | K35: 0 | L35: 0 | M35: 0 | N35: 0
F36: 0 | I36: 0 | K36: 0 | L36: 0 | M36: 0 | N36: 0
B37: Miscellaneous
F38: 1 | I38: 0 | K38: 0 | L38: =+J38*G38 -> 0 | M38: 0 | N38: =+L38*E$7 -> 0
F39: 1 | I39: 0 | K39: 0 | L39: 0 | M39: 0 | N39: 0
B40: Fuel | F40: 1 | H40: Head | I40: 3.825 | K40: 3.825 | L40: 0 | M40: 765 | N40: 0
B41: Lube (As a % of fuel) | F41: 0.1 | H41: Percent | I41: 3.825 | K41: 0.3825 | L41: 0 | M41: 76.5 | N41: 0
B42: Utilities | F42: 1 | H42: Head | I42: 0 | K42: 0 | L42: 0 | M42: 0 | N42: 0
B43: Repairs | F43: 1 | H43: Head | I43: 5.427 | K43: 5.427 | L43: 0 | M43: 1085.4 | N43: 0
B44: Marketing | F44: 0.985 | H44: Head | I44: 18.5 | K44: 18.2225 | L44: 0 | M44: 3644.5 | N44: 0
B45: Labor | F45: 1 | H45: Head | I45: 1.25 | K45: 1.25 | L45: 0 | M45: 250 | N45: 0
K46: 0 | L46: =+J46*G46 -> 0 | M46: 0 | N46: =+L46*E$7 -> 0
K47: 0 | L47: =+J47*G47 -> 0 | M47: 0 | N47: =+L47*E$7 -> 0
B48: Interest on Credit Line | I48: 0.0475 | K48: 17.15089825 | L48: =+SUM(L18:L45)*J48/2 -> 0 | M48: 3430.17965 | N48: 0
A49: Total Variable Costs | K49: 950.5225982 | L49: =+SUM(L18:L48) -> 0 | M49: 190104.5196 | N49: =+SUM(N18:N48) -> 0
A51: Planned Returns Above Variable Costs: | K51: 47.11495175 | L51: =+L14-L49 -> 0 | M51: 9422.99035 | N51: =+N14-N49 -> 0
B53: Breakeven Price to Cover Variable Costs | I53: 142.9160217 | J53: =+IF(G11=0,"n/a",(L49-SUM(L12:L13))/(G11*E11)) -> n/a | K53: CWT
M54: Enterprise | N54: Enterprise
A55: FIXED COSTS | F55: Quantity | G55: Quantity | H55: Units | I55: $/Unit | J55: $/Unit | K55: Total | L55: Total | M55: Total | N55: Total
B57: Depreciation | F57: 1 | H57: Head | I57: 0 | K57: 0 | L57: =+J57*G57 -> 0 | M57: 0 | N57: =+L57*E$7 -> 0
B58: Equipment Investment | F58: 113.0625 | H58: dollars | I58: 0.055 | K58: 6.2184375 | L58: 0 | M58: 1243.6875 | N58: 0
B59: Salaried Labor | F59: 1 | H59: Head | I59: 0 | K59: 0 | L59: 0 | M59: 0 | N59: 0
B60: Management Fee, Owner/Operator Labor | F60: 1 | H60: Head | I60: 0 | K60: 0 | L60: 0 | M60: 0 | N60: 0
B61: Insurance | F61: 1 | H61: Head | I61: 0 | K61: 0 | L61: 0 | M61: 0 | N61: 0
K62: 0 | L62: 0 | M62: 0 | N62: 0
K63: 0 | L63: 0 | M63: 0 | N63: 0
A64: Total Fixed Costs | K64: 6.2184375 | L64: =+SUM(L57:L61) -> 0 | M64: 1243.6875 | N64: =+SUM(N57:N61) -> 0
A66: Total Costs | K66: 956.7410357 | L66: =+L49+L64 -> 0 | M66: 191348.2071 | N66: =+N49+N64 -> 0
A68: Planned Returns to Management, Risk, and Profit: | K68: 40.89651425 | L68: =+L51-L64 -> 0 | M68: 8179.30285 | N68: =+N51-N64 -> 0
A70: Breakeven Price to Cover Total Costs | I70: 143.8509961 | J70: =+IF(G11=0,"n/a",(L66-SUM(L12:L13))/(G11*E11)) -> n/a | K70: CWT
C72: Example Breakeven Sensitivity Analysis
F73: Purchase Weight (Lbs/Hd): 525 | H73: Sales Price/Cwt of $Total
F74: Sales Price/Cwt 150.00 | H74: Purchase Price/Cwt 154.00
C75: ADG (Lbs/day) | D75: Net Pay Weight with Shrink | F75: Breakeven Purchase Price ($/CWT) | H75: Breakeven Sales Price ($/CWT)
C76: 1.205215686 | D76: 698.898 | F76: 168.453478 | H76: 138.9774611
C77: 1.104781046 | D77: 683.5315 | F77: 164.1289058 | H77: 142.1018192
C78: 1.004346405 | D78: 675.22 | F78: 161.7898122 | H78: 143.8509961
C79: 0.9039117647 | D79: 652.7985 | F79: 155.4797615 | H79: 148.7918088
C80: 0.8034771242 | D80: 637.432 | F80: 151.1551894 | H80: 152.3787159
C81: Your Average Daily Gain | E81: 0 | F81: Pounds per Day
C82: =+"Your Animal"&IF(M5="Stocker"," Grazing"," Feeding")&" Days" -> Your Animal Grazing Days | E82: 0 | F82: Days
C83: Your Sale Shrink | E83: 0
C85: Your Breakeven Sensitivity Analysis
F86: =+"Purchase Weight (Lbs/Hd): "&G18*100 -> Purchase Weight (Lbs/Hd): 0 | H86: Sales Price/Cwt of $Total
F87: ="Sales Price/Cwt "&IF(J11="",".00",TEXT(J11,"#.00")) -> Sales Price/Cwt .00 | H87: ="Purchase Price/Cwt "&IF(J18="",".00",TEXT(J18,"#.00")) -> Purchase Price/Cwt .00
C88: ADG (Lbs/day) | D88: Net Pay Weight with Shrink | F88: Breakeven Purchase Price ($/CWT) | H88: Breakeven Sales Price ($/CWT)
C89: =+C91*1.2 -> 0 | D89: =+C89*$E$82+$G$18*100*(1-$E$83) -> 0 | F89: =IF($G$18=0,0,(((D89*$J$11/100*$E$11)-($L$66-SUM($J$12:$J$13)-$L$18))/(100*$G$18))*100) -> 0 | H89: =IF($E$11=0,0,($L$66-SUM($J$12:$J$13))/(D89*$E$11/100)) -> 0
C90: =+C91*1.1 -> 0 | D90: =+C90*$E$82+$G$18*100*(1-$E$83) -> 0 | F90: =IF($G$18=0,0,(((D90*$J$11/100*$E$11)-($L$66-SUM($J$12:$J$13)-$L$18))/(100*$G$18))*100) -> 0 | H90: =IF($E$11=0,0,($L$66-SUM($J$12:$J$13))/(D90*$E$11/100)) -> 0
C91: =+E81 -> 0 | D91: =+C91*$E$82+$G$18*100*(1-$E$83) -> 0 | F91: =IF($G$18=0,0,(((D91*$J$11/100*$E$11)-($L$66-SUM($J$12:$J$13)-$L$18))/(100*$G$18))*100) -> 0 | H91: =IF($E$11=0,0,($L$66-SUM($J$12:$J$13))/(D91*$E$11/100)) -> 0
C92: =+C91*0.9 -> 0 | D92: =+C92*$E$82+$G$18*100*(1-$E$83) -> 0 | F92: =IF($G$18=0,0,(((D92*$J$11/100*$E$11)-($L$66-SUM($J$12:$J$13)-$L$18))/(100*$G$18))*100) -> 0 | H92: =IF($E$11=0,0,($L$66-SUM($J$12:$J$13))/(D92*$E$11/100)) -> 0
C93: =+C91*0.8 -> 0 | D93: =+C93*$E$82+$G$18*100*(1-$E$83) -> 0 | F93: =IF($G$18=0,0,(((D93*$J$11/100*$E$11)-($L$66-SUM($J$12:$J$13)-$L$18))/(100*$G$18))*100) -> 0 | H93: =IF($E$11=0,0,($L$66-SUM($J$12:$J$13))/(D93*$E$11/100)) -> 0
A95: Developed by Bill Thompson, Assistant Professor and Extension Economist, Texas A&M AgriLife Extension Service, 325-653-4576.
A97: Information presented is prepared solely as a general guide and not intended to recognize or predict the costs and returns from any one operation. Brand names are mentioned only as examples and imply no endorsement.

Sheet WheatStockersMar15
A1: Projections for Planning Purposes Only -- Not to be Used without Updating
A2: 2021 Estimated Costs and Returns per Animal
A3: Stocker Calf Budget - Pull off Wheat March 15
A4: Enter your name for this budget in the cell above.
A5: Enter Your Values in the cells highlighed in MAROON. | M5: Stocker
E6: Your Head | N6: Your
B7: Number of Head | D7: 250 | G7: Your | M7: Enterprise | N7: Enterprise
E8: Your | F8: Pay Weight | G8: Weight | J8: Your | L8: Your | M8: Total | N8: Total
A9: REVENUE | D9: Head | E9: Head | F9: or Amount | G9: or Amount | H9: Units | I9: $/Unit | J9: $/Unit | K9: Total | L9: Total | M9: ="(" & D7 & " Head)" -> (250 Head) | N9: ="(" & E7 & " Head)" -> ( Head)
B11: Stocker | D11: 0.98 | F11: 6.174 | H11: CWT | I11: 143 | K11: 865.22436 | L11: =+J11*G11*E11 -> 0 | M11: 216306.09 | N11: =+L11*E$7 -> 0
D12: 0.98 | F12: 0 | I12: 0 | K12: 0 | L12: 0 | M12: 0 | N12: 0
D13: 0.98 | F13: 0 | I13: 0 | K13: 0 | L13: 0 | M13: 0 | N13: 0
A14: Total Revenue | K14: 865.22436 | L14: =+L11 -> 0 | M14: 216306.09 | N14: 0
M15: Enterprise | N15: Enterprise
A16: VARIABLE COSTS | F16: Quantity | G16: Quantity | H16: Units | I16: $/Unit | J16: $/Unit | K16: Total | L16: Total | M16: Total | N16: Total
A17: Production Costs
B18: Stocker Purchase | F18: 4.5 | H18: CWT | I18: 169.25 | K18: 761.625 | L18: =+J18*G18 -> 0 | M18: 190406.25 | N18: =+L18*E$7 -> 0
B19: Stocker Delivery | F19: 1 | H19: Head | I19: 5 | K19: 5 | L19: =+J19*G19 -> 0 | M19: 1250 | N19: =+L19*E$7 -> 0
B20: Grazing
C21: Acre Lease | F21: 0.004 | H21: Acre | I21: 0 | K21: 0 | L21: 0 | M21: 0 | N21: =+L21*E$7 -> 0
C22: Grazing by Month | F22: 0 | H22: Month | I22: 0 | K22: 0 | L22: 0 | M22: 0 | N22: 0
C23: Gain Contract | F23: 170.8163265 | H23: Pounds | I23: 0.45 | K23: 76.86734694 | L23: 0 | M23: 19216.83673 | N23: 0
C24: On Weight Per Month | F24: 0 | H24: Month | I24: 0 | K24: 0 | L24: =+G24*J24*G18 -> 0 | M24: 0 | N24: 0
B25: Health
C26: Vaccinate/process Stockers | F26: 1 | H26: Head | I26: 15 | K26: 15 | L26: =+J26*G26 -> 0 | M26: 3750 | N26: =+L26*E$7 -> 0
F27: 0 | I27: 0 | K27: 0 | L27: 0 | M27: 0 | N27: 0
F28: 0 | I28: 0 | K28: 0 | L28: 0 | M28: 0 | N28: 0
F29: 0 | I29: 0 | K29: 0 | L29: 0 | M29: 0 | N29: 0
B30: Feed
C31: Hay | F31: 0.1125 | H31: Ton | I31: 150 | K31: 16.875 | L31: 0 | M31: 4218.75 | N31: 0
C32: Salt & Mineral - Stockers | F32: 6.4 | H32: Pounds | I32: 0.23 | K32: 1.472 | L32: 0 | M32: 368 | N32: 0
F33: 0 | I33: 0 | K33: 0 | L33: 0 | M33: 0 | N33: 0
F34: 0 | I34: 0 | K34: 0 | L34: 0 | M34: 0 | N34: 0
F35: 0 | I35: 0 | K35: 0 | L35: 0 | M35: 0 | N35: 0
B36: Miscellaneous
F37: 1 | I37: 0 | K37: 0 | L37: =+J37*G37 -> 0 | M37: 0 | N37: =+L37*E$7 -> 0
F38: 1 | I38: 0 | K38: 0 | L38: 0 | M38: 0 | N38: 0
B39: Fuel | F39: 1 | H39: Head | I39: 3.06 | K39: 3.06 | L39: 0 | M39: 765 | N39: 0
B40: Lube (As a % of fuel) | F40: 0.1 | H40: Percent | I40: 3.06 | K40: 0.306 | L40: 0 | M40: 76.5 | N40: 0
B41: Utilities | F41: 1 | H41: Head | I41: 3 | K41: 3 | L41: 0 | M41: 750 | N41: 0
B42: Repairs | F42: 1 | H42: Head | I42: 1.914 | K42: 1.914 | L42: 0 | M42: 478.5 | N42: 0
B43: Marketing | F43: 0.98 | H43: Head | I43: 18 | K43: 17.64 | L43: 0 | M43: 4410 | N43: 0
B44: Labor | F44: 1 | H44: Head | I44: 26.928 | K44: 26.928 | L44: 0 | M44: 6732 | N44: 0
K45: 0 | L45: =+J45*G45 -> 0 | M45: 0 | N45: =+L45*E$7 -> 0
K46: 0 | L46: =+J46*G46 -> 0 | M46: 0 | N46: =+L46*E$7 -> 0
B47: Interest on Credit Line | I47: 0.0475 | K47: 12.95772853 | L47: =+SUM(L18:L44)*J47/2 -> 0 | M47: 3239.432134 | N47: 0
A48: Total Variable Costs | K48: 942.6450755 | L48: =+SUM(L18:L47) -> 0 | M48: 235661.2689 | N48: =+SUM(N18:N47) -> 0
A50: Planned Returns Above Variable Costs: | K50: -77.42071547 | L50: =+L14-L48 -> 0 | M50: -19355.17887 | N50: =+N14-N48 -> 0
B52: Breakeven Price to Cover Variable Costs | I52: 155.7957127 | J52: =+IF(G11=0,"n/a",(L48-SUM(L12:L13))/(G11*E11)) -> n/a | K52: CWT
M53: Enterprise | N53: Enterprise
A54: FIXED COSTS | F54: Quantity | G54: Quantity | H54: Units | I54: $/Unit | J54: $/Unit | K54: Total | L54: Total | M54: Total | N54: Total
B56: Depreciation | F56: 1 | H56: Head | I56: 4.770714286 | K56: 4.770714286 | L56: =+J56*G56 -> 0 | M56: 1192.678571 | N56: =+L56*E$7 -> 0
B57: Equipment Investment | F57: 57.5925 | H57: dollars | I57: 0.055 | K57: 3.1675875 | L57: 0 | M57: 791.896875 | N57: 0
B58: Salaried Labor | F58: 1 | H58: Head | I58: 0 | K58: 0 | L58: 0 | M58: 0 | N58: 0
B59: Management Fee, Owner/Operator Labor | F59: 1 | H59: Head | I59: 0 | K59: 0 | L59: 0 | M59: 0 | N59: 0
B60: Insurance | F60: 1 | H60: Head | I60: 0 | K60: 0 | L60: 0 | M60: 0 | N60: 0
K61: 0 | L61: 0 | M61: 0 | N61: 0
K62: 0 | L62: 0 | M62: 0 | N62: 0
A63: Total Fixed Costs | K63: 7.938301786 | L63: =+SUM(L56:L60) -> 0 | M63: 1984.575446 | N63: =+SUM(N56:N60) -> 0
A65: Total Costs | K65: 950.5833773 | L65: =+L48+L63 -> 0 | M65: 237645.8443 | N65: =+N48+N63 -> 0
A67: Planned Returns to Management, Risk, and Profit: | K67: -85.35901726 | L67: =+L50-L63 -> 0 | M67: -21339.75431 | N67: =+N50-N63 -> 0
A69: Breakeven Price to Cover Total Costs | I69: 157.1077159 | J69: =+IF(G11=0,"n/a",(L65-SUM(L12:L13))/(G11*E11)) -> n/a | K69: CWT
C71: Example Breakeven Sensitivity Analysis
F72: Purchase Weight (Lbs/Hd): 450 | H72: Sales Price/Cwt of $Total
F73: Sales Price/Cwt 143.00 | H73: Purchase Price/Cwt 169.25
C74: ADG (Lbs/day) | D74: Net Pay Weight with Shrink | F74: Breakeven Purchase Price ($/CWT) | H74: Breakeven Sales Price ($/CWT)
C75: 1.674 | D75: 641.88 | F75: 157.9049455 | H75: 151.1159466
C76: 1.5345 | D76: 625.14 | F76: 152.6917375 | H76: 155.1625297
C77: 1.395 | D77: 617.4 | F77: 150.2813295 | H77: 157.1077159
C78: 1.2555 | D78: 591.66 | F78: 142.2653215 | H78: 163.9426424
C79: 1.116 | D79: 574.92 | F79: 137.0521135 | H79: 168.7161758
C80: Your Average Daily Gain | E80: 0 | F80: Pounds per Day
C81: =+"Your Animal"&IF(M5="Stocker"," Grazing"," Feeding")&" Days" -> Your Animal Grazing Days | E81: 0 | F81: Days
C82: Your Sale Shrink | E82: 0
C84: Your Breakeven Sensitivity Analysis
F85: =+"Purchase Weight (Lbs/Hd): "&G18*100 -> Purchase Weight (Lbs/Hd): 0 | H85: Sales Price/Cwt of $Total
F86: ="Sales Price/Cwt "&IF(J11="",".00",TEXT(J11,"#.00")) -> Sales Price/Cwt .00 | H86: ="Purchase Price/Cwt "&IF(J18="",".00",TEXT(J18,"#.00")) -> Purchase Price/Cwt .00
C87: ADG (Lbs/day) | D87: Net Pay Weight with Shrink | F87: Breakeven Purchase Price ($/CWT) | H87: Breakeven Sales Price ($/CWT)
C88: =+C90*1.2 -> 0 | D88: =+C88*$E$81+$G$18*100*(1-$E$82) -> 0 | F88: =IF($G$18=0,0,(((D88*$J$11/100*$E$11)-($L$65-SUM($J$12:$J$13)-$L$18))/(100*$G$18))*100) -> 0 | H88: =IF($E$11=0,0,($L$65-SUM($J$12:$J$13))/(D88*$E$11/100)) -> 0
C89: =+C90*1.1 -> 0 | D89: =+C89*$E$81+$G$18*100*(1-$E$82) -> 0 | F89: =IF($G$18=0,0,(((D89*$J$11/100*$E$11)-($L$65-SUM($J$12:$J$13)-$L$18))/(100*$G$18))*100) -> 0 | H89: =IF($E$11=0,0,($L$65-SUM($J$12:$J$13))/(D89*$E$11/100)) -> 0
C90: =+E80 -> 0 | D90: =+C90*$E$81+$G$18*100*(1-$E$82) -> 0 | F90: =IF($G$18=0,0,(((D90*$J$11/100*$E$11)-($L$65-SUM($J$12:$J$13)-$L$18))/(100*$G$18))*100) -> 0 | H90: =IF($E$11=0,0,($L$65-SUM($J$12:$J$13))/(D90*$E$11/100)) -> 0
C91: =+C90*0.9 -> 0 | D91: =+C91*$E$81+$G$18*100*(1-$E$82) -> 0 | F91: =IF($G$18=0,0,(((D91*$J$11/100*$E$11)-($L$65-SUM($J$12:$J$13)-$L$18))/(100*$G$18))*100) -> 0 | H91: =IF($E$11=0,0,($L$65-SUM($J$12:$J$13))/(D91*$E$11/100)) -> 0
C92: =+C90*0.8 -> 0 | D92: =+C92*$E$81+$G$18*100*(1-$E$82) -> 0 | F92: =IF($G$18=0,0,(((D92*$J$11/100*$E$11)-($L$65-SUM($J$12:$J$13)-$L$18))/(100*$G$18))*100) -> 0 | H92: =IF($E$11=0,0,($L$65-SUM($J$12:$J$13))/(D92*$E$11/100)) -> 0
A94: Developed by Bill Thompson, Assistant Professor and Extension Economist, Texas A&M AgriLife Extension Service, 325-653-4576.
A96: Information presented is prepared solely as a general guide and not intended to recognize or predict the costs and returns from any one operation. Brand names are mentioned only as examples and imply no endorsement.

Sheet Livestock Budget
A1: Estimated Costs and Returns per Animal or Breeding Female
A3: Livestock Budget
A5: Number of Head of Livestock | D5: 0
A7: Enter Your Values in the cells highlighed in MAROON. | H7: Enterprise
A8: REVENUE | C8: Head | D8: Quantity | E8: Units | F8: $/Unit | G8: Total | H8: Total
B9: Males Sold | C9: 0 | D9: 0 | E9: CWT | F9: 0 | G9: =IF($D$5=0,0,C9/$D$5*D9*F9) -> 0 | H9: =+G9*$D$5 -> 0
B10: Females Sold | C10: 0 | D10: 0 | E10: CWT | F10: 0 | G10: =IF($D$5=0,0,C10/$D$5*D10*F10) -> 0 | H10: =+G10*$D$5 -> 0
B11: Cull Breeding Females | C11: 0 | D11: 0 | E11: CWT | F11: 0 | G11: 0 | H11: 0
B12: Cull Breeding Males | C12: 0 | D12: 0 | E12: CWT | F12: 0 | G12: 0 | H12: 0
B13: Stocker or Feed Animal | C13: 0 | D13: 0 | E13: CWT | F13: 0 | G13: 0 | H13: 0
B14: Other Revenue | C14: 0 | D14: 0 | E14: CWT | F14: 0 | G14: 0 | H14: 0
B15: Other Revenue | C15: 0 | D15: 0 | E15: CWT | F15: 0 | G15: 0 | H15: 0
B16: Other Revenue | C16: 0 | D16: 0 | E16: CWT | F16: 0 | G16: 0 | H16: 0
A18: Total Revenue | G18: =+SUM(G9:G17) -> 0 | H18: =+SUM(H9:H17) -> 0
H20: Enterprise
A21: VARIABLE COSTS | D21: Quantity | E21: Units | F21: $/Unit | G21: Total | H21: Total
A22: Production Costs
B23: Animal Purchase Price, if applicable | D23: 0 | E23: Cwt | F23: 0 | G23: =D23*F23 -> 0 | H23: =+G23*$D$5 -> 0
B24: Pasture | C24: =+SUM(G25:G28) -> 0
C25: Pasture 1 | D25: 0 | E25: Acre | F25: 0 | G25: =D25*F25 -> 0 | H25: =+G25*$D$5 -> 0
C26: Pasture 2 | D26: 0 | E26: Acre | F26: 0 | G26: 0 | H26: 0
C27: Pasture 3 | D27: 0 | E27: Acre | F27: 0 | G27: 0 | H27: 0
C28: Pasture 4 | D28: 0 | E28: Acre | F28: 0 | G28: 0 | H28: 0
B29: Feed | C29: =SUM(G30:G37) -> 0
C30: Hay | D30: 0 | E30: Bales | F30: 0 | G30: =D30*F30 -> 0 | H30: =+G30*$D$5 -> 0
C31: Supplement | D31: 0 | E31: Cwt,lb,etc | F31: 0 | G31: =D31*F31 -> 0 | H31: =+G31*$D$5 -> 0
C32: Salt Minerals | D32: 0 | E32: Cwt | F32: 0 | G32: 0 | H32: 0
C33: Other Feed | D33: 0 | E33: Cwt,lb,etc | F33: 0 | G33: 0 | H33: 0
C34: Other Feed | D34: 0 | E34: Cwt,lb,etc | F34: 0 | G34: 0 | H34: 0
C35: Other Feed | D35: 0 | E35: Cwt,lb,etc | F35: 0 | G35: 0 | H35: 0
C36: Other Feed | D36: 0 | E36: Cwt,lb,etc | F36: 0 | G36: 0 | H36: 0
C37: Other Feed | D37: 0 | E37: Cwt,lb,etc | F37: 0 | G37: 0 | H37: 0
B38: Health | C38: =SUM(G39:G48) -> 0
C39: Vet/Medicine 1 | D39: 0 | E39: Visit,dose,cc's, etc. | F39: 0 | G39: =D39*F39 -> 0 | H39: =+G39*$D$5 -> 0
C40: Vet/Medicine 2 | D40: 0 | E40: Visit,dose,cc's, etc. | F40: 0 | G40: 0 | H40: 0
C41: Vet/Medicine 3 | D41: 0 | E41: Visit,dose,cc's, etc. | F41: 0 | G41: 0 | H41: 0
C42: Vet/Medicine 4 | D42: 0 | E42: Visit,dose,cc's, etc. | F42: 0 | G42: 0 | H42: 0
C43: Vet/Medicine 5 | D43: 0 | E43: Visit,dose,cc's, etc. | F43: 0 | G43: 0 | H43: 0
C44: Vet/Medicine 6 | D44: 0 | E44: Visit,dose,cc's, etc. | F44: 0 | G44: 0 | H44: 0
C45: Vet/Medicine 7 | D45: 0 | E45: Visit,dose,cc's, etc. | F45: 0 | G45: 0 | H45: 0
C46: Vet/Medicine 8 | D46: 0 | E46: Visit,dose,cc's, etc. | F46: 0 | G46: 0 | H46: 0
C47: Vet/Medicine 9 | D47: 0 | E47: Visit,dose,cc's, etc. | F47: 0 | G47: 0 | H47: 0
C48: Vet/Medicine 10 | D48: 0 | E48: Visit,dose,cc's, etc. | F48: 0 | G48: 0 | H48: 0
B50: Fuel, Lube, Repair | D50: 1 | E50: Head | F50: 0 | G50: 0 | H50: 0
B52: Labor | D52: 0 | E52: Hours | F52: 0 | G52: 0 | H52: 0
B54: Other Variable Expense | D54: 0 | E54: Cwt,lb,etc | F54: 0 | G54: 0 | H54: 0
B55: Other Variable Expense | D55: 0 | E55: Cwt,lb,etc | F55: 0 | G55: 0 | H55: 0
B56: Other Variable Expense | D56: 0 | E56: Cwt,lb,etc | F56: 0 | G56: 0 | H56: 0
B57: Other Variable Expense | D57: 0 | E57: Cwt,lb,etc | F57: 0 | G57: 0 | H57: 0
B58: Other Variable Expense | D58: 0 | E58: Cwt,lb,etc | F58: 0 | G58: 0 | H58: 0
B59: Other Variable Expense | D59: 0 | E59: Cwt,lb,etc | F59: 0 | G59: 0 | H59: 0
B61: Operating Interest | F61: 0 | G61: =+SUM(G23:G59)/2*F61 -> 0 | H61: 0
A63: Total Variable Costs | G63: =+SUM(G23:G62) -> 0 | H63: =+SUM(H23:H62) -> 0
A65: Planned Returns Above Variable Costs | G65: =+G18-G63 -> 0 | H65: =+H18-H63 -> 0
B67: Breakeven Price to Cover Variable Costs | E67: =IF((H101/100+C13*D13)=0,0,(G63-SUM(G11:G12,G14:G16))/(H101/100+C13/D5*D13)) -> 0 | F67: =+E9 -> CWT
H69: Enterprise
A70: FIXED COSTS | D70: Quantity | E70: Units | F70: $/Unit | G70: Total | H70: Total
B71: Depreciation - Equipment | D71: 0 | E71: Head,$,etc | F71: 0 | G71: =D71*F71 -> 0 | H71: =+G71*$D$5 -> 0
B72: Depreciation - Livestock | D72: 0 | E72: Head,$,etc | F72: 0 | G72: =D72*F72 -> 0 | H72: 0
B73: Equipment Investment | D73: 0 | E73: Head,$,etc | F73: 0 | G73: 0 | H73: 0
B74: Insurance | D74: 0 | E74: Head,$,etc | F74: 0 | G74: 0 | H74: 0
B75: Management Fee | D75: 0 | E75: Head,$,etc | F75: 0 | G75: 0 | H75: 0
B76: Owner/Operator Labor | D76: 0 | E76: Head,$,etc | F76: 0 | G76: 0 | H76: 0
B77: Salaried Labor | D77: 0 | E77: Head,$,etc | F77: 0 | G77: 0 | H77: 0
B78: Other Fixed Expense | D78: 0 | E78: Head,$,etc | F78: 0 | G78: 0 | H78: 0
B79: Other Fixed Expense | D79: 0 | E79: Head,$,etc | F79: 0 | G79: 0 | H79: 0
B80: Other Fixed Expense | D80: 0 | E80: Head,$,etc | F80: 0 | G80: 0 | H80: 0
B81: Other Fixed Expense | D81: 0 | E81: Head,$,etc | F81: 0 | G81: 0 | H81: 0
B82: Other Fixed Expense | D82: 0 | E82: Head,$,etc | F82: 0 | G82: 0 | H82: 0
D84: Total Fixed Costs | G84: =+SUM(G71:G83) -> 0 | H84: =+SUM(H71:H83) -> 0
D86: Total Specified Costs | G86: =+G63+G84 -> 0 | H86: =+H63+H84 -> 0
D88: Returns Above Specifiied Costs | G88: =+G18-G86 -> 0 | H88: =+H18-H86 -> 0
B90: Breakeven Price to Cover Total Costs | E90: =IF((H101/100+C13*D13)=0,0,(G86-SUM(G11:G12,G14:G16))/(H101/100+C13/D5*D13)) -> 0 | F90: =+F67 -> CWT
B93: Sensitivity Analysis for Your Breeding Herd or Flock Values
B94: Your Weaning Percent | C94: Your Gross Sales per Head | D94: Pounds Produced per Head | E94: ="Your Breakeven Pay Weight to Cover Total Cost" -> Your Breakeven Pay Weight to Cover Total Cost | G94: Your Average Breakeven Price to Cover Total Cost
B95: =+B96-0.03 -> -0.06 | C95: =+IF($B$97=0,0,YTotRet-$G$9-$G$10+($G$9+$G$10)*B95/$B$97) -> 0 | D95: =IF($B$97=0,0,$H$101*B95/$B$97+$H$102) -> 0 | E95: =IF($C$97=0,0,(YTotExp-($G$18-$G$9-$G$10))/(YPrice/100)/(B95-$C$11/$D$5)) -> 0 | G95: =IF(D95-$H$102=0,0,(YTotExp-($G$18-$G$9-$G$10))/(D95-$H$102)*100) -> 0
B96: =+B97-0.03 -> -0.03 | C96: =+IF($B$97=0,0,YTotRet-$G$9-$G$10+($G$9+$G$10)*B96/$B$97) -> 0 | D96: =IF($B$97=0,0,$H$101*B96/$B$97+$H$102) -> 0 | E96: =IF($C$97=0,0,(YTotExp-($G$18-$G$9-$G$10))/(YPrice/100)/(B96-$C$11/$D$5)) -> 0 | G96: =IF(D96-$H$102=0,0,(YTotExp-($G$18-$G$9-$G$10))/(D96-$H$102)*100) -> 0
B97: 0 | C97: =+G18 -> 0 | D97: =H101+H102 -> 0 | E97: =IF($C$97=0,0,(YTotExp-($G$18-$G$9-$G$10))/(YPrice/100)/(B97-$C$11/$D$5)) -> 0 | G97: =IF(D97-$H$102=0,0,(YTotExp-($G$18-$G$9-$G$10))/(D97-$H$102)*100) -> 0
B98: =+B97+0.03 -> 0.03 | C98: =+IF($B$97=0,0,YTotRet-$G$9-$G$10+($G$9+$G$10)*B98/$B$97) -> 0 | D98: =IF($B$97=0,0,$H$101*B98/$B$97+$H$102) -> 0 | E98: =IF($C$97=0,0,(YTotExp-($G$18-$G$9-$G$10))/(YPrice/100)/(B98-$C$11/$D$5)) -> 0 | G98: =IF(D98-$H$102=0,0,(YTotExp-($G$18-$G$9-$G$10))/(D98-$H$102)*100) -> 0
B99: =+B98+0.03 -> 0.06 | C99: =+IF($B$97=0,0,YTotRet-$G$9-$G$10+($G$9+$G$10)*B99/$B$97) -> 0 | D99: =IF($B$97=0,0,$H$101*B99/$B$97+$H$102) -> 0 | E99: =IF($C$97=0,0,(YTotExp-($G$18-$G$9-$G$10))/(YPrice/100)/(B99-$C$11/$D$5)) -> 0 | G99: =IF(D99-$H$102=0,0,(YTotExp-($G$18-$G$9-$G$10))/(D99-$H$102)*100) -> 0
C101: Your Male Price | F101: =+F9 -> 0 | H101: =IF(D5=0,0,(C9*D9+C10*D10)*100/D5) -> 0
C102: Your Female Price | F102: =+F10 -> 0 | H102: =IF(D5=0,0,(C11*D11+C12*D12)*100/D5) -> 0
C103: Your Weighted Average Price ($/cwt) | F103: =+IF((C9*D9+C10*D10)=0,F13,(G9+G10)/((C9*D9+C10*D10)/D5)) -> 0
C105: Your Stocker or Feeder Breakeven Sensitivity Analysis
C106: Your Average Daily Gain | E106: 0 | F106: Pounds per Day
C107: =+"Your Animal"&IF(M25="Stocker"," Grazing"," Feeding")&" Days" -> Your Animal Feeding Days | E107: 0 | F107: Days
C108: Your Sale Shrink | E108: 0
C109: Average Daily Gain (Pounds/day) | D109: Net Pay Weight with Shrink (Pounds) | F109: =+"Purchase Weight (Pounds/Head): "&D23*100 -> Purchase Weight (Pounds/Head): 0 | H109: Sales Price/Cwt of $Total
F110: ="Sales Price "&IF(F13="",".00",TEXT(F13,"#.00")) -> Sales Price .00 | H110: ="Purchase Price "&IF(F23="",".00",TEXT(F23,"#.00")) -> Purchase Price .00
F111: Breakeven Purchase Price ($/CWT) | H111: Breakeven Sales Price ($/CWT)
C112: =+C114*1.2 -> 0 | D112: =+(C112*$E$107+$D$23*100)*(1-$E$108) -> 0 | F112: =IF($D$23=0,0,(((D112*$F$13/100*($C$13/$D$5))-($G$86-SUM($G$14:$G$16)-$G$23))/(100*$D$23))*100) -> 0 | H112: =IF($C$13=0,0,($G$86-SUM($G$14:$G$16))/(D112*($C$13/$D$5)*100)) -> 0
C113: =+C114*1.1 -> 0 | D113: =+(C113*$E$107+$D$23*100)*(1-$E$108) -> 0 | F113: =IF($D$23=0,0,(((D113*$F$13/100*($C$13/$D$5))-($G$86-SUM($G$14:$G$16)-$G$23))/(100*$D$23))*100) -> 0 | H113: =IF($C$13=0,0,($G$86-SUM($G$14:$G$16))/(D113*($C$13/$D$5)*100)) -> 0
C114: =+E106 -> 0 | D114: =+(C114*$E$107+$D$23*100)*(1-$E$108) -> 0 | F114: =IF($D$23=0,0,(((D114*$F$13/100*($C$13/$D$5))-($G$86-SUM($G$14:$G$16)-$G$23))/(100*$D$23))*100) -> 0 | H114: =IF($C$13=0,0,($G$86-SUM($G$14:$G$16))/(D114*($C$13/$D$5)*100)) -> 0
C115: =+C114*0.9 -> 0 | D115: =+(C115*$E$107+$D$23*100)*(1-$E$108) -> 0 | F115: =IF($D$23=0,0,(((D115*$F$13/100*($C$13/$D$5))-($G$86-SUM($G$14:$G$16)-$G$23))/(100*$D$23))*100) -> 0 | H115: =IF($C$13=0,0,($G$86-SUM($G$14:$G$16))/(D115*($C$13/$D$5)*100)) -> 0
C116: =+C114*0.8 -> 0 | D116: =+(C116*$E$107+$D$23*100)*(1-$E$108) -> 0 | F116: =IF($D$23=0,0,(((D116*$F$13/100*($C$13/$D$5))-($G$86-SUM($G$14:$G$16)-$G$23))/(100*$D$23))*100) -> 0 | H116: =IF($C$13=0,0,($G$86-SUM($G$14:$G$16))/(D116*($C$13/$D$5)*100)) -> 0

Sheet Crop Budget
A1: Estimated Costs and Returns per Acre
A3: Crop Enterprise
A5: Number of Acres of Crop | D5: 0
A7: Enter Your Values in the cells highlighed in MAROON. | G7: Enterprise
A8: REVENUE | C8: Quantity | D8: Units | E8: $/Unit | F8: Total | G8: Total
B9: Primary Product | C9: 0 | D9: Cwt,lb,etc | E9: 0 | F9: =C9*E9 -> 0 | G9: =+F9*$D$5 -> 0
B10: Secondary Product | C10: 0 | D10: Cwt,lb,etc | E10: 0 | F10: =C10*E10 -> 0 | G10: =+F10*$D$5 -> 0
B11: Secondary Product | C11: 0 | D11: Cwt,lb,etc | E11: 0 | F11: 0 | G11: 0
B12: Secondary Product | C12: 0 | D12: Cwt,lb,etc | E12: 0 | F12: 0 | G12: 0
B13: Secondary Product | C13: 0 | D13: Cwt,lb,etc | E13: 0 | F13: 0 | G13: 0
B14: Secondary Product | C14: 0 | D14: Cwt,lb,etc | E14: 0 | F14: 0 | G14: 0
B15: Secondary Product | C15: 0 | D15: Cwt,lb,etc | E15: 0 | F15: 0 | G15: 0
B16: Secondary Product | C16: 0 | D16: Cwt,lb,etc | E16: 0 | F16: 0 | G16: 0
A18: Total Revenue | F18: =+SUM(F9:F16) -> 0 | G18: =+SUM(G9:G16) -> 0
G20: Enterprise
A21: VARIABLE COSTS | C21: Quantity | D21: Units | E21: $/Unit | F21: Total | G21: Total
A23: Custom Field and Harvest Operations
B24: Custom Field Operation 1 | C24: 0 | D24: Acre | E24: 0 | F24: =C24*E24 -> 0 | G24: =+F24*$D$5 -> 0
B25: Custom Field Operation 2 | C25: 0 | D25: Acre | E25: 0 | F25: 0 | G25: 0
B26: Custom Field Operation 3 | C26: 0 | D26: Acre | E26: 0 | F26: 0 | G26: 0
B27: Custom Field Operation 4 | C27: 0 | D27: Acre | E27: 0 | F27: 0 | G27: 0
B28: Custom Field Operation 5 | C28: 0 | D28: Acre | E28: 0 | F28: 0 | G28: 0
B29: Custom Field Operation 6 | C29: 0 | D29: Acre | E29: 0 | F29: 0 | G29: 0
A30: Machinery Expenses
B31: Diesel | C31: 0 | D31: Gallon | E31: 0 | F31: =C31*E31 -> 0 | G31: 0
B32: Gasoline | C32: 0 | D32: Gallon | E32: 0 | F32: 0 | G32: 0
B33: Lube | C33: 0 | D33: Acre | E33: 0 | F33: 0 | G33: 0
B34: Repairs | C34: 0 | D34: Acre | E34: 0 | F34: 0 | G34: 0
B35: Other Machinery Expense 1 | C35: 0 | D35: Acre | E35: 0 | F35: 0 | G35: 0
B36: Other Machinery Expense 2 | C36: 0 | D36: Acre | E36: 0 | F36: 0 | G36: 0
A37: Labor
B38: Labor 1 | C38: 0 | D38: Hour | E38: 0 | F38: =C38*E38 -> 0 | G38: 0
B39: Labor 2 | C39: 0 | D39: Hour | E39: 0 | F39: 0 | G39: 0
B40: Labor 3 | C40: 0 | D40: Hour | E40: 0 | F40: 0 | G40: 0
B41: Labor 4 | C41: 0 | D41: Hour | E41: 0 | F41: 0 | G41: 0
B42: Labor 5 | C42: 0 | D42: Hour | E42: 0 | F42: 0 | G42: 0
B43: Irrigation Labor | C43: 0 | D43: Hour | E43: 0 | F43: 0 | G43: 0
A44: Seed or Transplants
B45: Seed | C45: 0 | D45: Pound | E45: 0 | F45: =C45*E45 -> 0 | G45: 0
B46: Seed Treatment | C46: 0 | D46: Pound | E46: 0 | F46: 0 | G46: 0
B47: Seed Fee | C47: 0 | D47: Pound | E47: 0 | F47: 0 | G47: 0
B48: Transplants | C48: 0 | D48: Thousand | E48: 0 | F48: 0 | G48: 0
B49: Mulch | C49: 0 | D49: Foot | E49: 0 | F49: 0 | G49: 0
B50: Other Seed or Transplant | C50: 0 | D50: Pound | E50: 0 | F50: 0 | G50: 0
A51: Fertilizer and Lime
B52: Fertlizer 1 | C52: 0 | D52: Pound | E52: 0 | F52: =C52*E52 -> 0 | G52: 0
B53: Fertlizer 2 | C53: 0 | D53: Pound | E53: 0 | F53: 0 | G53: 0
B54: Fertlizer 3 | C54: 0 | D54: Pound | E54: 0 | F54: 0 | G54: 0
B55: Fertlizer 4 | C55: 0 | D55: Pound | E55: 0 | F55: 0 | G55: 0
B56: Fertlizer 5 | C56: 0 | D56: Pound | E56: 0 | F56: 0 | G56: 0
B57: Lime | C57: 0 | D57: Ton | E57: 0 | F57: 0 | G57: 0
B58: Other Soil Amendment 1 | C58: 0 | D58: Pound | E58: 0 | F58: 0 | G58: 0
B59: Other Soil Amendment 2 | C59: 0 | D59: Pound | E59: 0 | F59: 0 | G59: 0
A60: Herbicides
B61: Herbicide 1 | C61: 0 | D61: Lb,Oz,Acre | E61: 0 | F61: =C61*E61 -> 0 | G61: 0
B62: Herbicide 2 | C62: 0 | D62: Lb,Oz,Acre | E62: 0 | F62: 0 | G62: 0
B63: Herbicide 3 | C63: 0 | D63: Lb,Oz,Acre | E63: 0 | F63: 0 | G63: 0
B64: Herbicide 4 | C64: 0 | D64: Lb,Oz,Acre | E64: 0 | F64: 0 | G64: 0
B65: Herbicide 5 | C65: 0 | D65: Lb,Oz,Acre | E65: 0 | F65: 0 | G65: 0
B66: Herbicide 6 | C66: 0 | D66: Lb,Oz,Acre | E66: 0 | F66: 0 | G66: 0
A67: Insecticides
B68: Insecticide 1 | C68: 0 | D68: Lb,Oz,Acre | E68: 0 | F68: =C68*E68 -> 0 | G68: 0
B69: Insecticide 2 | C69: 0 | D69: Lb,Oz,Acre | E69: 0 | F69: 0 | G69: 0
B70: Insecticide 3 | C70: 0 | D70: Lb,Oz,Acre | E70: 0 | F70: 0 | G70: 0
B71: Insecticide 4 | C71: 0 | D71: Lb,Oz,Acre | E71: 0 | F71: 0 | G71: 0
B72: Insecticide 5 | C72: 0 | D72: Lb,Oz,Acre | E72: 0 | F72: 0 | G72: 0
B73: Insecticide 6 | C73: 0 | D73: Lb,Oz,Acre | E73: 0 | F73: 0 | G73: 0
A74: Fungicides
B75: Fungicide 1 | C75: 0 | D75: Lb,Oz,Acre | E75: 0 | F75: =C75*E75 -> 0 | G75: 0
B76: Fungicide 2 | C76: 0 | D76: Lb,Oz,Acre | E76: 0 | F76: 0 | G76: 0
B77: Fungicide 3 | C77: 0 | D77: Lb,Oz,Acre | E77: 0 | F77: 0 | G77: 0
B78: Fungicide 4 | C78: 0 | D78: Lb,Oz,Acre | E78: 0 | F78: 0 | G78: 0
B79: Fungicide 5 | C79: 0 | D79: Lb,Oz,Acre | E79: 0 | F79: 0 | G79: 0
B80: Fungicide 6 | C80: 0 | D80: Lb,Oz,Acre | E80: 0 | F80: 0 | G80: 0
A81: Growth Regulators
B82: Growth Regulator 1 | C82: 0 | D82: Lb,Oz,Acre | E82: 0 | F82: =C82*E82 -> 0 | G82: 0
B83: Growth Regulator 2 | C83: 0 | D83: Lb,Oz,Acre | E83: 0 | F83: 0 | G83: 0
B84: Growth Regulator 3 | C84: 0 | D84: Lb,Oz,Acre | E84: 0 | F84: 0 | G84: 0
B85: Growth Regulator 4 | C85: 0 | D85: Lb,Oz,Acre | E85: 0 | F85: 0 | G85: 0
B86: Growth Regulator 5 | C86: 0 | D86: Lb,Oz,Acre | E86: 0 | F86: 0 | G86: 0
B87: Growth Regulator 6 | C87: 0 | D87: Lb,Oz,Acre | E87: 0 | F87: 0 | G87: 0
A88: Other Chemicals
B89: Fumigant | C89: 0 | D89: Lb,Oz,Acre | E89: 0 | F89: =C89*E89 -> 0 | G89: 0
B90: Other Chemical 1 | C90: 0 | D90: Lb,Oz,Acre | E90: 0 | F90: 0 | G90: =+F90*$D$5 -> 0
B91: Other Chemical 2 | C91: 0 | D91: Lb,Oz,Acre | E91: 0 | F91: 0 | G91: =+F91*$D$5 -> 0
B92: Other Chemical 3 | C92: 0 | D92: Lb,Oz,Acre | E92: 0 | F92: 0 | G92: =+F92*$D$5 -> 0
B93: Other Chemical 4 | C93: 0 | D93: Lb,Oz,Acre | E93: 0 | F93: 0 | G93: =+F93*$D$5 -> 0
B94: Other Chemical 5 | C94: 0 | D94: Lb,Oz,Acre | E94: 0 | F94: 0 | G94: =+F94*$D$5 -> 0
A95: Irrigation
B96: Well Expense | C96: 0 | D96: Acre | E96: 0 | F96: =C96*E96 -> 0 | G96: =+F96*$D$5 -> 0
B97: Pump Fuel | C97: 0 | D97: Mcf,kWh,Gallon | E97: 0 | F97: 0 | G97: 0
B98: Pump Expense | C98: 0 | D98: Acre | E98: 0 | F98: 0 | G98: 0
B99: Irrigation Equipment Expense | C99: 0 | D99: Acre | E99: 0 | F99: 0 | G99: 0
B100: Repairs | C100: 0 | D100: Acre | E100: 0 | F100: 0 | G100: 0
B101: Drip Tape | C101: 0 | D101: Foot,Acre | E101: 0 | F101: 0 | G101: 0
B102: Water Cost | C102: 0 | D102: AcIn,Gallon | E102: 0 | F102: 0 | G102: 0
B103: Other Irrigation Expense 1 | C103: 0 | D103: Acre | E103: 0 | F103: 0 | G103: 0
B104: Other Irrigation Expense 2 | C104: 0 | D104: Acre | E104: 0 | F104: 0 | G104: 0
A105: Miscellaneous Expenses
B106: Crop Insurance | C106: 0 | D106: Acre | E106: 0 | F106: =C106*E106 -> 0 | G106: 0
B107: Other Variable Expense 1 | C107: 0 | D107: Enter Unit | E107: 0 | F107: 0 | G107: 0
B108: Other Variable Expense 2 | C108: 0 | D108: Enter Unit | E108: 0 | F108: 0 | G108: 0
B109: Other Variable Expense 3 | C109: 0 | D109: Enter Unit | E109: 0 | F109: 0 | G109: 0
B110: Other Variable Expense 4 | C110: 0 | D110: Enter Unit | E110: 0 | F110: 0 | G110: 0
B111: Other Variable Expense 5 | C111: 0 | D111: Enter Unit | E111: 0 | F111: 0 | G111: 0
B112: Other Variable Expense 6 | C112: 0 | D112: Enter Unit | E112: 0 | F112: 0 | G112: 0
B113: Other Variable Expense 7 | C113: 0 | D113: Enter Unit | E113: 0 | F113: 0 | G113: 0
B114: Other Variable Expense 8 | C114: 0 | D114: Enter Unit | E114: 0 | F114: 0 | G114: 0
B116: Operating Interest | E116: 0 | F116: =+SUM(F23:F115)/2*E116 -> 0 | G116: =+F116*$D$6 -> 0
A118: Total Variable Costs | F118: =+SUM(F23:F116) -> 0 | G118: =+SUM(G23:G116) -> 0
A120: Planned Returns Above Variable Costs | F120: =+F18-F118 -> 0 | G120: =+G18-G118 -> 0
B122: Breakeven Price to Cover Variable Costs | E122: =+IF(C9=0,0,F118-SUM(F10:F16)/C9) -> 0 | F122: =+D9 -> Cwt,lb,etc
G124: Enterprise
A125: FIXED COSTS | C125: Quantity | D125: Units | E125: $/Unit | F125: Total | G125: Total
B126: Land Rent or Expense | C126: 1 | D126: Acre | E126: 0 | F126: =C126*E126 -> 0 | G126: =+F126*$D$6 -> 0
B127: Depreciation - Equipment | C127: 1 | D127: Acre | E127: 0 | F127: =C127*E127 -> 0 | G127: 0
B128: Equipment Investment | C128: 0 | D128: $ | E128: 0 | F128: 0 | G128: 0
B129: Insurance | C129: 1 | D129: Acre | E129: 0 | F129: 0 | G129: 0
B130: Management Fee | C130: 1 | D130: Acre | E130: 0 | F130: 0 | G130: 0
B131: Owner/Operator Labor | C131: 0 | D131: Acre | E131: 0 | F131: 0 | G131: 0
B132: Salaried Labor | C132: 1 | D132: Acre,$,etc | E132: 0 | F132: 0 | G132: 0
B133: Other Fixed Expense | C133: 0 | D133: Acre,$,etc | E133: 0 | F133: 0 | G133: 0
B134: Other Fixed Expense | C134: 0 | D134: Acre,$,etc | E134: 0 | F134: 0 | G134: 0
B135: Other Fixed Expense | C135: 0 | D135: Acre,$,etc | E135: 0 | F135: 0 | G135: 0
B136: Other Fixed Expense | C136: 0 | D136: Acre,$,etc | E136: 0 | F136: 0 | G136: 0
B137: Other Fixed Expense | C137: 0 | D137: Acre,$,etc | E137: 0 | F137: 0 | G137: 0
D139: Total Fixed Costs | F139: =+SUM(F126:F137) -> 0 | G139: =+SUM(G126:G137) -> 0
D141: Total Specified Costs | F141: =+F118+F139 -> 0 | G141: =+G118+G139 -> 0
D143: Returns Above Specifiied Costs | F143: =+F18-F141 -> 0 | G143: =+G18-G141 -> 0
B145: Breakeven Price to Cover Total Costs | E145: =+IF(C9=0,0,F141-SUM(F10:F16)/C9) -> 0 | F145: =+D9 -> Cwt,lb,etc
B147: Breakeven Prices for Your Crop
E148: Price To Cover | G148: Price To Cover
B149: Yield | C149: Yield | E149: Variable | G149: Total
B150: Percent | C150: =+D9 -> Cwt,lb,etc | E150: Costs | G150: Costs
B151: 0.75 | C151: =+$C$153*B151 -> 0 | E151: =+IF(C151=0,0,($F$118-SUM($F$10:$F$16))/C151) -> 0 | G151: =+IF(C151=0,0,($F$141-SUM($F$10:$F$16))/C151) -> 0
B152: 0.9 | C152: =+$C$153*B152 -> 0 | E152: =+IF(C152=0,0,($F$118-SUM($F$10:$F$16))/C152) -> 0 | G152: =+IF(C152=0,0,($F$141-SUM($F$10:$F$16))/C152) -> 0
B153: 1 | C153: =+C9 -> 0 | E153: =+IF(C153=0,0,($F$118-SUM($F$10:$F$16))/C153) -> 0 | G153: =+IF(C153=0,0,($F$141-SUM($F$10:$F$16))/C153) -> 0
B154: 1.1 | C154: 0 | E154: =+IF(C154=0,0,($F$118-SUM($F$10:$F$16))/C154) -> 0 | G154: =+IF(C154=0,0,($F$141-SUM($F$10:$F$16))/C154) -> 0
B155: 1.25 | C155: 0 | E155: =+IF(C155=0,0,($F$118-SUM($F$10:$F$16))/C155) -> 0 | G155: =+IF(C155=0,0,($F$141-SUM($F$10:$F$16))/C155) -> 0

Sheet Comparative Returns - Cash Rent
A1: Comparative Returns - Cash Rent
B3: Returns Above Total Specified Expenses | E3: Total Direct Expenses | H3: Breakeven Yield to Cover Total Costs at Price Entered
B4: Total Costs | C4: Variable Costs | E4: Total Costs | F4: Variable Costs | H4: Price | I4: Units | J4: Total Costs | K4: Variable Costs
A5: FORAGE CROPS
A7: =+AlfalfaEstablish!A3 -> Alfalfa, Roundup Ready, Establishment, Center Pivot Irrigated | B7: =+AlfalfaEstablish!TotRet -> -501.0208214 | C7: =+AlfalfaEstablish!VarRet -> -370.4293157 | E7: =+AlfalfaEstablish!TotExp -> 501.0208214 | F7: =+AlfalfaEstablish!VarExp -> 370.4293157 | H7: =+AlfalfaEstablish!Price -> 0 | I7: =+AlfalfaEstablish!Unit ->  | J7: =+IF($H7=0,0,E7/$H7) -> 0 | K7: 0
A8: =+AlfalfaHayPivot!A3 -> Alfalfa, RoundUp Ready, Full Season, Baled - 6.5 ton, Center Pivot Irrigated | B8: =+AlfalfaHayPivot!TotRet -> 354.2067761 | C8: =+AlfalfaHayPivot!VarRet -> 708.9789925 | E8: =+AlfalfaHayPivot!TotExp -> 1173.293224 | F8: =+AlfalfaHayPivot!VarExp -> 818.5210075 | H8: =+AlfalfaHayPivot!Price -> 235 | I8: =+AlfalfaHayPivot!Unit -> Ton | J8: 4.992737123 | K8: 3.483068117
A9: =+CoastalEstablishDryland!A3 -> Dryland Bermudagrass Establishment | B9: =+CoastalEstablishDryland!TotRet -> -283.1770219 | C9: =+CoastalEstablishDryland!VarRet -> -217.3130603 | E9: =+CoastalEstablishDryland!TotExp -> 305.6770219 | F9: =+CoastalEstablishDryland!VarExp -> 239.8130603 | H9: =+CoastalEstablishDryland!Price -> 0.45 | I9: =+CoastalEstablishDryland!Unit -> Pound | J9: =+IF($H9=0,0,E9/$H9) -> 679.282271 | K9: 532.9179117
A10: =+CoastalHayDryland!A3 -> Dryland Bermudagrass Hay | B10: =+CoastalHayDryland!TotRet -> 183.8791874 | C10: =+CoastalHayDryland!VarRet -> 283.9825594 | E10: =+CoastalHayDryland!TotExp -> 298.9708126 | F10: =+CoastalHayDryland!VarExp -> 198.8674406 | H10: =+CoastalHayDryland!Price -> 145 | I10: =+CoastalHayDryland!Unit -> Ton | J10: 2.061867673 | K10: 1.37149959
A11: =+OatsDryland!A3 -> Dryland Forage Oats, Follow Small Grains | B11: =+OatsDryland!TotRet -> -62.38634923 | C11: =+OatsDryland!VarRet -> 7.908201468 | E11: =+OatsDryland!TotExp -> 235.6363492 | F11: =+OatsDryland!VarExp -> 165.3417985 | H11: =+OatsDryland!Price -> 170 | I11: =+OatsDryland!Unit -> Ton | J11: 1.386096172 | K11: 0.9725988149
A12: =+SorghumHaygrazer!A3 -> Non-Irrigated Sorghum Haygrazer, 3 ton yield | B12: =+SorghumHaygrazer!TotRet -> 69.44530061 | C12: =+SorghumHaygrazer!VarRet -> 160.2393958 | E12: =+SorghumHaygrazer!TotExp -> 365.5546994 | F12: =+SorghumHaygrazer!VarExp -> 274.7606042 | H12: =+SorghumHaygrazer!Price -> 145 | I12: =+SorghumHaygrazer!Unit -> Ton | J12: 2.521066892 | K12: 1.894900718
A14: FIELD CROPS
A16: =+CottonDripRF!A3 -> Drip Irrigated Cotton, RF | B16: =+CottonDripRF!TotRet -> 140.7107665 | C16: =+CottonDripRF!VarRet -> 347.0202787 | E16: =+CottonDripRF!TotExp -> 910.6692335 | F16: =+CottonDripRF!VarExp -> 704.3597213 | H16: =+CottonDripRF!Price -> 0.63 | I16: =+CottonDripRF!Unit -> Pound | J16: =+IF($H16=0,0,E16/$H16) -> 1445.50672 | K16: =+IF($H16=0,0,F16/$H16) -> 1118.031304
A17: =+CottonDripXF!A3 -> Drip Irrigated Cotton, Auxin Technology | B17: =+CottonDripXF!TotRet -> 108.2491556 | C17: =+CottonDripXF!VarRet -> 314.5586678 | E17: =+CottonDripXF!TotExp -> 943.1308444 | F17: =+CottonDripXF!VarExp -> 736.8213322 | H17: =+CottonDripXF!Price -> 0.63 | I17: =+CottonDripXF!Unit -> Pound | J17: =+IF($H17=0,0,E17/$H17) -> 1497.033086 | K17: =+IF($H17=0,0,F17/$H17) -> 1169.55767
A18: =+CottonDrylandRF!A3 -> Dryland Cotton, B2RF, Follow Wheat | B18: =+CottonDrylandRF!TotRet -> -26.07462538 | C18: =+CottonDrylandRF!VarRet -> 64.67042512 | E18: =+CottonDrylandRF!TotExp -> 323.3671254 | F18: =+CottonDrylandRF!VarExp -> 232.6220749 | H18: =+CottonDrylandRF!Price -> 0.63 | I18: =+CottonDrylandRF!Unit -> Pound | J18: 513.2811514 | K18: 369.2413887
A19: =+CottonDrylandXF!A3 -> Dryland Cotton, Auxin Technology, Follow Wheat | B19: =+CottonDrylandXF!TotRet -> -51.61734185 | C19: =+CottonDrylandXF!VarRet -> 38.12770865 | E19: =+CottonDrylandXF!TotExp -> 348.9098419 | F19: =+CottonDrylandXF!VarExp -> 259.1647914 | H19: =+CottonDrylandXF!Price -> 0.63 | I19: =+CottonDrylandXF!Unit -> Pound | J19: =+IF($H19=0,0,E19/$H19) -> 553.8251458 | K19: 411.3726847
A20: =+OatsGrainDryland!A3 -> Dryland Oats, Follow Small Grains | B20: =+OatsGrainDryland!TotRet -> -118.9047292 | C20: =+OatsGrainDryland!VarRet -> -46.64595123 | E20: =+OatsGrainDryland!TotExp -> 192.4047292 | F20: =+OatsGrainDryland!VarExp -> 120.1459512 | H20: =+OatsGrainDryland!Price -> 2.1 | I20: =+OatsGrainDryland!Unit -> Bushel | J20: 91.6212996 | K20: 57.21235773
A21: =+SesameDryland!A3 -> Dryland Sesame | B21: =+SesameDryland!TotRet -> -46.3900315 | C21: =+SesameDryland!VarRet -> 39.95596673 | E21: =+SesameDryland!TotExp -> 221.3900315 | F21: =+SesameDryland!VarExp -> 135.0440333 | H21: =+SesameDryland!Price -> 0.35 | I21: =+SesameDryland!Unit -> Pound | J21: 632.5429471 | K21: 385.8400951
A22: =+SorghumDryland!A3 -> No-Till Dryland Sorghum, Follow Cotton | B22: =+SorghumDryland!TotRet -> -109.4877108 | C22: =+SorghumDryland!VarRet -> -37.09306112 | E22: =+SorghumDryland!TotExp -> 216.1877108 | F22: =+SorghumDryland!VarExp -> 143.7930611 | H22: =+SorghumDryland!Price -> 4.85 | I22: =+SorghumDryland!Unit -> CWT | J22: 44.57478574 | K22: 29.64805384
A23: =+ConTillWheat!A3 -> Con-Till Wheat, Dryland, Follow Wheat | B23: =+ConTillWheat!TotRet -> -78.07359481 | C23: =+ConTillWheat!VarRet -> 8.930825757 | E23: =+ConTillWheat!TotExp -> 214.6735948 | F23: =+ConTillWheat!VarExp -> 127.6691742 | H23: =+ConTillWheat!Price -> 4.6 | I23: =+ConTillWheat!Unit -> Bushel | J23: 46.66817278 | K23: 27.75416831
A24: =+WheatDryland!A3 -> No-Till Wheat, Dryland, Follow Cotton | B24: =+WheatDryland!TotRet -> -46.34091942 | C24: =+WheatDryland!VarRet -> 24.39247075 | E24: =+WheatDryland!TotExp -> 184.3409194 | F24: =+WheatDryland!VarExp -> 113.6075292 | H24: =+WheatDryland!Price -> 4.6 | I24: =+WheatDryland!Unit -> Bushel | J24: 40.07411292 | K24: 24.69728897
A26: LIVESTOCK
A28: =+CowCalf!A3 -> Cow-Calf Native Pasture | B28: =+CowCalf!TotRet -> -101.7617946 | C28: =+CowCalf!VarRet -> 339.4502467 | E28: =+CowCalf!TotExp -> 799.5842946 | F28: =+CowCalf!VarExp -> 358.3722533 | H28: =+CowCalf!Price -> 148.4142857 | I28: =+CowCalf!Unit -> CWT | J28: =+IF($H28=0,0,E28/$H28) -> 5.387515701 | K28: 2.414674919
A29: =CommercialHairSheep!A3 -> Commercial Hair Sheep, Lamb Production, 6 Head per AU | B29: =CommercialHairSheep!TotRet -> 65.21263886 | C29: =CommercialHairSheep!VarRet -> 491.2289358 | E29: =CommercialHairSheep!TotExp -> 785.8107111 | F29: =CommercialHairSheep!VarExp -> 359.7944142 | H29: =CommercialHairSheep!Price -> 197.13 | I29: =CommercialHairSheep!Unit -> CWT | J29: =IF(H29=0,0,E29/H29) -> 3.986256334 | K29: =IF(H29=0,0,F29/H29) -> 1.825163162
A30: =CommercialSheep!A3 -> Commercial Sheep, Wool/Lamb Production, 5 Head per AU | B30: =CommercialSheep!TotRet -> -21.42847872 | C30: =CommercialSheep!VarRet -> 404.5878183 | E30: =CommercialSheep!TotExp -> 804.0547287 | F30: =CommercialSheep!VarExp -> 378.0384317 | H30: =CommercialSheep!Price -> 197.13 | I30: =CommercialSheep!Unit -> CWT | J30: 4.078804488 | K30: 1.917711316
A31: =MeatGoats!A3 -> Commercial Meat Goats, 6 Head per AU | B31: =MeatGoats!TotRet -> 525.6019371 | C31: =MeatGoats!VarRet -> 949.5913591 | E31: =MeatGoats!TotExp -> 748.8340629 | F31: =MeatGoats!VarExp -> 324.8446409 | H31: =MeatGoats!Price -> 290.9 | I31: =MeatGoats!Unit -> CWT | J31: 2.574197535 | K31: 1.11668835
A32: =SmallAcreageGoat!A3 -> Small Acreage Meat Goats | B32: =SmallAcreageGoat!TotRet -> -7.668581617 | C32: =SmallAcreageGoat!VarRet -> 155.4864531 | E32: =SmallAcreageGoat!TotExp -> 230.609965 | F32: =SmallAcreageGoat!VarExp -> 67.45493023 | H32: =SmallAcreageGoat!Price -> 290.9 | I32: =SmallAcreageGoat!Unit -> CWT | J32: 0.7927465278 | K32: 0.231883569
A33: =SmallAcreageHairSheep!A3 -> Small Acreage Hair Sheep | B33: =SmallAcreageHairSheep!TotRet -> -59.96826525 | C33: =SmallAcreageHairSheep!VarRet -> 103.1867695 | E33: =SmallAcreageHairSheep!TotExp -> 231.0407736 | F33: =SmallAcreageHairSheep!VarExp -> 67.88573887 | H33: =SmallAcreageHairSheep!Price -> 197.13 | I33: =SmallAcreageHairSheep!Unit -> CWT | J33: 1.172022389 | K33: 0.3443704097
A34: =+NativePastureStockers!A3 -> Stocker Calf Budget - Native Pasture - Summer | B34: =+NativePastureStockers!TotRet -> 40.89651425 | C34: =+NativePastureStockers!VarRet -> 47.11495175 | E34: =+NativePastureStockers!TotExp -> 956.7410357 | F34: =+NativePastureStockers!VarExp -> 950.5225982 | H34: =+NativePastureStockers!Price -> 150 | I34: =+NativePastureStockers!Unit -> CWT | J34: =+IF($H34=0,0,E34/$H34) -> 6.378273572 | K34: =+IF($H34=0,0,F34/$H34) -> 6.336817322
A35: =+WheatStockersMar15!A3 -> Stocker Calf Budget - Pull off Wheat March 15 | B35: =+WheatStockersMar15!TotRet -> -85.35901726 | C35: =+WheatStockersMar15!VarRet -> -77.42071547 | E35: =+WheatStockersMar15!TotExp -> 950.5833773 | F35: =+WheatStockersMar15!VarExp -> 942.6450755 | H35: =+WheatStockersMar15!Price -> 143 | I35: =+WheatStockersMar15!Unit -> CWT | J35: =+IF($H35=0,0,E35/$H35) -> 6.647436205 | K35: =+IF($H35=0,0,F35/$H35) -> 6.591923605

Sheet Your Returns - Cash Rent
A1: Your Returns - Cash Rent
B3: Quantity | C3: Returns Above Total Specified Expenses | F3: Total Direct Expenses | I3: Breakeven Yield to Cover Total Costs at Price Entered
B4: Acres, AUs, or Head | C4: Total Costs | D4: Variable Costs | F4: Total Costs | G4: Variable Costs | I4: Price | J4: Units | K4: Total Costs | L4: Variable Costs
A5: FORAGE CROPS
A7: =+AlfalfaEstablish!A3 -> Alfalfa, Roundup Ready, Establishment, Center Pivot Irrigated | B7: =+AlfalfaEstablish!E7 -> 0 | C7: =+AlfalfaEstablish!YTotRet -> 0 | D7: =+AlfalfaEstablish!YVarRet -> 0 | F7: =+AlfalfaEstablish!YTotExp -> 0 | G7: =+AlfalfaEstablish!YVarExp -> 0 | I7: =+AlfalfaEstablish!YPrice -> 0 | J7: =+AlfalfaEstablish!Unit ->  | K7: =+IF($I7=0,0,F7/$I7) -> 0 | L7: 0
A8: =+AlfalfaHayPivot!A3 -> Alfalfa, RoundUp Ready, Full Season, Baled - 6.5 ton, Center Pivot Irrigated | B8: =+AlfalfaHayPivot!E7 -> 0 | C8: =+AlfalfaHayPivot!YTotRet -> 0 | D8: =+AlfalfaHayPivot!YVarRet -> 0 | F8: =+AlfalfaHayPivot!YTotExp -> 0 | G8: =+AlfalfaHayPivot!YVarExp -> 0 | I8: =+AlfalfaHayPivot!YPrice -> 0 | J8: =+AlfalfaHayPivot!Unit -> Ton | K8: 0 | L8: 0
A9: =+CoastalEstablishDryland!A3 -> Dryland Bermudagrass Establishment | B9: =+CoastalEstablishDryland!E7 -> 0 | C9: =+CoastalEstablishDryland!YTotRet -> 0 | D9: =+CoastalEstablishDryland!YVarRet -> 0 | F9: =+CoastalEstablishDryland!YTotExp -> 0 | G9: =+CoastalEstablishDryland!YVarExp -> 0 | I9: =+CoastalEstablishDryland!YPrice -> 0 | J9: =+CoastalEstablishDryland!Unit -> Pound | K9: =+IF($I9=0,0,F9/$I9) -> 0 | L9: 0
A10: =+CoastalHayDryland!A3 -> Dryland Bermudagrass Hay | B10: =+CoastalHayDryland!E7 -> 0 | C10: =+CoastalHayDryland!YTotRet -> 0 | D10: =+CoastalHayDryland!YVarRet -> 0 | F10: =+CoastalHayDryland!YTotExp -> 0 | G10: =+CoastalHayDryland!YVarExp -> 0 | I10: =+CoastalHayDryland!YPrice -> 0 | J10: =+CoastalHayDryland!Unit -> Ton | K10: 0 | L10: 0
A11: =+OatsDryland!A3 -> Dryland Forage Oats, Follow Small Grains | B11: =+OatsDryland!E7 -> 0 | C11: =+OatsDryland!YTotRet -> 0 | D11: =+OatsDryland!YVarRet -> 0 | F11: =+OatsDryland!YTotExp -> 0 | G11: =+OatsDryland!YVarExp -> 0 | I11: =+OatsDryland!YPrice -> 0 | J11: =+OatsDryland!Unit -> Ton | K11: 0 | L11: 0
A12: =+SorghumHaygrazer!A3 -> Non-Irrigated Sorghum Haygrazer, 3 ton yield | B12: =+SorghumHaygrazer!E7 -> 0 | C12: =+SorghumHaygrazer!YTotRet -> 0 | D12: =+SorghumHaygrazer!YVarRet -> 0 | F12: =+SorghumHaygrazer!YTotExp -> 0 | G12: =+SorghumHaygrazer!YVarExp -> 0 | I12: =+SorghumHaygrazer!YPrice -> 0 | J12: =+SorghumHaygrazer!Unit -> Ton | K12: 0 | L12: 0
A14: FIELD CROPS
A16: =+CottonDripRF!A3 -> Drip Irrigated Cotton, RF | B16: =+CottonDripRF!E7 -> 0 | C16: =+CottonDripRF!YTotRet -> 0 | D16: =+CottonDripRF!YVarRet -> 0 | F16: =+CottonDripRF!YTotExp -> 0 | G16: =+CottonDripRF!YVarExp -> 0 | I16: =+CottonDripRF!YPrice -> 0 | J16: =+CottonDripRF!Unit -> Pound | K16: =+IF($I16=0,0,F16/$I16) -> 0 | L16: =+IF($I16=0,0,G16/$I16) -> 0
A17: =+CottonDripXF!A3 -> Drip Irrigated Cotton, Auxin Technology | B17: =+CottonDripXF!E7 -> 0 | C17: =+CottonDripXF!YTotRet -> 0 | D17: =+CottonDripXF!YVarRet -> 0 | F17: =+CottonDripXF!YTotExp -> 0 | G17: =+CottonDripXF!YVarExp -> 0 | I17: =+CottonDripXF!YPrice -> 0 | J17: =+CottonDripXF!Unit -> Pound | K17: =+IF($I17=0,0,F17/$I17) -> 0 | L17: =+IF($I17=0,0,G17/$I17) -> 0
